Workbook

Sheet Lists (hidden)
X1: x | Y1: y | Z1: z | AA1: aa | AB1: ab | AC1: ac | AD1: ad | AE1: ae
C2: Incident Event Type/Cause | E2: Claim | G2: Nature of Claim | I2: Part | K2: Claim status | M2: Day | O2: Month | Q2: Shift | S2: Fiscal Month Values | V2: Cal Month | X2: Risk Type | Y2: Identification Method | Z2: Likelihood | AA2: Rank Value | AB2: Consequence | AC2: Rank Value | AD2: Rating | AE2: Control Type | AF2: Likelihood | AG2: Consecquence | AH2: Rating | AJ2: Report Type | AM2: # Injured | AP2: Dept
A3: Open | C3: Chemical | E3: Yes | G3: No Injury Sustained | I3: No Injury Sustained | K3: Open | M3: Sun | O3: January | Q3: AM Early | S3: 1 | T3: 1 | V3: =+MONTH('Site Report '!J1) -> 2 | X3: Accreditation/Licensing | Y3: Chance Discovery | Z3: Rare | AA3: 1 | AB3: Insignificant | AC3: 1 | AD3: Low | AE3: Elimination | AF3: Rare | AG3: Insignificant | AH3: Low | AJ3: General | AM3: 0
C4: Electrical | E4: No | G4: External NO Liability | I4: External Party | K4: Closed | M4: Mon | O4: February | Q4: AM Late | S4: 2 | T4: 2 | X4: Asset | Y4: Critical Control | Z4: Unlikely | AA4: 2 | AB4: Minor | AC4: 2 | AD4: Moderate | AE4: Substitution | AF4: Unlikely | AG4: Insignificant | AH4: Low | AJ4: Hazard Report | AM4: External
C5: Environment | G5: Amputation | I5: Abdomen | K5: N/A | M5: Tues | O5: March | Q5: PM Early | S5: 3 | T5: 3 | X5: Brand Value | Y5: External Audit Process | Z5: Possible | AA5: 3 | AB5: Medium | AC5: 3 | AD5: High | AE5: Isolation | AF5: Possible | AG5: Insignificant | AH5: Low | AJ5: Incident | AM5: 1
C6: External - No Control | G6: Burns | I6: Ankle | M6: Wed | O6: April | Q6: PM Late | S6: 4 | T6: 4 | X6: Business Continuity | Y6: Feedback Mechanism | Z6: Likely | AA6: 4 | AB6: Major | AC6: 4 | AD6: Extreme | AE6: Engineering | AF6: Likely | AG6: Insignificant | AH6: Moderate | AJ6: Incident with Injury(s) | AM6: 2
C7: Failure to Report | G7: Contusion/crushing | I7: Buttock | M7: Thurs | O7: May | S7: 5 | T7: 5 | X7: Compliance (legislative) | Y7: Hazard Notification | Z7: Almost Certain | AA7: 5 | AB7: Catastrophic | AC7: 5 | AE7: Administration | AF7: Almost Certain | AG7: Insignificant | AH7: Moderate | AJ7: Incident External | AM7: 3
C8: Fall - Object | G8: Dermatitis/Eczema | I8: Chest | M8: Fri | O8: June | S8: 6 | T8: 6 | X8: Customer Relations | Y8: Incident | AE8: PPE | AF8: Rare | AG8: Minor | AH8: Low | AJ8: Maintenance | AM8: 4
C9: Fall from Height - Person | G9: Dislocation | I9: Cognitive | M9: Sat | O9: July | S9: 7 | T9: 7 | X9: Due Diligence | Y9: Information Bulletin | AF9: Unlikely | AG9: Minor | AH9: Low | AJ9: System Compliance | AM9: 5
C10: Fatigue-Human | G10: Disorder of the Eye | I10: Ear | O10: August | S10: 8 | T10: 8 | X10: Environmental Hazard | Y10: Internal Audit Process | AF10: Possible | AG10: Minor | AH10: Moderate | AJ10: Other | AM10: 6
C11: Furniture | G11: Electric Shock | I11: Elbow | O11: September | S11: 9 | T11: 9 | X11: Essential Services | Y11: Legislative Monitoring Process | AF11: Likely | AG11: Minor | AH11: High | AM11: 7
C12: Hazardous Condition | G12: Fatality | I12: Eye | O12: October | S12: 10 | T12: 10 | X12: Financial | Y12: Peakbody Information | AF12: Almost Certain | AG12: Minor | AH12: High | AM12: 8
C13: Hazardous Substance | G13: Fatigue | I13: Face | O13: November | S13: 11 | T13: 11 | X13: Funding (other income) | Y13: Physical Inspection | AF13: Rare | AG13: Medium | AH13: Low | AM13: 9
C14: Hot Object | G14: Foreign Body | I14: Finger | O14: December | S14: 12 | T14: 12 | X14: Governance | Y14: Planning Activities | AF14: Unlikely | AG14: Medium | AH14: Moderate | AM14: 10
C15: Infrastructure | G15: Fracture | I15: Foot | X15: Industrial Relations | Y15: Product/Plant Assessment/Review | AF15: Possible | AG15: Medium | AH15: High | AM15: >10
C16: Maintenance Issue | G16: Hernia | I16: Groin | X16: Infrastructure | Y16: Quality Improvement Activity | AF16: Likely | AG16: Medium | AH16: High
C17: Manual Handling Lift General | G17: Lacerations | I17: Hand | X17: Legal (liability/prosecution) | Y17: Random Observation | AF17: Almost Certain | AG17: Medium | AH17: Extreme
C18: Manual Handling Plant Entry | G18: Mental Disorder | I18: Head | X18: Management/Leadership | Y18: Risk Assessment Process | AF18: Rare | AG18: Major | AH18: Moderate
C19: Manual Handling Plant Exit | G19: Multiple Injury | I19: Hip | X19: Market (industry) | Y19: Safety Review Activity | AF19: Unlikely | AG19: Major | AH19: High
C20: Manual Handling Plant Operation | G20: Open Wound | I20: Internal | X20: Operations | Y20: Stakeholder Information | AF20: Possible | AG20: Major | AH20: High
C21: Manual Handling Posture | G21: Poisoning/Toxic Effects | I21: Knee | X21: Professional | Y21: Statistical Information | AF21: Likely | AG21: Major | AH21: Extreme
C22: Manual Handling Push/Pull General | G22: Puncture wound | I22: Lower Arm | X22: Quality | Y22: Warning Mechanism | AF22: Almost Certain | AG22: Major | AH22: Extreme
C23: Medical Condition | G23: Respiratory Condition | I23: Lower Back | X23: Regulatory Compliance | Y23: Other | AF23: Rare | AG23: Catastrophic | AH23: Moderate
C24: Negligence | G24: Sensory Loss | I24: Lower Leg | X24: Reputation | AF24: Unlikely | AG24: Catastrophic | AH24: High
C25: Operator Error | G25: Sprains, Strains | I25: Mouth | X25: Service Growth | AF25: Possible | AG25: Catastrophic | AH25: Extreme
C26: Pest/Animal | G26: Superficial Injury | I26: Neck | X26: Strategic | AF26: Likely | AG26: Catastrophic | AH26: Extreme
C27: Plant Design | G27: Unspecified | I27: Nose | X27: System Integrity | AF27: Almost Certain | AG27: Catastrophic | AH27: Extreme
C28: Plant/Equipment Failure | G28: Other | I28: Scalp | X28: WHS Hazard
C29: Plant/Equipment Use | I29: Shoulder | X29: Workforce/Skills/Resources
C30: Plant Inspection | I30: Throat | X30: Other
C31: Process Design | I31: Toe
C32: Second Party Other | I32: Unspecified
C33: Second Party Physical | I33: Upper Arm
C34: Sharps | I34: Upper Back
C35: Slip | I35: Upper Leg
C36: Strain | I36: Wrist
C37: Stress | I37: Other
C38: Supervision
C39: Surface Condition
C40: Training
C41: Trip
C42: Weather
C43: Other

Sheet Hazard Register
A2: ID | B2: Hazard Agent | C2: Substance | D2: Critical Limits | E2: Specification Source | F2: Causes | G2: Identified By | H2: Risk Context | I2: Likelihood | J2: Consequence | K2: Initial Risk | L2: Hazard Control Measures | M2: Likelihood | N2: Consequence | O2: Residual Risk | P2: Last Review
A3: HAZ001 | K3: =INDEX([3]Lists!$AH$3:$AH$27,MATCH(I3&J3,INDEX([3]Lists!$AF$3:$AF$27&[3]Lists!$AG$3:$AG$27,),0)) ->  | O3: =INDEX(Lists!$AH$3:$AH$27,MATCH(M3&N3,INDEX(Lists!$AF$3:$AF$27&Lists!$AG$3:$AG$27,),0)) -> 
A4: HAZ002 | K4: =INDEX([3]Lists!$AH$3:$AH$27,MATCH(I4&J4,INDEX([3]Lists!$AF$3:$AF$27&[3]Lists!$AG$3:$AG$27,),0)) ->  | O4: =INDEX(Lists!$AH$3:$AH$27,MATCH(M4&N4,INDEX(Lists!$AF$3:$AF$27&Lists!$AG$3:$AG$27,),0)) -> 
A5: HAZ003 | K5: =INDEX([3]Lists!$AH$3:$AH$27,MATCH(I5&J5,INDEX([3]Lists!$AF$3:$AF$27&[3]Lists!$AG$3:$AG$27,),0)) ->  | O5: =INDEX(Lists!$AH$3:$AH$27,MATCH(M5&N5,INDEX(Lists!$AF$3:$AF$27&Lists!$AG$3:$AG$27,),0)) -> 
A6: HAZ004 | K6: =INDEX([3]Lists!$AH$3:$AH$27,MATCH(I6&J6,INDEX([3]Lists!$AF$3:$AF$27&[3]Lists!$AG$3:$AG$27,),0)) ->  | O6: =INDEX(Lists!$AH$3:$AH$27,MATCH(M6&N6,INDEX(Lists!$AF$3:$AF$27&Lists!$AG$3:$AG$27,),0)) -> 
A7: HAZ005 | K7: =INDEX([3]Lists!$AH$3:$AH$27,MATCH(I7&J7,INDEX([3]Lists!$AF$3:$AF$27&[3]Lists!$AG$3:$AG$27,),0)) ->  | O7: =INDEX(Lists!$AH$3:$AH$27,MATCH(M7&N7,INDEX(Lists!$AF$3:$AF$27&Lists!$AG$3:$AG$27,),0)) -> 
A8: HAZ006 | K8: =INDEX([3]Lists!$AH$3:$AH$27,MATCH(I8&J8,INDEX([3]Lists!$AF$3:$AF$27&[3]Lists!$AG$3:$AG$27,),0)) ->  | O8: =INDEX(Lists!$AH$3:$AH$27,MATCH(M8&N8,INDEX(Lists!$AF$3:$AF$27&Lists!$AG$3:$AG$27,),0)) -> 
A9: HAZ007 | K9: =INDEX([3]Lists!$AH$3:$AH$27,MATCH(I9&J9,INDEX([3]Lists!$AF$3:$AF$27&[3]Lists!$AG$3:$AG$27,),0)) ->  | O9: =INDEX(Lists!$AH$3:$AH$27,MATCH(M9&N9,INDEX(Lists!$AF$3:$AF$27&Lists!$AG$3:$AG$27,),0)) -> 
A10: HAZ008 | K10: =INDEX([3]Lists!$AH$3:$AH$27,MATCH(I10&J10,INDEX([3]Lists!$AF$3:$AF$27&[3]Lists!$AG$3:$AG$27,),0)) ->  | O10: =INDEX(Lists!$AH$3:$AH$27,MATCH(M10&N10,INDEX(Lists!$AF$3:$AF$27&Lists!$AG$3:$AG$27,),0)) -> 
A11: HAZ009 | K11: =INDEX([3]Lists!$AH$3:$AH$27,MATCH(I11&J11,INDEX([3]Lists!$AF$3:$AF$27&[3]Lists!$AG$3:$AG$27,),0)) ->  | O11: =INDEX(Lists!$AH$3:$AH$27,MATCH(M11&N11,INDEX(Lists!$AF$3:$AF$27&Lists!$AG$3:$AG$27,),0)) -> 
A12: HAZ010 | K12: =INDEX([3]Lists!$AH$3:$AH$27,MATCH(I12&J12,INDEX([3]Lists!$AF$3:$AF$27&[3]Lists!$AG$3:$AG$27,),0)) ->  | O12: =INDEX(Lists!$AH$3:$AH$27,MATCH(M12&N12,INDEX(Lists!$AF$3:$AF$27&Lists!$AG$3:$AG$27,),0)) -> 
A13: HAZ011 | K13: =INDEX([3]Lists!$AH$3:$AH$27,MATCH(I13&J13,INDEX([3]Lists!$AF$3:$AF$27&[3]Lists!$AG$3:$AG$27,),0)) ->  | O13: =INDEX(Lists!$AH$3:$AH$27,MATCH(M13&N13,INDEX(Lists!$AF$3:$AF$27&Lists!$AG$3:$AG$27,),0)) -> 
A14: HAZ012 | K14: =INDEX([3]Lists!$AH$3:$AH$27,MATCH(I14&J14,INDEX([3]Lists!$AF$3:$AF$27&[3]Lists!$AG$3:$AG$27,),0)) ->  | O14: =INDEX(Lists!$AH$3:$AH$27,MATCH(M14&N14,INDEX(Lists!$AF$3:$AF$27&Lists!$AG$3:$AG$27,),0)) -> 
A15: HAZ013 | K15: =INDEX([3]Lists!$AH$3:$AH$27,MATCH(I15&J15,INDEX([3]Lists!$AF$3:$AF$27&[3]Lists!$AG$3:$AG$27,),0)) ->  | O15: =INDEX(Lists!$AH$3:$AH$27,MATCH(M15&N15,INDEX(Lists!$AF$3:$AF$27&Lists!$AG$3:$AG$27,),0)) -> 
A16: HAZ014 | K16: =INDEX([3]Lists!$AH$3:$AH$27,MATCH(I16&J16,INDEX([3]Lists!$AF$3:$AF$27&[3]Lists!$AG$3:$AG$27,),0)) ->  | O16: =INDEX(Lists!$AH$3:$AH$27,MATCH(M16&N16,INDEX(Lists!$AF$3:$AF$27&Lists!$AG$3:$AG$27,),0)) -> 
A17: HAZ015 | K17: =INDEX([3]Lists!$AH$3:$AH$27,MATCH(I17&J17,INDEX([3]Lists!$AF$3:$AF$27&[3]Lists!$AG$3:$AG$27,),0)) ->  | O17: =INDEX(Lists!$AH$3:$AH$27,MATCH(M17&N17,INDEX(Lists!$AF$3:$AF$27&Lists!$AG$3:$AG$27,),0)) -> 
A18: HAZ016 | K18: =INDEX([3]Lists!$AH$3:$AH$27,MATCH(I18&J18,INDEX([3]Lists!$AF$3:$AF$27&[3]Lists!$AG$3:$AG$27,),0)) ->  | O18: =INDEX(Lists!$AH$3:$AH$27,MATCH(M18&N18,INDEX(Lists!$AF$3:$AF$27&Lists!$AG$3:$AG$27,),0)) -> 
A19: HAZ017 | K19: =INDEX([3]Lists!$AH$3:$AH$27,MATCH(I19&J19,INDEX([3]Lists!$AF$3:$AF$27&[3]Lists!$AG$3:$AG$27,),0)) ->  | O19: =INDEX(Lists!$AH$3:$AH$27,MATCH(M19&N19,INDEX(Lists!$AF$3:$AF$27&Lists!$AG$3:$AG$27,),0)) -> 
A20: HAZ018 | K20: =INDEX([3]Lists!$AH$3:$AH$27,MATCH(I20&J20,INDEX([3]Lists!$AF$3:$AF$27&[3]Lists!$AG$3:$AG$27,),0)) ->  | O20: =INDEX(Lists!$AH$3:$AH$27,MATCH(M20&N20,INDEX(Lists!$AF$3:$AF$27&Lists!$AG$3:$AG$27,),0)) -> 
A21: HAZ019 | K21: =INDEX([3]Lists!$AH$3:$AH$27,MATCH(I21&J21,INDEX([3]Lists!$AF$3:$AF$27&[3]Lists!$AG$3:$AG$27,),0)) ->  | O21: =INDEX(Lists!$AH$3:$AH$27,MATCH(M21&N21,INDEX(Lists!$AF$3:$AF$27&Lists!$AG$3:$AG$27,),0)) -> 
A22: HAZ020 | K22: =INDEX([3]Lists!$AH$3:$AH$27,MATCH(I22&J22,INDEX([3]Lists!$AF$3:$AF$27&[3]Lists!$AG$3:$AG$27,),0)) ->  | O22: =INDEX(Lists!$AH$3:$AH$27,MATCH(M22&N22,INDEX(Lists!$AF$3:$AF$27&Lists!$AG$3:$AG$27,),0)) -> 
A23: HAZ021 | K23: =INDEX([3]Lists!$AH$3:$AH$27,MATCH(I23&J23,INDEX([3]Lists!$AF$3:$AF$27&[3]Lists!$AG$3:$AG$27,),0)) ->  | O23: =INDEX(Lists!$AH$3:$AH$27,MATCH(M23&N23,INDEX(Lists!$AF$3:$AF$27&Lists!$AG$3:$AG$27,),0)) -> 
A24: HAZ022 | K24: =INDEX([3]Lists!$AH$3:$AH$27,MATCH(I24&J24,INDEX([3]Lists!$AF$3:$AF$27&[3]Lists!$AG$3:$AG$27,),0)) ->  | O24: =INDEX(Lists!$AH$3:$AH$27,MATCH(M24&N24,INDEX(Lists!$AF$3:$AF$27&Lists!$AG$3:$AG$27,),0)) -> 
A25: HAZ023 | K25: =INDEX([3]Lists!$AH$3:$AH$27,MATCH(I25&J25,INDEX([3]Lists!$AF$3:$AF$27&[3]Lists!$AG$3:$AG$27,),0)) ->  | O25: =INDEX(Lists!$AH$3:$AH$27,MATCH(M25&N25,INDEX(Lists!$AF$3:$AF$27&Lists!$AG$3:$AG$27,),0)) -> 
A26: HAZ024 | K26: =INDEX([3]Lists!$AH$3:$AH$27,MATCH(I26&J26,INDEX([3]Lists!$AF$3:$AF$27&[3]Lists!$AG$3:$AG$27,),0)) ->  | O26: =INDEX(Lists!$AH$3:$AH$27,MATCH(M26&N26,INDEX(Lists!$AF$3:$AF$27&Lists!$AG$3:$AG$27,),0)) -> 
A27: HAZ025 | K27: =INDEX([3]Lists!$AH$3:$AH$27,MATCH(I27&J27,INDEX([3]Lists!$AF$3:$AF$27&[3]Lists!$AG$3:$AG$27,),0)) ->  | O27: =INDEX(Lists!$AH$3:$AH$27,MATCH(M27&N27,INDEX(Lists!$AF$3:$AF$27&Lists!$AG$3:$AG$27,),0)) -> 
A28: HAZ026 | K28: =INDEX([3]Lists!$AH$3:$AH$27,MATCH(I28&J28,INDEX([3]Lists!$AF$3:$AF$27&[3]Lists!$AG$3:$AG$27,),0)) ->  | O28: =INDEX(Lists!$AH$3:$AH$27,MATCH(M28&N28,INDEX(Lists!$AF$3:$AF$27&Lists!$AG$3:$AG$27,),0)) -> 
A29: HAZ027 | K29: =INDEX([3]Lists!$AH$3:$AH$27,MATCH(I29&J29,INDEX([3]Lists!$AF$3:$AF$27&[3]Lists!$AG$3:$AG$27,),0)) ->  | O29: =INDEX(Lists!$AH$3:$AH$27,MATCH(M29&N29,INDEX(Lists!$AF$3:$AF$27&Lists!$AG$3:$AG$27,),0)) -> 
A30: HAZ028 | K30: =INDEX([3]Lists!$AH$3:$AH$27,MATCH(I30&J30,INDEX([3]Lists!$AF$3:$AF$27&[3]Lists!$AG$3:$AG$27,),0)) ->  | O30: =INDEX(Lists!$AH$3:$AH$27,MATCH(M30&N30,INDEX(Lists!$AF$3:$AF$27&Lists!$AG$3:$AG$27,),0)) -> 
A31: HAZ029 | K31: =INDEX([3]Lists!$AH$3:$AH$27,MATCH(I31&J31,INDEX([3]Lists!$AF$3:$AF$27&[3]Lists!$AG$3:$AG$27,),0)) ->  | O31: =INDEX(Lists!$AH$3:$AH$27,MATCH(M31&N31,INDEX(Lists!$AF$3:$AF$27&Lists!$AG$3:$AG$27,),0)) -> 
A32: HAZ030 | K32: =INDEX([3]Lists!$AH$3:$AH$27,MATCH(I32&J32,INDEX([3]Lists!$AF$3:$AF$27&[3]Lists!$AG$3:$AG$27,),0)) ->  | O32: =INDEX(Lists!$AH$3:$AH$27,MATCH(M32&N32,INDEX(Lists!$AF$3:$AF$27&Lists!$AG$3:$AG$27,),0)) -> 
A33: HAZ031 | K33: =INDEX([3]Lists!$AH$3:$AH$27,MATCH(I33&J33,INDEX([3]Lists!$AF$3:$AF$27&[3]Lists!$AG$3:$AG$27,),0)) ->  | O33: =INDEX(Lists!$AH$3:$AH$27,MATCH(M33&N33,INDEX(Lists!$AF$3:$AF$27&Lists!$AG$3:$AG$27,),0)) -> 
A34: HAZ032 | K34: =INDEX([3]Lists!$AH$3:$AH$27,MATCH(I34&J34,INDEX([3]Lists!$AF$3:$AF$27&[3]Lists!$AG$3:$AG$27,),0)) ->  | O34: =INDEX(Lists!$AH$3:$AH$27,MATCH(M34&N34,INDEX(Lists!$AF$3:$AF$27&Lists!$AG$3:$AG$27,),0)) -> 
A35: HAZ033 | K35: =INDEX([3]Lists!$AH$3:$AH$27,MATCH(I35&J35,INDEX([3]Lists!$AF$3:$AF$27&[3]Lists!$AG$3:$AG$27,),0)) ->  | O35: =INDEX(Lists!$AH$3:$AH$27,MATCH(M35&N35,INDEX(Lists!$AF$3:$AF$27&Lists!$AG$3:$AG$27,),0)) -> 
A36: HAZ034 | K36: =INDEX([3]Lists!$AH$3:$AH$27,MATCH(I36&J36,INDEX([3]Lists!$AF$3:$AF$27&[3]Lists!$AG$3:$AG$27,),0)) ->  | O36: =INDEX(Lists!$AH$3:$AH$27,MATCH(M36&N36,INDEX(Lists!$AF$3:$AF$27&Lists!$AG$3:$AG$27,),0)) -> 
A37: HAZ035 | K37: =INDEX([3]Lists!$AH$3:$AH$27,MATCH(I37&J37,INDEX([3]Lists!$AF$3:$AF$27&[3]Lists!$AG$3:$AG$27,),0)) ->  | O37: =INDEX(Lists!$AH$3:$AH$27,MATCH(M37&N37,INDEX(Lists!$AF$3:$AF$27&Lists!$AG$3:$AG$27,),0)) -> 
A38: HAZ036 | K38: =INDEX([3]Lists!$AH$3:$AH$27,MATCH(I38&J38,INDEX([3]Lists!$AF$3:$AF$27&[3]Lists!$AG$3:$AG$27,),0)) ->  | O38: =INDEX(Lists!$AH$3:$AH$27,MATCH(M38&N38,INDEX(Lists!$AF$3:$AF$27&Lists!$AG$3:$AG$27,),0)) -> 
A39: HAZ037 | K39: =INDEX([3]Lists!$AH$3:$AH$27,MATCH(I39&J39,INDEX([3]Lists!$AF$3:$AF$27&[3]Lists!$AG$3:$AG$27,),0)) ->  | O39: =INDEX(Lists!$AH$3:$AH$27,MATCH(M39&N39,INDEX(Lists!$AF$3:$AF$27&Lists!$AG$3:$AG$27,),0)) -> 
A40: HAZ038 | K40: =INDEX([3]Lists!$AH$3:$AH$27,MATCH(I40&J40,INDEX([3]Lists!$AF$3:$AF$27&[3]Lists!$AG$3:$AG$27,),0)) ->  | O40: =INDEX(Lists!$AH$3:$AH$27,MATCH(M40&N40,INDEX(Lists!$AF$3:$AF$27&Lists!$AG$3:$AG$27,),0)) -> 
A41: HAZ039 | K41: =INDEX([3]Lists!$AH$3:$AH$27,MATCH(I41&J41,INDEX([3]Lists!$AF$3:$AF$27&[3]Lists!$AG$3:$AG$27,),0)) ->  | O41: =INDEX(Lists!$AH$3:$AH$27,MATCH(M41&N41,INDEX(Lists!$AF$3:$AF$27&Lists!$AG$3:$AG$27,),0)) -> 
A42: HAZ040 | K42: =INDEX([3]Lists!$AH$3:$AH$27,MATCH(I42&J42,INDEX([3]Lists!$AF$3:$AF$27&[3]Lists!$AG$3:$AG$27,),0)) ->  | O42: =INDEX(Lists!$AH$3:$AH$27,MATCH(M42&N42,INDEX(Lists!$AF$3:$AF$27&Lists!$AG$3:$AG$27,),0)) -> 
A43: HAZ041 | K43: =INDEX([3]Lists!$AH$3:$AH$27,MATCH(I43&J43,INDEX([3]Lists!$AF$3:$AF$27&[3]Lists!$AG$3:$AG$27,),0)) ->  | O43: =INDEX(Lists!$AH$3:$AH$27,MATCH(M43&N43,INDEX(Lists!$AF$3:$AF$27&Lists!$AG$3:$AG$27,),0)) -> 
A44: HAZ042 | K44: =INDEX([3]Lists!$AH$3:$AH$27,MATCH(I44&J44,INDEX([3]Lists!$AF$3:$AF$27&[3]Lists!$AG$3:$AG$27,),0)) ->  | O44: =INDEX(Lists!$AH$3:$AH$27,MATCH(M44&N44,INDEX(Lists!$AF$3:$AF$27&Lists!$AG$3:$AG$27,),0)) -> 
A45: HAZ043 | K45: =INDEX([3]Lists!$AH$3:$AH$27,MATCH(I45&J45,INDEX([3]Lists!$AF$3:$AF$27&[3]Lists!$AG$3:$AG$27,),0)) ->  | O45: =INDEX(Lists!$AH$3:$AH$27,MATCH(M45&N45,INDEX(Lists!$AF$3:$AF$27&Lists!$AG$3:$AG$27,),0)) -> 
A46: HAZ044 | K46: =INDEX([3]Lists!$AH$3:$AH$27,MATCH(I46&J46,INDEX([3]Lists!$AF$3:$AF$27&[3]Lists!$AG$3:$AG$27,),0)) ->  | O46: =INDEX(Lists!$AH$3:$AH$27,MATCH(M46&N46,INDEX(Lists!$AF$3:$AF$27&Lists!$AG$3:$AG$27,),0)) -> 
A47: HAZ045 | K47: =INDEX([3]Lists!$AH$3:$AH$27,MATCH(I47&J47,INDEX([3]Lists!$AF$3:$AF$27&[3]Lists!$AG$3:$AG$27,),0)) ->  | O47: =INDEX(Lists!$AH$3:$AH$27,MATCH(M47&N47,INDEX(Lists!$AF$3:$AF$27&Lists!$AG$3:$AG$27,),0)) -> 
A48: HAZ046 | K48: =INDEX([3]Lists!$AH$3:$AH$27,MATCH(I48&J48,INDEX([3]Lists!$AF$3:$AF$27&[3]Lists!$AG$3:$AG$27,),0)) ->  | O48: =INDEX(Lists!$AH$3:$AH$27,MATCH(M48&N48,INDEX(Lists!$AF$3:$AF$27&Lists!$AG$3:$AG$27,),0)) -> 
A49: HAZ047 | K49: =INDEX([3]Lists!$AH$3:$AH$27,MATCH(I49&J49,INDEX([3]Lists!$AF$3:$AF$27&[3]Lists!$AG$3:$AG$27,),0)) ->  | O49: =INDEX(Lists!$AH$3:$AH$27,MATCH(M49&N49,INDEX(Lists!$AF$3:$AF$27&Lists!$AG$3:$AG$27,),0)) -> 
A50: HAZ048 | K50: =INDEX([3]Lists!$AH$3:$AH$27,MATCH(I50&J50,INDEX([3]Lists!$AF$3:$AF$27&[3]Lists!$AG$3:$AG$27,),0)) ->  | O50: =INDEX(Lists!$AH$3:$AH$27,MATCH(M50&N50,INDEX(Lists!$AF$3:$AF$27&Lists!$AG$3:$AG$27,),0)) -> 
A51: HAZ049 | K51: =INDEX([3]Lists!$AH$3:$AH$27,MATCH(I51&J51,INDEX([3]Lists!$AF$3:$AF$27&[3]Lists!$AG$3:$AG$27,),0)) ->  | O51: =INDEX(Lists!$AH$3:$AH$27,MATCH(M51&N51,INDEX(Lists!$AF$3:$AF$27&Lists!$AG$3:$AG$27,),0)) -> 
A52: HAZ050 | K52: =INDEX([3]Lists!$AH$3:$AH$27,MATCH(I52&J52,INDEX([3]Lists!$AF$3:$AF$27&[3]Lists!$AG$3:$AG$27,),0)) ->  | O52: =INDEX(Lists!$AH$3:$AH$27,MATCH(M52&N52,INDEX(Lists!$AF$3:$AF$27&Lists!$AG$3:$AG$27,),0)) -> 
A53: HAZ051 | K53: =INDEX([3]Lists!$AH$3:$AH$27,MATCH(I53&J53,INDEX([3]Lists!$AF$3:$AF$27&[3]Lists!$AG$3:$AG$27,),0)) ->  | O53: =INDEX(Lists!$AH$3:$AH$27,MATCH(M53&N53,INDEX(Lists!$AF$3:$AF$27&Lists!$AG$3:$AG$27,),0)) -> 
A54: HAZ052 | K54: =INDEX([3]Lists!$AH$3:$AH$27,MATCH(I54&J54,INDEX([3]Lists!$AF$3:$AF$27&[3]Lists!$AG$3:$AG$27,),0)) ->  | O54: =INDEX(Lists!$AH$3:$AH$27,MATCH(M54&N54,INDEX(Lists!$AF$3:$AF$27&Lists!$AG$3:$AG$27,),0)) -> 
A55: HAZ053 | K55: =INDEX([3]Lists!$AH$3:$AH$27,MATCH(I55&J55,INDEX([3]Lists!$AF$3:$AF$27&[3]Lists!$AG$3:$AG$27,),0)) ->  | O55: =INDEX(Lists!$AH$3:$AH$27,MATCH(M55&N55,INDEX(Lists!$AF$3:$AF$27&Lists!$AG$3:$AG$27,),0)) -> 
A56: HAZ054 | K56: =INDEX([3]Lists!$AH$3:$AH$27,MATCH(I56&J56,INDEX([3]Lists!$AF$3:$AF$27&[3]Lists!$AG$3:$AG$27,),0)) ->  | O56: =INDEX(Lists!$AH$3:$AH$27,MATCH(M56&N56,INDEX(Lists!$AF$3:$AF$27&Lists!$AG$3:$AG$27,),0)) -> 
A57: HAZ055 | K57: =INDEX([3]Lists!$AH$3:$AH$27,MATCH(I57&J57,INDEX([3]Lists!$AF$3:$AF$27&[3]Lists!$AG$3:$AG$27,),0)) ->  | O57: =INDEX(Lists!$AH$3:$AH$27,MATCH(M57&N57,INDEX(Lists!$AF$3:$AF$27&Lists!$AG$3:$AG$27,),0)) -> 
A58: HAZ056 | K58: =INDEX([3]Lists!$AH$3:$AH$27,MATCH(I58&J58,INDEX([3]Lists!$AF$3:$AF$27&[3]Lists!$AG$3:$AG$27,),0)) ->  | O58: =INDEX(Lists!$AH$3:$AH$27,MATCH(M58&N58,INDEX(Lists!$AF$3:$AF$27&Lists!$AG$3:$AG$27,),0)) -> 
A59: HAZ057 | K59: =INDEX([3]Lists!$AH$3:$AH$27,MATCH(I59&J59,INDEX([3]Lists!$AF$3:$AF$27&[3]Lists!$AG$3:$AG$27,),0)) ->  | O59: =INDEX(Lists!$AH$3:$AH$27,MATCH(M59&N59,INDEX(Lists!$AF$3:$AF$27&Lists!$AG$3:$AG$27,),0)) -> 
A60: HAZ058 | K60: =INDEX([3]Lists!$AH$3:$AH$27,MATCH(I60&J60,INDEX([3]Lists!$AF$3:$AF$27&[3]Lists!$AG$3:$AG$27,),0)) ->  | O60: =INDEX(Lists!$AH$3:$AH$27,MATCH(M60&N60,INDEX(Lists!$AF$3:$AF$27&Lists!$AG$3:$AG$27,),0)) -> 
A61: HAZ059 | K61: =INDEX([3]Lists!$AH$3:$AH$27,MATCH(I61&J61,INDEX([3]Lists!$AF$3:$AF$27&[3]Lists!$AG$3:$AG$27,),0)) ->  | O61: =INDEX(Lists!$AH$3:$AH$27,MATCH(M61&N61,INDEX(Lists!$AF$3:$AF$27&Lists!$AG$3:$AG$27,),0)) -> 
A62: HAZ060 | K62: =INDEX([3]Lists!$AH$3:$AH$27,MATCH(I62&J62,INDEX([3]Lists!$AF$3:$AF$27&[3]Lists!$AG$3:$AG$27,),0)) ->  | O62: =INDEX(Lists!$AH$3:$AH$27,MATCH(M62&N62,INDEX(Lists!$AF$3:$AF$27&Lists!$AG$3:$AG$27,),0)) -> 
A63: HAZ061 | K63: =INDEX([3]Lists!$AH$3:$AH$27,MATCH(I63&J63,INDEX([3]Lists!$AF$3:$AF$27&[3]Lists!$AG$3:$AG$27,),0)) ->  | O63: =INDEX(Lists!$AH$3:$AH$27,MATCH(M63&N63,INDEX(Lists!$AF$3:$AF$27&Lists!$AG$3:$AG$27,),0)) -> 
A64: HAZ062 | K64: =INDEX([3]Lists!$AH$3:$AH$27,MATCH(I64&J64,INDEX([3]Lists!$AF$3:$AF$27&[3]Lists!$AG$3:$AG$27,),0)) ->  | O64: =INDEX(Lists!$AH$3:$AH$27,MATCH(M64&N64,INDEX(Lists!$AF$3:$AF$27&Lists!$AG$3:$AG$27,),0)) -> 
A65: HAZ063 | K65: =INDEX([3]Lists!$AH$3:$AH$27,MATCH(I65&J65,INDEX([3]Lists!$AF$3:$AF$27&[3]Lists!$AG$3:$AG$27,),0)) ->  | O65: =INDEX(Lists!$AH$3:$AH$27,MATCH(M65&N65,INDEX(Lists!$AF$3:$AF$27&Lists!$AG$3:$AG$27,),0)) -> 
A66: HAZ064 | K66: =INDEX([3]Lists!$AH$3:$AH$27,MATCH(I66&J66,INDEX([3]Lists!$AF$3:$AF$27&[3]Lists!$AG$3:$AG$27,),0)) ->  | O66: =INDEX(Lists!$AH$3:$AH$27,MATCH(M66&N66,INDEX(Lists!$AF$3:$AF$27&Lists!$AG$3:$AG$27,),0)) -> 
A67: HAZ065 | K67: =INDEX([3]Lists!$AH$3:$AH$27,MATCH(I67&J67,INDEX([3]Lists!$AF$3:$AF$27&[3]Lists!$AG$3:$AG$27,),0)) ->  | O67: =INDEX(Lists!$AH$3:$AH$27,MATCH(M67&N67,INDEX(Lists!$AF$3:$AF$27&Lists!$AG$3:$AG$27,),0)) -> 
A68: HAZ066 | K68: =INDEX([3]Lists!$AH$3:$AH$27,MATCH(I68&J68,INDEX([3]Lists!$AF$3:$AF$27&[3]Lists!$AG$3:$AG$27,),0)) ->  | O68: =INDEX(Lists!$AH$3:$AH$27,MATCH(M68&N68,INDEX(Lists!$AF$3:$AF$27&Lists!$AG$3:$AG$27,),0)) -> 
A69: HAZ067 | K69: =INDEX([3]Lists!$AH$3:$AH$27,MATCH(I69&J69,INDEX([3]Lists!$AF$3:$AF$27&[3]Lists!$AG$3:$AG$27,),0)) ->  | O69: =INDEX(Lists!$AH$3:$AH$27,MATCH(M69&N69,INDEX(Lists!$AF$3:$AF$27&Lists!$AG$3:$AG$27,),0)) -> 
A70: HAZ068 | K70: =INDEX([3]Lists!$AH$3:$AH$27,MATCH(I70&J70,INDEX([3]Lists!$AF$3:$AF$27&[3]Lists!$AG$3:$AG$27,),0)) ->  | O70: =INDEX(Lists!$AH$3:$AH$27,MATCH(M70&N70,INDEX(Lists!$AF$3:$AF$27&Lists!$AG$3:$AG$27,),0)) -> 
A71: HAZ069 | K71: =INDEX([3]Lists!$AH$3:$AH$27,MATCH(I71&J71,INDEX([3]Lists!$AF$3:$AF$27&[3]Lists!$AG$3:$AG$27,),0)) ->  | O71: =INDEX(Lists!$AH$3:$AH$27,MATCH(M71&N71,INDEX(Lists!$AF$3:$AF$27&Lists!$AG$3:$AG$27,),0)) -> 
A72: HAZ070 | K72: =INDEX([3]Lists!$AH$3:$AH$27,MATCH(I72&J72,INDEX([3]Lists!$AF$3:$AF$27&[3]Lists!$AG$3:$AG$27,),0)) ->  | O72: =INDEX(Lists!$AH$3:$AH$27,MATCH(M72&N72,INDEX(Lists!$AF$3:$AF$27&Lists!$AG$3:$AG$27,),0)) -> 
A73: HAZ071 | K73: =INDEX([3]Lists!$AH$3:$AH$27,MATCH(I73&J73,INDEX([3]Lists!$AF$3:$AF$27&[3]Lists!$AG$3:$AG$27,),0)) ->  | O73: =INDEX(Lists!$AH$3:$AH$27,MATCH(M73&N73,INDEX(Lists!$AF$3:$AF$27&Lists!$AG$3:$AG$27,),0)) -> 
A74: HAZ072 | K74: =INDEX([3]Lists!$AH$3:$AH$27,MATCH(I74&J74,INDEX([3]Lists!$AF$3:$AF$27&[3]Lists!$AG$3:$AG$27,),0)) ->  | O74: =INDEX(Lists!$AH$3:$AH$27,MATCH(M74&N74,INDEX(Lists!$AF$3:$AF$27&Lists!$AG$3:$AG$27,),0)) -> 
A75: HAZ073 | K75: =INDEX([3]Lists!$AH$3:$AH$27,MATCH(I75&J75,INDEX([3]Lists!$AF$3:$AF$27&[3]Lists!$AG$3:$AG$27,),0)) ->  | O75: =INDEX(Lists!$AH$3:$AH$27,MATCH(M75&N75,INDEX(Lists!$AF$3:$AF$27&Lists!$AG$3:$AG$27,),0)) -> 
A76: HAZ074 | K76: =INDEX([3]Lists!$AH$3:$AH$27,MATCH(I76&J76,INDEX([3]Lists!$AF$3:$AF$27&[3]Lists!$AG$3:$AG$27,),0)) ->  | O76: =INDEX(Lists!$AH$3:$AH$27,MATCH(M76&N76,INDEX(Lists!$AF$3:$AF$27&Lists!$AG$3:$AG$27,),0)) -> 
A77: HAZ075 | K77: =INDEX([3]Lists!$AH$3:$AH$27,MATCH(I77&J77,INDEX([3]Lists!$AF$3:$AF$27&[3]Lists!$AG$3:$AG$27,),0)) ->  | O77: =INDEX(Lists!$AH$3:$AH$27,MATCH(M77&N77,INDEX(Lists!$AF$3:$AF$27&Lists!$AG$3:$AG$27,),0)) -> 
A78: HAZ076 | K78: =INDEX([3]Lists!$AH$3:$AH$27,MATCH(I78&J78,INDEX([3]Lists!$AF$3:$AF$27&[3]Lists!$AG$3:$AG$27,),0)) ->  | O78: =INDEX(Lists!$AH$3:$AH$27,MATCH(M78&N78,INDEX(Lists!$AF$3:$AF$27&Lists!$AG$3:$AG$27,),0)) -> 
A79: HAZ077 | K79: =INDEX(Lists!$AH$3:$AH$27,MATCH(I79&J79,INDEX(Lists!$AF$3:$AF$27&Lists!$AG$3:$AG$27,),0)) ->  | O79: =INDEX(Lists!$AH$3:$AH$27,MATCH(M79&N79,INDEX(Lists!$AF$3:$AF$27&Lists!$AG$3:$AG$27,),0)) -> 
A80: HAZ078 | K80: =INDEX(Lists!$AH$3:$AH$27,MATCH(I80&J80,INDEX(Lists!$AF$3:$AF$27&Lists!$AG$3:$AG$27,),0)) ->  | O80: =INDEX(Lists!$AH$3:$AH$27,MATCH(M80&N80,INDEX(Lists!$AF$3:$AF$27&Lists!$AG$3:$AG$27,),0)) -> 
A81: HAZ079 | K81: =INDEX(Lists!$AH$3:$AH$27,MATCH(I81&J81,INDEX(Lists!$AF$3:$AF$27&Lists!$AG$3:$AG$27,),0)) ->  | O81: =INDEX(Lists!$AH$3:$AH$27,MATCH(M81&N81,INDEX(Lists!$AF$3:$AF$27&Lists!$AG$3:$AG$27,),0)) -> 
A82: HAZ080 | K82: =INDEX(Lists!$AH$3:$AH$27,MATCH(I82&J82,INDEX(Lists!$AF$3:$AF$27&Lists!$AG$3:$AG$27,),0)) ->  | O82: =INDEX(Lists!$AH$3:$AH$27,MATCH(M82&N82,INDEX(Lists!$AF$3:$AF$27&Lists!$AG$3:$AG$27,),0)) -> 
A83: HAZ081 | K83: =INDEX(Lists!$AH$3:$AH$27,MATCH(I83&J83,INDEX(Lists!$AF$3:$AF$27&Lists!$AG$3:$AG$27,),0)) ->  | O83: =INDEX(Lists!$AH$3:$AH$27,MATCH(M83&N83,INDEX(Lists!$AF$3:$AF$27&Lists!$AG$3:$AG$27,),0)) -> 
A84: HAZ082 | K84: =INDEX(Lists!$AH$3:$AH$27,MATCH(I84&J84,INDEX(Lists!$AF$3:$AF$27&Lists!$AG$3:$AG$27,),0)) ->  | O84: =INDEX(Lists!$AH$3:$AH$27,MATCH(M84&N84,INDEX(Lists!$AF$3:$AF$27&Lists!$AG$3:$AG$27,),0)) -> 
A85: HAZ083 | K85: =INDEX(Lists!$AH$3:$AH$27,MATCH(I85&J85,INDEX(Lists!$AF$3:$AF$27&Lists!$AG$3:$AG$27,),0)) ->  | O85: =INDEX(Lists!$AH$3:$AH$27,MATCH(M85&N85,INDEX(Lists!$AF$3:$AF$27&Lists!$AG$3:$AG$27,),0)) -> 
A86: HAZ084 | K86: =INDEX(Lists!$AH$3:$AH$27,MATCH(I86&J86,INDEX(Lists!$AF$3:$AF$27&Lists!$AG$3:$AG$27,),0)) ->  | O86: =INDEX(Lists!$AH$3:$AH$27,MATCH(M86&N86,INDEX(Lists!$AF$3:$AF$27&Lists!$AG$3:$AG$27,),0)) -> 
A87: HAZ085 | K87: =INDEX(Lists!$AH$3:$AH$27,MATCH(I87&J87,INDEX(Lists!$AF$3:$AF$27&Lists!$AG$3:$AG$27,),0)) ->  | O87: =INDEX(Lists!$AH$3:$AH$27,MATCH(M87&N87,INDEX(Lists!$AF$3:$AF$27&Lists!$AG$3:$AG$27,),0)) -> 
A88: HAZ086 | K88: =INDEX(Lists!$AH$3:$AH$27,MATCH(I88&J88,INDEX(Lists!$AF$3:$AF$27&Lists!$AG$3:$AG$27,),0)) ->  | O88: =INDEX(Lists!$AH$3:$AH$27,MATCH(M88&N88,INDEX(Lists!$AF$3:$AF$27&Lists!$AG$3:$AG$27,),0)) -> 
A89: HAZ087 | K89: =INDEX(Lists!$AH$3:$AH$27,MATCH(I89&J89,INDEX(Lists!$AF$3:$AF$27&Lists!$AG$3:$AG$27,),0)) ->  | O89: =INDEX(Lists!$AH$3:$AH$27,MATCH(M89&N89,INDEX(Lists!$AF$3:$AF$27&Lists!$AG$3:$AG$27,),0)) -> 
A90: HAZ088 | K90: =INDEX(Lists!$AH$3:$AH$27,MATCH(I90&J90,INDEX(Lists!$AF$3:$AF$27&Lists!$AG$3:$AG$27,),0)) ->  | O90: =INDEX(Lists!$AH$3:$AH$27,MATCH(M90&N90,INDEX(Lists!$AF$3:$AF$27&Lists!$AG$3:$AG$27,),0)) -> 
A91: HAZ089 | K91: =INDEX(Lists!$AH$3:$AH$27,MATCH(I91&J91,INDEX(Lists!$AF$3:$AF$27&Lists!$AG$3:$AG$27,),0)) ->  | O91: =INDEX(Lists!$AH$3:$AH$27,MATCH(M91&N91,INDEX(Lists!$AF$3:$AF$27&Lists!$AG$3:$AG$27,),0)) -> 
A92: HAZ090 | K92: =INDEX(Lists!$AH$3:$AH$27,MATCH(I92&J92,INDEX(Lists!$AF$3:$AF$27&Lists!$AG$3:$AG$27,),0)) ->  | O92: =INDEX(Lists!$AH$3:$AH$27,MATCH(M92&N92,INDEX(Lists!$AF$3:$AF$27&Lists!$AG$3:$AG$27,),0)) -> 
A93: HAZ091 | K93: =INDEX(Lists!$AH$3:$AH$27,MATCH(I93&J93,INDEX(Lists!$AF$3:$AF$27&Lists!$AG$3:$AG$27,),0)) ->  | O93: =INDEX(Lists!$AH$3:$AH$27,MATCH(M93&N93,INDEX(Lists!$AF$3:$AF$27&Lists!$AG$3:$AG$27,),0)) -> 
A94: HAZ092 | K94: =INDEX(Lists!$AH$3:$AH$27,MATCH(I94&J94,INDEX(Lists!$AF$3:$AF$27&Lists!$AG$3:$AG$27,),0)) ->  | O94: =INDEX(Lists!$AH$3:$AH$27,MATCH(M94&N94,INDEX(Lists!$AF$3:$AF$27&Lists!$AG$3:$AG$27,),0)) -> 
A95: HAZ093 | K95: =INDEX(Lists!$AH$3:$AH$27,MATCH(I95&J95,INDEX(Lists!$AF$3:$AF$27&Lists!$AG$3:$AG$27,),0)) ->  | O95: =INDEX(Lists!$AH$3:$AH$27,MATCH(M95&N95,INDEX(Lists!$AF$3:$AF$27&Lists!$AG$3:$AG$27,),0)) -> 
A96: HAZ094 | B96: *insert row and format* | K96: =INDEX(Lists!$AH$3:$AH$27,MATCH(I96&J96,INDEX(Lists!$AF$3:$AF$27&Lists!$AG$3:$AG$27,),0)) ->  | O96: =INDEX(Lists!$AH$3:$AH$27,MATCH(M96&N96,INDEX(Lists!$AF$3:$AF$27&Lists!$AG$3:$AG$27,),0)) -> 

Sheet Substances Register
A2: ID | B2: Substance Name | C2: SDS Date | D2: Dangerous Goods | E2: Hazardous | F2: Critical Limits | G2: Specification Source | H2: Storage | I2: Substance Uses | J2: Risk Context | K2: Likelihood | L2: Consequence | M2: Initial Risk | N2: Risk Control Measures | O2: Likelihood | P2: Consequence | Q2: Residual Risk | R2: Last Review
A3: SUB001 | M3: =INDEX(Lists!$AH$3:$AH$27,MATCH(K3&L3,INDEX(Lists!$AF$3:$AF$27&Lists!$AG$3:$AG$27,),0)) ->  | Q3: =INDEX(Lists!$AH$3:$AH$27,MATCH(O3&P3,INDEX(Lists!$AF$3:$AF$27&Lists!$AG$3:$AG$27,),0)) -> 
A4: SUB002 | M4: =INDEX(Lists!$AH$3:$AH$27,MATCH(K4&L4,INDEX(Lists!$AF$3:$AF$27&Lists!$AG$3:$AG$27,),0)) ->  | Q4: =INDEX(Lists!$AH$3:$AH$27,MATCH(O4&P4,INDEX(Lists!$AF$3:$AF$27&Lists!$AG$3:$AG$27,),0)) -> 
A5: SUB003 | M5: =INDEX(Lists!$AH$3:$AH$27,MATCH(K5&L5,INDEX(Lists!$AF$3:$AF$27&Lists!$AG$3:$AG$27,),0)) ->  | Q5: =INDEX(Lists!$AH$3:$AH$27,MATCH(O5&P5,INDEX(Lists!$AF$3:$AF$27&Lists!$AG$3:$AG$27,),0)) -> 
A6: SUB004 | M6: =INDEX(Lists!$AH$3:$AH$27,MATCH(K6&L6,INDEX(Lists!$AF$3:$AF$27&Lists!$AG$3:$AG$27,),0)) ->  | Q6: =INDEX(Lists!$AH$3:$AH$27,MATCH(O6&P6,INDEX(Lists!$AF$3:$AF$27&Lists!$AG$3:$AG$27,),0)) -> 
A7: SUB005 | M7: =INDEX(Lists!$AH$3:$AH$27,MATCH(K7&L7,INDEX(Lists!$AF$3:$AF$27&Lists!$AG$3:$AG$27,),0)) ->  | Q7: =INDEX(Lists!$AH$3:$AH$27,MATCH(O7&P7,INDEX(Lists!$AF$3:$AF$27&Lists!$AG$3:$AG$27,),0)) -> 
A8: SUB006 | M8: =INDEX(Lists!$AH$3:$AH$27,MATCH(K8&L8,INDEX(Lists!$AF$3:$AF$27&Lists!$AG$3:$AG$27,),0)) ->  | Q8: =INDEX(Lists!$AH$3:$AH$27,MATCH(O8&P8,INDEX(Lists!$AF$3:$AF$27&Lists!$AG$3:$AG$27,),0)) -> 
A9: SUB007 | M9: =INDEX(Lists!$AH$3:$AH$27,MATCH(K9&L9,INDEX(Lists!$AF$3:$AF$27&Lists!$AG$3:$AG$27,),0)) ->  | Q9: =INDEX(Lists!$AH$3:$AH$27,MATCH(O9&P9,INDEX(Lists!$AF$3:$AF$27&Lists!$AG$3:$AG$27,),0)) -> 
A10: SUB008 | M10: =INDEX(Lists!$AH$3:$AH$27,MATCH(K10&L10,INDEX(Lists!$AF$3:$AF$27&Lists!$AG$3:$AG$27,),0)) ->  | Q10: =INDEX(Lists!$AH$3:$AH$27,MATCH(O10&P10,INDEX(Lists!$AF$3:$AF$27&Lists!$AG$3:$AG$27,),0)) -> 
A11: SUB009 | M11: =INDEX(Lists!$AH$3:$AH$27,MATCH(K11&L11,INDEX(Lists!$AF$3:$AF$27&Lists!$AG$3:$AG$27,),0)) ->  | Q11: =INDEX(Lists!$AH$3:$AH$27,MATCH(O11&P11,INDEX(Lists!$AF$3:$AF$27&Lists!$AG$3:$AG$27,),0)) -> 
A12: SUB010 | M12: =INDEX(Lists!$AH$3:$AH$27,MATCH(K12&L12,INDEX(Lists!$AF$3:$AF$27&Lists!$AG$3:$AG$27,),0)) ->  | Q12: =INDEX(Lists!$AH$3:$AH$27,MATCH(O12&P12,INDEX(Lists!$AF$3:$AF$27&Lists!$AG$3:$AG$27,),0)) -> 
A13: SUB011 | M13: =INDEX(Lists!$AH$3:$AH$27,MATCH(K13&L13,INDEX(Lists!$AF$3:$AF$27&Lists!$AG$3:$AG$27,),0)) ->  | Q13: =INDEX(Lists!$AH$3:$AH$27,MATCH(O13&P13,INDEX(Lists!$AF$3:$AF$27&Lists!$AG$3:$AG$27,),0)) -> 
A14: SUB012 | M14: =INDEX(Lists!$AH$3:$AH$27,MATCH(K14&L14,INDEX(Lists!$AF$3:$AF$27&Lists!$AG$3:$AG$27,),0)) ->  | Q14: =INDEX(Lists!$AH$3:$AH$27,MATCH(O14&P14,INDEX(Lists!$AF$3:$AF$27&Lists!$AG$3:$AG$27,),0)) -> 
A15: SUB013 | M15: =INDEX(Lists!$AH$3:$AH$27,MATCH(K15&L15,INDEX(Lists!$AF$3:$AF$27&Lists!$AG$3:$AG$27,),0)) ->  | Q15: =INDEX(Lists!$AH$3:$AH$27,MATCH(O15&P15,INDEX(Lists!$AF$3:$AF$27&Lists!$AG$3:$AG$27,),0)) -> 
A16: SUB014 | M16: =INDEX(Lists!$AH$3:$AH$27,MATCH(K16&L16,INDEX(Lists!$AF$3:$AF$27&Lists!$AG$3:$AG$27,),0)) ->  | Q16: =INDEX(Lists!$AH$3:$AH$27,MATCH(O16&P16,INDEX(Lists!$AF$3:$AF$27&Lists!$AG$3:$AG$27,),0)) -> 
A17: SUB015 | M17: =INDEX(Lists!$AH$3:$AH$27,MATCH(K17&L17,INDEX(Lists!$AF$3:$AF$27&Lists!$AG$3:$AG$27,),0)) ->  | Q17: =INDEX(Lists!$AH$3:$AH$27,MATCH(O17&P17,INDEX(Lists!$AF$3:$AF$27&Lists!$AG$3:$AG$27,),0)) -> 
A18: SUB016 | M18: =INDEX(Lists!$AH$3:$AH$27,MATCH(K18&L18,INDEX(Lists!$AF$3:$AF$27&Lists!$AG$3:$AG$27,),0)) ->  | Q18: =INDEX(Lists!$AH$3:$AH$27,MATCH(O18&P18,INDEX(Lists!$AF$3:$AF$27&Lists!$AG$3:$AG$27,),0)) -> 
A19: SUB017 | M19: =INDEX(Lists!$AH$3:$AH$27,MATCH(K19&L19,INDEX(Lists!$AF$3:$AF$27&Lists!$AG$3:$AG$27,),0)) ->  | Q19: =INDEX(Lists!$AH$3:$AH$27,MATCH(O19&P19,INDEX(Lists!$AF$3:$AF$27&Lists!$AG$3:$AG$27,),0)) -> 
A20: SUB018 | M20: =INDEX(Lists!$AH$3:$AH$27,MATCH(K20&L20,INDEX(Lists!$AF$3:$AF$27&Lists!$AG$3:$AG$27,),0)) ->  | Q20: =INDEX(Lists!$AH$3:$AH$27,MATCH(O20&P20,INDEX(Lists!$AF$3:$AF$27&Lists!$AG$3:$AG$27,),0)) -> 
A21: SUB019 | M21: =INDEX(Lists!$AH$3:$AH$27,MATCH(K21&L21,INDEX(Lists!$AF$3:$AF$27&Lists!$AG$3:$AG$27,),0)) ->  | Q21: =INDEX(Lists!$AH$3:$AH$27,MATCH(O21&P21,INDEX(Lists!$AF$3:$AF$27&Lists!$AG$3:$AG$27,),0)) -> 
A22: SUB020 | M22: =INDEX(Lists!$AH$3:$AH$27,MATCH(K22&L22,INDEX(Lists!$AF$3:$AF$27&Lists!$AG$3:$AG$27,),0)) ->  | Q22: =INDEX(Lists!$AH$3:$AH$27,MATCH(O22&P22,INDEX(Lists!$AF$3:$AF$27&Lists!$AG$3:$AG$27,),0)) -> 
A23: SUB021 | M23: =INDEX(Lists!$AH$3:$AH$27,MATCH(K23&L23,INDEX(Lists!$AF$3:$AF$27&Lists!$AG$3:$AG$27,),0)) ->  | Q23: =INDEX(Lists!$AH$3:$AH$27,MATCH(O23&P23,INDEX(Lists!$AF$3:$AF$27&Lists!$AG$3:$AG$27,),0)) -> 
A24: SUB022 | M24: =INDEX(Lists!$AH$3:$AH$27,MATCH(K24&L24,INDEX(Lists!$AF$3:$AF$27&Lists!$AG$3:$AG$27,),0)) ->  | Q24: =INDEX(Lists!$AH$3:$AH$27,MATCH(O24&P24,INDEX(Lists!$AF$3:$AF$27&Lists!$AG$3:$AG$27,),0)) -> 
A25: SUB023 | M25: =INDEX(Lists!$AH$3:$AH$27,MATCH(K25&L25,INDEX(Lists!$AF$3:$AF$27&Lists!$AG$3:$AG$27,),0)) ->  | Q25: =INDEX(Lists!$AH$3:$AH$27,MATCH(O25&P25,INDEX(Lists!$AF$3:$AF$27&Lists!$AG$3:$AG$27,),0)) -> 
A26: SUB024 | M26: =INDEX(Lists!$AH$3:$AH$27,MATCH(K26&L26,INDEX(Lists!$AF$3:$AF$27&Lists!$AG$3:$AG$27,),0)) ->  | Q26: =INDEX(Lists!$AH$3:$AH$27,MATCH(O26&P26,INDEX(Lists!$AF$3:$AF$27&Lists!$AG$3:$AG$27,),0)) -> 
A27: SUB025 | M27: =INDEX(Lists!$AH$3:$AH$27,MATCH(K27&L27,INDEX(Lists!$AF$3:$AF$27&Lists!$AG$3:$AG$27,),0)) ->  | Q27: =INDEX(Lists!$AH$3:$AH$27,MATCH(O27&P27,INDEX(Lists!$AF$3:$AF$27&Lists!$AG$3:$AG$27,),0)) -> 
A28: SUB026 | M28: =INDEX(Lists!$AH$3:$AH$27,MATCH(K28&L28,INDEX(Lists!$AF$3:$AF$27&Lists!$AG$3:$AG$27,),0)) ->  | Q28: =INDEX(Lists!$AH$3:$AH$27,MATCH(O28&P28,INDEX(Lists!$AF$3:$AF$27&Lists!$AG$3:$AG$27,),0)) -> 
A29: SUB027 | M29: =INDEX(Lists!$AH$3:$AH$27,MATCH(K29&L29,INDEX(Lists!$AF$3:$AF$27&Lists!$AG$3:$AG$27,),0)) ->  | Q29: =INDEX(Lists!$AH$3:$AH$27,MATCH(O29&P29,INDEX(Lists!$AF$3:$AF$27&Lists!$AG$3:$AG$27,),0)) -> 
A30: SUB028 | M30: =INDEX(Lists!$AH$3:$AH$27,MATCH(K30&L30,INDEX(Lists!$AF$3:$AF$27&Lists!$AG$3:$AG$27,),0)) ->  | Q30: =INDEX(Lists!$AH$3:$AH$27,MATCH(O30&P30,INDEX(Lists!$AF$3:$AF$27&Lists!$AG$3:$AG$27,),0)) -> 
A31: SUB029 | M31: =INDEX(Lists!$AH$3:$AH$27,MATCH(K31&L31,INDEX(Lists!$AF$3:$AF$27&Lists!$AG$3:$AG$27,),0)) ->  | Q31: =INDEX(Lists!$AH$3:$AH$27,MATCH(O31&P31,INDEX(Lists!$AF$3:$AF$27&Lists!$AG$3:$AG$27,),0)) -> 
A32: SUB030 | M32: =INDEX(Lists!$AH$3:$AH$27,MATCH(K32&L32,INDEX(Lists!$AF$3:$AF$27&Lists!$AG$3:$AG$27,),0)) ->  | Q32: =INDEX(Lists!$AH$3:$AH$27,MATCH(O32&P32,INDEX(Lists!$AF$3:$AF$27&Lists!$AG$3:$AG$27,),0)) -> 
A33: SUB031 | M33: =INDEX(Lists!$AH$3:$AH$27,MATCH(K33&L33,INDEX(Lists!$AF$3:$AF$27&Lists!$AG$3:$AG$27,),0)) ->  | Q33: =INDEX(Lists!$AH$3:$AH$27,MATCH(O33&P33,INDEX(Lists!$AF$3:$AF$27&Lists!$AG$3:$AG$27,),0)) -> 
A34: SUB032 | M34: =INDEX(Lists!$AH$3:$AH$27,MATCH(K34&L34,INDEX(Lists!$AF$3:$AF$27&Lists!$AG$3:$AG$27,),0)) ->  | Q34: =INDEX(Lists!$AH$3:$AH$27,MATCH(O34&P34,INDEX(Lists!$AF$3:$AF$27&Lists!$AG$3:$AG$27,),0)) -> 
A35: SUB033 | M35: =INDEX(Lists!$AH$3:$AH$27,MATCH(K35&L35,INDEX(Lists!$AF$3:$AF$27&Lists!$AG$3:$AG$27,),0)) ->  | Q35: =INDEX(Lists!$AH$3:$AH$27,MATCH(O35&P35,INDEX(Lists!$AF$3:$AF$27&Lists!$AG$3:$AG$27,),0)) -> 
A36: SUB034 | M36: =INDEX(Lists!$AH$3:$AH$27,MATCH(K36&L36,INDEX(Lists!$AF$3:$AF$27&Lists!$AG$3:$AG$27,),0)) ->  | Q36: =INDEX(Lists!$AH$3:$AH$27,MATCH(O36&P36,INDEX(Lists!$AF$3:$AF$27&Lists!$AG$3:$AG$27,),0)) -> 
A37: SUB035 | M37: =INDEX(Lists!$AH$3:$AH$27,MATCH(K37&L37,INDEX(Lists!$AF$3:$AF$27&Lists!$AG$3:$AG$27,),0)) ->  | Q37: =INDEX(Lists!$AH$3:$AH$27,MATCH(O37&P37,INDEX(Lists!$AF$3:$AF$27&Lists!$AG$3:$AG$27,),0)) -> 
A38: SUB036 | M38: =INDEX(Lists!$AH$3:$AH$27,MATCH(K38&L38,INDEX(Lists!$AF$3:$AF$27&Lists!$AG$3:$AG$27,),0)) ->  | Q38: =INDEX(Lists!$AH$3:$AH$27,MATCH(O38&P38,INDEX(Lists!$AF$3:$AF$27&Lists!$AG$3:$AG$27,),0)) -> 
A39: SUB037 | M39: =INDEX(Lists!$AH$3:$AH$27,MATCH(K39&L39,INDEX(Lists!$AF$3:$AF$27&Lists!$AG$3:$AG$27,),0)) ->  | Q39: =INDEX(Lists!$AH$3:$AH$27,MATCH(O39&P39,INDEX(Lists!$AF$3:$AF$27&Lists!$AG$3:$AG$27,),0)) -> 
A40: SUB038 | M40: =INDEX(Lists!$AH$3:$AH$27,MATCH(K40&L40,INDEX(Lists!$AF$3:$AF$27&Lists!$AG$3:$AG$27,),0)) ->  | Q40: =INDEX(Lists!$AH$3:$AH$27,MATCH(O40&P40,INDEX(Lists!$AF$3:$AF$27&Lists!$AG$3:$AG$27,),0)) -> 
A41: SUB039 | M41: =INDEX(Lists!$AH$3:$AH$27,MATCH(K41&L41,INDEX(Lists!$AF$3:$AF$27&Lists!$AG$3:$AG$27,),0)) ->  | Q41: =INDEX(Lists!$AH$3:$AH$27,MATCH(O41&P41,INDEX(Lists!$AF$3:$AF$27&Lists!$AG$3:$AG$27,),0)) -> 
A42: SUB040 | M42: =INDEX(Lists!$AH$3:$AH$27,MATCH(K42&L42,INDEX(Lists!$AF$3:$AF$27&Lists!$AG$3:$AG$27,),0)) ->  | Q42: =INDEX(Lists!$AH$3:$AH$27,MATCH(O42&P42,INDEX(Lists!$AF$3:$AF$27&Lists!$AG$3:$AG$27,),0)) -> 
A43: SUB041 | M43: =INDEX(Lists!$AH$3:$AH$27,MATCH(K43&L43,INDEX(Lists!$AF$3:$AF$27&Lists!$AG$3:$AG$27,),0)) ->  | Q43: =INDEX(Lists!$AH$3:$AH$27,MATCH(O43&P43,INDEX(Lists!$AF$3:$AF$27&Lists!$AG$3:$AG$27,),0)) -> 
A44: SUB042 | M44: =INDEX(Lists!$AH$3:$AH$27,MATCH(K44&L44,INDEX(Lists!$AF$3:$AF$27&Lists!$AG$3:$AG$27,),0)) ->  | Q44: =INDEX(Lists!$AH$3:$AH$27,MATCH(O44&P44,INDEX(Lists!$AF$3:$AF$27&Lists!$AG$3:$AG$27,),0)) -> 
A45: SUB043 | M45: =INDEX(Lists!$AH$3:$AH$27,MATCH(K45&L45,INDEX(Lists!$AF$3:$AF$27&Lists!$AG$3:$AG$27,),0)) ->  | Q45: =INDEX(Lists!$AH$3:$AH$27,MATCH(O45&P45,INDEX(Lists!$AF$3:$AF$27&Lists!$AG$3:$AG$27,),0)) -> 
A46: SUB044 | M46: =INDEX(Lists!$AH$3:$AH$27,MATCH(K46&L46,INDEX(Lists!$AF$3:$AF$27&Lists!$AG$3:$AG$27,),0)) ->  | Q46: =INDEX(Lists!$AH$3:$AH$27,MATCH(O46&P46,INDEX(Lists!$AF$3:$AF$27&Lists!$AG$3:$AG$27,),0)) -> 
A47: SUB045 | M47: =INDEX(Lists!$AH$3:$AH$27,MATCH(K47&L47,INDEX(Lists!$AF$3:$AF$27&Lists!$AG$3:$AG$27,),0)) ->  | Q47: =INDEX(Lists!$AH$3:$AH$27,MATCH(O47&P47,INDEX(Lists!$AF$3:$AF$27&Lists!$AG$3:$AG$27,),0)) -> 
A48: SUB046 | M48: =INDEX(Lists!$AH$3:$AH$27,MATCH(K48&L48,INDEX(Lists!$AF$3:$AF$27&Lists!$AG$3:$AG$27,),0)) ->  | Q48: =INDEX(Lists!$AH$3:$AH$27,MATCH(O48&P48,INDEX(Lists!$AF$3:$AF$27&Lists!$AG$3:$AG$27,),0)) -> 
A49: SUB047 | M49: =INDEX(Lists!$AH$3:$AH$27,MATCH(K49&L49,INDEX(Lists!$AF$3:$AF$27&Lists!$AG$3:$AG$27,),0)) ->  | Q49: =INDEX(Lists!$AH$3:$AH$27,MATCH(O49&P49,INDEX(Lists!$AF$3:$AF$27&Lists!$AG$3:$AG$27,),0)) -> 
A50: SUB048 | M50: =INDEX(Lists!$AH$3:$AH$27,MATCH(K50&L50,INDEX(Lists!$AF$3:$AF$27&Lists!$AG$3:$AG$27,),0)) ->  | Q50: =INDEX(Lists!$AH$3:$AH$27,MATCH(O50&P50,INDEX(Lists!$AF$3:$AF$27&Lists!$AG$3:$AG$27,),0)) -> 
A51: SUB049 | M51: =INDEX(Lists!$AH$3:$AH$27,MATCH(K51&L51,INDEX(Lists!$AF$3:$AF$27&Lists!$AG$3:$AG$27,),0)) ->  | Q51: =INDEX(Lists!$AH$3:$AH$27,MATCH(O51&P51,INDEX(Lists!$AF$3:$AF$27&Lists!$AG$3:$AG$27,),0)) -> 
A52: SUB050 | M52: =INDEX(Lists!$AH$3:$AH$27,MATCH(K52&L52,INDEX(Lists!$AF$3:$AF$27&Lists!$AG$3:$AG$27,),0)) ->  | Q52: =INDEX(Lists!$AH$3:$AH$27,MATCH(O52&P52,INDEX(Lists!$AF$3:$AF$27&Lists!$AG$3:$AG$27,),0)) -> 
A53: SUB051 | M53: =INDEX(Lists!$AH$3:$AH$27,MATCH(K53&L53,INDEX(Lists!$AF$3:$AF$27&Lists!$AG$3:$AG$27,),0)) ->  | Q53: =INDEX(Lists!$AH$3:$AH$27,MATCH(O53&P53,INDEX(Lists!$AF$3:$AF$27&Lists!$AG$3:$AG$27,),0)) -> 
A54: SUB052 | M54: =INDEX(Lists!$AH$3:$AH$27,MATCH(K54&L54,INDEX(Lists!$AF$3:$AF$27&Lists!$AG$3:$AG$27,),0)) ->  | Q54: =INDEX(Lists!$AH$3:$AH$27,MATCH(O54&P54,INDEX(Lists!$AF$3:$AF$27&Lists!$AG$3:$AG$27,),0)) -> 
A55: SUB053 | M55: =INDEX(Lists!$AH$3:$AH$27,MATCH(K55&L55,INDEX(Lists!$AF$3:$AF$27&Lists!$AG$3:$AG$27,),0)) ->  | Q55: =INDEX(Lists!$AH$3:$AH$27,MATCH(O55&P55,INDEX(Lists!$AF$3:$AF$27&Lists!$AG$3:$AG$27,),0)) -> 
A56: SUB054 | M56: =INDEX(Lists!$AH$3:$AH$27,MATCH(K56&L56,INDEX(Lists!$AF$3:$AF$27&Lists!$AG$3:$AG$27,),0)) ->  | Q56: =INDEX(Lists!$AH$3:$AH$27,MATCH(O56&P56,INDEX(Lists!$AF$3:$AF$27&Lists!$AG$3:$AG$27,),0)) -> 
A57: SUB055 | M57: =INDEX(Lists!$AH$3:$AH$27,MATCH(K57&L57,INDEX(Lists!$AF$3:$AF$27&Lists!$AG$3:$AG$27,),0)) ->  | Q57: =INDEX(Lists!$AH$3:$AH$27,MATCH(O57&P57,INDEX(Lists!$AF$3:$AF$27&Lists!$AG$3:$AG$27,),0)) -> 
A58: SUB056 | M58: =INDEX(Lists!$AH$3:$AH$27,MATCH(K58&L58,INDEX(Lists!$AF$3:$AF$27&Lists!$AG$3:$AG$27,),0)) ->  | Q58: =INDEX(Lists!$AH$3:$AH$27,MATCH(O58&P58,INDEX(Lists!$AF$3:$AF$27&Lists!$AG$3:$AG$27,),0)) -> 
A59: SUB057 | M59: =INDEX(Lists!$AH$3:$AH$27,MATCH(K59&L59,INDEX(Lists!$AF$3:$AF$27&Lists!$AG$3:$AG$27,),0)) ->  | Q59: =INDEX(Lists!$AH$3:$AH$27,MATCH(O59&P59,INDEX(Lists!$AF$3:$AF$27&Lists!$AG$3:$AG$27,),0)) -> 
A60: SUB058 | M60: =INDEX(Lists!$AH$3:$AH$27,MATCH(K60&L60,INDEX(Lists!$AF$3:$AF$27&Lists!$AG$3:$AG$27,),0)) ->  | Q60: =INDEX(Lists!$AH$3:$AH$27,MATCH(O60&P60,INDEX(Lists!$AF$3:$AF$27&Lists!$AG$3:$AG$27,),0)) -> 
A61: SUB059 | M61: =INDEX(Lists!$AH$3:$AH$27,MATCH(K61&L61,INDEX(Lists!$AF$3:$AF$27&Lists!$AG$3:$AG$27,),0)) ->  | Q61: =INDEX(Lists!$AH$3:$AH$27,MATCH(O61&P61,INDEX(Lists!$AF$3:$AF$27&Lists!$AG$3:$AG$27,),0)) -> 
A62: SUB060 | M62: =INDEX(Lists!$AH$3:$AH$27,MATCH(K62&L62,INDEX(Lists!$AF$3:$AF$27&Lists!$AG$3:$AG$27,),0)) ->  | Q62: =INDEX(Lists!$AH$3:$AH$27,MATCH(O62&P62,INDEX(Lists!$AF$3:$AF$27&Lists!$AG$3:$AG$27,),0)) -> 
A63: SUB061 | M63: =INDEX(Lists!$AH$3:$AH$27,MATCH(K63&L63,INDEX(Lists!$AF$3:$AF$27&Lists!$AG$3:$AG$27,),0)) ->  | Q63: =INDEX(Lists!$AH$3:$AH$27,MATCH(O63&P63,INDEX(Lists!$AF$3:$AF$27&Lists!$AG$3:$AG$27,),0)) -> 
A64: SUB062 | M64: =INDEX(Lists!$AH$3:$AH$27,MATCH(K64&L64,INDEX(Lists!$AF$3:$AF$27&Lists!$AG$3:$AG$27,),0)) ->  | Q64: =INDEX(Lists!$AH$3:$AH$27,MATCH(O64&P64,INDEX(Lists!$AF$3:$AF$27&Lists!$AG$3:$AG$27,),0)) -> 
A65: SUB063 | M65: =INDEX(Lists!$AH$3:$AH$27,MATCH(K65&L65,INDEX(Lists!$AF$3:$AF$27&Lists!$AG$3:$AG$27,),0)) ->  | Q65: =INDEX(Lists!$AH$3:$AH$27,MATCH(O65&P65,INDEX(Lists!$AF$3:$AF$27&Lists!$AG$3:$AG$27,),0)) -> 
A66: SUB064 | M66: =INDEX(Lists!$AH$3:$AH$27,MATCH(K66&L66,INDEX(Lists!$AF$3:$AF$27&Lists!$AG$3:$AG$27,),0)) ->  | Q66: =INDEX(Lists!$AH$3:$AH$27,MATCH(O66&P66,INDEX(Lists!$AF$3:$AF$27&Lists!$AG$3:$AG$27,),0)) -> 
A67: SUB065 | M67: =INDEX(Lists!$AH$3:$AH$27,MATCH(K67&L67,INDEX(Lists!$AF$3:$AF$27&Lists!$AG$3:$AG$27,),0)) ->  | Q67: =INDEX(Lists!$AH$3:$AH$27,MATCH(O67&P67,INDEX(Lists!$AF$3:$AF$27&Lists!$AG$3:$AG$27,),0)) -> 
A68: SUB066 | M68: =INDEX(Lists!$AH$3:$AH$27,MATCH(K68&L68,INDEX(Lists!$AF$3:$AF$27&Lists!$AG$3:$AG$27,),0)) ->  | Q68: =INDEX(Lists!$AH$3:$AH$27,MATCH(O68&P68,INDEX(Lists!$AF$3:$AF$27&Lists!$AG$3:$AG$27,),0)) -> 
A69: SUB067 | M69: =INDEX(Lists!$AH$3:$AH$27,MATCH(K69&L69,INDEX(Lists!$AF$3:$AF$27&Lists!$AG$3:$AG$27,),0)) ->  | Q69: =INDEX(Lists!$AH$3:$AH$27,MATCH(O69&P69,INDEX(Lists!$AF$3:$AF$27&Lists!$AG$3:$AG$27,),0)) -> 
A70: SUB068 | M70: =INDEX(Lists!$AH$3:$AH$27,MATCH(K70&L70,INDEX(Lists!$AF$3:$AF$27&Lists!$AG$3:$AG$27,),0)) ->  | Q70: =INDEX(Lists!$AH$3:$AH$27,MATCH(O70&P70,INDEX(Lists!$AF$3:$AF$27&Lists!$AG$3:$AG$27,),0)) -> 
A71: SUB069 | M71: =INDEX(Lists!$AH$3:$AH$27,MATCH(K71&L71,INDEX(Lists!$AF$3:$AF$27&Lists!$AG$3:$AG$27,),0)) ->  | Q71: =INDEX(Lists!$AH$3:$AH$27,MATCH(O71&P71,INDEX(Lists!$AF$3:$AF$27&Lists!$AG$3:$AG$27,),0)) -> 
A72: SUB070 | M72: =INDEX(Lists!$AH$3:$AH$27,MATCH(K72&L72,INDEX(Lists!$AF$3:$AF$27&Lists!$AG$3:$AG$27,),0)) ->  | Q72: =INDEX(Lists!$AH$3:$AH$27,MATCH(O72&P72,INDEX(Lists!$AF$3:$AF$27&Lists!$AG$3:$AG$27,),0)) -> 
A73: SUB071 | M73: =INDEX(Lists!$AH$3:$AH$27,MATCH(K73&L73,INDEX(Lists!$AF$3:$AF$27&Lists!$AG$3:$AG$27,),0)) ->  | Q73: =INDEX(Lists!$AH$3:$AH$27,MATCH(O73&P73,INDEX(Lists!$AF$3:$AF$27&Lists!$AG$3:$AG$27,),0)) -> 
A74: SUB072 | M74: =INDEX(Lists!$AH$3:$AH$27,MATCH(K74&L74,INDEX(Lists!$AF$3:$AF$27&Lists!$AG$3:$AG$27,),0)) ->  | Q74: =INDEX(Lists!$AH$3:$AH$27,MATCH(O74&P74,INDEX(Lists!$AF$3:$AF$27&Lists!$AG$3:$AG$27,),0)) -> 
A75: SUB073 | M75: =INDEX(Lists!$AH$3:$AH$27,MATCH(K75&L75,INDEX(Lists!$AF$3:$AF$27&Lists!$AG$3:$AG$27,),0)) ->  | Q75: =INDEX(Lists!$AH$3:$AH$27,MATCH(O75&P75,INDEX(Lists!$AF$3:$AF$27&Lists!$AG$3:$AG$27,),0)) -> 
A76: SUB074 | M76: =INDEX(Lists!$AH$3:$AH$27,MATCH(K76&L76,INDEX(Lists!$AF$3:$AF$27&Lists!$AG$3:$AG$27,),0)) ->  | Q76: =INDEX(Lists!$AH$3:$AH$27,MATCH(O76&P76,INDEX(Lists!$AF$3:$AF$27&Lists!$AG$3:$AG$27,),0)) -> 
A77: SUB075 | M77: =INDEX(Lists!$AH$3:$AH$27,MATCH(K77&L77,INDEX(Lists!$AF$3:$AF$27&Lists!$AG$3:$AG$27,),0)) ->  | Q77: =INDEX(Lists!$AH$3:$AH$27,MATCH(O77&P77,INDEX(Lists!$AF$3:$AF$27&Lists!$AG$3:$AG$27,),0)) -> 
A78: SUB076 | M78: =INDEX(Lists!$AH$3:$AH$27,MATCH(K78&L78,INDEX(Lists!$AF$3:$AF$27&Lists!$AG$3:$AG$27,),0)) ->  | Q78: =INDEX(Lists!$AH$3:$AH$27,MATCH(O78&P78,INDEX(Lists!$AF$3:$AF$27&Lists!$AG$3:$AG$27,),0)) -> 
A79: SUB077 | M79: =INDEX(Lists!$AH$3:$AH$27,MATCH(K79&L79,INDEX(Lists!$AF$3:$AF$27&Lists!$AG$3:$AG$27,),0)) ->  | Q79: =INDEX(Lists!$AH$3:$AH$27,MATCH(O79&P79,INDEX(Lists!$AF$3:$AF$27&Lists!$AG$3:$AG$27,),0)) -> 
A80: SUB078 | M80: =INDEX(Lists!$AH$3:$AH$27,MATCH(K80&L80,INDEX(Lists!$AF$3:$AF$27&Lists!$AG$3:$AG$27,),0)) ->  | Q80: =INDEX(Lists!$AH$3:$AH$27,MATCH(O80&P80,INDEX(Lists!$AF$3:$AF$27&Lists!$AG$3:$AG$27,),0)) -> 
A81: SUB079 | M81: =INDEX(Lists!$AH$3:$AH$27,MATCH(K81&L81,INDEX(Lists!$AF$3:$AF$27&Lists!$AG$3:$AG$27,),0)) ->  | Q81: =INDEX(Lists!$AH$3:$AH$27,MATCH(O81&P81,INDEX(Lists!$AF$3:$AF$27&Lists!$AG$3:$AG$27,),0)) -> 
A82: SUB080 | M82: =INDEX(Lists!$AH$3:$AH$27,MATCH(K82&L82,INDEX(Lists!$AF$3:$AF$27&Lists!$AG$3:$AG$27,),0)) ->  | Q82: =INDEX(Lists!$AH$3:$AH$27,MATCH(O82&P82,INDEX(Lists!$AF$3:$AF$27&Lists!$AG$3:$AG$27,),0)) -> 
A83: SUB081 | M83: =INDEX(Lists!$AH$3:$AH$27,MATCH(K83&L83,INDEX(Lists!$AF$3:$AF$27&Lists!$AG$3:$AG$27,),0)) ->  | Q83: =INDEX(Lists!$AH$3:$AH$27,MATCH(O83&P83,INDEX(Lists!$AF$3:$AF$27&Lists!$AG$3:$AG$27,),0)) -> 
A84: SUB082 | M84: =INDEX(Lists!$AH$3:$AH$27,MATCH(K84&L84,INDEX(Lists!$AF$3:$AF$27&Lists!$AG$3:$AG$27,),0)) ->  | Q84: =INDEX(Lists!$AH$3:$AH$27,MATCH(O84&P84,INDEX(Lists!$AF$3:$AF$27&Lists!$AG$3:$AG$27,),0)) -> 
A85: SUB083 | M85: =INDEX(Lists!$AH$3:$AH$27,MATCH(K85&L85,INDEX(Lists!$AF$3:$AF$27&Lists!$AG$3:$AG$27,),0)) ->  | Q85: =INDEX(Lists!$AH$3:$AH$27,MATCH(O85&P85,INDEX(Lists!$AF$3:$AF$27&Lists!$AG$3:$AG$27,),0)) -> 
A86: SUB084 | M86: =INDEX(Lists!$AH$3:$AH$27,MATCH(K86&L86,INDEX(Lists!$AF$3:$AF$27&Lists!$AG$3:$AG$27,),0)) ->  | Q86: =INDEX(Lists!$AH$3:$AH$27,MATCH(O86&P86,INDEX(Lists!$AF$3:$AF$27&Lists!$AG$3:$AG$27,),0)) -> 
A87: SUB085 | M87: =INDEX(Lists!$AH$3:$AH$27,MATCH(K87&L87,INDEX(Lists!$AF$3:$AF$27&Lists!$AG$3:$AG$27,),0)) ->  | Q87: =INDEX(Lists!$AH$3:$AH$27,MATCH(O87&P87,INDEX(Lists!$AF$3:$AF$27&Lists!$AG$3:$AG$27,),0)) -> 
A88: SUB086 | M88: =INDEX(Lists!$AH$3:$AH$27,MATCH(K88&L88,INDEX(Lists!$AF$3:$AF$27&Lists!$AG$3:$AG$27,),0)) ->  | Q88: =INDEX(Lists!$AH$3:$AH$27,MATCH(O88&P88,INDEX(Lists!$AF$3:$AF$27&Lists!$AG$3:$AG$27,),0)) -> 
A89: SUB087 | M89: =INDEX(Lists!$AH$3:$AH$27,MATCH(K89&L89,INDEX(Lists!$AF$3:$AF$27&Lists!$AG$3:$AG$27,),0)) ->  | Q89: =INDEX(Lists!$AH$3:$AH$27,MATCH(O89&P89,INDEX(Lists!$AF$3:$AF$27&Lists!$AG$3:$AG$27,),0)) -> 
A90: SUB088 | M90: =INDEX(Lists!$AH$3:$AH$27,MATCH(K90&L90,INDEX(Lists!$AF$3:$AF$27&Lists!$AG$3:$AG$27,),0)) ->  | Q90: =INDEX(Lists!$AH$3:$AH$27,MATCH(O90&P90,INDEX(Lists!$AF$3:$AF$27&Lists!$AG$3:$AG$27,),0)) -> 
A91: SUB089 | M91: =INDEX(Lists!$AH$3:$AH$27,MATCH(K91&L91,INDEX(Lists!$AF$3:$AF$27&Lists!$AG$3:$AG$27,),0)) ->  | Q91: =INDEX(Lists!$AH$3:$AH$27,MATCH(O91&P91,INDEX(Lists!$AF$3:$AF$27&Lists!$AG$3:$AG$27,),0)) -> 
A92: SUB090 | M92: =INDEX(Lists!$AH$3:$AH$27,MATCH(K92&L92,INDEX(Lists!$AF$3:$AF$27&Lists!$AG$3:$AG$27,),0)) ->  | Q92: =INDEX(Lists!$AH$3:$AH$27,MATCH(O92&P92,INDEX(Lists!$AF$3:$AF$27&Lists!$AG$3:$AG$27,),0)) -> 
A93: SUB091 | M93: =INDEX(Lists!$AH$3:$AH$27,MATCH(K93&L93,INDEX(Lists!$AF$3:$AF$27&Lists!$AG$3:$AG$27,),0)) ->  | Q93: =INDEX(Lists!$AH$3:$AH$27,MATCH(O93&P93,INDEX(Lists!$AF$3:$AF$27&Lists!$AG$3:$AG$27,),0)) -> 
A94: SUB092 | M94: =INDEX(Lists!$AH$3:$AH$27,MATCH(K94&L94,INDEX(Lists!$AF$3:$AF$27&Lists!$AG$3:$AG$27,),0)) ->  | Q94: =INDEX(Lists!$AH$3:$AH$27,MATCH(O94&P94,INDEX(Lists!$AF$3:$AF$27&Lists!$AG$3:$AG$27,),0)) -> 
A95: SUB093 | M95: =INDEX(Lists!$AH$3:$AH$27,MATCH(K95&L95,INDEX(Lists!$AF$3:$AF$27&Lists!$AG$3:$AG$27,),0)) ->  | Q95: =INDEX(Lists!$AH$3:$AH$27,MATCH(O95&P95,INDEX(Lists!$AF$3:$AF$27&Lists!$AG$3:$AG$27,),0)) -> 
A96: SUB094 | M96: =INDEX(Lists!$AH$3:$AH$27,MATCH(K96&L96,INDEX(Lists!$AF$3:$AF$27&Lists!$AG$3:$AG$27,),0)) ->  | Q96: =INDEX(Lists!$AH$3:$AH$27,MATCH(O96&P96,INDEX(Lists!$AF$3:$AF$27&Lists!$AG$3:$AG$27,),0)) -> 

Sheet Plant and Equipment Register
A2: ID | B2: Plant Name | C2: Registration Details | D2: Critical Limits and Operating Conditions | E2: Specification Source | F2: Supplier Details | G2: Location | H2: Risk Context | I2: Likelihood | J2: Consequence | K2: Initial Risk | L2: Hazard Control Measures | M2: Likelihood | N2: Consequence | O2: Residual Risk | P2: Last Review
K3: =INDEX(Lists!$AH$3:$AH$27,MATCH(I3&J3,INDEX(Lists!$AF$3:$AF$27&Lists!$AG$3:$AG$27,),0)) ->  | O3: =INDEX(Lists!$AH$3:$AH$27,MATCH(M3&N3,INDEX(Lists!$AF$3:$AF$27&Lists!$AG$3:$AG$27,),0)) -> 
K4: =INDEX(Lists!$AH$3:$AH$27,MATCH(I4&J4,INDEX(Lists!$AF$3:$AF$27&Lists!$AG$3:$AG$27,),0)) ->  | O4: =INDEX(Lists!$AH$3:$AH$27,MATCH(M4&N4,INDEX(Lists!$AF$3:$AF$27&Lists!$AG$3:$AG$27,),0)) -> 
K5: =INDEX(Lists!$AH$3:$AH$27,MATCH(I5&J5,INDEX(Lists!$AF$3:$AF$27&Lists!$AG$3:$AG$27,),0)) ->  | O5: =INDEX(Lists!$AH$3:$AH$27,MATCH(M5&N5,INDEX(Lists!$AF$3:$AF$27&Lists!$AG$3:$AG$27,),0)) -> 
K6: =INDEX(Lists!$AH$3:$AH$27,MATCH(I6&J6,INDEX(Lists!$AF$3:$AF$27&Lists!$AG$3:$AG$27,),0)) ->  | O6: =INDEX(Lists!$AH$3:$AH$27,MATCH(M6&N6,INDEX(Lists!$AF$3:$AF$27&Lists!$AG$3:$AG$27,),0)) -> 
K7: =INDEX(Lists!$AH$3:$AH$27,MATCH(I7&J7,INDEX(Lists!$AF$3:$AF$27&Lists!$AG$3:$AG$27,),0)) ->  | O7: =INDEX(Lists!$AH$3:$AH$27,MATCH(M7&N7,INDEX(Lists!$AF$3:$AF$27&Lists!$AG$3:$AG$27,),0)) -> 
K8: =INDEX(Lists!$AH$3:$AH$27,MATCH(I8&J8,INDEX(Lists!$AF$3:$AF$27&Lists!$AG$3:$AG$27,),0)) ->  | O8: =INDEX(Lists!$AH$3:$AH$27,MATCH(M8&N8,INDEX(Lists!$AF$3:$AF$27&Lists!$AG$3:$AG$27,),0)) -> 
K9: =INDEX(Lists!$AH$3:$AH$27,MATCH(I9&J9,INDEX(Lists!$AF$3:$AF$27&Lists!$AG$3:$AG$27,),0)) ->  | O9: =INDEX(Lists!$AH$3:$AH$27,MATCH(M9&N9,INDEX(Lists!$AF$3:$AF$27&Lists!$AG$3:$AG$27,),0)) -> 
K10: =INDEX(Lists!$AH$3:$AH$27,MATCH(I10&J10,INDEX(Lists!$AF$3:$AF$27&Lists!$AG$3:$AG$27,),0)) ->  | O10: =INDEX(Lists!$AH$3:$AH$27,MATCH(M10&N10,INDEX(Lists!$AF$3:$AF$27&Lists!$AG$3:$AG$27,),0)) -> 
K11: =INDEX(Lists!$AH$3:$AH$27,MATCH(I11&J11,INDEX(Lists!$AF$3:$AF$27&Lists!$AG$3:$AG$27,),0)) ->  | O11: =INDEX(Lists!$AH$3:$AH$27,MATCH(M11&N11,INDEX(Lists!$AF$3:$AF$27&Lists!$AG$3:$AG$27,),0)) -> 
K12: =INDEX(Lists!$AH$3:$AH$27,MATCH(I12&J12,INDEX(Lists!$AF$3:$AF$27&Lists!$AG$3:$AG$27,),0)) ->  | O12: =INDEX(Lists!$AH$3:$AH$27,MATCH(M12&N12,INDEX(Lists!$AF$3:$AF$27&Lists!$AG$3:$AG$27,),0)) -> 
K13: =INDEX(Lists!$AH$3:$AH$27,MATCH(I13&J13,INDEX(Lists!$AF$3:$AF$27&Lists!$AG$3:$AG$27,),0)) ->  | O13: =INDEX(Lists!$AH$3:$AH$27,MATCH(M13&N13,INDEX(Lists!$AF$3:$AF$27&Lists!$AG$3:$AG$27,),0)) -> 
K14: =INDEX(Lists!$AH$3:$AH$27,MATCH(I14&J14,INDEX(Lists!$AF$3:$AF$27&Lists!$AG$3:$AG$27,),0)) ->  | O14: =INDEX(Lists!$AH$3:$AH$27,MATCH(M14&N14,INDEX(Lists!$AF$3:$AF$27&Lists!$AG$3:$AG$27,),0)) -> 
K15: =INDEX(Lists!$AH$3:$AH$27,MATCH(I15&J15,INDEX(Lists!$AF$3:$AF$27&Lists!$AG$3:$AG$27,),0)) ->  | O15: =INDEX(Lists!$AH$3:$AH$27,MATCH(M15&N15,INDEX(Lists!$AF$3:$AF$27&Lists!$AG$3:$AG$27,),0)) -> 
K16: =INDEX(Lists!$AH$3:$AH$27,MATCH(I16&J16,INDEX(Lists!$AF$3:$AF$27&Lists!$AG$3:$AG$27,),0)) ->  | O16: =INDEX(Lists!$AH$3:$AH$27,MATCH(M16&N16,INDEX(Lists!$AF$3:$AF$27&Lists!$AG$3:$AG$27,),0)) -> 
K17: =INDEX(Lists!$AH$3:$AH$27,MATCH(I17&J17,INDEX(Lists!$AF$3:$AF$27&Lists!$AG$3:$AG$27,),0)) ->  | O17: =INDEX(Lists!$AH$3:$AH$27,MATCH(M17&N17,INDEX(Lists!$AF$3:$AF$27&Lists!$AG$3:$AG$27,),0)) -> 
K18: =INDEX(Lists!$AH$3:$AH$27,MATCH(I18&J18,INDEX(Lists!$AF$3:$AF$27&Lists!$AG$3:$AG$27,),0)) ->  | O18: =INDEX(Lists!$AH$3:$AH$27,MATCH(M18&N18,INDEX(Lists!$AF$3:$AF$27&Lists!$AG$3:$AG$27,),0)) -> 
K19: =INDEX(Lists!$AH$3:$AH$27,MATCH(I19&J19,INDEX(Lists!$AF$3:$AF$27&Lists!$AG$3:$AG$27,),0)) ->  | O19: =INDEX(Lists!$AH$3:$AH$27,MATCH(M19&N19,INDEX(Lists!$AF$3:$AF$27&Lists!$AG$3:$AG$27,),0)) -> 
K20: =INDEX(Lists!$AH$3:$AH$27,MATCH(I20&J20,INDEX(Lists!$AF$3:$AF$27&Lists!$AG$3:$AG$27,),0)) ->  | O20: =INDEX(Lists!$AH$3:$AH$27,MATCH(M20&N20,INDEX(Lists!$AF$3:$AF$27&Lists!$AG$3:$AG$27,),0)) -> 
K21: =INDEX(Lists!$AH$3:$AH$27,MATCH(I21&J21,INDEX(Lists!$AF$3:$AF$27&Lists!$AG$3:$AG$27,),0)) ->  | O21: =INDEX(Lists!$AH$3:$AH$27,MATCH(M21&N21,INDEX(Lists!$AF$3:$AF$27&Lists!$AG$3:$AG$27,),0)) -> 
K22: =INDEX(Lists!$AH$3:$AH$27,MATCH(I22&J22,INDEX(Lists!$AF$3:$AF$27&Lists!$AG$3:$AG$27,),0)) ->  | O22: =INDEX(Lists!$AH$3:$AH$27,MATCH(M22&N22,INDEX(Lists!$AF$3:$AF$27&Lists!$AG$3:$AG$27,),0)) -> 
K23: =INDEX(Lists!$AH$3:$AH$27,MATCH(I23&J23,INDEX(Lists!$AF$3:$AF$27&Lists!$AG$3:$AG$27,),0)) ->  | O23: =INDEX(Lists!$AH$3:$AH$27,MATCH(M23&N23,INDEX(Lists!$AF$3:$AF$27&Lists!$AG$3:$AG$27,),0)) -> 
K24: =INDEX(Lists!$AH$3:$AH$27,MATCH(I24&J24,INDEX(Lists!$AF$3:$AF$27&Lists!$AG$3:$AG$27,),0)) ->  | O24: =INDEX(Lists!$AH$3:$AH$27,MATCH(M24&N24,INDEX(Lists!$AF$3:$AF$27&Lists!$AG$3:$AG$27,),0)) -> 
K25: =INDEX(Lists!$AH$3:$AH$27,MATCH(I25&J25,INDEX(Lists!$AF$3:$AF$27&Lists!$AG$3:$AG$27,),0)) ->  | O25: =INDEX(Lists!$AH$3:$AH$27,MATCH(M25&N25,INDEX(Lists!$AF$3:$AF$27&Lists!$AG$3:$AG$27,),0)) -> 
K26: =INDEX(Lists!$AH$3:$AH$27,MATCH(I26&J26,INDEX(Lists!$AF$3:$AF$27&Lists!$AG$3:$AG$27,),0)) ->  | O26: =INDEX(Lists!$AH$3:$AH$27,MATCH(M26&N26,INDEX(Lists!$AF$3:$AF$27&Lists!$AG$3:$AG$27,),0)) -> 
K27: =INDEX(Lists!$AH$3:$AH$27,MATCH(I27&J27,INDEX(Lists!$AF$3:$AF$27&Lists!$AG$3:$AG$27,),0)) ->  | O27: =INDEX(Lists!$AH$3:$AH$27,MATCH(M27&N27,INDEX(Lists!$AF$3:$AF$27&Lists!$AG$3:$AG$27,),0)) -> 
K28: =INDEX(Lists!$AH$3:$AH$27,MATCH(I28&J28,INDEX(Lists!$AF$3:$AF$27&Lists!$AG$3:$AG$27,),0)) ->  | O28: =INDEX(Lists!$AH$3:$AH$27,MATCH(M28&N28,INDEX(Lists!$AF$3:$AF$27&Lists!$AG$3:$AG$27,),0)) -> 
K29: =INDEX(Lists!$AH$3:$AH$27,MATCH(I29&J29,INDEX(Lists!$AF$3:$AF$27&Lists!$AG$3:$AG$27,),0)) ->  | O29: =INDEX(Lists!$AH$3:$AH$27,MATCH(M29&N29,INDEX(Lists!$AF$3:$AF$27&Lists!$AG$3:$AG$27,),0)) -> 
K30: =INDEX(Lists!$AH$3:$AH$27,MATCH(I30&J30,INDEX(Lists!$AF$3:$AF$27&Lists!$AG$3:$AG$27,),0)) ->  | O30: =INDEX(Lists!$AH$3:$AH$27,MATCH(M30&N30,INDEX(Lists!$AF$3:$AF$27&Lists!$AG$3:$AG$27,),0)) -> 
K31: =INDEX(Lists!$AH$3:$AH$27,MATCH(I31&J31,INDEX(Lists!$AF$3:$AF$27&Lists!$AG$3:$AG$27,),0)) ->  | O31: =INDEX(Lists!$AH$3:$AH$27,MATCH(M31&N31,INDEX(Lists!$AF$3:$AF$27&Lists!$AG$3:$AG$27,),0)) -> 
K32: =INDEX(Lists!$AH$3:$AH$27,MATCH(I32&J32,INDEX(Lists!$AF$3:$AF$27&Lists!$AG$3:$AG$27,),0)) ->  | O32: =INDEX(Lists!$AH$3:$AH$27,MATCH(M32&N32,INDEX(Lists!$AF$3:$AF$27&Lists!$AG$3:$AG$27,),0)) -> 
K33: =INDEX(Lists!$AH$3:$AH$27,MATCH(I33&J33,INDEX(Lists!$AF$3:$AF$27&Lists!$AG$3:$AG$27,),0)) ->  | O33: =INDEX(Lists!$AH$3:$AH$27,MATCH(M33&N33,INDEX(Lists!$AF$3:$AF$27&Lists!$AG$3:$AG$27,),0)) -> 
K34: =INDEX(Lists!$AH$3:$AH$27,MATCH(I34&J34,INDEX(Lists!$AF$3:$AF$27&Lists!$AG$3:$AG$27,),0)) ->  | O34: =INDEX(Lists!$AH$3:$AH$27,MATCH(M34&N34,INDEX(Lists!$AF$3:$AF$27&Lists!$AG$3:$AG$27,),0)) -> 
K35: =INDEX(Lists!$AH$3:$AH$27,MATCH(I35&J35,INDEX(Lists!$AF$3:$AF$27&Lists!$AG$3:$AG$27,),0)) ->  | O35: =INDEX(Lists!$AH$3:$AH$27,MATCH(M35&N35,INDEX(Lists!$AF$3:$AF$27&Lists!$AG$3:$AG$27,),0)) -> 
K36: =INDEX(Lists!$AH$3:$AH$27,MATCH(I36&J36,INDEX(Lists!$AF$3:$AF$27&Lists!$AG$3:$AG$27,),0)) ->  | O36: =INDEX(Lists!$AH$3:$AH$27,MATCH(M36&N36,INDEX(Lists!$AF$3:$AF$27&Lists!$AG$3:$AG$27,),0)) -> 
K37: =INDEX(Lists!$AH$3:$AH$27,MATCH(I37&J37,INDEX(Lists!$AF$3:$AF$27&Lists!$AG$3:$AG$27,),0)) ->  | O37: =INDEX(Lists!$AH$3:$AH$27,MATCH(M37&N37,INDEX(Lists!$AF$3:$AF$27&Lists!$AG$3:$AG$27,),0)) -> 
K38: =INDEX(Lists!$AH$3:$AH$27,MATCH(I38&J38,INDEX(Lists!$AF$3:$AF$27&Lists!$AG$3:$AG$27,),0)) ->  | O38: =INDEX(Lists!$AH$3:$AH$27,MATCH(M38&N38,INDEX(Lists!$AF$3:$AF$27&Lists!$AG$3:$AG$27,),0)) -> 
K39: =INDEX(Lists!$AH$3:$AH$27,MATCH(I39&J39,INDEX(Lists!$AF$3:$AF$27&Lists!$AG$3:$AG$27,),0)) ->  | O39: =INDEX(Lists!$AH$3:$AH$27,MATCH(M39&N39,INDEX(Lists!$AF$3:$AF$27&Lists!$AG$3:$AG$27,),0)) -> 
K40: =INDEX(Lists!$AH$3:$AH$27,MATCH(I40&J40,INDEX(Lists!$AF$3:$AF$27&Lists!$AG$3:$AG$27,),0)) ->  | O40: =INDEX(Lists!$AH$3:$AH$27,MATCH(M40&N40,INDEX(Lists!$AF$3:$AF$27&Lists!$AG$3:$AG$27,),0)) -> 
K41: =INDEX(Lists!$AH$3:$AH$27,MATCH(I41&J41,INDEX(Lists!$AF$3:$AF$27&Lists!$AG$3:$AG$27,),0)) ->  | O41: =INDEX(Lists!$AH$3:$AH$27,MATCH(M41&N41,INDEX(Lists!$AF$3:$AF$27&Lists!$AG$3:$AG$27,),0)) -> 
K42: =INDEX(Lists!$AH$3:$AH$27,MATCH(I42&J42,INDEX(Lists!$AF$3:$AF$27&Lists!$AG$3:$AG$27,),0)) ->  | O42: =INDEX(Lists!$AH$3:$AH$27,MATCH(M42&N42,INDEX(Lists!$AF$3:$AF$27&Lists!$AG$3:$AG$27,),0)) -> 
K43: =INDEX(Lists!$AH$3:$AH$27,MATCH(I43&J43,INDEX(Lists!$AF$3:$AF$27&Lists!$AG$3:$AG$27,),0)) ->  | O43: =INDEX(Lists!$AH$3:$AH$27,MATCH(M43&N43,INDEX(Lists!$AF$3:$AF$27&Lists!$AG$3:$AG$27,),0)) -> 
K44: =INDEX(Lists!$AH$3:$AH$27,MATCH(I44&J44,INDEX(Lists!$AF$3:$AF$27&Lists!$AG$3:$AG$27,),0)) ->  | O44: =INDEX(Lists!$AH$3:$AH$27,MATCH(M44&N44,INDEX(Lists!$AF$3:$AF$27&Lists!$AG$3:$AG$27,),0)) -> 
K45: =INDEX(Lists!$AH$3:$AH$27,MATCH(I45&J45,INDEX(Lists!$AF$3:$AF$27&Lists!$AG$3:$AG$27,),0)) ->  | O45: =INDEX(Lists!$AH$3:$AH$27,MATCH(M45&N45,INDEX(Lists!$AF$3:$AF$27&Lists!$AG$3:$AG$27,),0)) -> 
K46: =INDEX(Lists!$AH$3:$AH$27,MATCH(I46&J46,INDEX(Lists!$AF$3:$AF$27&Lists!$AG$3:$AG$27,),0)) ->  | O46: =INDEX(Lists!$AH$3:$AH$27,MATCH(M46&N46,INDEX(Lists!$AF$3:$AF$27&Lists!$AG$3:$AG$27,),0)) -> 
K47: =INDEX(Lists!$AH$3:$AH$27,MATCH(I47&J47,INDEX(Lists!$AF$3:$AF$27&Lists!$AG$3:$AG$27,),0)) ->  | O47: =INDEX(Lists!$AH$3:$AH$27,MATCH(M47&N47,INDEX(Lists!$AF$3:$AF$27&Lists!$AG$3:$AG$27,),0)) -> 
K48: =INDEX(Lists!$AH$3:$AH$27,MATCH(I48&J48,INDEX(Lists!$AF$3:$AF$27&Lists!$AG$3:$AG$27,),0)) ->  | O48: =INDEX(Lists!$AH$3:$AH$27,MATCH(M48&N48,INDEX(Lists!$AF$3:$AF$27&Lists!$AG$3:$AG$27,),0)) -> 
K49: =INDEX(Lists!$AH$3:$AH$27,MATCH(I49&J49,INDEX(Lists!$AF$3:$AF$27&Lists!$AG$3:$AG$27,),0)) ->  | O49: =INDEX(Lists!$AH$3:$AH$27,MATCH(M49&N49,INDEX(Lists!$AF$3:$AF$27&Lists!$AG$3:$AG$27,),0)) -> 
K50: =INDEX(Lists!$AH$3:$AH$27,MATCH(I50&J50,INDEX(Lists!$AF$3:$AF$27&Lists!$AG$3:$AG$27,),0)) ->  | O50: =INDEX(Lists!$AH$3:$AH$27,MATCH(M50&N50,INDEX(Lists!$AF$3:$AF$27&Lists!$AG$3:$AG$27,),0)) -> 
K51: =INDEX(Lists!$AH$3:$AH$27,MATCH(I51&J51,INDEX(Lists!$AF$3:$AF$27&Lists!$AG$3:$AG$27,),0)) ->  | O51: =INDEX(Lists!$AH$3:$AH$27,MATCH(M51&N51,INDEX(Lists!$AF$3:$AF$27&Lists!$AG$3:$AG$27,),0)) -> 
K52: =INDEX(Lists!$AH$3:$AH$27,MATCH(I52&J52,INDEX(Lists!$AF$3:$AF$27&Lists!$AG$3:$AG$27,),0)) ->  | O52: =INDEX(Lists!$AH$3:$AH$27,MATCH(M52&N52,INDEX(Lists!$AF$3:$AF$27&Lists!$AG$3:$AG$27,),0)) -> 
K53: =INDEX(Lists!$AH$3:$AH$27,MATCH(I53&J53,INDEX(Lists!$AF$3:$AF$27&Lists!$AG$3:$AG$27,),0)) ->  | O53: =INDEX(Lists!$AH$3:$AH$27,MATCH(M53&N53,INDEX(Lists!$AF$3:$AF$27&Lists!$AG$3:$AG$27,),0)) -> 
K54: =INDEX(Lists!$AH$3:$AH$27,MATCH(I54&J54,INDEX(Lists!$AF$3:$AF$27&Lists!$AG$3:$AG$27,),0)) ->  | O54: =INDEX(Lists!$AH$3:$AH$27,MATCH(M54&N54,INDEX(Lists!$AF$3:$AF$27&Lists!$AG$3:$AG$27,),0)) -> 
K55: =INDEX(Lists!$AH$3:$AH$27,MATCH(I55&J55,INDEX(Lists!$AF$3:$AF$27&Lists!$AG$3:$AG$27,),0)) ->  | O55: =INDEX(Lists!$AH$3:$AH$27,MATCH(M55&N55,INDEX(Lists!$AF$3:$AF$27&Lists!$AG$3:$AG$27,),0)) -> 
K56: =INDEX(Lists!$AH$3:$AH$27,MATCH(I56&J56,INDEX(Lists!$AF$3:$AF$27&Lists!$AG$3:$AG$27,),0)) ->  | O56: =INDEX(Lists!$AH$3:$AH$27,MATCH(M56&N56,INDEX(Lists!$AF$3:$AF$27&Lists!$AG$3:$AG$27,),0)) -> 
K57: =INDEX(Lists!$AH$3:$AH$27,MATCH(I57&J57,INDEX(Lists!$AF$3:$AF$27&Lists!$AG$3:$AG$27,),0)) ->  | O57: =INDEX(Lists!$AH$3:$AH$27,MATCH(M57&N57,INDEX(Lists!$AF$3:$AF$27&Lists!$AG$3:$AG$27,),0)) -> 
K58: =INDEX(Lists!$AH$3:$AH$27,MATCH(I58&J58,INDEX(Lists!$AF$3:$AF$27&Lists!$AG$3:$AG$27,),0)) ->  | O58: =INDEX(Lists!$AH$3:$AH$27,MATCH(M58&N58,INDEX(Lists!$AF$3:$AF$27&Lists!$AG$3:$AG$27,),0)) -> 
K59: =INDEX(Lists!$AH$3:$AH$27,MATCH(I59&J59,INDEX(Lists!$AF$3:$AF$27&Lists!$AG$3:$AG$27,),0)) ->  | O59: =INDEX(Lists!$AH$3:$AH$27,MATCH(M59&N59,INDEX(Lists!$AF$3:$AF$27&Lists!$AG$3:$AG$27,),0)) -> 
K60: =INDEX(Lists!$AH$3:$AH$27,MATCH(I60&J60,INDEX(Lists!$AF$3:$AF$27&Lists!$AG$3:$AG$27,),0)) ->  | O60: =INDEX(Lists!$AH$3:$AH$27,MATCH(M60&N60,INDEX(Lists!$AF$3:$AF$27&Lists!$AG$3:$AG$27,),0)) -> 
K61: =INDEX(Lists!$AH$3:$AH$27,MATCH(I61&J61,INDEX(Lists!$AF$3:$AF$27&Lists!$AG$3:$AG$27,),0)) ->  | O61: =INDEX(Lists!$AH$3:$AH$27,MATCH(M61&N61,INDEX(Lists!$AF$3:$AF$27&Lists!$AG$3:$AG$27,),0)) -> 
K62: =INDEX(Lists!$AH$3:$AH$27,MATCH(I62&J62,INDEX(Lists!$AF$3:$AF$27&Lists!$AG$3:$AG$27,),0)) ->  | O62: =INDEX(Lists!$AH$3:$AH$27,MATCH(M62&N62,INDEX(Lists!$AF$3:$AF$27&Lists!$AG$3:$AG$27,),0)) -> 
K63: =INDEX(Lists!$AH$3:$AH$27,MATCH(I63&J63,INDEX(Lists!$AF$3:$AF$27&Lists!$AG$3:$AG$27,),0)) ->  | O63: =INDEX(Lists!$AH$3:$AH$27,MATCH(M63&N63,INDEX(Lists!$AF$3:$AF$27&Lists!$AG$3:$AG$27,),0)) -> 
K64: =INDEX(Lists!$AH$3:$AH$27,MATCH(I64&J64,INDEX(Lists!$AF$3:$AF$27&Lists!$AG$3:$AG$27,),0)) ->  | O64: =INDEX(Lists!$AH$3:$AH$27,MATCH(M64&N64,INDEX(Lists!$AF$3:$AF$27&Lists!$AG$3:$AG$27,),0)) -> 
K65: =INDEX(Lists!$AH$3:$AH$27,MATCH(I65&J65,INDEX(Lists!$AF$3:$AF$27&Lists!$AG$3:$AG$27,),0)) ->  | O65: =INDEX(Lists!$AH$3:$AH$27,MATCH(M65&N65,INDEX(Lists!$AF$3:$AF$27&Lists!$AG$3:$AG$27,),0)) -> 
K66: =INDEX(Lists!$AH$3:$AH$27,MATCH(I66&J66,INDEX(Lists!$AF$3:$AF$27&Lists!$AG$3:$AG$27,),0)) ->  | O66: =INDEX(Lists!$AH$3:$AH$27,MATCH(M66&N66,INDEX(Lists!$AF$3:$AF$27&Lists!$AG$3:$AG$27,),0)) -> 
K67: =INDEX(Lists!$AH$3:$AH$27,MATCH(I67&J67,INDEX(Lists!$AF$3:$AF$27&Lists!$AG$3:$AG$27,),0)) ->  | O67: =INDEX(Lists!$AH$3:$AH$27,MATCH(M67&N67,INDEX(Lists!$AF$3:$AF$27&Lists!$AG$3:$AG$27,),0)) -> 
K68: =INDEX(Lists!$AH$3:$AH$27,MATCH(I68&J68,INDEX(Lists!$AF$3:$AF$27&Lists!$AG$3:$AG$27,),0)) ->  | O68: =INDEX(Lists!$AH$3:$AH$27,MATCH(M68&N68,INDEX(Lists!$AF$3:$AF$27&Lists!$AG$3:$AG$27,),0)) -> 
K69: =INDEX(Lists!$AH$3:$AH$27,MATCH(I69&J69,INDEX(Lists!$AF$3:$AF$27&Lists!$AG$3:$AG$27,),0)) ->  | O69: =INDEX(Lists!$AH$3:$AH$27,MATCH(M69&N69,INDEX(Lists!$AF$3:$AF$27&Lists!$AG$3:$AG$27,),0)) -> 
K70: =INDEX(Lists!$AH$3:$AH$27,MATCH(I70&J70,INDEX(Lists!$AF$3:$AF$27&Lists!$AG$3:$AG$27,),0)) ->  | O70: =INDEX(Lists!$AH$3:$AH$27,MATCH(M70&N70,INDEX(Lists!$AF$3:$AF$27&Lists!$AG$3:$AG$27,),0)) -> 
K71: =INDEX(Lists!$AH$3:$AH$27,MATCH(I71&J71,INDEX(Lists!$AF$3:$AF$27&Lists!$AG$3:$AG$27,),0)) ->  | O71: =INDEX(Lists!$AH$3:$AH$27,MATCH(M71&N71,INDEX(Lists!$AF$3:$AF$27&Lists!$AG$3:$AG$27,),0)) -> 
K72: =INDEX(Lists!$AH$3:$AH$27,MATCH(I72&J72,INDEX(Lists!$AF$3:$AF$27&Lists!$AG$3:$AG$27,),0)) ->  | O72: =INDEX(Lists!$AH$3:$AH$27,MATCH(M72&N72,INDEX(Lists!$AF$3:$AF$27&Lists!$AG$3:$AG$27,),0)) -> 
K73: =INDEX(Lists!$AH$3:$AH$27,MATCH(I73&J73,INDEX(Lists!$AF$3:$AF$27&Lists!$AG$3:$AG$27,),0)) ->  | O73: =INDEX(Lists!$AH$3:$AH$27,MATCH(M73&N73,INDEX(Lists!$AF$3:$AF$27&Lists!$AG$3:$AG$27,),0)) -> 
K74: =INDEX(Lists!$AH$3:$AH$27,MATCH(I74&J74,INDEX(Lists!$AF$3:$AF$27&Lists!$AG$3:$AG$27,),0)) ->  | O74: =INDEX(Lists!$AH$3:$AH$27,MATCH(M74&N74,INDEX(Lists!$AF$3:$AF$27&Lists!$AG$3:$AG$27,),0)) -> 
K75: =INDEX(Lists!$AH$3:$AH$27,MATCH(I75&J75,INDEX(Lists!$AF$3:$AF$27&Lists!$AG$3:$AG$27,),0)) ->  | O75: =INDEX(Lists!$AH$3:$AH$27,MATCH(M75&N75,INDEX(Lists!$AF$3:$AF$27&Lists!$AG$3:$AG$27,),0)) -> 
K76: =INDEX(Lists!$AH$3:$AH$27,MATCH(I76&J76,INDEX(Lists!$AF$3:$AF$27&Lists!$AG$3:$AG$27,),0)) ->  | O76: =INDEX(Lists!$AH$3:$AH$27,MATCH(M76&N76,INDEX(Lists!$AF$3:$AF$27&Lists!$AG$3:$AG$27,),0)) -> 
K77: =INDEX(Lists!$AH$3:$AH$27,MATCH(I77&J77,INDEX(Lists!$AF$3:$AF$27&Lists!$AG$3:$AG$27,),0)) ->  | O77: =INDEX(Lists!$AH$3:$AH$27,MATCH(M77&N77,INDEX(Lists!$AF$3:$AF$27&Lists!$AG$3:$AG$27,),0)) -> 
K78: =INDEX(Lists!$AH$3:$AH$27,MATCH(I78&J78,INDEX(Lists!$AF$3:$AF$27&Lists!$AG$3:$AG$27,),0)) ->  | O78: =INDEX(Lists!$AH$3:$AH$27,MATCH(M78&N78,INDEX(Lists!$AF$3:$AF$27&Lists!$AG$3:$AG$27,),0)) -> 
K79: =INDEX(Lists!$AH$3:$AH$27,MATCH(I79&J79,INDEX(Lists!$AF$3:$AF$27&Lists!$AG$3:$AG$27,),0)) ->  | O79: =INDEX(Lists!$AH$3:$AH$27,MATCH(M79&N79,INDEX(Lists!$AF$3:$AF$27&Lists!$AG$3:$AG$27,),0)) -> 
K80: =INDEX(Lists!$AH$3:$AH$27,MATCH(I80&J80,INDEX(Lists!$AF$3:$AF$27&Lists!$AG$3:$AG$27,),0)) ->  | O80: =INDEX(Lists!$AH$3:$AH$27,MATCH(M80&N80,INDEX(Lists!$AF$3:$AF$27&Lists!$AG$3:$AG$27,),0)) -> 
K81: =INDEX(Lists!$AH$3:$AH$27,MATCH(I81&J81,INDEX(Lists!$AF$3:$AF$27&Lists!$AG$3:$AG$27,),0)) ->  | O81: =INDEX(Lists!$AH$3:$AH$27,MATCH(M81&N81,INDEX(Lists!$AF$3:$AF$27&Lists!$AG$3:$AG$27,),0)) -> 
K82: =INDEX(Lists!$AH$3:$AH$27,MATCH(I82&J82,INDEX(Lists!$AF$3:$AF$27&Lists!$AG$3:$AG$27,),0)) ->  | O82: =INDEX(Lists!$AH$3:$AH$27,MATCH(M82&N82,INDEX(Lists!$AF$3:$AF$27&Lists!$AG$3:$AG$27,),0)) -> 
K83: =INDEX(Lists!$AH$3:$AH$27,MATCH(I83&J83,INDEX(Lists!$AF$3:$AF$27&Lists!$AG$3:$AG$27,),0)) ->  | O83: =INDEX(Lists!$AH$3:$AH$27,MATCH(M83&N83,INDEX(Lists!$AF$3:$AF$27&Lists!$AG$3:$AG$27,),0)) -> 
K84: =INDEX(Lists!$AH$3:$AH$27,MATCH(I84&J84,INDEX(Lists!$AF$3:$AF$27&Lists!$AG$3:$AG$27,),0)) ->  | O84: =INDEX(Lists!$AH$3:$AH$27,MATCH(M84&N84,INDEX(Lists!$AF$3:$AF$27&Lists!$AG$3:$AG$27,),0)) -> 
K85: =INDEX(Lists!$AH$3:$AH$27,MATCH(I85&J85,INDEX(Lists!$AF$3:$AF$27&Lists!$AG$3:$AG$27,),0)) ->  | O85: =INDEX(Lists!$AH$3:$AH$27,MATCH(M85&N85,INDEX(Lists!$AF$3:$AF$27&Lists!$AG$3:$AG$27,),0)) -> 
K86: =INDEX(Lists!$AH$3:$AH$27,MATCH(I86&J86,INDEX(Lists!$AF$3:$AF$27&Lists!$AG$3:$AG$27,),0)) ->  | O86: =INDEX(Lists!$AH$3:$AH$27,MATCH(M86&N86,INDEX(Lists!$AF$3:$AF$27&Lists!$AG$3:$AG$27,),0)) -> 
K87: =INDEX(Lists!$AH$3:$AH$27,MATCH(I87&J87,INDEX(Lists!$AF$3:$AF$27&Lists!$AG$3:$AG$27,),0)) ->  | O87: =INDEX(Lists!$AH$3:$AH$27,MATCH(M87&N87,INDEX(Lists!$AF$3:$AF$27&Lists!$AG$3:$AG$27,),0)) -> 
K88: =INDEX(Lists!$AH$3:$AH$27,MATCH(I88&J88,INDEX(Lists!$AF$3:$AF$27&Lists!$AG$3:$AG$27,),0)) ->  | O88: =INDEX(Lists!$AH$3:$AH$27,MATCH(M88&N88,INDEX(Lists!$AF$3:$AF$27&Lists!$AG$3:$AG$27,),0)) -> 
K89: =INDEX(Lists!$AH$3:$AH$27,MATCH(I89&J89,INDEX(Lists!$AF$3:$AF$27&Lists!$AG$3:$AG$27,),0)) ->  | O89: =INDEX(Lists!$AH$3:$AH$27,MATCH(M89&N89,INDEX(Lists!$AF$3:$AF$27&Lists!$AG$3:$AG$27,),0)) -> 
K90: =INDEX(Lists!$AH$3:$AH$27,MATCH(I90&J90,INDEX(Lists!$AF$3:$AF$27&Lists!$AG$3:$AG$27,),0)) ->  | O90: =INDEX(Lists!$AH$3:$AH$27,MATCH(M90&N90,INDEX(Lists!$AF$3:$AF$27&Lists!$AG$3:$AG$27,),0)) -> 
K91: =INDEX(Lists!$AH$3:$AH$27,MATCH(I91&J91,INDEX(Lists!$AF$3:$AF$27&Lists!$AG$3:$AG$27,),0)) ->  | O91: =INDEX(Lists!$AH$3:$AH$27,MATCH(M91&N91,INDEX(Lists!$AF$3:$AF$27&Lists!$AG$3:$AG$27,),0)) -> 
K92: =INDEX(Lists!$AH$3:$AH$27,MATCH(I92&J92,INDEX(Lists!$AF$3:$AF$27&Lists!$AG$3:$AG$27,),0)) ->  | O92: =INDEX(Lists!$AH$3:$AH$27,MATCH(M92&N92,INDEX(Lists!$AF$3:$AF$27&Lists!$AG$3:$AG$27,),0)) -> 
K93: =INDEX(Lists!$AH$3:$AH$27,MATCH(I93&J93,INDEX(Lists!$AF$3:$AF$27&Lists!$AG$3:$AG$27,),0)) ->  | O93: =INDEX(Lists!$AH$3:$AH$27,MATCH(M93&N93,INDEX(Lists!$AF$3:$AF$27&Lists!$AG$3:$AG$27,),0)) -> 
K94: =INDEX(Lists!$AH$3:$AH$27,MATCH(I94&J94,INDEX(Lists!$AF$3:$AF$27&Lists!$AG$3:$AG$27,),0)) ->  | O94: =INDEX(Lists!$AH$3:$AH$27,MATCH(M94&N94,INDEX(Lists!$AF$3:$AF$27&Lists!$AG$3:$AG$27,),0)) -> 
K95: =INDEX(Lists!$AH$3:$AH$27,MATCH(I95&J95,INDEX(Lists!$AF$3:$AF$27&Lists!$AG$3:$AG$27,),0)) ->  | O95: =INDEX(Lists!$AH$3:$AH$27,MATCH(M95&N95,INDEX(Lists!$AF$3:$AF$27&Lists!$AG$3:$AG$27,),0)) -> 
K96: =INDEX(Lists!$AH$3:$AH$27,MATCH(I96&J96,INDEX(Lists!$AF$3:$AF$27&Lists!$AG$3:$AG$27,),0)) ->  | O96: =INDEX(Lists!$AH$3:$AH$27,MATCH(M96&N96,INDEX(Lists!$AF$3:$AF$27&Lists!$AG$3:$AG$27,),0)) -> 
K97: =INDEX(Lists!$AH$3:$AH$27,MATCH(I97&J97,INDEX(Lists!$AF$3:$AF$27&Lists!$AG$3:$AG$27,),0)) ->  | O97: =INDEX(Lists!$AH$3:$AH$27,MATCH(M97&N97,INDEX(Lists!$AF$3:$AF$27&Lists!$AG$3:$AG$27,),0)) -> 
K98: =INDEX(Lists!$AH$3:$AH$27,MATCH(I98&J98,INDEX(Lists!$AF$3:$AF$27&Lists!$AG$3:$AG$27,),0)) ->  | O98: =INDEX(Lists!$AH$3:$AH$27,MATCH(M98&N98,INDEX(Lists!$AF$3:$AF$27&Lists!$AG$3:$AG$27,),0)) -> 
K99: =INDEX(Lists!$AH$3:$AH$27,MATCH(I99&J99,INDEX(Lists!$AF$3:$AF$27&Lists!$AG$3:$AG$27,),0)) ->  | O99: =INDEX(Lists!$AH$3:$AH$27,MATCH(M99&N99,INDEX(Lists!$AF$3:$AF$27&Lists!$AG$3:$AG$27,),0)) -> 
K100: =INDEX(Lists!$AH$3:$AH$27,MATCH(I100&J100,INDEX(Lists!$AF$3:$AF$27&Lists!$AG$3:$AG$27,),0)) ->  | O100: =INDEX(Lists!$AH$3:$AH$27,MATCH(M100&N100,INDEX(Lists!$AF$3:$AF$27&Lists!$AG$3:$AG$27,),0)) -> 
K101: =INDEX(Lists!$AH$3:$AH$27,MATCH(I101&J101,INDEX(Lists!$AF$3:$AF$27&Lists!$AG$3:$AG$27,),0)) ->  | O101: =INDEX(Lists!$AH$3:$AH$27,MATCH(M101&N101,INDEX(Lists!$AF$3:$AF$27&Lists!$AG$3:$AG$27,),0)) -> 
K102: =INDEX(Lists!$AH$3:$AH$27,MATCH(I102&J102,INDEX(Lists!$AF$3:$AF$27&Lists!$AG$3:$AG$27,),0)) ->  | O102: =INDEX(Lists!$AH$3:$AH$27,MATCH(M102&N102,INDEX(Lists!$AF$3:$AF$27&Lists!$AG$3:$AG$27,),0)) -> 
K103: =INDEX(Lists!$AH$3:$AH$27,MATCH(I103&J103,INDEX(Lists!$AF$3:$AF$27&Lists!$AG$3:$AG$27,),0)) ->  | O103: =INDEX(Lists!$AH$3:$AH$27,MATCH(M103&N103,INDEX(Lists!$AF$3:$AF$27&Lists!$AG$3:$AG$27,),0)) -> 
K104: =INDEX(Lists!$AH$3:$AH$27,MATCH(I104&J104,INDEX(Lists!$AF$3:$AF$27&Lists!$AG$3:$AG$27,),0)) ->  | O104: =INDEX(Lists!$AH$3:$AH$27,MATCH(M104&N104,INDEX(Lists!$AF$3:$AF$27&Lists!$AG$3:$AG$27,),0)) -> 
K105: =INDEX(Lists!$AH$3:$AH$27,MATCH(I105&J105,INDEX(Lists!$AF$3:$AF$27&Lists!$AG$3:$AG$27,),0)) ->  | O105: =INDEX(Lists!$AH$3:$AH$27,MATCH(M105&N105,INDEX(Lists!$AF$3:$AF$27&Lists!$AG$3:$AG$27,),0)) -> 
K106: =INDEX(Lists!$AH$3:$AH$27,MATCH(I106&J106,INDEX(Lists!$AF$3:$AF$27&Lists!$AG$3:$AG$27,),0)) ->  | O106: =INDEX(Lists!$AH$3:$AH$27,MATCH(M106&N106,INDEX(Lists!$AF$3:$AF$27&Lists!$AG$3:$AG$27,),0)) -> 
K107: =INDEX(Lists!$AH$3:$AH$27,MATCH(I107&J107,INDEX(Lists!$AF$3:$AF$27&Lists!$AG$3:$AG$27,),0)) ->  | O107: =INDEX(Lists!$AH$3:$AH$27,MATCH(M107&N107,INDEX(Lists!$AF$3:$AF$27&Lists!$AG$3:$AG$27,),0)) -> 
K108: =INDEX(Lists!$AH$3:$AH$27,MATCH(I108&J108,INDEX(Lists!$AF$3:$AF$27&Lists!$AG$3:$AG$27,),0)) ->  | O108: =INDEX(Lists!$AH$3:$AH$27,MATCH(M108&N108,INDEX(Lists!$AF$3:$AF$27&Lists!$AG$3:$AG$27,),0)) -> 
K109: =INDEX(Lists!$AH$3:$AH$27,MATCH(I109&J109,INDEX(Lists!$AF$3:$AF$27&Lists!$AG$3:$AG$27,),0)) ->  | O109: =INDEX(Lists!$AH$3:$AH$27,MATCH(M109&N109,INDEX(Lists!$AF$3:$AF$27&Lists!$AG$3:$AG$27,),0)) -> 
K110: =INDEX(Lists!$AH$3:$AH$27,MATCH(I110&J110,INDEX(Lists!$AF$3:$AF$27&Lists!$AG$3:$AG$27,),0)) ->  | O110: =INDEX(Lists!$AH$3:$AH$27,MATCH(M110&N110,INDEX(Lists!$AF$3:$AF$27&Lists!$AG$3:$AG$27,),0)) -> 
K111: =INDEX(Lists!$AH$3:$AH$27,MATCH(I111&J111,INDEX(Lists!$AF$3:$AF$27&Lists!$AG$3:$AG$27,),0)) ->  | O111: =INDEX(Lists!$AH$3:$AH$27,MATCH(M111&N111,INDEX(Lists!$AF$3:$AF$27&Lists!$AG$3:$AG$27,),0)) -> 
K112: =INDEX(Lists!$AH$3:$AH$27,MATCH(I112&J112,INDEX(Lists!$AF$3:$AF$27&Lists!$AG$3:$AG$27,),0)) ->  | O112: =INDEX(Lists!$AH$3:$AH$27,MATCH(M112&N112,INDEX(Lists!$AF$3:$AF$27&Lists!$AG$3:$AG$27,),0)) -> 
K113: =INDEX(Lists!$AH$3:$AH$27,MATCH(I113&J113,INDEX(Lists!$AF$3:$AF$27&Lists!$AG$3:$AG$27,),0)) ->  | O113: =INDEX(Lists!$AH$3:$AH$27,MATCH(M113&N113,INDEX(Lists!$AF$3:$AF$27&Lists!$AG$3:$AG$27,),0)) -> 
K114: =INDEX(Lists!$AH$3:$AH$27,MATCH(I114&J114,INDEX(Lists!$AF$3:$AF$27&Lists!$AG$3:$AG$27,),0)) ->  | O114: =INDEX(Lists!$AH$3:$AH$27,MATCH(M114&N114,INDEX(Lists!$AF$3:$AF$27&Lists!$AG$3:$AG$27,),0)) -> 
K115: =INDEX(Lists!$AH$3:$AH$27,MATCH(I115&J115,INDEX(Lists!$AF$3:$AF$27&Lists!$AG$3:$AG$27,),0)) ->  | O115: =INDEX(Lists!$AH$3:$AH$27,MATCH(M115&N115,INDEX(Lists!$AF$3:$AF$27&Lists!$AG$3:$AG$27,),0)) -> 
K116: =INDEX(Lists!$AH$3:$AH$27,MATCH(I116&J116,INDEX(Lists!$AF$3:$AF$27&Lists!$AG$3:$AG$27,),0)) ->  | O116: =INDEX(Lists!$AH$3:$AH$27,MATCH(M116&N116,INDEX(Lists!$AF$3:$AF$27&Lists!$AG$3:$AG$27,),0)) -> 
K117: =INDEX(Lists!$AH$3:$AH$27,MATCH(I117&J117,INDEX(Lists!$AF$3:$AF$27&Lists!$AG$3:$AG$27,),0)) ->  | O117: =INDEX(Lists!$AH$3:$AH$27,MATCH(M117&N117,INDEX(Lists!$AF$3:$AF$27&Lists!$AG$3:$AG$27,),0)) -> 
K118: =INDEX(Lists!$AH$3:$AH$27,MATCH(I118&J118,INDEX(Lists!$AF$3:$AF$27&Lists!$AG$3:$AG$27,),0)) ->  | O118: =INDEX(Lists!$AH$3:$AH$27,MATCH(M118&N118,INDEX(Lists!$AF$3:$AF$27&Lists!$AG$3:$AG$27,),0)) -> 
K119: =INDEX(Lists!$AH$3:$AH$27,MATCH(I119&J119,INDEX(Lists!$AF$3:$AF$27&Lists!$AG$3:$AG$27,),0)) ->  | O119: =INDEX(Lists!$AH$3:$AH$27,MATCH(M119&N119,INDEX(Lists!$AF$3:$AF$27&Lists!$AG$3:$AG$27,),0)) -> 
K120: =INDEX(Lists!$AH$3:$AH$27,MATCH(I120&J120,INDEX(Lists!$AF$3:$AF$27&Lists!$AG$3:$AG$27,),0)) ->  | O120: =INDEX(Lists!$AH$3:$AH$27,MATCH(M120&N120,INDEX(Lists!$AF$3:$AF$27&Lists!$AG$3:$AG$27,),0)) -> 
K121: =INDEX(Lists!$AH$3:$AH$27,MATCH(I121&J121,INDEX(Lists!$AF$3:$AF$27&Lists!$AG$3:$AG$27,),0)) ->  | O121: =INDEX(Lists!$AH$3:$AH$27,MATCH(M121&N121,INDEX(Lists!$AF$3:$AF$27&Lists!$AG$3:$AG$27,),0)) -> 
K122: =INDEX(Lists!$AH$3:$AH$27,MATCH(I122&J122,INDEX(Lists!$AF$3:$AF$27&Lists!$AG$3:$AG$27,),0)) ->  | O122: =INDEX(Lists!$AH$3:$AH$27,MATCH(M122&N122,INDEX(Lists!$AF$3:$AF$27&Lists!$AG$3:$AG$27,),0)) -> 
K123: =INDEX(Lists!$AH$3:$AH$27,MATCH(I123&J123,INDEX(Lists!$AF$3:$AF$27&Lists!$AG$3:$AG$27,),0)) ->  | O123: =INDEX(Lists!$AH$3:$AH$27,MATCH(M123&N123,INDEX(Lists!$AF$3:$AF$27&Lists!$AG$3:$AG$27,),0)) -> 
K124: =INDEX(Lists!$AH$3:$AH$27,MATCH(I124&J124,INDEX(Lists!$AF$3:$AF$27&Lists!$AG$3:$AG$27,),0)) ->  | O124: =INDEX(Lists!$AH$3:$AH$27,MATCH(M124&N124,INDEX(Lists!$AF$3:$AF$27&Lists!$AG$3:$AG$27,),0)) -> 
K125: =INDEX(Lists!$AH$3:$AH$27,MATCH(I125&J125,INDEX(Lists!$AF$3:$AF$27&Lists!$AG$3:$AG$27,),0)) ->  | O125: =INDEX(Lists!$AH$3:$AH$27,MATCH(M125&N125,INDEX(Lists!$AF$3:$AF$27&Lists!$AG$3:$AG$27,),0)) -> 
K126: =INDEX(Lists!$AH$3:$AH$27,MATCH(I126&J126,INDEX(Lists!$AF$3:$AF$27&Lists!$AG$3:$AG$27,),0)) ->  | O126: =INDEX(Lists!$AH$3:$AH$27,MATCH(M126&N126,INDEX(Lists!$AF$3:$AF$27&Lists!$AG$3:$AG$27,),0)) -> 
K127: =INDEX(Lists!$AH$3:$AH$27,MATCH(I127&J127,INDEX(Lists!$AF$3:$AF$27&Lists!$AG$3:$AG$27,),0)) ->  | O127: =INDEX(Lists!$AH$3:$AH$27,MATCH(M127&N127,INDEX(Lists!$AF$3:$AF$27&Lists!$AG$3:$AG$27,),0)) -> 
K128: =INDEX(Lists!$AH$3:$AH$27,MATCH(I128&J128,INDEX(Lists!$AF$3:$AF$27&Lists!$AG$3:$AG$27,),0)) ->  | O128: =INDEX(Lists!$AH$3:$AH$27,MATCH(M128&N128,INDEX(Lists!$AF$3:$AF$27&Lists!$AG$3:$AG$27,),0)) -> 
K129: =INDEX(Lists!$AH$3:$AH$27,MATCH(I129&J129,INDEX(Lists!$AF$3:$AF$27&Lists!$AG$3:$AG$27,),0)) ->  | O129: =INDEX(Lists!$AH$3:$AH$27,MATCH(M129&N129,INDEX(Lists!$AF$3:$AF$27&Lists!$AG$3:$AG$27,),0)) -> 
K130: =INDEX(Lists!$AH$3:$AH$27,MATCH(I130&J130,INDEX(Lists!$AF$3:$AF$27&Lists!$AG$3:$AG$27,),0)) ->  | O130: =INDEX(Lists!$AH$3:$AH$27,MATCH(M130&N130,INDEX(Lists!$AF$3:$AF$27&Lists!$AG$3:$AG$27,),0)) -> 
K131: =INDEX(Lists!$AH$3:$AH$27,MATCH(I131&J131,INDEX(Lists!$AF$3:$AF$27&Lists!$AG$3:$AG$27,),0)) ->  | O131: =INDEX(Lists!$AH$3:$AH$27,MATCH(M131&N131,INDEX(Lists!$AF$3:$AF$27&Lists!$AG$3:$AG$27,),0)) -> 
A132: PLT 037 | K132: =INDEX(Lists!$AH$3:$AH$27,MATCH(I132&J132,INDEX(Lists!$AF$3:$AF$27&Lists!$AG$3:$AG$27,),0)) ->  | O132: =INDEX(Lists!$AH$3:$AH$27,MATCH(M132&N132,INDEX(Lists!$AF$3:$AF$27&Lists!$AG$3:$AG$27,),0)) -> 
A133: PLT 038 | K133: =INDEX(Lists!$AH$3:$AH$27,MATCH(I133&J133,INDEX(Lists!$AF$3:$AF$27&Lists!$AG$3:$AG$27,),0)) ->  | O133: =INDEX(Lists!$AH$3:$AH$27,MATCH(M133&N133,INDEX(Lists!$AF$3:$AF$27&Lists!$AG$3:$AG$27,),0)) -> 
A134: PLT 039 | K134: =INDEX(Lists!$AH$3:$AH$27,MATCH(I134&J134,INDEX(Lists!$AF$3:$AF$27&Lists!$AG$3:$AG$27,),0)) ->  | O134: =INDEX(Lists!$AH$3:$AH$27,MATCH(M134&N134,INDEX(Lists!$AF$3:$AF$27&Lists!$AG$3:$AG$27,),0)) -> 
K135: =INDEX(Lists!$AH$3:$AH$27,MATCH(I135&J135,INDEX(Lists!$AF$3:$AF$27&Lists!$AG$3:$AG$27,),0)) ->  | O135: =INDEX(Lists!$AH$3:$AH$27,MATCH(M135&N135,INDEX(Lists!$AF$3:$AF$27&Lists!$AG$3:$AG$27,),0)) -> 
K136: =INDEX(Lists!$AH$3:$AH$27,MATCH(I136&J136,INDEX(Lists!$AF$3:$AF$27&Lists!$AG$3:$AG$27,),0)) ->  | O136: =INDEX(Lists!$AH$3:$AH$27,MATCH(M136&N136,INDEX(Lists!$AF$3:$AF$27&Lists!$AG$3:$AG$27,),0)) ->  | P136: 2013-01-31

Sheet Risk Assessment

Sheet Classification Definitions
B1: Reporting should not be discouraged - entries must be classified correctly and all actions followed to respond to the reported issue
B3: Hazard = something that has potential to cause harm or illness (imminent threat) - cannot be fully resolved with simple action of person(s) who identified it
B5: Incident = accident or event where there was the potentail for someone to be injured
B7: Incident with Injury = accident or event where injury has occurred
B9: Incident External = accident or event where there was no liability only response/assistance provided
B11: General Report = when a report about an event or observation is made but there is no material risk to safety e.g. Low risk (likelihood and consequence)
B13: Maintenance = when a report about assets/plant/equipment is made using a WHS Document but no immenent risk to safety e.g. Low risk (likelihood and consequence)
B15: System Compliance = when a report about an event or observation when other reporting systems and/or processes have not been followed and there is no material risk to safety
B17: Provide feedback to the person raising issues and ensure that Safety Reps, Supervisors and Staff Involved are consulted and communicated with.
B19: The following stakeholders MUST be notified of certain events:
B21: Health and Safety Reps - all entries made in the Event Log (help determine and communicate classification of the issue)
B23: Return To Work Coordinator - All injuries likely to result in a claim
B25: Senior Management Group - All Notifiable Incidents and Dangerous Occurrences
B27: Claim - any medical treated injury (WorkCover or not) because all injuries of this type are potential future claims.

Sheet WHS Event Log
C1: INCIDENT DATA FROM REPORT
A2: Reference | B2: Date Reported | C2: Day | D2: Date | E2: Month | F2: Shift | G2: Report By | H2: Report Type | I2: Identification Method | J2: Cause | K2: Register Reference | L2: Person(s) Involved | M2: Description | N2: Immediate Actions Taken | O2: Risk Rating | P2: Injury Sustained | Q2: Nature | R2: Injured Persons | S2: Claim | T2: Claim Status | U2: Date Controlled | V2: Action Taken | W2: Principal Control | X2: Cost | Y2: Risk Rating | Z2: Action Time | AA2: Status | AB2: Notifiable Event | AC2: Investigation Status
A3: 2016001 | Z3: =DAYS360(B3-1,U3) -> 
A4: =SUM(A3+1) -> 2016002
A5: 2016003
A6: 2016004
A7: 2016005
A8: 2016006
A9: 2016007
A10: 2016008
A11: 2016009
A12: 2016010
A13: 2016011
A14: 2016012
A15: 2016013
A16: =SUM(A15+1) -> 2016014
A17: 2016015
A18: 2016016
A19: 2016017
A20: 2016018
A21: 2016019
A22: 2016020
A23: 2016021
A24: 2016022
A25: 2016023
A26: 2016024 | Z26: =DAYS360(B26-1,U26) -> 
A27: 2016025
A28: 2016026
A29: 2016027
A30: 2016028
A31: 2016029
A32: 2016030
A33: 2016031
A34: 2016032
A35: 2016033
A36: 2016034
A37: 2016035
A38: 2016036
A39: 2016037
A40: 2016038
A41: 2016039
A42: 2016040
A43: 2016041
A44: 2016042
A45: 2016043
A46: 2016044
A47: 2016045
A48: 2016046
A49: 2016047
A50: 2016048
A51: 2016049
A52: 2016050
A53: 2016051
A54: 2016052
A55: 2016053
A56: 2016054
A57: 2016055
A58: 2016056
A59: 2016057
A60: 2016058
A61: 2016059
A62: 2016060
A63: 2016061
A64: 2016062
A65: 2016063
A66: 2016064
A67: 2016065 | Z67: =DAYS360(B67-1,U67) -> 
A68: =SUM(A67+1) -> 2016066
A69: 2016067
A70: 2016068
A71: 2016069
A72: 2016070
A73: 2016071
A74: 2016072
A75: 2016073
A76: 2016074
A77: 2016075
A78: 2016076
A79: 2016077
A80: 2016078
A81: 2016079
A82: 2016080
A83: 2016081
A84: 2016082
A85: 2016083
A86: 2016084
A87: 2016085
A88: 2016086
A89: 2016087
A90: 2016088
A91: 2016089
A92: 2016090
A93: 2016091
A94: =SUM(A93+1) -> 2016092
A95: 2016093
A96: 2016094
A97: 2016095
A98: 2016096
A99: 2016097
A100: 2016098
A101: 2016099
A102: 2016100
A103: 2016101
A104: 2016102
A105: 2016103
A106: 2016104
A107: 2016105
A108: 2016106
A109: 2016107
A110: 2016108
A111: 2016109
A112: 2016110
A113: 2016111
A114: 2016112
A115: 2016113
A116: 2016114
A117: 2016115
A118: 2016116
A119: 2016117
A120: 2016118
A121: 2016119
A122: 2016120
A123: 2016121
A124: 2016122
A125: 2016123
A126: 2016124
A127: 2016125
A128: 2016126
A129: 2016127
A130: 2016128
A131: 2016129 | Z131: =DAYS360(B131-1,U131) -> 
A132: =SUM(A131+1) -> 2016130
A133: 2016131
A134: 2016132
A135: 2016133
A136: 2016134
A137: 2016135
A138: 2016136
A139: 2016137
A140: 2016138
A141: 2016139
A142: 2016140
A143: 2016141
A144: =SUM(A143+1) -> 2016142
A145: 2016143
A146: 2016144
A147: 2016145
A148: 2016146
A149: 2016147
A150: 2016148
A151: 2016149
A152: 2016150
A153: 2016151
A154: 2016152
A155: 2016153
A156: 2016154
A157: =SUM(A156+1) -> 2016155
A158: 2016156
A159: 2016157
A160: 2016158
A161: 2016159
A162: 2016160
A163: 2016161
A164: 2016162
A165: 2016163
A166: 2016164
A167: 2016165
A168: 2016166
A169: 2016167
A170: 2016168
A171: 2016169
A172: 2016170
A173: 2016171
A174: 2016172
A175: 2016173
A176: 2016174
A177: 2016175
A178: 2016176
A179: 2016177
A180: 2016178
A181: 2016179
A182: 2016180
A183: 2016181
A184: 2016182
A185: 2016183
A186: 2016184
A187: 2016185
A188: 2016186
A189: 2016187 | Z189: =DAYS360(B189-1,U189) -> 
A190: 2016188
A191: 2016189
A192: 2016190
A193: 2016191
A194: 2016192
A195: 2016193 | Z195: =DAYS360(B195-1,U195) -> 
A196: 2016194
A197: =SUM(A196+1) -> 2016195
A198: 2016196
A199: 2016197
A200: 2016198
... 310 more rows

Sheet Risk Matrix (hidden)
B2: Likelihood - probability
B3: Almost Certain | C3: 5 | D3: Moderate | E3: High | F3: Extreme | G3: Extreme | H3: Extreme
B4: Likely | C4: 4 | D4: Moderate | E4: High | F4: High | G4: Extreme | H4: Extreme
B5: Possible | C5: 3 | D5: Low | E5: Moderate | F5: High | G5: High | H5: Extreme
B6: Unlikely | C6: 2 | D6: Low | E6: Low | F6: Moderate | G6: High | H6: High
B7: Rare | C7: 1 | D7: Low | E7: Low | F7: Low | G7: Moderate | H7: Moderate
D8: 1 | E8: 2 | F8: 3 | G8: 4 | H8: 5
D9: Insignificant | E9: Minor | F9: Medium | G9: Major | H9: Catastrophic
F10: Consequence - possible outcome

Sheet Likelihood_Consequence Model (hidden)
B2: Likelihood Rating | C2: Guidance
B3: Almost Certain | C3: Expected to occur - greater than 80% probability - is unlikely to be predicted or prevented, or avoided.
B4: Likely | C4: Will probably occur in most cases - 60-79% probability - may show signs of occuring but may not be predicted.
B5: Possible | C5: Might occur sometime(s) - 40-59% probability - is likely to be identified prior to occuring and/or be predictable.
B6: Unlikely | C6: Could occur at some point - 20-39% probability - often predicatble.
B7: Rare | C7: May occur by exception - 0-19% probability - almost always predictable.
B9: Consequence Rating | C9: Guidance
B10: Catastrophic | C10: Worst possible outcome - Death(s) - total/significant damage/loss - long term or permanent effect with no or limited ability to recover - comprehensive failure of systems or ability to achieve goals/objectives/fufil responsibilities.
B11: Major | C11: Substantial impact - Permanent Disfigurement/Disability - signifcant/large damage/loss - medium to long term effect with limited ability to recover - large scale failure of systems or ability to achieve/satisfy multiple goals/objectives or responsibilities.
B12: Medium | C12: Limited impact - Temporary loss of capacity - moderate damage/loss - short to medium term effect/interruption to service(s) with ability to recover - limited failure of systems or ability to achieve/satisfy some goals/objectives or responsibilities.
B13: Minor | C13: Isolated impact - External medical intervention required - some damage/loss or inconvenience to service(s) - fast recovery continuity not compromised - no systems failure - potential delays in-ability to achieve/satisfy low level goals/objectives or responsibilities.
B14: Insignificant | C14: Little or no effect experienced - First aid or superficial injury - little to no loss/damage or interruption to service(s) - capacity not impacted - minor process error/fault with no system impact - achievement of goals/objectives and responsibilities not affected.

Sheet Management Report
C1: HAZARD KPI AREA | G1: Hazards YTD | H1: Closed | I1: Open
A2: Refer to RISK ASSESSMENT CRITERIA pg 5 | C2: Extreme Risks | G2: =StagingTables!$O$90 -> 0 | H2: =StagingTables!$G$98 -> 0 | I2: =SUM(G2-H2) -> 0
C4: High Risks | G4: =StagingTables!$O$88 -> 0 | H4: =StagingTables!$G$97 -> 0 | I4: =SUM(G4-H4) -> 0
C6: Moderate Risks | G6: =StagingTables!$O$86 -> 0 | H6: =StagingTables!$G$96 -> 0 | I6: =SUM(G6-H6) -> 0
C8: Low Risks | G8: =StagingTables!$O$84 -> 0 | H8: =StagingTables!$G$95 -> 0 | I8: =SUM(G8-H8) -> 0
B10: January | C10: February | D10: March | E10: April | F10: May | G10: June | H10: July | I10: August | J10: September | K10: October | L10: November | M10: December
A11: Low Risk Hazards | B11: =StagingTables!C84 -> 0 | C11: =StagingTables!D84 -> 0 | D11: =StagingTables!E84 -> 0 | E11: =StagingTables!F84 -> 0 | F11: =StagingTables!G84 -> 0 | G11: =StagingTables!H84 -> 0 | H11: =StagingTables!I84 -> 0 | I11: =StagingTables!J84 -> 0 | J11: =StagingTables!K84 -> 0 | K11: =StagingTables!L84 -> 0 | L11: =StagingTables!M84 -> 0 | M11: =StagingTables!N84 -> 0
A12: Moderate Risk Hazards | B12: =StagingTables!C86 -> 0 | C12: =StagingTables!D86 -> 0 | D12: =StagingTables!E86 -> 0 | E12: =StagingTables!F86 -> 0 | F12: =StagingTables!G86 -> 0 | G12: =StagingTables!H86 -> 0 | H12: =StagingTables!I86 -> 0 | I12: =StagingTables!J86 -> 0 | J12: =StagingTables!K86 -> 0 | K12: =StagingTables!L86 -> 0 | L12: =StagingTables!M86 -> 0 | M12: =StagingTables!N86 -> 0
A13: High Risk Hazards | B13: =StagingTables!C88 -> 0 | C13: =StagingTables!D88 -> 0 | D13: =StagingTables!E88 -> 0 | E13: =StagingTables!F88 -> 0 | F13: =StagingTables!G88 -> 0 | G13: =StagingTables!H88 -> 0 | H13: =StagingTables!I88 -> 0 | I13: =StagingTables!J88 -> 0 | J13: =StagingTables!K88 -> 0 | K13: =StagingTables!L88 -> 0 | L13: =StagingTables!M88 -> 0 | M13: =StagingTables!N88 -> 0
A14: Extreme Risk Hazards | B14: =StagingTables!C90 -> 0 | C14: =StagingTables!D90 -> 0 | D14: =StagingTables!E90 -> 0 | E14: =StagingTables!F90 -> 0 | F14: =StagingTables!G90 -> 0 | G14: =StagingTables!H90 -> 0 | H14: =StagingTables!I90 -> 0 | I14: =StagingTables!J90 -> 0 | J14: =StagingTables!K90 -> 0 | K14: =StagingTables!L90 -> 0 | L14: =StagingTables!M90 -> 0 | M14: =StagingTables!N90 -> 0
A15: The desired result is for the lowest possible level of risk to be associated with Hazards therefore analysis must be undertaken to improve effectiveness of controls.
E40: Plant Related | F40: =SUM('Site Report '!B28:B30) -> 0 | H40: Plant Use | I40: ='Site Report '!B30 -> 0
A43: Type | B43: January | C43: February | D43: March | E43: April | F43: May | G43: June | H43: July | I43: August | J43: September | K43: October | L43: November | M43: December
A44: Hazard Report | B44: =StagingTables!C$4 -> 0 | C44: =StagingTables!D$4 -> 0 | D44: =StagingTables!E$4 -> 0 | E44: =StagingTables!F$4 -> 0 | F44: =StagingTables!G$4 -> 0 | G44: =StagingTables!H$4 -> 0 | H44: =StagingTables!I$4 -> 0 | I44: =StagingTables!J$4 -> 0 | J44: =StagingTables!K$4 -> 0 | K44: =StagingTables!L$4 -> 0 | L44: =StagingTables!M$4 -> 0 | M44: =StagingTables!N$4 -> 0
A45: Incident Report | B45: =StagingTables!C$52 -> 0 | C45: =StagingTables!D$52 -> 0 | D45: =StagingTables!E$52 -> 0 | E45: =StagingTables!F$52 -> 0 | F45: =StagingTables!G$52 -> 0 | G45: =StagingTables!H$52 -> 0 | H45: =StagingTables!I$52 -> 0 | I45: =StagingTables!J$52 -> 0 | J45: =StagingTables!K$52 -> 0 | K45: =StagingTables!L$52 -> 0 | L45: =StagingTables!M$52 -> 0 | M45: =StagingTables!N$52 -> 0
A47: The aim of effective safe systems of work is to proactively identify riask to safety as Hazards prior to an event (incident) and then to monitor trend in Hazards identified (effectiveness of controls).
E79: Hazards Raised YTD | F79: ='Info Tables'!O4 -> 0 | H79: Incidents YTD | I79: ='Info Tables'!O52 -> 0
C82: KPI AREA | E82: Fiscal Year Target | G82: YTD | I82: Month @ Annualised | K82: Varience
A83: Event caused by a Hazard = | C83: Incidents | E83: 90 | G83: ='Site Report '!G3 -> 0 | H83: =+VLOOKUP(Lists!$V$3,Lists!$S$3:$T$14,2) -> 2 | I83: =SUM(G83/H83)*12 -> 0 | K83: =SUM(I83-E83) -> -90
A85: Incident Outcome resulting in aid = | C85: Injuries | E85: 20 | G85: ='Site Report '!G5 -> 0 | H85: =+VLOOKUP(Lists!$V$3,Lists!$S$3:$T$14,2) -> 2 | I85: =SUM(G85/H85)*12 -> 0 | K85: =SUM(I85-E85) -> -20
A87: Cost incurred in relation to aid provided = | C87: Claims (medical intevention) | E87: 6 | G87: ='Site Report '!G7 -> 0 | H87: =+VLOOKUP(Lists!$V$3,Lists!$S$3:$T$14,2) -> 2 | I87: =SUM(G87/H87)*12 -> 0 | K87: =SUM(I87-E87) -> -6
A89: Injuries related to physical activities = | C89: -Manual Handling | E89: 3 | G89: ='Site Report '!G9 -> 0 | H89: =+VLOOKUP(Lists!$V$3,Lists!$S$3:$T$14,2) -> 2 | I89: =SUM(G89/H89)*12 -> 0 | K89: =SUM(I89-E89) -> -3
B91: January | C91: February | D91: March | E91: April | F91: May | G91: June | H91: July | I91: August | J91: September | K91: October | L91: November | M91: December
A92: Hazard Reports | B92: =StagingTables!C$4 -> 0 | C92: =StagingTables!D$4 -> 0 | D92: =StagingTables!E$4 -> 0 | E92: =StagingTables!F$4 -> 0 | F92: =StagingTables!G$4 -> 0 | G92: =StagingTables!H$4 -> 0 | H92: =StagingTables!I$4 -> 0 | I92: =StagingTables!J$4 -> 0 | J92: =StagingTables!K$4 -> 0 | K92: =StagingTables!L$4 -> 0 | L92: =StagingTables!M$4 -> 0 | M92: =StagingTables!N$4 -> 0
A93: Incidents | B93: =StagingTables!C$52 -> 0 | C93: =StagingTables!D$52 -> 0 | D93: =StagingTables!E$52 -> 0 | E93: =StagingTables!F$52 -> 0 | F93: =StagingTables!G$52 -> 0 | G93: =StagingTables!H$52 -> 0 | H93: =StagingTables!I$52 -> 0 | I93: =StagingTables!J$52 -> 0 | J93: =StagingTables!K$52 -> 0 | K93: =StagingTables!L$52 -> 0 | L93: =StagingTables!M$52 -> 0 | M93: =StagingTables!N$52 -> 0
A94: Injuries | B94: =StagingTables!C$79 -> 0 | C94: =StagingTables!D$79 -> 0 | D94: =StagingTables!E$79 -> 0 | E94: =StagingTables!F$79 -> 0 | F94: =StagingTables!G$79 -> 0 | G94: =StagingTables!H$79 -> 0 | H94: =StagingTables!I$79 -> 0 | I94: =StagingTables!J$79 -> 0 | J94: =StagingTables!K$79 -> 0 | K94: =StagingTables!L$79 -> 0 | L94: =StagingTables!M$79 -> 0 | M94: =StagingTables!N$79 -> 0
A95: Claims | B95: =StagingTables!C$80 -> 0 | C95: =StagingTables!D$80 -> 0 | D95: =StagingTables!E$80 -> 0 | E95: =StagingTables!F$80 -> 0 | F95: =StagingTables!G$80 -> 0 | G95: =StagingTables!H$80 -> 0 | H95: =StagingTables!I$80 -> 0 | I95: =StagingTables!J$80 -> 0 | J95: =StagingTables!K$80 -> 0 | K95: =StagingTables!L$80 -> 0 | L95: =StagingTables!M$80 -> 0 | M95: =StagingTables!N$80 -> 0
A96: Notifiable Events | B96: =StagingTables!C$176 -> 0 | C96: =StagingTables!D$176 -> 0 | D96: =StagingTables!E$176 -> 0 | E96: =StagingTables!F$176 -> 0 | F96: =StagingTables!G$176 -> 0 | G96: =StagingTables!H$176 -> 0 | H96: =StagingTables!I$176 -> 0 | I96: =StagingTables!J$176 -> 0 | J96: =StagingTables!K$176 -> 0 | K96: =StagingTables!L$176 -> 0 | L96: =StagingTables!M$176 -> 0 | M96: =StagingTables!N$176 -> 0
A124: The objective of a Safety Management System is to ensure that the controls that are applied to Hazards that minimise Moderate, High and Extreme Risk and return a biase towards Low Risk Levels.
D164: RISK ASSESSMENT CRITERIA

Sheet Site Report
J1: =TODAY() -> 2016-02-03
B2: INCIDENT KPI AREA | E2: Fiscal Year Target | G2: YTD | I2: Month @ Annualised | K2: Varience
B3: Incidents | E3: 90 | G3: =B61 -> 0 | H3: =+VLOOKUP(Lists!$V$3,Lists!$S$3:$T$14,2) -> 2 | I3: =SUM(G3/H3)*12 -> 0 | K3: =SUM(I3-E3) -> -90
B5: Injuries | E5: 20 | G5: =B86 -> 0 | H5: =+VLOOKUP(Lists!$V$3,Lists!$S$3:$T$14,2) -> 2 | I5: =SUM(G5/H5)*12 -> 0 | K5: =SUM(I5-E5) -> -20
B7: Claims (medical intervention) | E7: 6 | G7: =D61 -> 0 | H7: =+VLOOKUP(Lists!$V$3,Lists!$S$3:$T$14,2) -> 2 | I7: =SUM(G7/H7)*12 -> 0 | K7: =SUM(I7-E7) -> -6
B9: -Manual Handling | E9: 3 | G9: =SUM(C20:C25) -> 0 | H9: =+VLOOKUP(Lists!$V$3,Lists!$S$3:$T$14,2) -> 2 | I9: =SUM(G9/H9)*12 -> 0 | K9: =SUM(I9-E9) -> -3
B11: January | C11: February | D11: March | E11: April | F11: May | G11: June | H11: July | I11: August | J11: September | K11: October | L11: November | M11: December
A12: Hazard Reports | B12: =StagingTables!C$4 -> 0 | C12: =StagingTables!D$4 -> 0 | D12: =StagingTables!E$4 -> 0 | E12: =StagingTables!F$4 -> 0 | F12: =StagingTables!G$4 -> 0 | G12: =StagingTables!H$4 -> 0 | H12: =StagingTables!I$4 -> 0 | I12: =StagingTables!J$4 -> 0 | J12: =StagingTables!K$4 -> 0 | K12: =StagingTables!L$4 -> 0 | L12: =StagingTables!M$4 -> 0 | M12: =StagingTables!N$4 -> 0
A13: Incidents | B13: =StagingTables!C$52 -> 0 | C13: =StagingTables!D$52 -> 0 | D13: =StagingTables!E$52 -> 0 | E13: =StagingTables!F$52 -> 0 | F13: =StagingTables!G$52 -> 0 | G13: =StagingTables!H$52 -> 0 | H13: =StagingTables!I$52 -> 0 | I13: =StagingTables!J$52 -> 0 | J13: =StagingTables!K$52 -> 0 | K13: =StagingTables!L$52 -> 0 | L13: =StagingTables!M$52 -> 0 | M13: =StagingTables!N$52 -> 0
A14: Injuries | B14: =StagingTables!C$79 -> 0 | C14: =StagingTables!D$79 -> 0 | D14: =StagingTables!E$79 -> 0 | E14: =StagingTables!F$79 -> 0 | F14: =StagingTables!G$79 -> 0 | G14: =StagingTables!H$79 -> 0 | H14: =StagingTables!I$79 -> 0 | I14: =StagingTables!J$79 -> 0 | J14: =StagingTables!K$79 -> 0 | K14: =StagingTables!L$79 -> 0 | L14: =StagingTables!M$79 -> 0 | M14: =StagingTables!N$79 -> 0
A15: Claims | B15: =StagingTables!C$80 -> 0 | C15: =StagingTables!D$80 -> 0 | D15: =StagingTables!E$80 -> 0 | E15: =StagingTables!F$80 -> 0 | F15: =StagingTables!G$80 -> 0 | G15: =StagingTables!H$80 -> 0 | H15: =StagingTables!I$80 -> 0 | I15: =StagingTables!J$80 -> 0 | J15: =StagingTables!K$80 -> 0 | K15: =StagingTables!L$80 -> 0 | L15: =StagingTables!M$80 -> 0 | M15: =StagingTables!N$80 -> 0
A16: Notifiable Events | B16: =StagingTables!C$176 -> 0 | C16: =StagingTables!D$176 -> 0 | D16: =StagingTables!E$176 -> 0 | E16: =StagingTables!F$176 -> 0 | F16: =StagingTables!G$176 -> 0 | G16: =StagingTables!H$176 -> 0 | H16: =StagingTables!I$176 -> 0 | I16: =StagingTables!J$176 -> 0 | J16: =StagingTables!K$176 -> 0 | K16: =StagingTables!L$176 -> 0 | L16: =StagingTables!M$176 -> 0 | M16: =StagingTables!N$176 -> 0
A18: Incident or Hazard Type | B18: Total | C18: Sub Total | D18: Claim
A19: Hazard Report or Other | B19: ='Info Tables'!O10 -> 0
A20: Manual Handling Lift General | B20: =StagingTables!O11 -> 0 | C20: =SUM(B20:B25) -> 0 | D20: =StagingTables!Q11 -> 0
A21: Manual Handling Push/Pull General | B21: =StagingTables!O12 -> 0 | D21: =StagingTables!Q12 -> 0
A22: Manual Handling Plant Entry | B22: =StagingTables!O13 -> 0 | D22: =StagingTables!Q13 -> 0
A23: Manual Handling Plant Exit | B23: =StagingTables!O14 -> 0 | D23: =StagingTables!Q14 -> 0
A24: Manual Handling Plant Operation | B24: =StagingTables!O15 -> 0 | D24: =StagingTables!Q15 -> 0
A25: Manual Handling Posture | B25: =StagingTables!O16 -> 0 | D25: =StagingTables!Q16 -> 0
A26: Second Party Physical | B26: =StagingTables!O17 -> 0 | C26: =SUM(B26:B27) -> 0 | D26: =StagingTables!Q17 -> 0
A27: Second Party Other | B27: =StagingTables!O18 -> 0 | D27: =StagingTables!Q18 -> 0
A28: Plant Design | B28: =StagingTables!O19 -> 0 | C28: =SUM(B28:B30) -> 0 | D28: =StagingTables!Q19 -> 0
A29: Plant/Equipment Failure | B29: =StagingTables!O20 -> 0 | D29: =StagingTables!Q20 -> 0
A30: Plant/Equipment Use | B30: =StagingTables!O21 -> 0 | D30: =StagingTables!Q21 -> 0
A31: Plant Inspection - N/A | B31: 0 | D31: 0
A32: Chemical | B32: =StagingTables!O23 -> 0 | C32: =SUM(B32:B60) -> 0 | D32: =StagingTables!Q23 -> 0
A33: Electrical | B33: =StagingTables!O24 -> 0 | D33: =StagingTables!Q24 -> 0
A34: Environment | B34: =StagingTables!O25 -> 0 | D34: =StagingTables!Q25 -> 0
A35: External - No Control | B35: =StagingTables!O26 -> 0 | D35: =StagingTables!Q26 -> 0
A36: Failure to Report - N/A | B36: =StagingTables!O27 -> 0 | D36: =StagingTables!Q27 -> 0
A37: Fall - Object | B37: =StagingTables!O28 -> 0 | D37: =StagingTables!Q28 -> 0
A38: Fall from Height - Person | B38: =StagingTables!O29 -> 0 | D38: =StagingTables!Q29 -> 0
A39: Fatigue-Human | B39: =StagingTables!O30 -> 0 | D39: =StagingTables!Q30 -> 0
A40: Furniture | B40: =StagingTables!O31 -> 0 | D40: =StagingTables!Q31 -> 0
A41: Hazardous Condition | B41: =StagingTables!O32 -> 0 | D41: =StagingTables!Q32 -> 0
A42: Hazardous Substance | B42: =StagingTables!O33 -> 0 | D42: =StagingTables!Q33 -> 0
A43: Hot Object | B43: =StagingTables!O34 -> 0 | D43: =StagingTables!Q34 -> 0
A44: Infrastructure | B44: =StagingTables!O35 -> 0 | D44: =StagingTables!Q35 -> 0
A45: Maintenance Issue | B45: =StagingTables!O36 -> 0 | D45: =StagingTables!Q36 -> 0
A46: Medical | B46: =StagingTables!O37 -> 0 | D46: =StagingTables!Q37 -> 0
A47: Negligence - N/A | B47: =StagingTables!O38 -> 0 | D47: =StagingTables!Q38 -> 0
A48: Operator Error | B48: =StagingTables!O39 -> 0 | D48: =StagingTables!Q39 -> 0
A49: Pest/Animal | B49: =StagingTables!O40 -> 0 | D49: =StagingTables!Q40 -> 0
A50: Process | B50: =StagingTables!O41 -> 0 | D50: =StagingTables!Q41 -> 0
A51: Sharps | B51: =StagingTables!O42 -> 0 | D51: =StagingTables!Q42 -> 0
A52: Slip | B52: =StagingTables!O43 -> 0 | D52: =StagingTables!Q43 -> 0
A53: Strain | B53: =StagingTables!O44 -> 0 | D53: =StagingTables!Q44 -> 0
A54: Stress | B54: =StagingTables!O45 -> 0 | D54: =StagingTables!Q45 -> 0
A55: Supervision | B55: =StagingTables!O46 -> 0 | D55: =StagingTables!Q46 -> 0
A56: Surface Condition | B56: =StagingTables!O47 -> 0 | D56: =StagingTables!Q47 -> 0
A57: Training | B57: =StagingTables!O48 -> 0 | D57: =StagingTables!Q48 -> 0
A58: Trip | B58: =StagingTables!O49 -> 0 | D58: =StagingTables!Q49 -> 0
A59: Weather | B59: =StagingTables!O50 -> 0 | D59: =StagingTables!Q50 -> 0
A60: Other | B60: =StagingTables!O51 -> 0 | D60: =StagingTables!Q51 -> 0
A61: Total Incidents, Area of Risk, Claims | B61: =SUM(B20:B60)-B19 -> 0 | C61: =SUM(C20:C60) -> 0 | D61: =SUM(D20:D60) -> 0
A63: Outcome Type | B63: Total | C63: Claim | D63: Open
A64: Amputation | B64: ='Info Tables'!O62 -> 0 | C64: ='Info Tables'!P62 -> 0 | D64: ='Info Tables'!Q62 -> 0
A65: Burns | B65: ='Info Tables'!O63 -> 0 | C65: ='Info Tables'!P63 -> 0 | D65: ='Info Tables'!Q63 -> 0
A66: Contusion/ crushing | B66: ='Info Tables'!O64 -> 0 | C66: ='Info Tables'!P64 -> 0 | D66: ='Info Tables'!Q64 -> 0
A67: Dermatitis/Eczema | B67: ='Info Tables'!O65 -> 0 | C67: ='Info Tables'!P65 -> 0 | D67: ='Info Tables'!Q65 -> 0
A68: Diorder of the Eye | B68: ='Info Tables'!O66 -> 0 | C68: ='Info Tables'!P66 -> 0 | D68: ='Info Tables'!Q66 -> 0
A69: Dislocation | B69: ='Info Tables'!O67 -> 0 | C69: ='Info Tables'!P67 -> 0 | D69: ='Info Tables'!Q67 -> 0
A70: Electric Shock | B70: ='Info Tables'!O68 -> 0 | C70: ='Info Tables'!P68 -> 0 | D70: ='Info Tables'!Q68 -> 0
A71: Fatality | B71: ='Info Tables'!O69 -> 0 | C71: ='Info Tables'!P69 -> 0 | D71: ='Info Tables'!Q69 -> 0
A72: Foreign Body | B72: ='Info Tables'!O70 -> 0 | C72: ='Info Tables'!P70 -> 0 | D72: ='Info Tables'!Q70 -> 0
A73: Fracture | B73: ='Info Tables'!O71 -> 0 | C73: ='Info Tables'!P71 -> 0 | D73: ='Info Tables'!Q71 -> 0
A74: Hernia | B74: ='Info Tables'!O72 -> 0 | C74: ='Info Tables'!P72 -> 0 | D74: ='Info Tables'!Q72 -> 0
A75: Lacerations | B75: ='Info Tables'!O73 -> 0 | C75: ='Info Tables'!P73 -> 0 | D75: ='Info Tables'!Q73 -> 0
A76: Mental Disorder | B76: ='Info Tables'!O74 -> 0 | C76: ='Info Tables'!P74 -> 0 | D76: ='Info Tables'!Q74 -> 0
A77: Multiple Injury | B77: ='Info Tables'!O75 -> 0 | C77: ='Info Tables'!P75 -> 0 | D77: ='Info Tables'!Q75 -> 0
A78: Open Wound | B78: ='Info Tables'!O76 -> 0 | C78: ='Info Tables'!P76 -> 0 | D78: ='Info Tables'!Q76 -> 0
A79: Poisoning/Toxic Effects | B79: ='Info Tables'!O76 -> 0 | C79: ='Info Tables'!P76 -> 0 | D79: ='Info Tables'!Q76 -> 0
A80: Puncture wound | B80: ='Info Tables'!O77 -> 0 | C80: ='Info Tables'!P77 -> 0 | D80: ='Info Tables'!Q77 -> 0
A81: Respiratory Condition | B81: ='Info Tables'!O78 -> 0 | C81: ='Info Tables'!P78 -> 0 | D81: ='Info Tables'!Q78 -> 0
A82: Sprains, Strains | B82: ='Info Tables'!O79 -> 0 | C82: ='Info Tables'!P79 -> 0 | D82: ='Info Tables'!Q79 -> 0
A83: Superficial Injury | B83: ='Info Tables'!O80 -> 0 | C83: ='Info Tables'!P80 -> 0 | D83: ='Info Tables'!Q80 -> 0
A84: Unspecified | B84: ='Info Tables'!O81 -> 0 | C84: ='Info Tables'!P81 -> 0 | D84: ='Info Tables'!Q81 -> 0
A85: Other | B85: ='Info Tables'!O82 -> 0 | C85: ='Info Tables'!P82 -> 0 | D85: ='Info Tables'!Q82 -> 0
A86: Totals | B86: =SUM(B64:B85) -> 0 | C86: =SUM(C64:C85) -> 0 | D86: =SUM(D64:D85) -> 0

Sheet StagingTables (hidden)
B2: Incident Type | C2: January | D2: February | E2: March | F2: April | G2: May | H2: June | I2: July | J2: August | K2: September | L2: October | M2: November | N2: December | O2: Total | P2: Sub Total | Q2: Claim
B3: General | C3: =COUNTIFS('WHS Event Log'!$E$3:$E$502,C$2,'WHS Event Log'!$H$3:$H$502,StagingTables!$B3) -> 0 | D3: =COUNTIFS('WHS Event Log'!$E$3:$E$502,D$2,'WHS Event Log'!$H$3:$H$502,StagingTables!$B3) -> 0 | E3: =COUNTIFS('WHS Event Log'!$E$3:$E$502,E$2,'WHS Event Log'!$H$3:$H$502,StagingTables!$B3) -> 0 | F3: =COUNTIFS('WHS Event Log'!$E$3:$E$502,F$2,'WHS Event Log'!$H$3:$H$502,StagingTables!$B3) -> 0 | G3: =COUNTIFS('WHS Event Log'!$E$3:$E$502,G$2,'WHS Event Log'!$H$3:$H$502,StagingTables!$B3) -> 0 | H3: =COUNTIFS('WHS Event Log'!$E$3:$E$502,H$2,'WHS Event Log'!$H$3:$H$502,StagingTables!$B3) -> 0 | I3: =COUNTIFS('WHS Event Log'!$E$3:$E$502,I$2,'WHS Event Log'!$H$3:$H$502,StagingTables!$B3) -> 0 | J3: =COUNTIFS('WHS Event Log'!$E$3:$E$502,J$2,'WHS Event Log'!$H$3:$H$502,StagingTables!$B3) -> 0 | K3: =COUNTIFS('WHS Event Log'!$E$3:$E$502,K$2,'WHS Event Log'!$H$3:$H$502,StagingTables!$B3) -> 0 | L3: =COUNTIFS('WHS Event Log'!$E$3:$E$502,L$2,'WHS Event Log'!$H$3:$H$502,StagingTables!$B3) -> 0 | M3: =COUNTIFS('WHS Event Log'!$E$3:$E$502,M$2,'WHS Event Log'!$H$3:$H$502,StagingTables!$B3) -> 0 | N3: =COUNTIFS('WHS Event Log'!$E$3:$E$502,N$2,'WHS Event Log'!$H$3:$H$502,StagingTables!$B3) -> 0 | O3: =SUM(C3:N3) -> 0 | P3: =SUM(O8:O9) -> 0 | Q3: N/A
B4: Hazard Report | C4: =COUNTIFS('WHS Event Log'!$E$3:$E$502,C$2,'WHS Event Log'!$H$3:$H$502,StagingTables!$B4) -> 0 | D4: =COUNTIFS('WHS Event Log'!$E$3:$E$502,D$2,'WHS Event Log'!$H$3:$H$502,StagingTables!$B4) -> 0 | E4: =COUNTIFS('WHS Event Log'!$E$3:$E$502,E$2,'WHS Event Log'!$H$3:$H$502,StagingTables!$B4) -> 0 | F4: =COUNTIFS('WHS Event Log'!$E$3:$E$502,F$2,'WHS Event Log'!$H$3:$H$502,StagingTables!$B4) -> 0 | G4: =COUNTIFS('WHS Event Log'!$E$3:$E$502,G$2,'WHS Event Log'!$H$3:$H$502,StagingTables!$B4) -> 0 | H4: =COUNTIFS('WHS Event Log'!$E$3:$E$502,H$2,'WHS Event Log'!$H$3:$H$502,StagingTables!$B4) -> 0 | I4: =COUNTIFS('WHS Event Log'!$E$3:$E$502,I$2,'WHS Event Log'!$H$3:$H$502,StagingTables!$B4) -> 0 | J4: =COUNTIFS('WHS Event Log'!$E$3:$E$502,J$2,'WHS Event Log'!$H$3:$H$502,StagingTables!$B4) -> 0 | K4: =COUNTIFS('WHS Event Log'!$E$3:$E$502,K$2,'WHS Event Log'!$H$3:$H$502,StagingTables!$B4) -> 0 | L4: =COUNTIFS('WHS Event Log'!$E$3:$E$502,L$2,'WHS Event Log'!$H$3:$H$502,StagingTables!$B4) -> 0 | M4: =COUNTIFS('WHS Event Log'!$E$3:$E$502,M$2,'WHS Event Log'!$H$3:$H$502,StagingTables!$B4) -> 0 | N4: =COUNTIFS('WHS Event Log'!$E$3:$E$502,N$2,'WHS Event Log'!$H$3:$H$502,StagingTables!$B4) -> 0 | O4: =SUM(C4:N4) -> 0 | Q4: N/A
B5: Maintenance | C5: =COUNTIFS('WHS Event Log'!$E$3:$E$502,C$2,'WHS Event Log'!$H$3:$H$502,StagingTables!$B5) -> 0 | D5: =COUNTIFS('WHS Event Log'!$E$3:$E$502,D$2,'WHS Event Log'!$H$3:$H$502,StagingTables!$B5) -> 0 | E5: =COUNTIFS('WHS Event Log'!$E$3:$E$502,E$2,'WHS Event Log'!$H$3:$H$502,StagingTables!$B5) -> 0 | F5: =COUNTIFS('WHS Event Log'!$E$3:$E$502,F$2,'WHS Event Log'!$H$3:$H$502,StagingTables!$B5) -> 0 | G5: =COUNTIFS('WHS Event Log'!$E$3:$E$502,G$2,'WHS Event Log'!$H$3:$H$502,StagingTables!$B5) -> 0 | H5: =COUNTIFS('WHS Event Log'!$E$3:$E$502,H$2,'WHS Event Log'!$H$3:$H$502,StagingTables!$B5) -> 0 | I5: =COUNTIFS('WHS Event Log'!$E$3:$E$502,I$2,'WHS Event Log'!$H$3:$H$502,StagingTables!$B5) -> 0 | J5: =COUNTIFS('WHS Event Log'!$E$3:$E$502,J$2,'WHS Event Log'!$H$3:$H$502,StagingTables!$B5) -> 0 | K5: =COUNTIFS('WHS Event Log'!$E$3:$E$502,K$2,'WHS Event Log'!$H$3:$H$502,StagingTables!$B5) -> 0 | L5: =COUNTIFS('WHS Event Log'!$E$3:$E$502,L$2,'WHS Event Log'!$H$3:$H$502,StagingTables!$B5) -> 0 | M5: =COUNTIFS('WHS Event Log'!$E$3:$E$502,M$2,'WHS Event Log'!$H$3:$H$502,StagingTables!$B5) -> 0 | N5: =COUNTIFS('WHS Event Log'!$E$3:$E$502,N$2,'WHS Event Log'!$H$3:$H$502,StagingTables!$B5) -> 0 | O5: =SUM(C5:N5) -> 0 | Q5: N/A
B6: System Compliance | C6: =COUNTIFS('WHS Event Log'!$E$3:$E$502,C$2,'WHS Event Log'!$H$3:$H$502,StagingTables!$B6) -> 0 | D6: =COUNTIFS('WHS Event Log'!$E$3:$E$502,D$2,'WHS Event Log'!$H$3:$H$502,StagingTables!$B6) -> 0 | E6: =COUNTIFS('WHS Event Log'!$E$3:$E$502,E$2,'WHS Event Log'!$H$3:$H$502,StagingTables!$B6) -> 0 | F6: =COUNTIFS('WHS Event Log'!$E$3:$E$502,F$2,'WHS Event Log'!$H$3:$H$502,StagingTables!$B6) -> 0 | G6: =COUNTIFS('WHS Event Log'!$E$3:$E$502,G$2,'WHS Event Log'!$H$3:$H$502,StagingTables!$B6) -> 0 | H6: =COUNTIFS('WHS Event Log'!$E$3:$E$502,H$2,'WHS Event Log'!$H$3:$H$502,StagingTables!$B6) -> 0 | I6: =COUNTIFS('WHS Event Log'!$E$3:$E$502,I$2,'WHS Event Log'!$H$3:$H$502,StagingTables!$B6) -> 0 | J6: =COUNTIFS('WHS Event Log'!$E$3:$E$502,J$2,'WHS Event Log'!$H$3:$H$502,StagingTables!$B6) -> 0 | K6: =COUNTIFS('WHS Event Log'!$E$3:$E$502,K$2,'WHS Event Log'!$H$3:$H$502,StagingTables!$B6) -> 0 | L6: =COUNTIFS('WHS Event Log'!$E$3:$E$502,L$2,'WHS Event Log'!$H$3:$H$502,StagingTables!$B6) -> 0 | M6: =COUNTIFS('WHS Event Log'!$E$3:$E$502,M$2,'WHS Event Log'!$H$3:$H$502,StagingTables!$B6) -> 0 | N6: =COUNTIFS('WHS Event Log'!$E$3:$E$502,N$2,'WHS Event Log'!$H$3:$H$502,StagingTables!$B6) -> 0 | O6: 0 | Q6: N/A
B7: Incident External | C7: =COUNTIFS('WHS Event Log'!$E$3:$E$502,C$2,'WHS Event Log'!$H$3:$H$502,StagingTables!$B7) -> 0 | D7: =COUNTIFS('WHS Event Log'!$E$3:$E$502,D$2,'WHS Event Log'!$H$3:$H$502,StagingTables!$B7) -> 0 | E7: =COUNTIFS('WHS Event Log'!$E$3:$E$502,E$2,'WHS Event Log'!$H$3:$H$502,StagingTables!$B7) -> 0 | F7: =COUNTIFS('WHS Event Log'!$E$3:$E$502,F$2,'WHS Event Log'!$H$3:$H$502,StagingTables!$B7) -> 0 | G7: =COUNTIFS('WHS Event Log'!$E$3:$E$502,G$2,'WHS Event Log'!$H$3:$H$502,StagingTables!$B7) -> 0 | H7: =COUNTIFS('WHS Event Log'!$E$3:$E$502,H$2,'WHS Event Log'!$H$3:$H$502,StagingTables!$B7) -> 0 | I7: =COUNTIFS('WHS Event Log'!$E$3:$E$502,I$2,'WHS Event Log'!$H$3:$H$502,StagingTables!$B7) -> 0 | J7: =COUNTIFS('WHS Event Log'!$E$3:$E$502,J$2,'WHS Event Log'!$H$3:$H$502,StagingTables!$B7) -> 0 | K7: =COUNTIFS('WHS Event Log'!$E$3:$E$502,K$2,'WHS Event Log'!$H$3:$H$502,StagingTables!$B7) -> 0 | L7: =COUNTIFS('WHS Event Log'!$E$3:$E$502,L$2,'WHS Event Log'!$H$3:$H$502,StagingTables!$B7) -> 0 | M7: =COUNTIFS('WHS Event Log'!$E$3:$E$502,M$2,'WHS Event Log'!$H$3:$H$502,StagingTables!$B7) -> 0 | N7: =COUNTIFS('WHS Event Log'!$E$3:$E$502,N$2,'WHS Event Log'!$H$3:$H$502,StagingTables!$B7) -> 0 | O7: 0 | Q7: N/A
B8: Incident | C8: =COUNTIFS('WHS Event Log'!$E$3:$E$502,C$2,'WHS Event Log'!$H$3:$H$502,StagingTables!$B8) -> 0 | D8: =COUNTIFS('WHS Event Log'!$E$3:$E$502,D$2,'WHS Event Log'!$H$3:$H$502,StagingTables!$B8) -> 0 | E8: =COUNTIFS('WHS Event Log'!$E$3:$E$502,E$2,'WHS Event Log'!$H$3:$H$502,StagingTables!$B8) -> 0 | F8: =COUNTIFS('WHS Event Log'!$E$3:$E$502,F$2,'WHS Event Log'!$H$3:$H$502,StagingTables!$B8) -> 0 | G8: =COUNTIFS('WHS Event Log'!$E$3:$E$502,G$2,'WHS Event Log'!$H$3:$H$502,StagingTables!$B8) -> 0 | H8: =COUNTIFS('WHS Event Log'!$E$3:$E$502,H$2,'WHS Event Log'!$H$3:$H$502,StagingTables!$B8) -> 0 | I8: =COUNTIFS('WHS Event Log'!$E$3:$E$502,I$2,'WHS Event Log'!$H$3:$H$502,StagingTables!$B8) -> 0 | J8: =COUNTIFS('WHS Event Log'!$E$3:$E$502,J$2,'WHS Event Log'!$H$3:$H$502,StagingTables!$B8) -> 0 | K8: =COUNTIFS('WHS Event Log'!$E$3:$E$502,K$2,'WHS Event Log'!$H$3:$H$502,StagingTables!$B8) -> 0 | L8: =COUNTIFS('WHS Event Log'!$E$3:$E$502,L$2,'WHS Event Log'!$H$3:$H$502,StagingTables!$B8) -> 0 | M8: =COUNTIFS('WHS Event Log'!$E$3:$E$502,M$2,'WHS Event Log'!$H$3:$H$502,StagingTables!$B8) -> 0 | N8: =COUNTIFS('WHS Event Log'!$E$3:$E$502,N$2,'WHS Event Log'!$H$3:$H$502,StagingTables!$B8) -> 0 | O8: 0 | Q8: N/A
B9: Incident with Injury(s) | C9: =COUNTIFS('WHS Event Log'!$E$3:$E$502,C$2,'WHS Event Log'!$H$3:$H$502,StagingTables!$B9) -> 0 | D9: =COUNTIFS('WHS Event Log'!$E$3:$E$502,D$2,'WHS Event Log'!$H$3:$H$502,StagingTables!$B9) -> 0 | E9: =COUNTIFS('WHS Event Log'!$E$3:$E$502,E$2,'WHS Event Log'!$H$3:$H$502,StagingTables!$B9) -> 0 | F9: =COUNTIFS('WHS Event Log'!$E$3:$E$502,F$2,'WHS Event Log'!$H$3:$H$502,StagingTables!$B9) -> 0 | G9: =COUNTIFS('WHS Event Log'!$E$3:$E$502,G$2,'WHS Event Log'!$H$3:$H$502,StagingTables!$B9) -> 0 | H9: =COUNTIFS('WHS Event Log'!$E$3:$E$502,H$2,'WHS Event Log'!$H$3:$H$502,StagingTables!$B9) -> 0 | I9: =COUNTIFS('WHS Event Log'!$E$3:$E$502,I$2,'WHS Event Log'!$H$3:$H$502,StagingTables!$B9) -> 0 | J9: =COUNTIFS('WHS Event Log'!$E$3:$E$502,J$2,'WHS Event Log'!$H$3:$H$502,StagingTables!$B9) -> 0 | K9: =COUNTIFS('WHS Event Log'!$E$3:$E$502,K$2,'WHS Event Log'!$H$3:$H$502,StagingTables!$B9) -> 0 | L9: =COUNTIFS('WHS Event Log'!$E$3:$E$502,L$2,'WHS Event Log'!$H$3:$H$502,StagingTables!$B9) -> 0 | M9: =COUNTIFS('WHS Event Log'!$E$3:$E$502,M$2,'WHS Event Log'!$H$3:$H$502,StagingTables!$B9) -> 0 | N9: =COUNTIFS('WHS Event Log'!$E$3:$E$502,N$2,'WHS Event Log'!$H$3:$H$502,StagingTables!$B9) -> 0 | O9: 0 | Q9: N/A
B10: Other Total | C10: =SUM(C3:C7) -> 0 | D10: =SUM(D3:D7) -> 0 | E10: =SUM(E3:E7) -> 0 | F10: 0 | G10: 0 | H10: 0 | I10: 0 | J10: 0 | K10: 0 | L10: 0 | M10: 0 | N10: 0 | O10: 0
B11: Manual Handling Lift General | C11: =COUNTIFS('WHS Event Log'!$E$3:$E$502,C$2,'WHS Event Log'!$J$3:$J$502,StagingTables!$B11) -> 0 | D11: =COUNTIFS('WHS Event Log'!$E$3:$E$502,D$2,'WHS Event Log'!$J$3:$J$502,StagingTables!$B11) -> 0 | E11: =COUNTIFS('WHS Event Log'!$E$3:$E$502,E$2,'WHS Event Log'!$J$3:$J$502,StagingTables!$B11) -> 0 | F11: =COUNTIFS('WHS Event Log'!$E$3:$E$502,F$2,'WHS Event Log'!$J$3:$J$502,StagingTables!$B11) -> 0 | G11: =COUNTIFS('WHS Event Log'!$E$3:$E$502,G$2,'WHS Event Log'!$J$3:$J$502,StagingTables!$B11) -> 0 | H11: =COUNTIFS('WHS Event Log'!$E$3:$E$502,H$2,'WHS Event Log'!$J$3:$J$502,StagingTables!$B11) -> 0 | I11: =COUNTIFS('WHS Event Log'!$E$3:$E$502,I$2,'WHS Event Log'!$J$3:$J$502,StagingTables!$B11) -> 0 | J11: =COUNTIFS('WHS Event Log'!$E$3:$E$502,J$2,'WHS Event Log'!$J$3:$J$502,StagingTables!$B11) -> 0 | K11: =COUNTIFS('WHS Event Log'!$E$3:$E$502,K$2,'WHS Event Log'!$J$3:$J$502,StagingTables!$B11) -> 0 | L11: =COUNTIFS('WHS Event Log'!$E$3:$E$502,L$2,'WHS Event Log'!$J$3:$J$502,StagingTables!$B11) -> 0 | M11: =COUNTIFS('WHS Event Log'!$E$3:$E$502,M$2,'WHS Event Log'!$J$3:$J$502,StagingTables!$B11) -> 0 | N11: =COUNTIFS('WHS Event Log'!$E$3:$E$502,N$2,'WHS Event Log'!$J$3:$J$502,StagingTables!$B11) -> 0 | O11: 0 | P11: =SUM(O11:O16) -> 0 | Q11: =COUNTIFS('WHS Event Log'!$J$3:$J$502,$B11,'WHS Event Log'!$S$3:$S$502,Lists!$E$3) -> 0
B12: Manual Handling Push/Pull General | C12: =COUNTIFS('WHS Event Log'!$E$3:$E$502,C$2,'WHS Event Log'!$J$3:$J$502,StagingTables!$B12) -> 0 | D12: =COUNTIFS('WHS Event Log'!$E$3:$E$502,D$2,'WHS Event Log'!$J$3:$J$502,StagingTables!$B12) -> 0 | E12: =COUNTIFS('WHS Event Log'!$E$3:$E$502,E$2,'WHS Event Log'!$J$3:$J$502,StagingTables!$B12) -> 0 | F12: =COUNTIFS('WHS Event Log'!$E$3:$E$502,F$2,'WHS Event Log'!$J$3:$J$502,StagingTables!$B12) -> 0 | G12: =COUNTIFS('WHS Event Log'!$E$3:$E$502,G$2,'WHS Event Log'!$J$3:$J$502,StagingTables!$B12) -> 0 | H12: =COUNTIFS('WHS Event Log'!$E$3:$E$502,H$2,'WHS Event Log'!$J$3:$J$502,StagingTables!$B12) -> 0 | I12: =COUNTIFS('WHS Event Log'!$E$3:$E$502,I$2,'WHS Event Log'!$J$3:$J$502,StagingTables!$B12) -> 0 | J12: =COUNTIFS('WHS Event Log'!$E$3:$E$502,J$2,'WHS Event Log'!$J$3:$J$502,StagingTables!$B12) -> 0 | K12: =COUNTIFS('WHS Event Log'!$E$3:$E$502,K$2,'WHS Event Log'!$J$3:$J$502,StagingTables!$B12) -> 0 | L12: =COUNTIFS('WHS Event Log'!$E$3:$E$502,L$2,'WHS Event Log'!$J$3:$J$502,StagingTables!$B12) -> 0 | M12: =COUNTIFS('WHS Event Log'!$E$3:$E$502,M$2,'WHS Event Log'!$J$3:$J$502,StagingTables!$B12) -> 0 | N12: =COUNTIFS('WHS Event Log'!$E$3:$E$502,N$2,'WHS Event Log'!$J$3:$J$502,StagingTables!$B12) -> 0 | O12: 0 | Q12: =COUNTIFS('WHS Event Log'!$J$3:$J$502,$B12,'WHS Event Log'!$S$3:$S$502,Lists!$E$3) -> 0
B13: Manual Handling Plant Entry | C13: =COUNTIFS('WHS Event Log'!$E$3:$E$502,C$2,'WHS Event Log'!$J$3:$J$502,StagingTables!$B13) -> 0 | D13: =COUNTIFS('WHS Event Log'!$E$3:$E$502,D$2,'WHS Event Log'!$J$3:$J$502,StagingTables!$B13) -> 0 | E13: =COUNTIFS('WHS Event Log'!$E$3:$E$502,E$2,'WHS Event Log'!$J$3:$J$502,StagingTables!$B13) -> 0 | F13: =COUNTIFS('WHS Event Log'!$E$3:$E$502,F$2,'WHS Event Log'!$J$3:$J$502,StagingTables!$B13) -> 0 | G13: =COUNTIFS('WHS Event Log'!$E$3:$E$502,G$2,'WHS Event Log'!$J$3:$J$502,StagingTables!$B13) -> 0 | H13: =COUNTIFS('WHS Event Log'!$E$3:$E$502,H$2,'WHS Event Log'!$J$3:$J$502,StagingTables!$B13) -> 0 | I13: =COUNTIFS('WHS Event Log'!$E$3:$E$502,I$2,'WHS Event Log'!$J$3:$J$502,StagingTables!$B13) -> 0 | J13: =COUNTIFS('WHS Event Log'!$E$3:$E$502,J$2,'WHS Event Log'!$J$3:$J$502,StagingTables!$B13) -> 0 | K13: =COUNTIFS('WHS Event Log'!$E$3:$E$502,K$2,'WHS Event Log'!$J$3:$J$502,StagingTables!$B13) -> 0 | L13: =COUNTIFS('WHS Event Log'!$E$3:$E$502,L$2,'WHS Event Log'!$J$3:$J$502,StagingTables!$B13) -> 0 | M13: =COUNTIFS('WHS Event Log'!$E$3:$E$502,M$2,'WHS Event Log'!$J$3:$J$502,StagingTables!$B13) -> 0 | N13: =COUNTIFS('WHS Event Log'!$E$3:$E$502,N$2,'WHS Event Log'!$J$3:$J$502,StagingTables!$B13) -> 0 | O13: 0 | Q13: =COUNTIFS('WHS Event Log'!$J$3:$J$502,$B13,'WHS Event Log'!$S$3:$S$502,Lists!$E$3) -> 0
B14: Manual Handling Plant Exit | C14: =COUNTIFS('WHS Event Log'!$E$3:$E$502,C$2,'WHS Event Log'!$J$3:$J$502,StagingTables!$B14) -> 0 | D14: =COUNTIFS('WHS Event Log'!$E$3:$E$502,D$2,'WHS Event Log'!$J$3:$J$502,StagingTables!$B14) -> 0 | E14: =COUNTIFS('WHS Event Log'!$E$3:$E$502,E$2,'WHS Event Log'!$J$3:$J$502,StagingTables!$B14) -> 0 | F14: =COUNTIFS('WHS Event Log'!$E$3:$E$502,F$2,'WHS Event Log'!$J$3:$J$502,StagingTables!$B14) -> 0 | G14: =COUNTIFS('WHS Event Log'!$E$3:$E$502,G$2,'WHS Event Log'!$J$3:$J$502,StagingTables!$B14) -> 0 | H14: =COUNTIFS('WHS Event Log'!$E$3:$E$502,H$2,'WHS Event Log'!$J$3:$J$502,StagingTables!$B14) -> 0 | I14: =COUNTIFS('WHS Event Log'!$E$3:$E$502,I$2,'WHS Event Log'!$J$3:$J$502,StagingTables!$B14) -> 0 | J14: =COUNTIFS('WHS Event Log'!$E$3:$E$502,J$2,'WHS Event Log'!$J$3:$J$502,StagingTables!$B14) -> 0 | K14: =COUNTIFS('WHS Event Log'!$E$3:$E$502,K$2,'WHS Event Log'!$J$3:$J$502,StagingTables!$B14) -> 0 | L14: =COUNTIFS('WHS Event Log'!$E$3:$E$502,L$2,'WHS Event Log'!$J$3:$J$502,StagingTables!$B14) -> 0 | M14: =COUNTIFS('WHS Event Log'!$E$3:$E$502,M$2,'WHS Event Log'!$J$3:$J$502,StagingTables!$B14) -> 0 | N14: =COUNTIFS('WHS Event Log'!$E$3:$E$502,N$2,'WHS Event Log'!$J$3:$J$502,StagingTables!$B14) -> 0 | O14: 0 | Q14: =COUNTIFS('WHS Event Log'!$J$3:$J$502,$B14,'WHS Event Log'!$S$3:$S$502,Lists!$E$3) -> 0
B15: Manual Handling Plant Operation | C15: =COUNTIFS('WHS Event Log'!$E$3:$E$502,C$2,'WHS Event Log'!$J$3:$J$502,StagingTables!$B15) -> 0 | D15: =COUNTIFS('WHS Event Log'!$E$3:$E$502,D$2,'WHS Event Log'!$J$3:$J$502,StagingTables!$B15) -> 0 | E15: =COUNTIFS('WHS Event Log'!$E$3:$E$502,E$2,'WHS Event Log'!$J$3:$J$502,StagingTables!$B15) -> 0 | F15: =COUNTIFS('WHS Event Log'!$E$3:$E$502,F$2,'WHS Event Log'!$J$3:$J$502,StagingTables!$B15) -> 0 | G15: =COUNTIFS('WHS Event Log'!$E$3:$E$502,G$2,'WHS Event Log'!$J$3:$J$502,StagingTables!$B15) -> 0 | H15: =COUNTIFS('WHS Event Log'!$E$3:$E$502,H$2,'WHS Event Log'!$J$3:$J$502,StagingTables!$B15) -> 0 | I15: =COUNTIFS('WHS Event Log'!$E$3:$E$502,I$2,'WHS Event Log'!$J$3:$J$502,StagingTables!$B15) -> 0 | J15: =COUNTIFS('WHS Event Log'!$E$3:$E$502,J$2,'WHS Event Log'!$J$3:$J$502,StagingTables!$B15) -> 0 | K15: =COUNTIFS('WHS Event Log'!$E$3:$E$502,K$2,'WHS Event Log'!$J$3:$J$502,StagingTables!$B15) -> 0 | L15: =COUNTIFS('WHS Event Log'!$E$3:$E$502,L$2,'WHS Event Log'!$J$3:$J$502,StagingTables!$B15) -> 0 | M15: =COUNTIFS('WHS Event Log'!$E$3:$E$502,M$2,'WHS Event Log'!$J$3:$J$502,StagingTables!$B15) -> 0 | N15: =COUNTIFS('WHS Event Log'!$E$3:$E$502,N$2,'WHS Event Log'!$J$3:$J$502,StagingTables!$B15) -> 0 | O15: 0 | Q15: =COUNTIFS('WHS Event Log'!$J$3:$J$502,$B15,'WHS Event Log'!$S$3:$S$502,Lists!$E$3) -> 0
B16: Manual Handling Posture | C16: =COUNTIFS('WHS Event Log'!$E$3:$E$502,C$2,'WHS Event Log'!$J$3:$J$502,StagingTables!$B16) -> 0 | D16: =COUNTIFS('WHS Event Log'!$E$3:$E$502,D$2,'WHS Event Log'!$J$3:$J$502,StagingTables!$B16) -> 0 | E16: =COUNTIFS('WHS Event Log'!$E$3:$E$502,E$2,'WHS Event Log'!$J$3:$J$502,StagingTables!$B16) -> 0 | F16: =COUNTIFS('WHS Event Log'!$E$3:$E$502,F$2,'WHS Event Log'!$J$3:$J$502,StagingTables!$B16) -> 0 | G16: =COUNTIFS('WHS Event Log'!$E$3:$E$502,G$2,'WHS Event Log'!$J$3:$J$502,StagingTables!$B16) -> 0 | H16: =COUNTIFS('WHS Event Log'!$E$3:$E$502,H$2,'WHS Event Log'!$J$3:$J$502,StagingTables!$B16) -> 0 | I16: =COUNTIFS('WHS Event Log'!$E$3:$E$502,I$2,'WHS Event Log'!$J$3:$J$502,StagingTables!$B16) -> 0 | J16: =COUNTIFS('WHS Event Log'!$E$3:$E$502,J$2,'WHS Event Log'!$J$3:$J$502,StagingTables!$B16) -> 0 | K16: =COUNTIFS('WHS Event Log'!$E$3:$E$502,K$2,'WHS Event Log'!$J$3:$J$502,StagingTables!$B16) -> 0 | L16: =COUNTIFS('WHS Event Log'!$E$3:$E$502,L$2,'WHS Event Log'!$J$3:$J$502,StagingTables!$B16) -> 0 | M16: =COUNTIFS('WHS Event Log'!$E$3:$E$502,M$2,'WHS Event Log'!$J$3:$J$502,StagingTables!$B16) -> 0 | N16: =COUNTIFS('WHS Event Log'!$E$3:$E$502,N$2,'WHS Event Log'!$J$3:$J$502,StagingTables!$B16) -> 0 | O16: 0 | Q16: =COUNTIFS('WHS Event Log'!$J$3:$J$502,$B16,'WHS Event Log'!$S$3:$S$502,Lists!$E$3) -> 0
B17: Second Party Physical | C17: =COUNTIFS('WHS Event Log'!$E$3:$E$502,C$2,'WHS Event Log'!$J$3:$J$502,StagingTables!$B17) -> 0 | D17: =COUNTIFS('WHS Event Log'!$E$3:$E$502,D$2,'WHS Event Log'!$J$3:$J$502,StagingTables!$B17) -> 0 | E17: =COUNTIFS('WHS Event Log'!$E$3:$E$502,E$2,'WHS Event Log'!$J$3:$J$502,StagingTables!$B17) -> 0 | F17: =COUNTIFS('WHS Event Log'!$E$3:$E$502,F$2,'WHS Event Log'!$J$3:$J$502,StagingTables!$B17) -> 0 | G17: =COUNTIFS('WHS Event Log'!$E$3:$E$502,G$2,'WHS Event Log'!$J$3:$J$502,StagingTables!$B17) -> 0 | H17: =COUNTIFS('WHS Event Log'!$E$3:$E$502,H$2,'WHS Event Log'!$J$3:$J$502,StagingTables!$B17) -> 0 | I17: =COUNTIFS('WHS Event Log'!$E$3:$E$502,I$2,'WHS Event Log'!$J$3:$J$502,StagingTables!$B17) -> 0 | J17: =COUNTIFS('WHS Event Log'!$E$3:$E$502,J$2,'WHS Event Log'!$J$3:$J$502,StagingTables!$B17) -> 0 | K17: =COUNTIFS('WHS Event Log'!$E$3:$E$502,K$2,'WHS Event Log'!$J$3:$J$502,StagingTables!$B17) -> 0 | L17: =COUNTIFS('WHS Event Log'!$E$3:$E$502,L$2,'WHS Event Log'!$J$3:$J$502,StagingTables!$B17) -> 0 | M17: =COUNTIFS('WHS Event Log'!$E$3:$E$502,M$2,'WHS Event Log'!$J$3:$J$502,StagingTables!$B17) -> 0 | N17: =COUNTIFS('WHS Event Log'!$E$3:$E$502,N$2,'WHS Event Log'!$J$3:$J$502,StagingTables!$B17) -> 0 | O17: 0 | P17: =SUM(O17:O18) -> 0 | Q17: =COUNTIFS('WHS Event Log'!$J$3:$J$502,$B17,'WHS Event Log'!$S$3:$S$502,Lists!$E$3) -> 0
B18: Second Party Other | C18: =COUNTIFS('WHS Event Log'!$E$3:$E$502,C$2,'WHS Event Log'!$J$3:$J$502,StagingTables!$B18) -> 0 | D18: =COUNTIFS('WHS Event Log'!$E$3:$E$502,D$2,'WHS Event Log'!$J$3:$J$502,StagingTables!$B18) -> 0 | E18: =COUNTIFS('WHS Event Log'!$E$3:$E$502,E$2,'WHS Event Log'!$J$3:$J$502,StagingTables!$B18) -> 0 | F18: =COUNTIFS('WHS Event Log'!$E$3:$E$502,F$2,'WHS Event Log'!$J$3:$J$502,StagingTables!$B18) -> 0 | G18: =COUNTIFS('WHS Event Log'!$E$3:$E$502,G$2,'WHS Event Log'!$J$3:$J$502,StagingTables!$B18) -> 0 | H18: =COUNTIFS('WHS Event Log'!$E$3:$E$502,H$2,'WHS Event Log'!$J$3:$J$502,StagingTables!$B18) -> 0 | I18: =COUNTIFS('WHS Event Log'!$E$3:$E$502,I$2,'WHS Event Log'!$J$3:$J$502,StagingTables!$B18) -> 0 | J18: =COUNTIFS('WHS Event Log'!$E$3:$E$502,J$2,'WHS Event Log'!$J$3:$J$502,StagingTables!$B18) -> 0 | K18: =COUNTIFS('WHS Event Log'!$E$3:$E$502,K$2,'WHS Event Log'!$J$3:$J$502,StagingTables!$B18) -> 0 | L18: =COUNTIFS('WHS Event Log'!$E$3:$E$502,L$2,'WHS Event Log'!$J$3:$J$502,StagingTables!$B18) -> 0 | M18: =COUNTIFS('WHS Event Log'!$E$3:$E$502,M$2,'WHS Event Log'!$J$3:$J$502,StagingTables!$B18) -> 0 | N18: =COUNTIFS('WHS Event Log'!$E$3:$E$502,N$2,'WHS Event Log'!$J$3:$J$502,StagingTables!$B18) -> 0 | O18: 0 | Q18: =COUNTIFS('WHS Event Log'!$J$3:$J$502,$B18,'WHS Event Log'!$S$3:$S$502,Lists!$E$3) -> 0
B19: Plant Design | C19: =COUNTIFS('WHS Event Log'!$E$3:$E$502,C$2,'WHS Event Log'!$J$3:$J$502,StagingTables!$B19) -> 0 | D19: =COUNTIFS('WHS Event Log'!$E$3:$E$502,D$2,'WHS Event Log'!$J$3:$J$502,StagingTables!$B19) -> 0 | E19: =COUNTIFS('WHS Event Log'!$E$3:$E$502,E$2,'WHS Event Log'!$J$3:$J$502,StagingTables!$B19) -> 0 | F19: =COUNTIFS('WHS Event Log'!$E$3:$E$502,F$2,'WHS Event Log'!$J$3:$J$502,StagingTables!$B19) -> 0 | G19: =COUNTIFS('WHS Event Log'!$E$3:$E$502,G$2,'WHS Event Log'!$J$3:$J$502,StagingTables!$B19) -> 0 | H19: =COUNTIFS('WHS Event Log'!$E$3:$E$502,H$2,'WHS Event Log'!$J$3:$J$502,StagingTables!$B19) -> 0 | I19: =COUNTIFS('WHS Event Log'!$E$3:$E$502,I$2,'WHS Event Log'!$J$3:$J$502,StagingTables!$B19) -> 0 | J19: =COUNTIFS('WHS Event Log'!$E$3:$E$502,J$2,'WHS Event Log'!$J$3:$J$502,StagingTables!$B19) -> 0 | K19: =COUNTIFS('WHS Event Log'!$E$3:$E$502,K$2,'WHS Event Log'!$J$3:$J$502,StagingTables!$B19) -> 0 | L19: =COUNTIFS('WHS Event Log'!$E$3:$E$502,L$2,'WHS Event Log'!$J$3:$J$502,StagingTables!$B19) -> 0 | M19: =COUNTIFS('WHS Event Log'!$E$3:$E$502,M$2,'WHS Event Log'!$J$3:$J$502,StagingTables!$B19) -> 0 | N19: =COUNTIFS('WHS Event Log'!$E$3:$E$502,N$2,'WHS Event Log'!$J$3:$J$502,StagingTables!$B19) -> 0 | O19: =SUM(C19:N19) -> 0 | P19: =SUM(O19:O22) -> 0 | Q19: =COUNTIFS('WHS Event Log'!$J$3:$J$502,$B19,'WHS Event Log'!$S$3:$S$502,Lists!$E$3) -> 0
B20: Plant/Equipment Failure | C20: =COUNTIFS('WHS Event Log'!$E$3:$E$502,C$2,'WHS Event Log'!$J$3:$J$502,StagingTables!$B20) -> 0 | D20: =COUNTIFS('WHS Event Log'!$E$3:$E$502,D$2,'WHS Event Log'!$J$3:$J$502,StagingTables!$B20) -> 0 | E20: =COUNTIFS('WHS Event Log'!$E$3:$E$502,E$2,'WHS Event Log'!$J$3:$J$502,StagingTables!$B20) -> 0 | F20: =COUNTIFS('WHS Event Log'!$E$3:$E$502,F$2,'WHS Event Log'!$J$3:$J$502,StagingTables!$B20) -> 0 | G20: =COUNTIFS('WHS Event Log'!$E$3:$E$502,G$2,'WHS Event Log'!$J$3:$J$502,StagingTables!$B20) -> 0 | H20: =COUNTIFS('WHS Event Log'!$E$3:$E$502,H$2,'WHS Event Log'!$J$3:$J$502,StagingTables!$B20) -> 0 | I20: =COUNTIFS('WHS Event Log'!$E$3:$E$502,I$2,'WHS Event Log'!$J$3:$J$502,StagingTables!$B20) -> 0 | J20: =COUNTIFS('WHS Event Log'!$E$3:$E$502,J$2,'WHS Event Log'!$J$3:$J$502,StagingTables!$B20) -> 0 | K20: =COUNTIFS('WHS Event Log'!$E$3:$E$502,K$2,'WHS Event Log'!$J$3:$J$502,StagingTables!$B20) -> 0 | L20: =COUNTIFS('WHS Event Log'!$E$3:$E$502,L$2,'WHS Event Log'!$J$3:$J$502,StagingTables!$B20) -> 0 | M20: =COUNTIFS('WHS Event Log'!$E$3:$E$502,M$2,'WHS Event Log'!$J$3:$J$502,StagingTables!$B20) -> 0 | N20: =COUNTIFS('WHS Event Log'!$E$3:$E$502,N$2,'WHS Event Log'!$J$3:$J$502,StagingTables!$B20) -> 0 | O20: =SUM(C20:N20) -> 0 | Q20: =COUNTIFS('WHS Event Log'!$J$3:$J$502,$B20,'WHS Event Log'!$S$3:$S$502,Lists!$E$3) -> 0
B21: Plant/Equipment Use | C21: =COUNTIFS('WHS Event Log'!$E$3:$E$502,C$2,'WHS Event Log'!$J$3:$J$502,StagingTables!$B21) -> 0 | D21: =COUNTIFS('WHS Event Log'!$E$3:$E$502,D$2,'WHS Event Log'!$J$3:$J$502,StagingTables!$B21) -> 0 | E21: =COUNTIFS('WHS Event Log'!$E$3:$E$502,E$2,'WHS Event Log'!$J$3:$J$502,StagingTables!$B21) -> 0 | F21: =COUNTIFS('WHS Event Log'!$E$3:$E$502,F$2,'WHS Event Log'!$J$3:$J$502,StagingTables!$B21) -> 0 | G21: =COUNTIFS('WHS Event Log'!$E$3:$E$502,G$2,'WHS Event Log'!$J$3:$J$502,StagingTables!$B21) -> 0 | H21: =COUNTIFS('WHS Event Log'!$E$3:$E$502,H$2,'WHS Event Log'!$J$3:$J$502,StagingTables!$B21) -> 0 | I21: =COUNTIFS('WHS Event Log'!$E$3:$E$502,I$2,'WHS Event Log'!$J$3:$J$502,StagingTables!$B21) -> 0 | J21: =COUNTIFS('WHS Event Log'!$E$3:$E$502,J$2,'WHS Event Log'!$J$3:$J$502,StagingTables!$B21) -> 0 | K21: =COUNTIFS('WHS Event Log'!$E$3:$E$502,K$2,'WHS Event Log'!$J$3:$J$502,StagingTables!$B21) -> 0 | L21: =COUNTIFS('WHS Event Log'!$E$3:$E$502,L$2,'WHS Event Log'!$J$3:$J$502,StagingTables!$B21) -> 0 | M21: =COUNTIFS('WHS Event Log'!$E$3:$E$502,M$2,'WHS Event Log'!$J$3:$J$502,StagingTables!$B21) -> 0 | N21: =COUNTIFS('WHS Event Log'!$E$3:$E$502,N$2,'WHS Event Log'!$J$3:$J$502,StagingTables!$B21) -> 0 | O21: =SUM(C21:N21) -> 0 | Q21: =COUNTIFS('WHS Event Log'!$J$3:$J$502,$B21,'WHS Event Log'!$S$3:$S$502,Lists!$E$3) -> 0
B22: Plant Inspection | C22: =COUNTIFS('WHS Event Log'!$E$3:$E$502,C$2,'WHS Event Log'!$J$3:$J$502,StagingTables!$B22) -> 0 | D22: =COUNTIFS('WHS Event Log'!$E$3:$E$502,D$2,'WHS Event Log'!$J$3:$J$502,StagingTables!$B22) -> 0 | E22: =COUNTIFS('WHS Event Log'!$E$3:$E$502,E$2,'WHS Event Log'!$J$3:$J$502,StagingTables!$B22) -> 0 | F22: =COUNTIFS('WHS Event Log'!$E$3:$E$502,F$2,'WHS Event Log'!$J$3:$J$502,StagingTables!$B22) -> 0 | G22: =COUNTIFS('WHS Event Log'!$E$3:$E$502,G$2,'WHS Event Log'!$J$3:$J$502,StagingTables!$B22) -> 0 | H22: =COUNTIFS('WHS Event Log'!$E$3:$E$502,H$2,'WHS Event Log'!$J$3:$J$502,StagingTables!$B22) -> 0 | I22: =COUNTIFS('WHS Event Log'!$E$3:$E$502,I$2,'WHS Event Log'!$J$3:$J$502,StagingTables!$B22) -> 0 | J22: =COUNTIFS('WHS Event Log'!$E$3:$E$502,J$2,'WHS Event Log'!$J$3:$J$502,StagingTables!$B22) -> 0 | K22: =COUNTIFS('WHS Event Log'!$E$3:$E$502,K$2,'WHS Event Log'!$J$3:$J$502,StagingTables!$B22) -> 0 | L22: =COUNTIFS('WHS Event Log'!$E$3:$E$502,L$2,'WHS Event Log'!$J$3:$J$502,StagingTables!$B22) -> 0 | M22: =COUNTIFS('WHS Event Log'!$E$3:$E$502,M$2,'WHS Event Log'!$J$3:$J$502,StagingTables!$B22) -> 0 | N22: =COUNTIFS('WHS Event Log'!$E$3:$E$502,N$2,'WHS Event Log'!$J$3:$J$502,StagingTables!$B22) -> 0 | O22: =SUM(C22:N22) -> 0 | Q22: =COUNTIFS('WHS Event Log'!$J$3:$J$502,$B22,'WHS Event Log'!$S$3:$S$502,Lists!$E$3) -> 0
B23: Chemical | C23: =COUNTIFS('WHS Event Log'!$E$3:$E$502,C$2,'WHS Event Log'!$J$3:$J$502,StagingTables!$B23) -> 0 | D23: =COUNTIFS('WHS Event Log'!$E$3:$E$502,D$2,'WHS Event Log'!$J$3:$J$502,StagingTables!$B23) -> 0 | E23: =COUNTIFS('WHS Event Log'!$E$3:$E$502,E$2,'WHS Event Log'!$J$3:$J$502,StagingTables!$B23) -> 0 | F23: =COUNTIFS('WHS Event Log'!$E$3:$E$502,F$2,'WHS Event Log'!$J$3:$J$502,StagingTables!$B23) -> 0 | G23: =COUNTIFS('WHS Event Log'!$E$3:$E$502,G$2,'WHS Event Log'!$J$3:$J$502,StagingTables!$B23) -> 0 | H23: =COUNTIFS('WHS Event Log'!$E$3:$E$502,H$2,'WHS Event Log'!$J$3:$J$502,StagingTables!$B23) -> 0 | I23: =COUNTIFS('WHS Event Log'!$E$3:$E$502,I$2,'WHS Event Log'!$J$3:$J$502,StagingTables!$B23) -> 0 | J23: =COUNTIFS('WHS Event Log'!$E$3:$E$502,J$2,'WHS Event Log'!$J$3:$J$502,StagingTables!$B23) -> 0 | K23: =COUNTIFS('WHS Event Log'!$E$3:$E$502,K$2,'WHS Event Log'!$J$3:$J$502,StagingTables!$B23) -> 0 | L23: =COUNTIFS('WHS Event Log'!$E$3:$E$502,L$2,'WHS Event Log'!$J$3:$J$502,StagingTables!$B23) -> 0 | M23: =COUNTIFS('WHS Event Log'!$E$3:$E$502,M$2,'WHS Event Log'!$J$3:$J$502,StagingTables!$B23) -> 0 | N23: =COUNTIFS('WHS Event Log'!$E$3:$E$502,N$2,'WHS Event Log'!$J$3:$J$502,StagingTables!$B23) -> 0 | O23: 0 | P23: =SUM(N23:O51) -> 0 | Q23: =COUNTIFS('WHS Event Log'!$J$3:$J$502,$B23,'WHS Event Log'!$S$3:$S$502,Lists!$E$3) -> 0
B24: Electrical | C24: =COUNTIFS('WHS Event Log'!$E$3:$E$502,C$2,'WHS Event Log'!$J$3:$J$502,StagingTables!$B24) -> 0 | D24: =COUNTIFS('WHS Event Log'!$E$3:$E$502,D$2,'WHS Event Log'!$J$3:$J$502,StagingTables!$B24) -> 0 | E24: =COUNTIFS('WHS Event Log'!$E$3:$E$502,E$2,'WHS Event Log'!$J$3:$J$502,StagingTables!$B24) -> 0 | F24: =COUNTIFS('WHS Event Log'!$E$3:$E$502,F$2,'WHS Event Log'!$J$3:$J$502,StagingTables!$B24) -> 0 | G24: =COUNTIFS('WHS Event Log'!$E$3:$E$502,G$2,'WHS Event Log'!$J$3:$J$502,StagingTables!$B24) -> 0 | H24: =COUNTIFS('WHS Event Log'!$E$3:$E$502,H$2,'WHS Event Log'!$J$3:$J$502,StagingTables!$B24) -> 0 | I24: =COUNTIFS('WHS Event Log'!$E$3:$E$502,I$2,'WHS Event Log'!$J$3:$J$502,StagingTables!$B24) -> 0 | J24: =COUNTIFS('WHS Event Log'!$E$3:$E$502,J$2,'WHS Event Log'!$J$3:$J$502,StagingTables!$B24) -> 0 | K24: =COUNTIFS('WHS Event Log'!$E$3:$E$502,K$2,'WHS Event Log'!$J$3:$J$502,StagingTables!$B24) -> 0 | L24: =COUNTIFS('WHS Event Log'!$E$3:$E$502,L$2,'WHS Event Log'!$J$3:$J$502,StagingTables!$B24) -> 0 | M24: =COUNTIFS('WHS Event Log'!$E$3:$E$502,M$2,'WHS Event Log'!$J$3:$J$502,StagingTables!$B24) -> 0 | N24: =COUNTIFS('WHS Event Log'!$E$3:$E$502,N$2,'WHS Event Log'!$J$3:$J$502,StagingTables!$B24) -> 0 | O24: 0 | Q24: =COUNTIFS('WHS Event Log'!$J$3:$J$502,$B24,'WHS Event Log'!$S$3:$S$502,Lists!$E$3) -> 0
B25: Environment | C25: =COUNTIFS('WHS Event Log'!$E$3:$E$502,C$2,'WHS Event Log'!$J$3:$J$502,StagingTables!$B25) -> 0 | D25: =COUNTIFS('WHS Event Log'!$E$3:$E$502,D$2,'WHS Event Log'!$J$3:$J$502,StagingTables!$B25) -> 0 | E25: =COUNTIFS('WHS Event Log'!$E$3:$E$502,E$2,'WHS Event Log'!$J$3:$J$502,StagingTables!$B25) -> 0 | F25: =COUNTIFS('WHS Event Log'!$E$3:$E$502,F$2,'WHS Event Log'!$J$3:$J$502,StagingTables!$B25) -> 0 | G25: =COUNTIFS('WHS Event Log'!$E$3:$E$502,G$2,'WHS Event Log'!$J$3:$J$502,StagingTables!$B25) -> 0 | H25: =COUNTIFS('WHS Event Log'!$E$3:$E$502,H$2,'WHS Event Log'!$J$3:$J$502,StagingTables!$B25) -> 0 | I25: =COUNTIFS('WHS Event Log'!$E$3:$E$502,I$2,'WHS Event Log'!$J$3:$J$502,StagingTables!$B25) -> 0 | J25: =COUNTIFS('WHS Event Log'!$E$3:$E$502,J$2,'WHS Event Log'!$J$3:$J$502,StagingTables!$B25) -> 0 | K25: =COUNTIFS('WHS Event Log'!$E$3:$E$502,K$2,'WHS Event Log'!$J$3:$J$502,StagingTables!$B25) -> 0 | L25: =COUNTIFS('WHS Event Log'!$E$3:$E$502,L$2,'WHS Event Log'!$J$3:$J$502,StagingTables!$B25) -> 0 | M25: =COUNTIFS('WHS Event Log'!$E$3:$E$502,M$2,'WHS Event Log'!$J$3:$J$502,StagingTables!$B25) -> 0 | N25: =COUNTIFS('WHS Event Log'!$E$3:$E$502,N$2,'WHS Event Log'!$J$3:$J$502,StagingTables!$B25) -> 0 | O25: =SUM(C25:N25) -> 0 | Q25: =COUNTIFS('WHS Event Log'!$J$3:$J$502,$B25,'WHS Event Log'!$S$3:$S$502,Lists!$E$3) -> 0
B26: External - No Control | C26: =COUNTIFS('WHS Event Log'!$E$3:$E$502,C$2,'WHS Event Log'!$J$3:$J$502,StagingTables!$B26) -> 0 | D26: =COUNTIFS('WHS Event Log'!$E$3:$E$502,D$2,'WHS Event Log'!$J$3:$J$502,StagingTables!$B26) -> 0 | E26: =COUNTIFS('WHS Event Log'!$E$3:$E$502,E$2,'WHS Event Log'!$J$3:$J$502,StagingTables!$B26) -> 0 | F26: =COUNTIFS('WHS Event Log'!$E$3:$E$502,F$2,'WHS Event Log'!$J$3:$J$502,StagingTables!$B26) -> 0 | G26: =COUNTIFS('WHS Event Log'!$E$3:$E$502,G$2,'WHS Event Log'!$J$3:$J$502,StagingTables!$B26) -> 0 | H26: =COUNTIFS('WHS Event Log'!$E$3:$E$502,H$2,'WHS Event Log'!$J$3:$J$502,StagingTables!$B26) -> 0 | I26: =COUNTIFS('WHS Event Log'!$E$3:$E$502,I$2,'WHS Event Log'!$J$3:$J$502,StagingTables!$B26) -> 0 | J26: =COUNTIFS('WHS Event Log'!$E$3:$E$502,J$2,'WHS Event Log'!$J$3:$J$502,StagingTables!$B26) -> 0 | K26: =COUNTIFS('WHS Event Log'!$E$3:$E$502,K$2,'WHS Event Log'!$J$3:$J$502,StagingTables!$B26) -> 0 | L26: =COUNTIFS('WHS Event Log'!$E$3:$E$502,L$2,'WHS Event Log'!$J$3:$J$502,StagingTables!$B26) -> 0 | M26: =COUNTIFS('WHS Event Log'!$E$3:$E$502,M$2,'WHS Event Log'!$J$3:$J$502,StagingTables!$B26) -> 0 | N26: =COUNTIFS('WHS Event Log'!$E$3:$E$502,N$2,'WHS Event Log'!$J$3:$J$502,StagingTables!$B26) -> 0 | O26: =SUM(C26:N26) -> 0 | Q26: =COUNTIFS('WHS Event Log'!$J$3:$J$502,$B26,'WHS Event Log'!$S$3:$S$502,Lists!$E$3) -> 0
B27: Failure to Report | C27: =COUNTIFS('WHS Event Log'!$E$3:$E$502,C$2,'WHS Event Log'!$J$3:$J$502,StagingTables!$B27) -> 0 | D27: =COUNTIFS('WHS Event Log'!$E$3:$E$502,D$2,'WHS Event Log'!$J$3:$J$502,StagingTables!$B27) -> 0 | E27: =COUNTIFS('WHS Event Log'!$E$3:$E$502,E$2,'WHS Event Log'!$J$3:$J$502,StagingTables!$B27) -> 0 | F27: =COUNTIFS('WHS Event Log'!$E$3:$E$502,F$2,'WHS Event Log'!$J$3:$J$502,StagingTables!$B27) -> 0 | G27: =COUNTIFS('WHS Event Log'!$E$3:$E$502,G$2,'WHS Event Log'!$J$3:$J$502,StagingTables!$B27) -> 0 | H27: =COUNTIFS('WHS Event Log'!$E$3:$E$502,H$2,'WHS Event Log'!$J$3:$J$502,StagingTables!$B27) -> 0 | I27: =COUNTIFS('WHS Event Log'!$E$3:$E$502,I$2,'WHS Event Log'!$J$3:$J$502,StagingTables!$B27) -> 0 | J27: =COUNTIFS('WHS Event Log'!$E$3:$E$502,J$2,'WHS Event Log'!$J$3:$J$502,StagingTables!$B27) -> 0 | K27: =COUNTIFS('WHS Event Log'!$E$3:$E$502,K$2,'WHS Event Log'!$J$3:$J$502,StagingTables!$B27) -> 0 | L27: =COUNTIFS('WHS Event Log'!$E$3:$E$502,L$2,'WHS Event Log'!$J$3:$J$502,StagingTables!$B27) -> 0 | M27: =COUNTIFS('WHS Event Log'!$E$3:$E$502,M$2,'WHS Event Log'!$J$3:$J$502,StagingTables!$B27) -> 0 | N27: =COUNTIFS('WHS Event Log'!$E$3:$E$502,N$2,'WHS Event Log'!$J$3:$J$502,StagingTables!$B27) -> 0 | O27: =SUM(C27:N27) -> 0 | Q27: =COUNTIFS('WHS Event Log'!$J$3:$J$502,$B27,'WHS Event Log'!$S$3:$S$502,Lists!$E$3) -> 0
B28: Fall - Object | C28: =COUNTIFS('WHS Event Log'!$E$3:$E$502,C$2,'WHS Event Log'!$J$3:$J$502,StagingTables!$B28) -> 0 | D28: =COUNTIFS('WHS Event Log'!$E$3:$E$502,D$2,'WHS Event Log'!$J$3:$J$502,StagingTables!$B28) -> 0 | E28: =COUNTIFS('WHS Event Log'!$E$3:$E$502,E$2,'WHS Event Log'!$J$3:$J$502,StagingTables!$B28) -> 0 | F28: =COUNTIFS('WHS Event Log'!$E$3:$E$502,F$2,'WHS Event Log'!$J$3:$J$502,StagingTables!$B28) -> 0 | G28: =COUNTIFS('WHS Event Log'!$E$3:$E$502,G$2,'WHS Event Log'!$J$3:$J$502,StagingTables!$B28) -> 0 | H28: =COUNTIFS('WHS Event Log'!$E$3:$E$502,H$2,'WHS Event Log'!$J$3:$J$502,StagingTables!$B28) -> 0 | I28: =COUNTIFS('WHS Event Log'!$E$3:$E$502,I$2,'WHS Event Log'!$J$3:$J$502,StagingTables!$B28) -> 0 | J28: =COUNTIFS('WHS Event Log'!$E$3:$E$502,J$2,'WHS Event Log'!$J$3:$J$502,StagingTables!$B28) -> 0 | K28: =COUNTIFS('WHS Event Log'!$E$3:$E$502,K$2,'WHS Event Log'!$J$3:$J$502,StagingTables!$B28) -> 0 | L28: =COUNTIFS('WHS Event Log'!$E$3:$E$502,L$2,'WHS Event Log'!$J$3:$J$502,StagingTables!$B28) -> 0 | M28: =COUNTIFS('WHS Event Log'!$E$3:$E$502,M$2,'WHS Event Log'!$J$3:$J$502,StagingTables!$B28) -> 0 | N28: =COUNTIFS('WHS Event Log'!$E$3:$E$502,N$2,'WHS Event Log'!$J$3:$J$502,StagingTables!$B28) -> 0 | O28: 0 | Q28: =COUNTIFS('WHS Event Log'!$J$3:$J$502,$B28,'WHS Event Log'!$S$3:$S$502,Lists!$E$3) -> 0
B29: Fall from Height - Person | C29: =COUNTIFS('WHS Event Log'!$E$3:$E$502,C$2,'WHS Event Log'!$J$3:$J$502,StagingTables!$B29) -> 0 | D29: =COUNTIFS('WHS Event Log'!$E$3:$E$502,D$2,'WHS Event Log'!$J$3:$J$502,StagingTables!$B29) -> 0 | E29: =COUNTIFS('WHS Event Log'!$E$3:$E$502,E$2,'WHS Event Log'!$J$3:$J$502,StagingTables!$B29) -> 0 | F29: =COUNTIFS('WHS Event Log'!$E$3:$E$502,F$2,'WHS Event Log'!$J$3:$J$502,StagingTables!$B29) -> 0 | G29: =COUNTIFS('WHS Event Log'!$E$3:$E$502,G$2,'WHS Event Log'!$J$3:$J$502,StagingTables!$B29) -> 0 | H29: =COUNTIFS('WHS Event Log'!$E$3:$E$502,H$2,'WHS Event Log'!$J$3:$J$502,StagingTables!$B29) -> 0 | I29: =COUNTIFS('WHS Event Log'!$E$3:$E$502,I$2,'WHS Event Log'!$J$3:$J$502,StagingTables!$B29) -> 0 | J29: =COUNTIFS('WHS Event Log'!$E$3:$E$502,J$2,'WHS Event Log'!$J$3:$J$502,StagingTables!$B29) -> 0 | K29: =COUNTIFS('WHS Event Log'!$E$3:$E$502,K$2,'WHS Event Log'!$J$3:$J$502,StagingTables!$B29) -> 0 | L29: =COUNTIFS('WHS Event Log'!$E$3:$E$502,L$2,'WHS Event Log'!$J$3:$J$502,StagingTables!$B29) -> 0 | M29: =COUNTIFS('WHS Event Log'!$E$3:$E$502,M$2,'WHS Event Log'!$J$3:$J$502,StagingTables!$B29) -> 0 | N29: =COUNTIFS('WHS Event Log'!$E$3:$E$502,N$2,'WHS Event Log'!$J$3:$J$502,StagingTables!$B29) -> 0 | O29: 0 | Q29: =COUNTIFS('WHS Event Log'!$J$3:$J$502,$B29,'WHS Event Log'!$S$3:$S$502,Lists!$E$3) -> 0
B30: Fatigue-Human | C30: =COUNTIFS('WHS Event Log'!$E$3:$E$502,C$2,'WHS Event Log'!$J$3:$J$502,StagingTables!$B30) -> 0 | D30: =COUNTIFS('WHS Event Log'!$E$3:$E$502,D$2,'WHS Event Log'!$J$3:$J$502,StagingTables!$B30) -> 0 | E30: =COUNTIFS('WHS Event Log'!$E$3:$E$502,E$2,'WHS Event Log'!$J$3:$J$502,StagingTables!$B30) -> 0 | F30: =COUNTIFS('WHS Event Log'!$E$3:$E$502,F$2,'WHS Event Log'!$J$3:$J$502,StagingTables!$B30) -> 0 | G30: =COUNTIFS('WHS Event Log'!$E$3:$E$502,G$2,'WHS Event Log'!$J$3:$J$502,StagingTables!$B30) -> 0 | H30: =COUNTIFS('WHS Event Log'!$E$3:$E$502,H$2,'WHS Event Log'!$J$3:$J$502,StagingTables!$B30) -> 0 | I30: =COUNTIFS('WHS Event Log'!$E$3:$E$502,I$2,'WHS Event Log'!$J$3:$J$502,StagingTables!$B30) -> 0 | J30: =COUNTIFS('WHS Event Log'!$E$3:$E$502,J$2,'WHS Event Log'!$J$3:$J$502,StagingTables!$B30) -> 0 | K30: =COUNTIFS('WHS Event Log'!$E$3:$E$502,K$2,'WHS Event Log'!$J$3:$J$502,StagingTables!$B30) -> 0 | L30: =COUNTIFS('WHS Event Log'!$E$3:$E$502,L$2,'WHS Event Log'!$J$3:$J$502,StagingTables!$B30) -> 0 | M30: =COUNTIFS('WHS Event Log'!$E$3:$E$502,M$2,'WHS Event Log'!$J$3:$J$502,StagingTables!$B30) -> 0 | N30: =COUNTIFS('WHS Event Log'!$E$3:$E$502,N$2,'WHS Event Log'!$J$3:$J$502,StagingTables!$B30) -> 0 | O30: 0 | Q30: =COUNTIFS('WHS Event Log'!$J$3:$J$502,$B30,'WHS Event Log'!$S$3:$S$502,Lists!$E$3) -> 0
B31: Furniture | C31: =COUNTIFS('WHS Event Log'!$E$3:$E$502,C$2,'WHS Event Log'!$J$3:$J$502,StagingTables!$B31) -> 0 | D31: =COUNTIFS('WHS Event Log'!$E$3:$E$502,D$2,'WHS Event Log'!$J$3:$J$502,StagingTables!$B31) -> 0 | E31: =COUNTIFS('WHS Event Log'!$E$3:$E$502,E$2,'WHS Event Log'!$J$3:$J$502,StagingTables!$B31) -> 0 | F31: =COUNTIFS('WHS Event Log'!$E$3:$E$502,F$2,'WHS Event Log'!$J$3:$J$502,StagingTables!$B31) -> 0 | G31: =COUNTIFS('WHS Event Log'!$E$3:$E$502,G$2,'WHS Event Log'!$J$3:$J$502,StagingTables!$B31) -> 0 | H31: =COUNTIFS('WHS Event Log'!$E$3:$E$502,H$2,'WHS Event Log'!$J$3:$J$502,StagingTables!$B31) -> 0 | I31: =COUNTIFS('WHS Event Log'!$E$3:$E$502,I$2,'WHS Event Log'!$J$3:$J$502,StagingTables!$B31) -> 0 | J31: =COUNTIFS('WHS Event Log'!$E$3:$E$502,J$2,'WHS Event Log'!$J$3:$J$502,StagingTables!$B31) -> 0 | K31: =COUNTIFS('WHS Event Log'!$E$3:$E$502,K$2,'WHS Event Log'!$J$3:$J$502,StagingTables!$B31) -> 0 | L31: =COUNTIFS('WHS Event Log'!$E$3:$E$502,L$2,'WHS Event Log'!$J$3:$J$502,StagingTables!$B31) -> 0 | M31: =COUNTIFS('WHS Event Log'!$E$3:$E$502,M$2,'WHS Event Log'!$J$3:$J$502,StagingTables!$B31) -> 0 | N31: =COUNTIFS('WHS Event Log'!$E$3:$E$502,N$2,'WHS Event Log'!$J$3:$J$502,StagingTables!$B31) -> 0 | O31: 0 | Q31: =COUNTIFS('WHS Event Log'!$J$3:$J$502,$B31,'WHS Event Log'!$S$3:$S$502,Lists!$E$3) -> 0
B32: Hazardous Condition | C32: =COUNTIFS('WHS Event Log'!$E$3:$E$502,C$2,'WHS Event Log'!$J$3:$J$502,StagingTables!$B32) -> 0 | D32: =COUNTIFS('WHS Event Log'!$E$3:$E$502,D$2,'WHS Event Log'!$J$3:$J$502,StagingTables!$B32) -> 0 | E32: =COUNTIFS('WHS Event Log'!$E$3:$E$502,E$2,'WHS Event Log'!$J$3:$J$502,StagingTables!$B32) -> 0 | F32: =COUNTIFS('WHS Event Log'!$E$3:$E$502,F$2,'WHS Event Log'!$J$3:$J$502,StagingTables!$B32) -> 0 | G32: =COUNTIFS('WHS Event Log'!$E$3:$E$502,G$2,'WHS Event Log'!$J$3:$J$502,StagingTables!$B32) -> 0 | H32: =COUNTIFS('WHS Event Log'!$E$3:$E$502,H$2,'WHS Event Log'!$J$3:$J$502,StagingTables!$B32) -> 0 | I32: =COUNTIFS('WHS Event Log'!$E$3:$E$502,I$2,'WHS Event Log'!$J$3:$J$502,StagingTables!$B32) -> 0 | J32: =COUNTIFS('WHS Event Log'!$E$3:$E$502,J$2,'WHS Event Log'!$J$3:$J$502,StagingTables!$B32) -> 0 | K32: =COUNTIFS('WHS Event Log'!$E$3:$E$502,K$2,'WHS Event Log'!$J$3:$J$502,StagingTables!$B32) -> 0 | L32: =COUNTIFS('WHS Event Log'!$E$3:$E$502,L$2,'WHS Event Log'!$J$3:$J$502,StagingTables!$B32) -> 0 | M32: =COUNTIFS('WHS Event Log'!$E$3:$E$502,M$2,'WHS Event Log'!$J$3:$J$502,StagingTables!$B32) -> 0 | N32: =COUNTIFS('WHS Event Log'!$E$3:$E$502,N$2,'WHS Event Log'!$J$3:$J$502,StagingTables!$B32) -> 0 | O32: 0 | Q32: =COUNTIFS('WHS Event Log'!$J$3:$J$502,$B32,'WHS Event Log'!$S$3:$S$502,Lists!$E$3) -> 0
B33: Hazardous Substance | C33: =COUNTIFS('WHS Event Log'!$E$3:$E$502,C$2,'WHS Event Log'!$J$3:$J$502,StagingTables!$B33) -> 0 | D33: =COUNTIFS('WHS Event Log'!$E$3:$E$502,D$2,'WHS Event Log'!$J$3:$J$502,StagingTables!$B33) -> 0 | E33: =COUNTIFS('WHS Event Log'!$E$3:$E$502,E$2,'WHS Event Log'!$J$3:$J$502,StagingTables!$B33) -> 0 | F33: =COUNTIFS('WHS Event Log'!$E$3:$E$502,F$2,'WHS Event Log'!$J$3:$J$502,StagingTables!$B33) -> 0 | G33: =COUNTIFS('WHS Event Log'!$E$3:$E$502,G$2,'WHS Event Log'!$J$3:$J$502,StagingTables!$B33) -> 0 | H33: =COUNTIFS('WHS Event Log'!$E$3:$E$502,H$2,'WHS Event Log'!$J$3:$J$502,StagingTables!$B33) -> 0 | I33: =COUNTIFS('WHS Event Log'!$E$3:$E$502,I$2,'WHS Event Log'!$J$3:$J$502,StagingTables!$B33) -> 0 | J33: =COUNTIFS('WHS Event Log'!$E$3:$E$502,J$2,'WHS Event Log'!$J$3:$J$502,StagingTables!$B33) -> 0 | K33: =COUNTIFS('WHS Event Log'!$E$3:$E$502,K$2,'WHS Event Log'!$J$3:$J$502,StagingTables!$B33) -> 0 | L33: =COUNTIFS('WHS Event Log'!$E$3:$E$502,L$2,'WHS Event Log'!$J$3:$J$502,StagingTables!$B33) -> 0 | M33: =COUNTIFS('WHS Event Log'!$E$3:$E$502,M$2,'WHS Event Log'!$J$3:$J$502,StagingTables!$B33) -> 0 | N33: =COUNTIFS('WHS Event Log'!$E$3:$E$502,N$2,'WHS Event Log'!$J$3:$J$502,StagingTables!$B33) -> 0 | O33: 0 | Q33: =COUNTIFS('WHS Event Log'!$J$3:$J$502,$B33,'WHS Event Log'!$S$3:$S$502,Lists!$E$3) -> 0
B34: Hot Object | C34: =COUNTIFS('WHS Event Log'!$E$3:$E$502,C$2,'WHS Event Log'!$J$3:$J$502,StagingTables!$B34) -> 0 | D34: =COUNTIFS('WHS Event Log'!$E$3:$E$502,D$2,'WHS Event Log'!$J$3:$J$502,StagingTables!$B34) -> 0 | E34: =COUNTIFS('WHS Event Log'!$E$3:$E$502,E$2,'WHS Event Log'!$J$3:$J$502,StagingTables!$B34) -> 0 | F34: =COUNTIFS('WHS Event Log'!$E$3:$E$502,F$2,'WHS Event Log'!$J$3:$J$502,StagingTables!$B34) -> 0 | G34: =COUNTIFS('WHS Event Log'!$E$3:$E$502,G$2,'WHS Event Log'!$J$3:$J$502,StagingTables!$B34) -> 0 | H34: =COUNTIFS('WHS Event Log'!$E$3:$E$502,H$2,'WHS Event Log'!$J$3:$J$502,StagingTables!$B34) -> 0 | I34: =COUNTIFS('WHS Event Log'!$E$3:$E$502,I$2,'WHS Event Log'!$J$3:$J$502,StagingTables!$B34) -> 0 | J34: =COUNTIFS('WHS Event Log'!$E$3:$E$502,J$2,'WHS Event Log'!$J$3:$J$502,StagingTables!$B34) -> 0 | K34: =COUNTIFS('WHS Event Log'!$E$3:$E$502,K$2,'WHS Event Log'!$J$3:$J$502,StagingTables!$B34) -> 0 | L34: =COUNTIFS('WHS Event Log'!$E$3:$E$502,L$2,'WHS Event Log'!$J$3:$J$502,StagingTables!$B34) -> 0 | M34: =COUNTIFS('WHS Event Log'!$E$3:$E$502,M$2,'WHS Event Log'!$J$3:$J$502,StagingTables!$B34) -> 0 | N34: =COUNTIFS('WHS Event Log'!$E$3:$E$502,N$2,'WHS Event Log'!$J$3:$J$502,StagingTables!$B34) -> 0 | O34: 0 | Q34: =COUNTIFS('WHS Event Log'!$J$3:$J$502,$B34,'WHS Event Log'!$S$3:$S$502,Lists!$E$3) -> 0
B35: Infrastructure | C35: =COUNTIFS('WHS Event Log'!$E$3:$E$502,C$2,'WHS Event Log'!$J$3:$J$502,StagingTables!$B35) -> 0 | D35: =COUNTIFS('WHS Event Log'!$E$3:$E$502,D$2,'WHS Event Log'!$J$3:$J$502,StagingTables!$B35) -> 0 | E35: =COUNTIFS('WHS Event Log'!$E$3:$E$502,E$2,'WHS Event Log'!$J$3:$J$502,StagingTables!$B35) -> 0 | F35: =COUNTIFS('WHS Event Log'!$E$3:$E$502,F$2,'WHS Event Log'!$J$3:$J$502,StagingTables!$B35) -> 0 | G35: =COUNTIFS('WHS Event Log'!$E$3:$E$502,G$2,'WHS Event Log'!$J$3:$J$502,StagingTables!$B35) -> 0 | H35: =COUNTIFS('WHS Event Log'!$E$3:$E$502,H$2,'WHS Event Log'!$J$3:$J$502,StagingTables!$B35) -> 0 | I35: =COUNTIFS('WHS Event Log'!$E$3:$E$502,I$2,'WHS Event Log'!$J$3:$J$502,StagingTables!$B35) -> 0 | J35: =COUNTIFS('WHS Event Log'!$E$3:$E$502,J$2,'WHS Event Log'!$J$3:$J$502,StagingTables!$B35) -> 0 | K35: =COUNTIFS('WHS Event Log'!$E$3:$E$502,K$2,'WHS Event Log'!$J$3:$J$502,StagingTables!$B35) -> 0 | L35: =COUNTIFS('WHS Event Log'!$E$3:$E$502,L$2,'WHS Event Log'!$J$3:$J$502,StagingTables!$B35) -> 0 | M35: =COUNTIFS('WHS Event Log'!$E$3:$E$502,M$2,'WHS Event Log'!$J$3:$J$502,StagingTables!$B35) -> 0 | N35: =COUNTIFS('WHS Event Log'!$E$3:$E$502,N$2,'WHS Event Log'!$J$3:$J$502,StagingTables!$B35) -> 0 | O35: =SUM(C35:N35) -> 0 | Q35: =COUNTIFS('WHS Event Log'!$J$3:$J$502,$B35,'WHS Event Log'!$S$3:$S$502,Lists!$E$3) -> 0
B36: Maintenance Issue | C36: =COUNTIFS('WHS Event Log'!$E$3:$E$502,C$2,'WHS Event Log'!$J$3:$J$502,StagingTables!$B36) -> 0 | D36: =COUNTIFS('WHS Event Log'!$E$3:$E$502,D$2,'WHS Event Log'!$J$3:$J$502,StagingTables!$B36) -> 0 | E36: =COUNTIFS('WHS Event Log'!$E$3:$E$502,E$2,'WHS Event Log'!$J$3:$J$502,StagingTables!$B36) -> 0 | F36: =COUNTIFS('WHS Event Log'!$E$3:$E$502,F$2,'WHS Event Log'!$J$3:$J$502,StagingTables!$B36) -> 0 | G36: =COUNTIFS('WHS Event Log'!$E$3:$E$502,G$2,'WHS Event Log'!$J$3:$J$502,StagingTables!$B36) -> 0 | H36: =COUNTIFS('WHS Event Log'!$E$3:$E$502,H$2,'WHS Event Log'!$J$3:$J$502,StagingTables!$B36) -> 0 | I36: =COUNTIFS('WHS Event Log'!$E$3:$E$502,I$2,'WHS Event Log'!$J$3:$J$502,StagingTables!$B36) -> 0 | J36: =COUNTIFS('WHS Event Log'!$E$3:$E$502,J$2,'WHS Event Log'!$J$3:$J$502,StagingTables!$B36) -> 0 | K36: =COUNTIFS('WHS Event Log'!$E$3:$E$502,K$2,'WHS Event Log'!$J$3:$J$502,StagingTables!$B36) -> 0 | L36: =COUNTIFS('WHS Event Log'!$E$3:$E$502,L$2,'WHS Event Log'!$J$3:$J$502,StagingTables!$B36) -> 0 | M36: =COUNTIFS('WHS Event Log'!$E$3:$E$502,M$2,'WHS Event Log'!$J$3:$J$502,StagingTables!$B36) -> 0 | N36: =COUNTIFS('WHS Event Log'!$E$3:$E$502,N$2,'WHS Event Log'!$J$3:$J$502,StagingTables!$B36) -> 0 | O36: =SUM(C36:N36) -> 0 | Q36: =COUNTIFS('WHS Event Log'!$J$3:$J$502,$B36,'WHS Event Log'!$S$3:$S$502,Lists!$E$3) -> 0
B37: Medical | C37: =COUNTIFS('WHS Event Log'!$E$3:$E$502,C$2,'WHS Event Log'!$J$3:$J$502,StagingTables!$B37) -> 0 | D37: =COUNTIFS('WHS Event Log'!$E$3:$E$502,D$2,'WHS Event Log'!$J$3:$J$502,StagingTables!$B37) -> 0 | E37: =COUNTIFS('WHS Event Log'!$E$3:$E$502,E$2,'WHS Event Log'!$J$3:$J$502,StagingTables!$B37) -> 0 | F37: =COUNTIFS('WHS Event Log'!$E$3:$E$502,F$2,'WHS Event Log'!$J$3:$J$502,StagingTables!$B37) -> 0 | G37: =COUNTIFS('WHS Event Log'!$E$3:$E$502,G$2,'WHS Event Log'!$J$3:$J$502,StagingTables!$B37) -> 0 | H37: =COUNTIFS('WHS Event Log'!$E$3:$E$502,H$2,'WHS Event Log'!$J$3:$J$502,StagingTables!$B37) -> 0 | I37: =COUNTIFS('WHS Event Log'!$E$3:$E$502,I$2,'WHS Event Log'!$J$3:$J$502,StagingTables!$B37) -> 0 | J37: =COUNTIFS('WHS Event Log'!$E$3:$E$502,J$2,'WHS Event Log'!$J$3:$J$502,StagingTables!$B37) -> 0 | K37: =COUNTIFS('WHS Event Log'!$E$3:$E$502,K$2,'WHS Event Log'!$J$3:$J$502,StagingTables!$B37) -> 0 | L37: =COUNTIFS('WHS Event Log'!$E$3:$E$502,L$2,'WHS Event Log'!$J$3:$J$502,StagingTables!$B37) -> 0 | M37: =COUNTIFS('WHS Event Log'!$E$3:$E$502,M$2,'WHS Event Log'!$J$3:$J$502,StagingTables!$B37) -> 0 | N37: =COUNTIFS('WHS Event Log'!$E$3:$E$502,N$2,'WHS Event Log'!$J$3:$J$502,StagingTables!$B37) -> 0 | O37: 0 | Q37: =COUNTIFS('WHS Event Log'!$J$3:$J$502,$B37,'WHS Event Log'!$S$3:$S$502,Lists!$E$3) -> 0
B38: Negligence | C38: =COUNTIFS('WHS Event Log'!$E$3:$E$502,C$2,'WHS Event Log'!$J$3:$J$502,StagingTables!$B38) -> 0 | D38: =COUNTIFS('WHS Event Log'!$E$3:$E$502,D$2,'WHS Event Log'!$J$3:$J$502,StagingTables!$B38) -> 0 | E38: =COUNTIFS('WHS Event Log'!$E$3:$E$502,E$2,'WHS Event Log'!$J$3:$J$502,StagingTables!$B38) -> 0 | F38: =COUNTIFS('WHS Event Log'!$E$3:$E$502,F$2,'WHS Event Log'!$J$3:$J$502,StagingTables!$B38) -> 0 | G38: =COUNTIFS('WHS Event Log'!$E$3:$E$502,G$2,'WHS Event Log'!$J$3:$J$502,StagingTables!$B38) -> 0 | H38: =COUNTIFS('WHS Event Log'!$E$3:$E$502,H$2,'WHS Event Log'!$J$3:$J$502,StagingTables!$B38) -> 0 | I38: =COUNTIFS('WHS Event Log'!$E$3:$E$502,I$2,'WHS Event Log'!$J$3:$J$502,StagingTables!$B38) -> 0 | J38: =COUNTIFS('WHS Event Log'!$E$3:$E$502,J$2,'WHS Event Log'!$J$3:$J$502,StagingTables!$B38) -> 0 | K38: =COUNTIFS('WHS Event Log'!$E$3:$E$502,K$2,'WHS Event Log'!$J$3:$J$502,StagingTables!$B38) -> 0 | L38: =COUNTIFS('WHS Event Log'!$E$3:$E$502,L$2,'WHS Event Log'!$J$3:$J$502,StagingTables!$B38) -> 0 | M38: =COUNTIFS('WHS Event Log'!$E$3:$E$502,M$2,'WHS Event Log'!$J$3:$J$502,StagingTables!$B38) -> 0 | N38: =COUNTIFS('WHS Event Log'!$E$3:$E$502,N$2,'WHS Event Log'!$J$3:$J$502,StagingTables!$B38) -> 0 | O38: =SUM(C38:N38) -> 0 | Q38: =COUNTIFS('WHS Event Log'!$J$3:$J$502,$B38,'WHS Event Log'!$S$3:$S$502,Lists!$E$3) -> 0
B39: Operator Error | C39: =COUNTIFS('WHS Event Log'!$E$3:$E$502,C$2,'WHS Event Log'!$J$3:$J$502,StagingTables!$B39) -> 0 | D39: =COUNTIFS('WHS Event Log'!$E$3:$E$502,D$2,'WHS Event Log'!$J$3:$J$502,StagingTables!$B39) -> 0 | E39: =COUNTIFS('WHS Event Log'!$E$3:$E$502,E$2,'WHS Event Log'!$J$3:$J$502,StagingTables!$B39) -> 0 | F39: =COUNTIFS('WHS Event Log'!$E$3:$E$502,F$2,'WHS Event Log'!$J$3:$J$502,StagingTables!$B39) -> 0 | G39: =COUNTIFS('WHS Event Log'!$E$3:$E$502,G$2,'WHS Event Log'!$J$3:$J$502,StagingTables!$B39) -> 0 | H39: =COUNTIFS('WHS Event Log'!$E$3:$E$502,H$2,'WHS Event Log'!$J$3:$J$502,StagingTables!$B39) -> 0 | I39: =COUNTIFS('WHS Event Log'!$E$3:$E$502,I$2,'WHS Event Log'!$J$3:$J$502,StagingTables!$B39) -> 0 | J39: =COUNTIFS('WHS Event Log'!$E$3:$E$502,J$2,'WHS Event Log'!$J$3:$J$502,StagingTables!$B39) -> 0 | K39: =COUNTIFS('WHS Event Log'!$E$3:$E$502,K$2,'WHS Event Log'!$J$3:$J$502,StagingTables!$B39) -> 0 | L39: =COUNTIFS('WHS Event Log'!$E$3:$E$502,L$2,'WHS Event Log'!$J$3:$J$502,StagingTables!$B39) -> 0 | M39: =COUNTIFS('WHS Event Log'!$E$3:$E$502,M$2,'WHS Event Log'!$J$3:$J$502,StagingTables!$B39) -> 0 | N39: =COUNTIFS('WHS Event Log'!$E$3:$E$502,N$2,'WHS Event Log'!$J$3:$J$502,StagingTables!$B39) -> 0 | O39: 0 | Q39: =COUNTIFS('WHS Event Log'!$J$3:$J$502,$B39,'WHS Event Log'!$S$3:$S$502,Lists!$E$3) -> 0
B40: Pest/Animal | C40: =COUNTIFS('WHS Event Log'!$E$3:$E$502,C$2,'WHS Event Log'!$J$3:$J$502,StagingTables!$B40) -> 0 | D40: =COUNTIFS('WHS Event Log'!$E$3:$E$502,D$2,'WHS Event Log'!$J$3:$J$502,StagingTables!$B40) -> 0 | E40: =COUNTIFS('WHS Event Log'!$E$3:$E$502,E$2,'WHS Event Log'!$J$3:$J$502,StagingTables!$B40) -> 0 | F40: =COUNTIFS('WHS Event Log'!$E$3:$E$502,F$2,'WHS Event Log'!$J$3:$J$502,StagingTables!$B40) -> 0 | G40: =COUNTIFS('WHS Event Log'!$E$3:$E$502,G$2,'WHS Event Log'!$J$3:$J$502,StagingTables!$B40) -> 0 | H40: =COUNTIFS('WHS Event Log'!$E$3:$E$502,H$2,'WHS Event Log'!$J$3:$J$502,StagingTables!$B40) -> 0 | I40: =COUNTIFS('WHS Event Log'!$E$3:$E$502,I$2,'WHS Event Log'!$J$3:$J$502,StagingTables!$B40) -> 0 | J40: =COUNTIFS('WHS Event Log'!$E$3:$E$502,J$2,'WHS Event Log'!$J$3:$J$502,StagingTables!$B40) -> 0 | K40: =COUNTIFS('WHS Event Log'!$E$3:$E$502,K$2,'WHS Event Log'!$J$3:$J$502,StagingTables!$B40) -> 0 | L40: =COUNTIFS('WHS Event Log'!$E$3:$E$502,L$2,'WHS Event Log'!$J$3:$J$502,StagingTables!$B40) -> 0 | M40: =COUNTIFS('WHS Event Log'!$E$3:$E$502,M$2,'WHS Event Log'!$J$3:$J$502,StagingTables!$B40) -> 0 | N40: =COUNTIFS('WHS Event Log'!$E$3:$E$502,N$2,'WHS Event Log'!$J$3:$J$502,StagingTables!$B40) -> 0 | O40: 0 | Q40: =COUNTIFS('WHS Event Log'!$J$3:$J$502,$B40,'WHS Event Log'!$S$3:$S$502,Lists!$E$3) -> 0
B41: Process Design | C41: =COUNTIFS('WHS Event Log'!$E$3:$E$502,C$2,'WHS Event Log'!$J$3:$J$502,StagingTables!$B41) -> 0 | D41: =COUNTIFS('WHS Event Log'!$E$3:$E$502,D$2,'WHS Event Log'!$J$3:$J$502,StagingTables!$B41) -> 0 | E41: =COUNTIFS('WHS Event Log'!$E$3:$E$502,E$2,'WHS Event Log'!$J$3:$J$502,StagingTables!$B41) -> 0 | F41: =COUNTIFS('WHS Event Log'!$E$3:$E$502,F$2,'WHS Event Log'!$J$3:$J$502,StagingTables!$B41) -> 0 | G41: =COUNTIFS('WHS Event Log'!$E$3:$E$502,G$2,'WHS Event Log'!$J$3:$J$502,StagingTables!$B41) -> 0 | H41: =COUNTIFS('WHS Event Log'!$E$3:$E$502,H$2,'WHS Event Log'!$J$3:$J$502,StagingTables!$B41) -> 0 | I41: =COUNTIFS('WHS Event Log'!$E$3:$E$502,I$2,'WHS Event Log'!$J$3:$J$502,StagingTables!$B41) -> 0 | J41: =COUNTIFS('WHS Event Log'!$E$3:$E$502,J$2,'WHS Event Log'!$J$3:$J$502,StagingTables!$B41) -> 0 | K41: =COUNTIFS('WHS Event Log'!$E$3:$E$502,K$2,'WHS Event Log'!$J$3:$J$502,StagingTables!$B41) -> 0 | L41: =COUNTIFS('WHS Event Log'!$E$3:$E$502,L$2,'WHS Event Log'!$J$3:$J$502,StagingTables!$B41) -> 0 | M41: =COUNTIFS('WHS Event Log'!$E$3:$E$502,M$2,'WHS Event Log'!$J$3:$J$502,StagingTables!$B41) -> 0 | N41: =COUNTIFS('WHS Event Log'!$E$3:$E$502,N$2,'WHS Event Log'!$J$3:$J$502,StagingTables!$B41) -> 0 | O41: 0 | Q41: =COUNTIFS('WHS Event Log'!$J$3:$J$502,$B41,'WHS Event Log'!$S$3:$S$502,Lists!$E$3) -> 0
B42: Sharps | C42: =COUNTIFS('WHS Event Log'!$E$3:$E$502,C$2,'WHS Event Log'!$J$3:$J$502,StagingTables!$B42) -> 0 | D42: =COUNTIFS('WHS Event Log'!$E$3:$E$502,D$2,'WHS Event Log'!$J$3:$J$502,StagingTables!$B42) -> 0 | E42: =COUNTIFS('WHS Event Log'!$E$3:$E$502,E$2,'WHS Event Log'!$J$3:$J$502,StagingTables!$B42) -> 0 | F42: =COUNTIFS('WHS Event Log'!$E$3:$E$502,F$2,'WHS Event Log'!$J$3:$J$502,StagingTables!$B42) -> 0 | G42: =COUNTIFS('WHS Event Log'!$E$3:$E$502,G$2,'WHS Event Log'!$J$3:$J$502,StagingTables!$B42) -> 0 | H42: =COUNTIFS('WHS Event Log'!$E$3:$E$502,H$2,'WHS Event Log'!$J$3:$J$502,StagingTables!$B42) -> 0 | I42: =COUNTIFS('WHS Event Log'!$E$3:$E$502,I$2,'WHS Event Log'!$J$3:$J$502,StagingTables!$B42) -> 0 | J42: =COUNTIFS('WHS Event Log'!$E$3:$E$502,J$2,'WHS Event Log'!$J$3:$J$502,StagingTables!$B42) -> 0 | K42: =COUNTIFS('WHS Event Log'!$E$3:$E$502,K$2,'WHS Event Log'!$J$3:$J$502,StagingTables!$B42) -> 0 | L42: =COUNTIFS('WHS Event Log'!$E$3:$E$502,L$2,'WHS Event Log'!$J$3:$J$502,StagingTables!$B42) -> 0 | M42: =COUNTIFS('WHS Event Log'!$E$3:$E$502,M$2,'WHS Event Log'!$J$3:$J$502,StagingTables!$B42) -> 0 | N42: =COUNTIFS('WHS Event Log'!$E$3:$E$502,N$2,'WHS Event Log'!$J$3:$J$502,StagingTables!$B42) -> 0 | O42: 0 | Q42: =COUNTIFS('WHS Event Log'!$J$3:$J$502,$B42,'WHS Event Log'!$S$3:$S$502,Lists!$E$3) -> 0
B43: Slip | C43: =COUNTIFS('WHS Event Log'!$E$3:$E$502,C$2,'WHS Event Log'!$J$3:$J$502,StagingTables!$B43) -> 0 | D43: =COUNTIFS('WHS Event Log'!$E$3:$E$502,D$2,'WHS Event Log'!$J$3:$J$502,StagingTables!$B43) -> 0 | E43: =COUNTIFS('WHS Event Log'!$E$3:$E$502,E$2,'WHS Event Log'!$J$3:$J$502,StagingTables!$B43) -> 0 | F43: =COUNTIFS('WHS Event Log'!$E$3:$E$502,F$2,'WHS Event Log'!$J$3:$J$502,StagingTables!$B43) -> 0 | G43: =COUNTIFS('WHS Event Log'!$E$3:$E$502,G$2,'WHS Event Log'!$J$3:$J$502,StagingTables!$B43) -> 0 | H43: =COUNTIFS('WHS Event Log'!$E$3:$E$502,H$2,'WHS Event Log'!$J$3:$J$502,StagingTables!$B43) -> 0 | I43: =COUNTIFS('WHS Event Log'!$E$3:$E$502,I$2,'WHS Event Log'!$J$3:$J$502,StagingTables!$B43) -> 0 | J43: =COUNTIFS('WHS Event Log'!$E$3:$E$502,J$2,'WHS Event Log'!$J$3:$J$502,StagingTables!$B43) -> 0 | K43: =COUNTIFS('WHS Event Log'!$E$3:$E$502,K$2,'WHS Event Log'!$J$3:$J$502,StagingTables!$B43) -> 0 | L43: =COUNTIFS('WHS Event Log'!$E$3:$E$502,L$2,'WHS Event Log'!$J$3:$J$502,StagingTables!$B43) -> 0 | M43: =COUNTIFS('WHS Event Log'!$E$3:$E$502,M$2,'WHS Event Log'!$J$3:$J$502,StagingTables!$B43) -> 0 | N43: =COUNTIFS('WHS Event Log'!$E$3:$E$502,N$2,'WHS Event Log'!$J$3:$J$502,StagingTables!$B43) -> 0 | O43: 0 | Q43: =COUNTIFS('WHS Event Log'!$J$3:$J$502,$B43,'WHS Event Log'!$S$3:$S$502,Lists!$E$3) -> 0
B44: Strain | C44: =COUNTIFS('WHS Event Log'!$E$3:$E$502,C$2,'WHS Event Log'!$J$3:$J$502,StagingTables!$B44) -> 0 | D44: =COUNTIFS('WHS Event Log'!$E$3:$E$502,D$2,'WHS Event Log'!$J$3:$J$502,StagingTables!$B44) -> 0 | E44: =COUNTIFS('WHS Event Log'!$E$3:$E$502,E$2,'WHS Event Log'!$J$3:$J$502,StagingTables!$B44) -> 0 | F44: =COUNTIFS('WHS Event Log'!$E$3:$E$502,F$2,'WHS Event Log'!$J$3:$J$502,StagingTables!$B44) -> 0 | G44: =COUNTIFS('WHS Event Log'!$E$3:$E$502,G$2,'WHS Event Log'!$J$3:$J$502,StagingTables!$B44) -> 0 | H44: =COUNTIFS('WHS Event Log'!$E$3:$E$502,H$2,'WHS Event Log'!$J$3:$J$502,StagingTables!$B44) -> 0 | I44: =COUNTIFS('WHS Event Log'!$E$3:$E$502,I$2,'WHS Event Log'!$J$3:$J$502,StagingTables!$B44) -> 0 | J44: =COUNTIFS('WHS Event Log'!$E$3:$E$502,J$2,'WHS Event Log'!$J$3:$J$502,StagingTables!$B44) -> 0 | K44: =COUNTIFS('WHS Event Log'!$E$3:$E$502,K$2,'WHS Event Log'!$J$3:$J$502,StagingTables!$B44) -> 0 | L44: =COUNTIFS('WHS Event Log'!$E$3:$E$502,L$2,'WHS Event Log'!$J$3:$J$502,StagingTables!$B44) -> 0 | M44: =COUNTIFS('WHS Event Log'!$E$3:$E$502,M$2,'WHS Event Log'!$J$3:$J$502,StagingTables!$B44) -> 0 | N44: =COUNTIFS('WHS Event Log'!$E$3:$E$502,N$2,'WHS Event Log'!$J$3:$J$502,StagingTables!$B44) -> 0 | O44: 0 | Q44: =COUNTIFS('WHS Event Log'!$J$3:$J$502,$B44,'WHS Event Log'!$S$3:$S$502,Lists!$E$3) -> 0
B45: Stress | C45: =COUNTIFS('WHS Event Log'!$E$3:$E$502,C$2,'WHS Event Log'!$J$3:$J$502,StagingTables!$B45) -> 0 | D45: =COUNTIFS('WHS Event Log'!$E$3:$E$502,D$2,'WHS Event Log'!$J$3:$J$502,StagingTables!$B45) -> 0 | E45: =COUNTIFS('WHS Event Log'!$E$3:$E$502,E$2,'WHS Event Log'!$J$3:$J$502,StagingTables!$B45) -> 0 | F45: =COUNTIFS('WHS Event Log'!$E$3:$E$502,F$2,'WHS Event Log'!$J$3:$J$502,StagingTables!$B45) -> 0 | G45: =COUNTIFS('WHS Event Log'!$E$3:$E$502,G$2,'WHS Event Log'!$J$3:$J$502,StagingTables!$B45) -> 0 | H45: =COUNTIFS('WHS Event Log'!$E$3:$E$502,H$2,'WHS Event Log'!$J$3:$J$502,StagingTables!$B45) -> 0 | I45: =COUNTIFS('WHS Event Log'!$E$3:$E$502,I$2,'WHS Event Log'!$J$3:$J$502,StagingTables!$B45) -> 0 | J45: =COUNTIFS('WHS Event Log'!$E$3:$E$502,J$2,'WHS Event Log'!$J$3:$J$502,StagingTables!$B45) -> 0 | K45: =COUNTIFS('WHS Event Log'!$E$3:$E$502,K$2,'WHS Event Log'!$J$3:$J$502,StagingTables!$B45) -> 0 | L45: =COUNTIFS('WHS Event Log'!$E$3:$E$502,L$2,'WHS Event Log'!$J$3:$J$502,StagingTables!$B45) -> 0 | M45: =COUNTIFS('WHS Event Log'!$E$3:$E$502,M$2,'WHS Event Log'!$J$3:$J$502,StagingTables!$B45) -> 0 | N45: =COUNTIFS('WHS Event Log'!$E$3:$E$502,N$2,'WHS Event Log'!$J$3:$J$502,StagingTables!$B45) -> 0 | O45: 0 | Q45: =COUNTIFS('WHS Event Log'!$J$3:$J$502,$B45,'WHS Event Log'!$S$3:$S$502,Lists!$E$3) -> 0
B46: Supervision | C46: =COUNTIFS('WHS Event Log'!$E$3:$E$502,C$2,'WHS Event Log'!$J$3:$J$502,StagingTables!$B46) -> 0 | D46: =COUNTIFS('WHS Event Log'!$E$3:$E$502,D$2,'WHS Event Log'!$J$3:$J$502,StagingTables!$B46) -> 0 | E46: =COUNTIFS('WHS Event Log'!$E$3:$E$502,E$2,'WHS Event Log'!$J$3:$J$502,StagingTables!$B46) -> 0 | F46: =COUNTIFS('WHS Event Log'!$E$3:$E$502,F$2,'WHS Event Log'!$J$3:$J$502,StagingTables!$B46) -> 0 | G46: =COUNTIFS('WHS Event Log'!$E$3:$E$502,G$2,'WHS Event Log'!$J$3:$J$502,StagingTables!$B46) -> 0 | H46: =COUNTIFS('WHS Event Log'!$E$3:$E$502,H$2,'WHS Event Log'!$J$3:$J$502,StagingTables!$B46) -> 0 | I46: =COUNTIFS('WHS Event Log'!$E$3:$E$502,I$2,'WHS Event Log'!$J$3:$J$502,StagingTables!$B46) -> 0 | J46: =COUNTIFS('WHS Event Log'!$E$3:$E$502,J$2,'WHS Event Log'!$J$3:$J$502,StagingTables!$B46) -> 0 | K46: =COUNTIFS('WHS Event Log'!$E$3:$E$502,K$2,'WHS Event Log'!$J$3:$J$502,StagingTables!$B46) -> 0 | L46: =COUNTIFS('WHS Event Log'!$E$3:$E$502,L$2,'WHS Event Log'!$J$3:$J$502,StagingTables!$B46) -> 0 | M46: =COUNTIFS('WHS Event Log'!$E$3:$E$502,M$2,'WHS Event Log'!$J$3:$J$502,StagingTables!$B46) -> 0 | N46: =COUNTIFS('WHS Event Log'!$E$3:$E$502,N$2,'WHS Event Log'!$J$3:$J$502,StagingTables!$B46) -> 0 | O46: 0 | Q46: =COUNTIFS('WHS Event Log'!$J$3:$J$502,$B46,'WHS Event Log'!$S$3:$S$502,Lists!$E$3) -> 0
B47: Surface Condition | C47: =COUNTIFS('WHS Event Log'!$E$3:$E$502,C$2,'WHS Event Log'!$J$3:$J$502,StagingTables!$B47) -> 0 | D47: =COUNTIFS('WHS Event Log'!$E$3:$E$502,D$2,'WHS Event Log'!$J$3:$J$502,StagingTables!$B47) -> 0 | E47: =COUNTIFS('WHS Event Log'!$E$3:$E$502,E$2,'WHS Event Log'!$J$3:$J$502,StagingTables!$B47) -> 0 | F47: =COUNTIFS('WHS Event Log'!$E$3:$E$502,F$2,'WHS Event Log'!$J$3:$J$502,StagingTables!$B47) -> 0 | G47: =COUNTIFS('WHS Event Log'!$E$3:$E$502,G$2,'WHS Event Log'!$J$3:$J$502,StagingTables!$B47) -> 0 | H47: =COUNTIFS('WHS Event Log'!$E$3:$E$502,H$2,'WHS Event Log'!$J$3:$J$502,StagingTables!$B47) -> 0 | I47: =COUNTIFS('WHS Event Log'!$E$3:$E$502,I$2,'WHS Event Log'!$J$3:$J$502,StagingTables!$B47) -> 0 | J47: =COUNTIFS('WHS Event Log'!$E$3:$E$502,J$2,'WHS Event Log'!$J$3:$J$502,StagingTables!$B47) -> 0 | K47: =COUNTIFS('WHS Event Log'!$E$3:$E$502,K$2,'WHS Event Log'!$J$3:$J$502,StagingTables!$B47) -> 0 | L47: =COUNTIFS('WHS Event Log'!$E$3:$E$502,L$2,'WHS Event Log'!$J$3:$J$502,StagingTables!$B47) -> 0 | M47: =COUNTIFS('WHS Event Log'!$E$3:$E$502,M$2,'WHS Event Log'!$J$3:$J$502,StagingTables!$B47) -> 0 | N47: =COUNTIFS('WHS Event Log'!$E$3:$E$502,N$2,'WHS Event Log'!$J$3:$J$502,StagingTables!$B47) -> 0 | O47: 0 | Q47: =COUNTIFS('WHS Event Log'!$J$3:$J$502,$B47,'WHS Event Log'!$S$3:$S$502,Lists!$E$3) -> 0
B48: Training | C48: =COUNTIFS('WHS Event Log'!$E$3:$E$502,C$2,'WHS Event Log'!$J$3:$J$502,StagingTables!$B48) -> 0 | D48: =COUNTIFS('WHS Event Log'!$E$3:$E$502,D$2,'WHS Event Log'!$J$3:$J$502,StagingTables!$B48) -> 0 | E48: =COUNTIFS('WHS Event Log'!$E$3:$E$502,E$2,'WHS Event Log'!$J$3:$J$502,StagingTables!$B48) -> 0 | F48: =COUNTIFS('WHS Event Log'!$E$3:$E$502,F$2,'WHS Event Log'!$J$3:$J$502,StagingTables!$B48) -> 0 | G48: =COUNTIFS('WHS Event Log'!$E$3:$E$502,G$2,'WHS Event Log'!$J$3:$J$502,StagingTables!$B48) -> 0 | H48: =COUNTIFS('WHS Event Log'!$E$3:$E$502,H$2,'WHS Event Log'!$J$3:$J$502,StagingTables!$B48) -> 0 | I48: =COUNTIFS('WHS Event Log'!$E$3:$E$502,I$2,'WHS Event Log'!$J$3:$J$502,StagingTables!$B48) -> 0 | J48: =COUNTIFS('WHS Event Log'!$E$3:$E$502,J$2,'WHS Event Log'!$J$3:$J$502,StagingTables!$B48) -> 0 | K48: =COUNTIFS('WHS Event Log'!$E$3:$E$502,K$2,'WHS Event Log'!$J$3:$J$502,StagingTables!$B48) -> 0 | L48: =COUNTIFS('WHS Event Log'!$E$3:$E$502,L$2,'WHS Event Log'!$J$3:$J$502,StagingTables!$B48) -> 0 | M48: =COUNTIFS('WHS Event Log'!$E$3:$E$502,M$2,'WHS Event Log'!$J$3:$J$502,StagingTables!$B48) -> 0 | N48: =COUNTIFS('WHS Event Log'!$E$3:$E$502,N$2,'WHS Event Log'!$J$3:$J$502,StagingTables!$B48) -> 0 | O48: 0 | Q48: =COUNTIFS('WHS Event Log'!$J$3:$J$502,$B48,'WHS Event Log'!$S$3:$S$502,Lists!$E$3) -> 0
B49: Trip | C49: =COUNTIFS('WHS Event Log'!$E$3:$E$502,C$2,'WHS Event Log'!$J$3:$J$502,StagingTables!$B49) -> 0 | D49: =COUNTIFS('WHS Event Log'!$E$3:$E$502,D$2,'WHS Event Log'!$J$3:$J$502,StagingTables!$B49) -> 0 | E49: =COUNTIFS('WHS Event Log'!$E$3:$E$502,E$2,'WHS Event Log'!$J$3:$J$502,StagingTables!$B49) -> 0 | F49: =COUNTIFS('WHS Event Log'!$E$3:$E$502,F$2,'WHS Event Log'!$J$3:$J$502,StagingTables!$B49) -> 0 | G49: =COUNTIFS('WHS Event Log'!$E$3:$E$502,G$2,'WHS Event Log'!$J$3:$J$502,StagingTables!$B49) -> 0 | H49: =COUNTIFS('WHS Event Log'!$E$3:$E$502,H$2,'WHS Event Log'!$J$3:$J$502,StagingTables!$B49) -> 0 | I49: =COUNTIFS('WHS Event Log'!$E$3:$E$502,I$2,'WHS Event Log'!$J$3:$J$502,StagingTables!$B49) -> 0 | J49: =COUNTIFS('WHS Event Log'!$E$3:$E$502,J$2,'WHS Event Log'!$J$3:$J$502,StagingTables!$B49) -> 0 | K49: =COUNTIFS('WHS Event Log'!$E$3:$E$502,K$2,'WHS Event Log'!$J$3:$J$502,StagingTables!$B49) -> 0 | L49: =COUNTIFS('WHS Event Log'!$E$3:$E$502,L$2,'WHS Event Log'!$J$3:$J$502,StagingTables!$B49) -> 0 | M49: =COUNTIFS('WHS Event Log'!$E$3:$E$502,M$2,'WHS Event Log'!$J$3:$J$502,StagingTables!$B49) -> 0 | N49: =COUNTIFS('WHS Event Log'!$E$3:$E$502,N$2,'WHS Event Log'!$J$3:$J$502,StagingTables!$B49) -> 0 | O49: 0 | Q49: =COUNTIFS('WHS Event Log'!$J$3:$J$502,$B49,'WHS Event Log'!$S$3:$S$502,Lists!$E$3) -> 0
B50: Weather | C50: =COUNTIFS('WHS Event Log'!$E$3:$E$502,C$2,'WHS Event Log'!$J$3:$J$502,StagingTables!$B50) -> 0 | D50: =COUNTIFS('WHS Event Log'!$E$3:$E$502,D$2,'WHS Event Log'!$J$3:$J$502,StagingTables!$B50) -> 0 | E50: =COUNTIFS('WHS Event Log'!$E$3:$E$502,E$2,'WHS Event Log'!$J$3:$J$502,StagingTables!$B50) -> 0 | F50: =COUNTIFS('WHS Event Log'!$E$3:$E$502,F$2,'WHS Event Log'!$J$3:$J$502,StagingTables!$B50) -> 0 | G50: =COUNTIFS('WHS Event Log'!$E$3:$E$502,G$2,'WHS Event Log'!$J$3:$J$502,StagingTables!$B50) -> 0 | H50: =COUNTIFS('WHS Event Log'!$E$3:$E$502,H$2,'WHS Event Log'!$J$3:$J$502,StagingTables!$B50) -> 0 | I50: =COUNTIFS('WHS Event Log'!$E$3:$E$502,I$2,'WHS Event Log'!$J$3:$J$502,StagingTables!$B50) -> 0 | J50: =COUNTIFS('WHS Event Log'!$E$3:$E$502,J$2,'WHS Event Log'!$J$3:$J$502,StagingTables!$B50) -> 0 | K50: =COUNTIFS('WHS Event Log'!$E$3:$E$502,K$2,'WHS Event Log'!$J$3:$J$502,StagingTables!$B50) -> 0 | L50: =COUNTIFS('WHS Event Log'!$E$3:$E$502,L$2,'WHS Event Log'!$J$3:$J$502,StagingTables!$B50) -> 0 | M50: =COUNTIFS('WHS Event Log'!$E$3:$E$502,M$2,'WHS Event Log'!$J$3:$J$502,StagingTables!$B50) -> 0 | N50: =COUNTIFS('WHS Event Log'!$E$3:$E$502,N$2,'WHS Event Log'!$J$3:$J$502,StagingTables!$B50) -> 0 | O50: 0 | Q50: =COUNTIFS('WHS Event Log'!$J$3:$J$502,$B50,'WHS Event Log'!$S$3:$S$502,Lists!$E$3) -> 0
B51: Other | C51: =COUNTIFS('WHS Event Log'!$E$3:$E$502,C$2,'WHS Event Log'!$J$3:$J$502,StagingTables!$B51) -> 0 | D51: =COUNTIFS('WHS Event Log'!$E$3:$E$502,D$2,'WHS Event Log'!$J$3:$J$502,StagingTables!$B51) -> 0 | E51: =COUNTIFS('WHS Event Log'!$E$3:$E$502,E$2,'WHS Event Log'!$J$3:$J$502,StagingTables!$B51) -> 0 | F51: =COUNTIFS('WHS Event Log'!$E$3:$E$502,F$2,'WHS Event Log'!$J$3:$J$502,StagingTables!$B51) -> 0 | G51: =COUNTIFS('WHS Event Log'!$E$3:$E$502,G$2,'WHS Event Log'!$J$3:$J$502,StagingTables!$B51) -> 0 | H51: =COUNTIFS('WHS Event Log'!$E$3:$E$502,H$2,'WHS Event Log'!$J$3:$J$502,StagingTables!$B51) -> 0 | I51: =COUNTIFS('WHS Event Log'!$E$3:$E$502,I$2,'WHS Event Log'!$J$3:$J$502,StagingTables!$B51) -> 0 | J51: =COUNTIFS('WHS Event Log'!$E$3:$E$502,J$2,'WHS Event Log'!$J$3:$J$502,StagingTables!$B51) -> 0 | K51: =COUNTIFS('WHS Event Log'!$E$3:$E$502,K$2,'WHS Event Log'!$J$3:$J$502,StagingTables!$B51) -> 0 | L51: =COUNTIFS('WHS Event Log'!$E$3:$E$502,L$2,'WHS Event Log'!$J$3:$J$502,StagingTables!$B51) -> 0 | M51: =COUNTIFS('WHS Event Log'!$E$3:$E$502,M$2,'WHS Event Log'!$J$3:$J$502,StagingTables!$B51) -> 0 | N51: =COUNTIFS('WHS Event Log'!$E$3:$E$502,N$2,'WHS Event Log'!$J$3:$J$502,StagingTables!$B51) -> 0 | O51: 0 | Q51: =COUNTIFS('WHS Event Log'!$J$3:$J$502,$B51,'WHS Event Log'!$S$3:$S$502,Lists!$E$3) -> 0
C52: =SUM(C11:C51)-C10 -> 0 | D52: =SUM(D11:D51)-D10 -> 0 | E52: =SUM(E11:E51)-E10 -> 0 | F52: 0 | G52: 0 | H52: 0 | I52: 0 | J52: 0 | K52: 0 | L52: 0 | M52: 0 | N52: 0 | O52: 0 | Q52: =SUM(Q11:Q51) -> 0
B55: Injury Type | C55: January | D55: February | E55: March | F55: April | G55: May | H55: June | I55: July | J55: August | K55: September | L55: October | M55: November | N55: December | O55: Total | P55: Claim | Q55: Open
B56: Amputation | C56: =COUNTIFS('WHS Event Log'!$E$3:$E$502,C$55,'WHS Event Log'!$Q$3:$Q$502,StagingTables!$B56) -> 0 | D56: =COUNTIFS('WHS Event Log'!$E$3:$E$502,D$55,'WHS Event Log'!$Q$3:$Q$502,StagingTables!$B56) -> 0 | E56: =COUNTIFS('WHS Event Log'!$E$3:$E$502,E$55,'WHS Event Log'!$Q$3:$Q$502,StagingTables!$B56) -> 0 | F56: =COUNTIFS('WHS Event Log'!$E$3:$E$502,F$55,'WHS Event Log'!$Q$3:$Q$502,StagingTables!$B56) -> 0 | G56: =COUNTIFS('WHS Event Log'!$E$3:$E$502,G$55,'WHS Event Log'!$Q$3:$Q$502,StagingTables!$B56) -> 0 | H56: =COUNTIFS('WHS Event Log'!$E$3:$E$502,H$55,'WHS Event Log'!$Q$3:$Q$502,StagingTables!$B56) -> 0 | I56: =COUNTIFS('WHS Event Log'!$E$3:$E$502,I$55,'WHS Event Log'!$Q$3:$Q$502,StagingTables!$B56) -> 0 | J56: =COUNTIFS('WHS Event Log'!$E$3:$E$502,J$55,'WHS Event Log'!$Q$3:$Q$502,StagingTables!$B56) -> 0 | K56: =COUNTIFS('WHS Event Log'!$E$3:$E$502,K$55,'WHS Event Log'!$Q$3:$Q$502,StagingTables!$B56) -> 0 | L56: =COUNTIFS('WHS Event Log'!$E$3:$E$502,L$55,'WHS Event Log'!$Q$3:$Q$502,StagingTables!$B56) -> 0 | M56: =COUNTIFS('WHS Event Log'!$E$3:$E$502,M$55,'WHS Event Log'!$Q$3:$Q$502,StagingTables!$B56) -> 0 | N56: =COUNTIFS('WHS Event Log'!$E$3:$E$502,N$55,'WHS Event Log'!$Q$3:$Q$502,StagingTables!$B56) -> 0 | O56: =SUM(C56:N56) -> 0 | P56: =COUNTIFS('WHS Event Log'!$J$3:$J$502,$B58,'WHS Event Log'!$S$3:$S$502,Lists!$E$3) -> 0 | Q56: =COUNTIFS('WHS Event Log'!$Q$3:$Q$502,$B56,'WHS Event Log'!$S$3:$S$502,Lists!$E$3,'WHS Event Log'!$T$3:$T$502,Lists!$K$3) -> 0
B57: Burns | C57: =COUNTIFS('WHS Event Log'!$E$3:$E$502,C$55,'WHS Event Log'!$Q$3:$Q$502,StagingTables!$B57) -> 0 | D57: =COUNTIFS('WHS Event Log'!$E$3:$E$502,D$55,'WHS Event Log'!$Q$3:$Q$502,StagingTables!$B57) -> 0 | E57: =COUNTIFS('WHS Event Log'!$E$3:$E$502,E$55,'WHS Event Log'!$Q$3:$Q$502,StagingTables!$B57) -> 0 | F57: =COUNTIFS('WHS Event Log'!$E$3:$E$502,F$55,'WHS Event Log'!$Q$3:$Q$502,StagingTables!$B57) -> 0 | G57: =COUNTIFS('WHS Event Log'!$E$3:$E$502,G$55,'WHS Event Log'!$Q$3:$Q$502,StagingTables!$B57) -> 0 | H57: =COUNTIFS('WHS Event Log'!$E$3:$E$502,H$55,'WHS Event Log'!$Q$3:$Q$502,StagingTables!$B57) -> 0 | I57: =COUNTIFS('WHS Event Log'!$E$3:$E$502,I$55,'WHS Event Log'!$Q$3:$Q$502,StagingTables!$B57) -> 0 | J57: =COUNTIFS('WHS Event Log'!$E$3:$E$502,J$55,'WHS Event Log'!$Q$3:$Q$502,StagingTables!$B57) -> 0 | K57: =COUNTIFS('WHS Event Log'!$E$3:$E$502,K$55,'WHS Event Log'!$Q$3:$Q$502,StagingTables!$B57) -> 0 | L57: =COUNTIFS('WHS Event Log'!$E$3:$E$502,L$55,'WHS Event Log'!$Q$3:$Q$502,StagingTables!$B57) -> 0 | M57: =COUNTIFS('WHS Event Log'!$E$3:$E$502,M$55,'WHS Event Log'!$Q$3:$Q$502,StagingTables!$B57) -> 0 | N57: =COUNTIFS('WHS Event Log'!$E$3:$E$502,N$55,'WHS Event Log'!$Q$3:$Q$502,StagingTables!$B57) -> 0 | O57: 0 | P57: =COUNTIFS('WHS Event Log'!$Q$3:$Q$502,$B57,'WHS Event Log'!$S$3:$S$502,Lists!$E$3) -> 0 | Q57: =COUNTIFS('WHS Event Log'!$Q$3:$Q$502,$B57,'WHS Event Log'!$S$3:$S$502,Lists!$E$3,'WHS Event Log'!$T$3:$T$502,Lists!$K$3) -> 0
B58: Contusion/crushing | C58: =COUNTIFS('WHS Event Log'!$E$3:$E$502,C$55,'WHS Event Log'!$Q$3:$Q$502,StagingTables!$B58) -> 0 | D58: =COUNTIFS('WHS Event Log'!$E$3:$E$502,D$55,'WHS Event Log'!$Q$3:$Q$502,StagingTables!$B58) -> 0 | E58: =COUNTIFS('WHS Event Log'!$E$3:$E$502,E$55,'WHS Event Log'!$Q$3:$Q$502,StagingTables!$B58) -> 0 | F58: =COUNTIFS('WHS Event Log'!$E$3:$E$502,F$55,'WHS Event Log'!$Q$3:$Q$502,StagingTables!$B58) -> 0 | G58: =COUNTIFS('WHS Event Log'!$E$3:$E$502,G$55,'WHS Event Log'!$Q$3:$Q$502,StagingTables!$B58) -> 0 | H58: =COUNTIFS('WHS Event Log'!$E$3:$E$502,H$55,'WHS Event Log'!$Q$3:$Q$502,StagingTables!$B58) -> 0 | I58: =COUNTIFS('WHS Event Log'!$E$3:$E$502,I$55,'WHS Event Log'!$Q$3:$Q$502,StagingTables!$B58) -> 0 | J58: =COUNTIFS('WHS Event Log'!$E$3:$E$502,J$55,'WHS Event Log'!$Q$3:$Q$502,StagingTables!$B58) -> 0 | K58: =COUNTIFS('WHS Event Log'!$E$3:$E$502,K$55,'WHS Event Log'!$Q$3:$Q$502,StagingTables!$B58) -> 0 | L58: =COUNTIFS('WHS Event Log'!$E$3:$E$502,L$55,'WHS Event Log'!$Q$3:$Q$502,StagingTables!$B58) -> 0 | M58: =COUNTIFS('WHS Event Log'!$E$3:$E$502,M$55,'WHS Event Log'!$Q$3:$Q$502,StagingTables!$B58) -> 0 | N58: =COUNTIFS('WHS Event Log'!$E$3:$E$502,N$55,'WHS Event Log'!$Q$3:$Q$502,StagingTables!$B58) -> 0 | O58: 0 | P58: =COUNTIFS('WHS Event Log'!$Q$3:$Q$502,$B58,'WHS Event Log'!$S$3:$S$502,Lists!$E$3) -> 0 | Q58: =COUNTIFS('WHS Event Log'!$Q$3:$Q$502,$B58,'WHS Event Log'!$S$3:$S$502,Lists!$E$3,'WHS Event Log'!$T$3:$T$502,Lists!$K$3) -> 0
B59: Dermatitis/Eczema | C59: =COUNTIFS('WHS Event Log'!$E$3:$E$502,C$55,'WHS Event Log'!$Q$3:$Q$502,StagingTables!$B59) -> 0 | D59: =COUNTIFS('WHS Event Log'!$E$3:$E$502,D$55,'WHS Event Log'!$Q$3:$Q$502,StagingTables!$B59) -> 0 | E59: =COUNTIFS('WHS Event Log'!$E$3:$E$502,E$55,'WHS Event Log'!$Q$3:$Q$502,StagingTables!$B59) -> 0 | F59: =COUNTIFS('WHS Event Log'!$E$3:$E$502,F$55,'WHS Event Log'!$Q$3:$Q$502,StagingTables!$B59) -> 0 | G59: =COUNTIFS('WHS Event Log'!$E$3:$E$502,G$55,'WHS Event Log'!$Q$3:$Q$502,StagingTables!$B59) -> 0 | H59: =COUNTIFS('WHS Event Log'!$E$3:$E$502,H$55,'WHS Event Log'!$Q$3:$Q$502,StagingTables!$B59) -> 0 | I59: =COUNTIFS('WHS Event Log'!$E$3:$E$502,I$55,'WHS Event Log'!$Q$3:$Q$502,StagingTables!$B59) -> 0 | J59: =COUNTIFS('WHS Event Log'!$E$3:$E$502,J$55,'WHS Event Log'!$Q$3:$Q$502,StagingTables!$B59) -> 0 | K59: =COUNTIFS('WHS Event Log'!$E$3:$E$502,K$55,'WHS Event Log'!$Q$3:$Q$502,StagingTables!$B59) -> 0 | L59: =COUNTIFS('WHS Event Log'!$E$3:$E$502,L$55,'WHS Event Log'!$Q$3:$Q$502,StagingTables!$B59) -> 0 | M59: =COUNTIFS('WHS Event Log'!$E$3:$E$502,M$55,'WHS Event Log'!$Q$3:$Q$502,StagingTables!$B59) -> 0 | N59: =COUNTIFS('WHS Event Log'!$E$3:$E$502,N$55,'WHS Event Log'!$Q$3:$Q$502,StagingTables!$B59) -> 0 | O59: 0 | P59: =COUNTIFS('WHS Event Log'!$Q$3:$Q$502,$B59,'WHS Event Log'!$S$3:$S$502,Lists!$E$3) -> 0 | Q59: =COUNTIFS('WHS Event Log'!$Q$3:$Q$502,$B59,'WHS Event Log'!$S$3:$S$502,Lists!$E$3,'WHS Event Log'!$T$3:$T$502,Lists!$K$3) -> 0
B60: Diorder of the Eye | C60: =COUNTIFS('WHS Event Log'!$E$3:$E$502,C$55,'WHS Event Log'!$Q$3:$Q$502,StagingTables!$B60) -> 0 | D60: =COUNTIFS('WHS Event Log'!$E$3:$E$502,D$55,'WHS Event Log'!$Q$3:$Q$502,StagingTables!$B60) -> 0 | E60: =COUNTIFS('WHS Event Log'!$E$3:$E$502,E$55,'WHS Event Log'!$Q$3:$Q$502,StagingTables!$B60) -> 0 | F60: =COUNTIFS('WHS Event Log'!$E$3:$E$502,F$55,'WHS Event Log'!$Q$3:$Q$502,StagingTables!$B60) -> 0 | G60: =COUNTIFS('WHS Event Log'!$E$3:$E$502,G$55,'WHS Event Log'!$Q$3:$Q$502,StagingTables!$B60) -> 0 | H60: =COUNTIFS('WHS Event Log'!$E$3:$E$502,H$55,'WHS Event Log'!$Q$3:$Q$502,StagingTables!$B60) -> 0 | I60: =COUNTIFS('WHS Event Log'!$E$3:$E$502,I$55,'WHS Event Log'!$Q$3:$Q$502,StagingTables!$B60) -> 0 | J60: =COUNTIFS('WHS Event Log'!$E$3:$E$502,J$55,'WHS Event Log'!$Q$3:$Q$502,StagingTables!$B60) -> 0 | K60: =COUNTIFS('WHS Event Log'!$E$3:$E$502,K$55,'WHS Event Log'!$Q$3:$Q$502,StagingTables!$B60) -> 0 | L60: =COUNTIFS('WHS Event Log'!$E$3:$E$502,L$55,'WHS Event Log'!$Q$3:$Q$502,StagingTables!$B60) -> 0 | M60: =COUNTIFS('WHS Event Log'!$E$3:$E$502,M$55,'WHS Event Log'!$Q$3:$Q$502,StagingTables!$B60) -> 0 | N60: =COUNTIFS('WHS Event Log'!$E$3:$E$502,N$55,'WHS Event Log'!$Q$3:$Q$502,StagingTables!$B60) -> 0 | O60: 0 | P60: =COUNTIFS('WHS Event Log'!$Q$3:$Q$502,$B60,'WHS Event Log'!$S$3:$S$502,Lists!$E$3) -> 0 | Q60: =COUNTIFS('WHS Event Log'!$Q$3:$Q$502,$B60,'WHS Event Log'!$S$3:$S$502,Lists!$E$3,'WHS Event Log'!$T$3:$T$502,Lists!$K$3) -> 0
B61: Dislocation | C61: =COUNTIFS('WHS Event Log'!$E$3:$E$502,C$55,'WHS Event Log'!$Q$3:$Q$502,StagingTables!$B61) -> 0 | D61: =COUNTIFS('WHS Event Log'!$E$3:$E$502,D$55,'WHS Event Log'!$Q$3:$Q$502,StagingTables!$B61) -> 0 | E61: =COUNTIFS('WHS Event Log'!$E$3:$E$502,E$55,'WHS Event Log'!$Q$3:$Q$502,StagingTables!$B61) -> 0 | F61: =COUNTIFS('WHS Event Log'!$E$3:$E$502,F$55,'WHS Event Log'!$Q$3:$Q$502,StagingTables!$B61) -> 0 | G61: =COUNTIFS('WHS Event Log'!$E$3:$E$502,G$55,'WHS Event Log'!$Q$3:$Q$502,StagingTables!$B61) -> 0 | H61: =COUNTIFS('WHS Event Log'!$E$3:$E$502,H$55,'WHS Event Log'!$Q$3:$Q$502,StagingTables!$B61) -> 0 | I61: =COUNTIFS('WHS Event Log'!$E$3:$E$502,I$55,'WHS Event Log'!$Q$3:$Q$502,StagingTables!$B61) -> 0 | J61: =COUNTIFS('WHS Event Log'!$E$3:$E$502,J$55,'WHS Event Log'!$Q$3:$Q$502,StagingTables!$B61) -> 0 | K61: =COUNTIFS('WHS Event Log'!$E$3:$E$502,K$55,'WHS Event Log'!$Q$3:$Q$502,StagingTables!$B61) -> 0 | L61: =COUNTIFS('WHS Event Log'!$E$3:$E$502,L$55,'WHS Event Log'!$Q$3:$Q$502,StagingTables!$B61) -> 0 | M61: =COUNTIFS('WHS Event Log'!$E$3:$E$502,M$55,'WHS Event Log'!$Q$3:$Q$502,StagingTables!$B61) -> 0 | N61: =COUNTIFS('WHS Event Log'!$E$3:$E$502,N$55,'WHS Event Log'!$Q$3:$Q$502,StagingTables!$B61) -> 0 | O61: 0 | P61: =COUNTIFS('WHS Event Log'!$Q$3:$Q$502,$B61,'WHS Event Log'!$S$3:$S$502,Lists!$E$3) -> 0 | Q61: =COUNTIFS('WHS Event Log'!$Q$3:$Q$502,$B61,'WHS Event Log'!$S$3:$S$502,Lists!$E$3,'WHS Event Log'!$T$3:$T$502,Lists!$K$3) -> 0
B62: Electric Shock | C62: =COUNTIFS('WHS Event Log'!$E$3:$E$502,C$55,'WHS Event Log'!$Q$3:$Q$502,StagingTables!$B62) -> 0 | D62: =COUNTIFS('WHS Event Log'!$E$3:$E$502,D$55,'WHS Event Log'!$Q$3:$Q$502,StagingTables!$B62) -> 0 | E62: =COUNTIFS('WHS Event Log'!$E$3:$E$502,E$55,'WHS Event Log'!$Q$3:$Q$502,StagingTables!$B62) -> 0 | F62: =COUNTIFS('WHS Event Log'!$E$3:$E$502,F$55,'WHS Event Log'!$Q$3:$Q$502,StagingTables!$B62) -> 0 | G62: =COUNTIFS('WHS Event Log'!$E$3:$E$502,G$55,'WHS Event Log'!$Q$3:$Q$502,StagingTables!$B62) -> 0 | H62: =COUNTIFS('WHS Event Log'!$E$3:$E$502,H$55,'WHS Event Log'!$Q$3:$Q$502,StagingTables!$B62) -> 0 | I62: =COUNTIFS('WHS Event Log'!$E$3:$E$502,I$55,'WHS Event Log'!$Q$3:$Q$502,StagingTables!$B62) -> 0 | J62: =COUNTIFS('WHS Event Log'!$E$3:$E$502,J$55,'WHS Event Log'!$Q$3:$Q$502,StagingTables!$B62) -> 0 | K62: =COUNTIFS('WHS Event Log'!$E$3:$E$502,K$55,'WHS Event Log'!$Q$3:$Q$502,StagingTables!$B62) -> 0 | L62: =COUNTIFS('WHS Event Log'!$E$3:$E$502,L$55,'WHS Event Log'!$Q$3:$Q$502,StagingTables!$B62) -> 0 | M62: =COUNTIFS('WHS Event Log'!$E$3:$E$502,M$55,'WHS Event Log'!$Q$3:$Q$502,StagingTables!$B62) -> 0 | N62: =COUNTIFS('WHS Event Log'!$E$3:$E$502,N$55,'WHS Event Log'!$Q$3:$Q$502,StagingTables!$B62) -> 0 | O62: 0 | P62: =COUNTIFS('WHS Event Log'!$Q$3:$Q$502,$B62,'WHS Event Log'!$S$3:$S$502,Lists!$E$3) -> 0 | Q62: =COUNTIFS('WHS Event Log'!$Q$3:$Q$502,$B62,'WHS Event Log'!$S$3:$S$502,Lists!$E$3,'WHS Event Log'!$T$3:$T$502,Lists!$K$3) -> 0
B63: Fatality | C63: =COUNTIFS('WHS Event Log'!$E$3:$E$502,C$55,'WHS Event Log'!$Q$3:$Q$502,StagingTables!$B63) -> 0 | D63: =COUNTIFS('WHS Event Log'!$E$3:$E$502,D$55,'WHS Event Log'!$Q$3:$Q$502,StagingTables!$B63) -> 0 | E63: =COUNTIFS('WHS Event Log'!$E$3:$E$502,E$55,'WHS Event Log'!$Q$3:$Q$502,StagingTables!$B63) -> 0 | F63: =COUNTIFS('WHS Event Log'!$E$3:$E$502,F$55,'WHS Event Log'!$Q$3:$Q$502,StagingTables!$B63) -> 0 | G63: =COUNTIFS('WHS Event Log'!$E$3:$E$502,G$55,'WHS Event Log'!$Q$3:$Q$502,StagingTables!$B63) -> 0 | H63: =COUNTIFS('WHS Event Log'!$E$3:$E$502,H$55,'WHS Event Log'!$Q$3:$Q$502,StagingTables!$B63) -> 0 | I63: =COUNTIFS('WHS Event Log'!$E$3:$E$502,I$55,'WHS Event Log'!$Q$3:$Q$502,StagingTables!$B63) -> 0 | J63: =COUNTIFS('WHS Event Log'!$E$3:$E$502,J$55,'WHS Event Log'!$Q$3:$Q$502,StagingTables!$B63) -> 0 | K63: =COUNTIFS('WHS Event Log'!$E$3:$E$502,K$55,'WHS Event Log'!$Q$3:$Q$502,StagingTables!$B63) -> 0 | L63: =COUNTIFS('WHS Event Log'!$E$3:$E$502,L$55,'WHS Event Log'!$Q$3:$Q$502,StagingTables!$B63) -> 0 | M63: =COUNTIFS('WHS Event Log'!$E$3:$E$502,M$55,'WHS Event Log'!$Q$3:$Q$502,StagingTables!$B63) -> 0 | N63: =COUNTIFS('WHS Event Log'!$E$3:$E$502,N$55,'WHS Event Log'!$Q$3:$Q$502,StagingTables!$B63) -> 0 | O63: 0 | P63: =COUNTIFS('WHS Event Log'!$Q$3:$Q$502,$B63,'WHS Event Log'!$S$3:$S$502,Lists!$E$3) -> 0 | Q63: =COUNTIFS('WHS Event Log'!$Q$3:$Q$502,$B63,'WHS Event Log'!$S$3:$S$502,Lists!$E$3,'WHS Event Log'!$T$3:$T$502,Lists!$K$3) -> 0
B64: Fatigue | C64: =COUNTIFS('WHS Event Log'!$E$3:$E$502,C$55,'WHS Event Log'!$Q$3:$Q$502,StagingTables!$B64) -> 0 | D64: =COUNTIFS('WHS Event Log'!$E$3:$E$502,D$55,'WHS Event Log'!$Q$3:$Q$502,StagingTables!$B64) -> 0 | E64: =COUNTIFS('WHS Event Log'!$E$3:$E$502,E$55,'WHS Event Log'!$Q$3:$Q$502,StagingTables!$B64) -> 0 | F64: =COUNTIFS('WHS Event Log'!$E$3:$E$502,F$55,'WHS Event Log'!$Q$3:$Q$502,StagingTables!$B64) -> 0 | G64: =COUNTIFS('WHS Event Log'!$E$3:$E$502,G$55,'WHS Event Log'!$Q$3:$Q$502,StagingTables!$B64) -> 0 | H64: =COUNTIFS('WHS Event Log'!$E$3:$E$502,H$55,'WHS Event Log'!$Q$3:$Q$502,StagingTables!$B64) -> 0 | I64: =COUNTIFS('WHS Event Log'!$E$3:$E$502,I$55,'WHS Event Log'!$Q$3:$Q$502,StagingTables!$B64) -> 0 | J64: =COUNTIFS('WHS Event Log'!$E$3:$E$502,J$55,'WHS Event Log'!$Q$3:$Q$502,StagingTables!$B64) -> 0 | K64: =COUNTIFS('WHS Event Log'!$E$3:$E$502,K$55,'WHS Event Log'!$Q$3:$Q$502,StagingTables!$B64) -> 0 | L64: =COUNTIFS('WHS Event Log'!$E$3:$E$502,L$55,'WHS Event Log'!$Q$3:$Q$502,StagingTables!$B64) -> 0 | M64: =COUNTIFS('WHS Event Log'!$E$3:$E$502,M$55,'WHS Event Log'!$Q$3:$Q$502,StagingTables!$B64) -> 0 | N64: =COUNTIFS('WHS Event Log'!$E$3:$E$502,N$55,'WHS Event Log'!$Q$3:$Q$502,StagingTables!$B64) -> 0 | O64: 0 | P64: =COUNTIFS('WHS Event Log'!$Q$3:$Q$502,$B64,'WHS Event Log'!$S$3:$S$502,Lists!$E$3) -> 0 | Q64: =COUNTIFS('WHS Event Log'!$Q$3:$Q$502,$B64,'WHS Event Log'!$S$3:$S$502,Lists!$E$3,'WHS Event Log'!$T$3:$T$502,Lists!$K$3) -> 0
B65: Foreign Body | C65: =COUNTIFS('WHS Event Log'!$E$3:$E$502,C$55,'WHS Event Log'!$Q$3:$Q$502,StagingTables!$B65) -> 0 | D65: =COUNTIFS('WHS Event Log'!$E$3:$E$502,D$55,'WHS Event Log'!$Q$3:$Q$502,StagingTables!$B65) -> 0 | E65: =COUNTIFS('WHS Event Log'!$E$3:$E$502,E$55,'WHS Event Log'!$Q$3:$Q$502,StagingTables!$B65) -> 0 | F65: =COUNTIFS('WHS Event Log'!$E$3:$E$502,F$55,'WHS Event Log'!$Q$3:$Q$502,StagingTables!$B65) -> 0 | G65: =COUNTIFS('WHS Event Log'!$E$3:$E$502,G$55,'WHS Event Log'!$Q$3:$Q$502,StagingTables!$B65) -> 0 | H65: =COUNTIFS('WHS Event Log'!$E$3:$E$502,H$55,'WHS Event Log'!$Q$3:$Q$502,StagingTables!$B65) -> 0 | I65: =COUNTIFS('WHS Event Log'!$E$3:$E$502,I$55,'WHS Event Log'!$Q$3:$Q$502,StagingTables!$B65) -> 0 | J65: =COUNTIFS('WHS Event Log'!$E$3:$E$502,J$55,'WHS Event Log'!$Q$3:$Q$502,StagingTables!$B65) -> 0 | K65: =COUNTIFS('WHS Event Log'!$E$3:$E$502,K$55,'WHS Event Log'!$Q$3:$Q$502,StagingTables!$B65) -> 0 | L65: =COUNTIFS('WHS Event Log'!$E$3:$E$502,L$55,'WHS Event Log'!$Q$3:$Q$502,StagingTables!$B65) -> 0 | M65: =COUNTIFS('WHS Event Log'!$E$3:$E$502,M$55,'WHS Event Log'!$Q$3:$Q$502,StagingTables!$B65) -> 0 | N65: =COUNTIFS('WHS Event Log'!$E$3:$E$502,N$55,'WHS Event Log'!$Q$3:$Q$502,StagingTables!$B65) -> 0 | O65: 0 | P65: =COUNTIFS('WHS Event Log'!$Q$3:$Q$502,$B65,'WHS Event Log'!$S$3:$S$502,Lists!$E$3) -> 0 | Q65: =COUNTIFS('WHS Event Log'!$Q$3:$Q$502,$B65,'WHS Event Log'!$S$3:$S$502,Lists!$E$3,'WHS Event Log'!$T$3:$T$502,Lists!$K$3) -> 0
B66: Fracture | C66: =COUNTIFS('WHS Event Log'!$E$3:$E$502,C$55,'WHS Event Log'!$Q$3:$Q$502,StagingTables!$B66) -> 0 | D66: =COUNTIFS('WHS Event Log'!$E$3:$E$502,D$55,'WHS Event Log'!$Q$3:$Q$502,StagingTables!$B66) -> 0 | E66: =COUNTIFS('WHS Event Log'!$E$3:$E$502,E$55,'WHS Event Log'!$Q$3:$Q$502,StagingTables!$B66) -> 0 | F66: =COUNTIFS('WHS Event Log'!$E$3:$E$502,F$55,'WHS Event Log'!$Q$3:$Q$502,StagingTables!$B66) -> 0 | G66: =COUNTIFS('WHS Event Log'!$E$3:$E$502,G$55,'WHS Event Log'!$Q$3:$Q$502,StagingTables!$B66) -> 0 | H66: =COUNTIFS('WHS Event Log'!$E$3:$E$502,H$55,'WHS Event Log'!$Q$3:$Q$502,StagingTables!$B66) -> 0 | I66: =COUNTIFS('WHS Event Log'!$E$3:$E$502,I$55,'WHS Event Log'!$Q$3:$Q$502,StagingTables!$B66) -> 0 | J66: =COUNTIFS('WHS Event Log'!$E$3:$E$502,J$55,'WHS Event Log'!$Q$3:$Q$502,StagingTables!$B66) -> 0 | K66: =COUNTIFS('WHS Event Log'!$E$3:$E$502,K$55,'WHS Event Log'!$Q$3:$Q$502,StagingTables!$B66) -> 0 | L66: =COUNTIFS('WHS Event Log'!$E$3:$E$502,L$55,'WHS Event Log'!$Q$3:$Q$502,StagingTables!$B66) -> 0 | M66: =COUNTIFS('WHS Event Log'!$E$3:$E$502,M$55,'WHS Event Log'!$Q$3:$Q$502,StagingTables!$B66) -> 0 | N66: =COUNTIFS('WHS Event Log'!$E$3:$E$502,N$55,'WHS Event Log'!$Q$3:$Q$502,StagingTables!$B66) -> 0 | O66: 0 | P66: =COUNTIFS('WHS Event Log'!$Q$3:$Q$502,$B66,'WHS Event Log'!$S$3:$S$502,Lists!$E$3) -> 0 | Q66: =COUNTIFS('WHS Event Log'!$Q$3:$Q$502,$B66,'WHS Event Log'!$S$3:$S$502,Lists!$E$3,'WHS Event Log'!$T$3:$T$502,Lists!$K$3) -> 0
B67: Hernia | C67: =COUNTIFS('WHS Event Log'!$E$3:$E$502,C$55,'WHS Event Log'!$Q$3:$Q$502,StagingTables!$B67) -> 0 | D67: =COUNTIFS('WHS Event Log'!$E$3:$E$502,D$55,'WHS Event Log'!$Q$3:$Q$502,StagingTables!$B67) -> 0 | E67: =COUNTIFS('WHS Event Log'!$E$3:$E$502,E$55,'WHS Event Log'!$Q$3:$Q$502,StagingTables!$B67) -> 0 | F67: =COUNTIFS('WHS Event Log'!$E$3:$E$502,F$55,'WHS Event Log'!$Q$3:$Q$502,StagingTables!$B67) -> 0 | G67: =COUNTIFS('WHS Event Log'!$E$3:$E$502,G$55,'WHS Event Log'!$Q$3:$Q$502,StagingTables!$B67) -> 0 | H67: =COUNTIFS('WHS Event Log'!$E$3:$E$502,H$55,'WHS Event Log'!$Q$3:$Q$502,StagingTables!$B67) -> 0 | I67: =COUNTIFS('WHS Event Log'!$E$3:$E$502,I$55,'WHS Event Log'!$Q$3:$Q$502,StagingTables!$B67) -> 0 | J67: =COUNTIFS('WHS Event Log'!$E$3:$E$502,J$55,'WHS Event Log'!$Q$3:$Q$502,StagingTables!$B67) -> 0 | K67: =COUNTIFS('WHS Event Log'!$E$3:$E$502,K$55,'WHS Event Log'!$Q$3:$Q$502,StagingTables!$B67) -> 0 | L67: =COUNTIFS('WHS Event Log'!$E$3:$E$502,L$55,'WHS Event Log'!$Q$3:$Q$502,StagingTables!$B67) -> 0 | M67: =COUNTIFS('WHS Event Log'!$E$3:$E$502,M$55,'WHS Event Log'!$Q$3:$Q$502,StagingTables!$B67) -> 0 | N67: =COUNTIFS('WHS Event Log'!$E$3:$E$502,N$55,'WHS Event Log'!$Q$3:$Q$502,StagingTables!$B67) -> 0 | O67: 0 | P67: =COUNTIFS('WHS Event Log'!$Q$3:$Q$502,$B67,'WHS Event Log'!$S$3:$S$502,Lists!$E$3) -> 0 | Q67: =COUNTIFS('WHS Event Log'!$Q$3:$Q$502,$B67,'WHS Event Log'!$S$3:$S$502,Lists!$E$3,'WHS Event Log'!$T$3:$T$502,Lists!$K$3) -> 0
B68: Legionnaires' Disease | C68: =COUNTIFS('WHS Event Log'!$E$3:$E$502,C$55,'WHS Event Log'!$Q$3:$Q$502,StagingTables!$B68) -> 0 | D68: =COUNTIFS('WHS Event Log'!$E$3:$E$502,D$55,'WHS Event Log'!$Q$3:$Q$502,StagingTables!$B68) -> 0 | E68: =COUNTIFS('WHS Event Log'!$E$3:$E$502,E$55,'WHS Event Log'!$Q$3:$Q$502,StagingTables!$B68) -> 0 | F68: =COUNTIFS('WHS Event Log'!$E$3:$E$502,F$55,'WHS Event Log'!$Q$3:$Q$502,StagingTables!$B68) -> 0 | G68: =COUNTIFS('WHS Event Log'!$E$3:$E$502,G$55,'WHS Event Log'!$Q$3:$Q$502,StagingTables!$B68) -> 0 | H68: =COUNTIFS('WHS Event Log'!$E$3:$E$502,H$55,'WHS Event Log'!$Q$3:$Q$502,StagingTables!$B68) -> 0 | I68: =COUNTIFS('WHS Event Log'!$E$3:$E$502,I$55,'WHS Event Log'!$Q$3:$Q$502,StagingTables!$B68) -> 0 | J68: =COUNTIFS('WHS Event Log'!$E$3:$E$502,J$55,'WHS Event Log'!$Q$3:$Q$502,StagingTables!$B68) -> 0 | K68: =COUNTIFS('WHS Event Log'!$E$3:$E$502,K$55,'WHS Event Log'!$Q$3:$Q$502,StagingTables!$B68) -> 0 | L68: =COUNTIFS('WHS Event Log'!$E$3:$E$502,L$55,'WHS Event Log'!$Q$3:$Q$502,StagingTables!$B68) -> 0 | M68: =COUNTIFS('WHS Event Log'!$E$3:$E$502,M$55,'WHS Event Log'!$Q$3:$Q$502,StagingTables!$B68) -> 0 | N68: =COUNTIFS('WHS Event Log'!$E$3:$E$502,N$55,'WHS Event Log'!$Q$3:$Q$502,StagingTables!$B68) -> 0 | O68: 0 | P68: =COUNTIFS('WHS Event Log'!$Q$3:$Q$502,$B68,'WHS Event Log'!$S$3:$S$502,Lists!$E$3) -> 0 | Q68: =COUNTIFS('WHS Event Log'!$Q$3:$Q$502,$B68,'WHS Event Log'!$S$3:$S$502,Lists!$E$3,'WHS Event Log'!$T$3:$T$502,Lists!$K$3) -> 0
B69: Mental Disorder | C69: =COUNTIFS('WHS Event Log'!$E$3:$E$502,C$55,'WHS Event Log'!$Q$3:$Q$502,StagingTables!$B69) -> 0 | D69: =COUNTIFS('WHS Event Log'!$E$3:$E$502,D$55,'WHS Event Log'!$Q$3:$Q$502,StagingTables!$B69) -> 0 | E69: =COUNTIFS('WHS Event Log'!$E$3:$E$502,E$55,'WHS Event Log'!$Q$3:$Q$502,StagingTables!$B69) -> 0 | F69: =COUNTIFS('WHS Event Log'!$E$3:$E$502,F$55,'WHS Event Log'!$Q$3:$Q$502,StagingTables!$B69) -> 0 | G69: =COUNTIFS('WHS Event Log'!$E$3:$E$502,G$55,'WHS Event Log'!$Q$3:$Q$502,StagingTables!$B69) -> 0 | H69: =COUNTIFS('WHS Event Log'!$E$3:$E$502,H$55,'WHS Event Log'!$Q$3:$Q$502,StagingTables!$B69) -> 0 | I69: =COUNTIFS('WHS Event Log'!$E$3:$E$502,I$55,'WHS Event Log'!$Q$3:$Q$502,StagingTables!$B69) -> 0 | J69: =COUNTIFS('WHS Event Log'!$E$3:$E$502,J$55,'WHS Event Log'!$Q$3:$Q$502,StagingTables!$B69) -> 0 | K69: =COUNTIFS('WHS Event Log'!$E$3:$E$502,K$55,'WHS Event Log'!$Q$3:$Q$502,StagingTables!$B69) -> 0 | L69: =COUNTIFS('WHS Event Log'!$E$3:$E$502,L$55,'WHS Event Log'!$Q$3:$Q$502,StagingTables!$B69) -> 0 | M69: =COUNTIFS('WHS Event Log'!$E$3:$E$502,M$55,'WHS Event Log'!$Q$3:$Q$502,StagingTables!$B69) -> 0 | N69: =COUNTIFS('WHS Event Log'!$E$3:$E$502,N$55,'WHS Event Log'!$Q$3:$Q$502,StagingTables!$B69) -> 0 | O69: 0 | P69: =COUNTIFS('WHS Event Log'!$Q$3:$Q$502,$B69,'WHS Event Log'!$S$3:$S$502,Lists!$E$3) -> 0 | Q69: =COUNTIFS('WHS Event Log'!$Q$3:$Q$502,$B69,'WHS Event Log'!$S$3:$S$502,Lists!$E$3,'WHS Event Log'!$T$3:$T$502,Lists!$K$3) -> 0
B70: Multiple Injury | C70: =COUNTIFS('WHS Event Log'!$E$3:$E$502,C$55,'WHS Event Log'!$Q$3:$Q$502,StagingTables!$B70) -> 0 | D70: =COUNTIFS('WHS Event Log'!$E$3:$E$502,D$55,'WHS Event Log'!$Q$3:$Q$502,StagingTables!$B70) -> 0 | E70: =COUNTIFS('WHS Event Log'!$E$3:$E$502,E$55,'WHS Event Log'!$Q$3:$Q$502,StagingTables!$B70) -> 0 | F70: =COUNTIFS('WHS Event Log'!$E$3:$E$502,F$55,'WHS Event Log'!$Q$3:$Q$502,StagingTables!$B70) -> 0 | G70: =COUNTIFS('WHS Event Log'!$E$3:$E$502,G$55,'WHS Event Log'!$Q$3:$Q$502,StagingTables!$B70) -> 0 | H70: =COUNTIFS('WHS Event Log'!$E$3:$E$502,H$55,'WHS Event Log'!$Q$3:$Q$502,StagingTables!$B70) -> 0 | I70: =COUNTIFS('WHS Event Log'!$E$3:$E$502,I$55,'WHS Event Log'!$Q$3:$Q$502,StagingTables!$B70) -> 0 | J70: =COUNTIFS('WHS Event Log'!$E$3:$E$502,J$55,'WHS Event Log'!$Q$3:$Q$502,StagingTables!$B70) -> 0 | K70: =COUNTIFS('WHS Event Log'!$E$3:$E$502,K$55,'WHS Event Log'!$Q$3:$Q$502,StagingTables!$B70) -> 0 | L70: =COUNTIFS('WHS Event Log'!$E$3:$E$502,L$55,'WHS Event Log'!$Q$3:$Q$502,StagingTables!$B70) -> 0 | M70: =COUNTIFS('WHS Event Log'!$E$3:$E$502,M$55,'WHS Event Log'!$Q$3:$Q$502,StagingTables!$B70) -> 0 | N70: =COUNTIFS('WHS Event Log'!$E$3:$E$502,N$55,'WHS Event Log'!$Q$3:$Q$502,StagingTables!$B70) -> 0 | O70: 0 | P70: =COUNTIFS('WHS Event Log'!$Q$3:$Q$502,$B70,'WHS Event Log'!$S$3:$S$502,Lists!$E$3) -> 0 | Q70: =COUNTIFS('WHS Event Log'!$Q$3:$Q$502,$B70,'WHS Event Log'!$S$3:$S$502,Lists!$E$3,'WHS Event Log'!$T$3:$T$502,Lists!$K$3) -> 0
B71: Open Wound | C71: =COUNTIFS('WHS Event Log'!$E$3:$E$502,C$55,'WHS Event Log'!$Q$3:$Q$502,StagingTables!$B71) -> 0 | D71: =COUNTIFS('WHS Event Log'!$E$3:$E$502,D$55,'WHS Event Log'!$Q$3:$Q$502,StagingTables!$B71) -> 0 | E71: =COUNTIFS('WHS Event Log'!$E$3:$E$502,E$55,'WHS Event Log'!$Q$3:$Q$502,StagingTables!$B71) -> 0 | F71: =COUNTIFS('WHS Event Log'!$E$3:$E$502,F$55,'WHS Event Log'!$Q$3:$Q$502,StagingTables!$B71) -> 0 | G71: =COUNTIFS('WHS Event Log'!$E$3:$E$502,G$55,'WHS Event Log'!$Q$3:$Q$502,StagingTables!$B71) -> 0 | H71: =COUNTIFS('WHS Event Log'!$E$3:$E$502,H$55,'WHS Event Log'!$Q$3:$Q$502,StagingTables!$B71) -> 0 | I71: =COUNTIFS('WHS Event Log'!$E$3:$E$502,I$55,'WHS Event Log'!$Q$3:$Q$502,StagingTables!$B71) -> 0 | J71: =COUNTIFS('WHS Event Log'!$E$3:$E$502,J$55,'WHS Event Log'!$Q$3:$Q$502,StagingTables!$B71) -> 0 | K71: =COUNTIFS('WHS Event Log'!$E$3:$E$502,K$55,'WHS Event Log'!$Q$3:$Q$502,StagingTables!$B71) -> 0 | L71: =COUNTIFS('WHS Event Log'!$E$3:$E$502,L$55,'WHS Event Log'!$Q$3:$Q$502,StagingTables!$B71) -> 0 | M71: =COUNTIFS('WHS Event Log'!$E$3:$E$502,M$55,'WHS Event Log'!$Q$3:$Q$502,StagingTables!$B71) -> 0 | N71: =COUNTIFS('WHS Event Log'!$E$3:$E$502,N$55,'WHS Event Log'!$Q$3:$Q$502,StagingTables!$B71) -> 0 | O71: 0 | P71: =COUNTIFS('WHS Event Log'!$Q$3:$Q$502,$B71,'WHS Event Log'!$S$3:$S$502,Lists!$E$3) -> 0 | Q71: =COUNTIFS('WHS Event Log'!$Q$3:$Q$502,$B71,'WHS Event Log'!$S$3:$S$502,Lists!$E$3,'WHS Event Log'!$T$3:$T$502,Lists!$K$3) -> 0
B72: Poisoning/Toxic Effects | C72: =COUNTIFS('WHS Event Log'!$E$3:$E$502,C$55,'WHS Event Log'!$Q$3:$Q$502,StagingTables!$B72) -> 0 | D72: =COUNTIFS('WHS Event Log'!$E$3:$E$502,D$55,'WHS Event Log'!$Q$3:$Q$502,StagingTables!$B72) -> 0 | E72: =COUNTIFS('WHS Event Log'!$E$3:$E$502,E$55,'WHS Event Log'!$Q$3:$Q$502,StagingTables!$B72) -> 0 | F72: =COUNTIFS('WHS Event Log'!$E$3:$E$502,F$55,'WHS Event Log'!$Q$3:$Q$502,StagingTables!$B72) -> 0 | G72: =COUNTIFS('WHS Event Log'!$E$3:$E$502,G$55,'WHS Event Log'!$Q$3:$Q$502,StagingTables!$B72) -> 0 | H72: =COUNTIFS('WHS Event Log'!$E$3:$E$502,H$55,'WHS Event Log'!$Q$3:$Q$502,StagingTables!$B72) -> 0 | I72: =COUNTIFS('WHS Event Log'!$E$3:$E$502,I$55,'WHS Event Log'!$Q$3:$Q$502,StagingTables!$B72) -> 0 | J72: =COUNTIFS('WHS Event Log'!$E$3:$E$502,J$55,'WHS Event Log'!$Q$3:$Q$502,StagingTables!$B72) -> 0 | K72: =COUNTIFS('WHS Event Log'!$E$3:$E$502,K$55,'WHS Event Log'!$Q$3:$Q$502,StagingTables!$B72) -> 0 | L72: =COUNTIFS('WHS Event Log'!$E$3:$E$502,L$55,'WHS Event Log'!$Q$3:$Q$502,StagingTables!$B72) -> 0 | M72: =COUNTIFS('WHS Event Log'!$E$3:$E$502,M$55,'WHS Event Log'!$Q$3:$Q$502,StagingTables!$B72) -> 0 | N72: =COUNTIFS('WHS Event Log'!$E$3:$E$502,N$55,'WHS Event Log'!$Q$3:$Q$502,StagingTables!$B72) -> 0 | O72: 0 | P72: =COUNTIFS('WHS Event Log'!$Q$3:$Q$502,$B72,'WHS Event Log'!$S$3:$S$502,Lists!$E$3) -> 0 | Q72: =COUNTIFS('WHS Event Log'!$Q$3:$Q$502,$B72,'WHS Event Log'!$S$3:$S$502,Lists!$E$3,'WHS Event Log'!$T$3:$T$502,Lists!$K$3) -> 0
B73: Puncture wound | C73: =COUNTIFS('WHS Event Log'!$E$3:$E$502,C$55,'WHS Event Log'!$Q$3:$Q$502,StagingTables!$B73) -> 0 | D73: =COUNTIFS('WHS Event Log'!$E$3:$E$502,D$55,'WHS Event Log'!$Q$3:$Q$502,StagingTables!$B73) -> 0 | E73: =COUNTIFS('WHS Event Log'!$E$3:$E$502,E$55,'WHS Event Log'!$Q$3:$Q$502,StagingTables!$B73) -> 0 | F73: =COUNTIFS('WHS Event Log'!$E$3:$E$502,F$55,'WHS Event Log'!$Q$3:$Q$502,StagingTables!$B73) -> 0 | G73: =COUNTIFS('WHS Event Log'!$E$3:$E$502,G$55,'WHS Event Log'!$Q$3:$Q$502,StagingTables!$B73) -> 0 | H73: =COUNTIFS('WHS Event Log'!$E$3:$E$502,H$55,'WHS Event Log'!$Q$3:$Q$502,StagingTables!$B73) -> 0 | I73: =COUNTIFS('WHS Event Log'!$E$3:$E$502,I$55,'WHS Event Log'!$Q$3:$Q$502,StagingTables!$B73) -> 0 | J73: =COUNTIFS('WHS Event Log'!$E$3:$E$502,J$55,'WHS Event Log'!$Q$3:$Q$502,StagingTables!$B73) -> 0 | K73: =COUNTIFS('WHS Event Log'!$E$3:$E$502,K$55,'WHS Event Log'!$Q$3:$Q$502,StagingTables!$B73) -> 0 | L73: =COUNTIFS('WHS Event Log'!$E$3:$E$502,L$55,'WHS Event Log'!$Q$3:$Q$502,StagingTables!$B73) -> 0 | M73: =COUNTIFS('WHS Event Log'!$E$3:$E$502,M$55,'WHS Event Log'!$Q$3:$Q$502,StagingTables!$B73) -> 0 | N73: =COUNTIFS('WHS Event Log'!$E$3:$E$502,N$55,'WHS Event Log'!$Q$3:$Q$502,StagingTables!$B73) -> 0 | O73: 0 | P73: =COUNTIFS('WHS Event Log'!$Q$3:$Q$502,$B73,'WHS Event Log'!$S$3:$S$502,Lists!$E$3) -> 0 | Q73: =COUNTIFS('WHS Event Log'!$Q$3:$Q$502,$B73,'WHS Event Log'!$S$3:$S$502,Lists!$E$3,'WHS Event Log'!$T$3:$T$502,Lists!$K$3) -> 0
B74: Respiratory Condition | C74: =COUNTIFS('WHS Event Log'!$E$3:$E$502,C$55,'WHS Event Log'!$Q$3:$Q$502,StagingTables!$B74) -> 0 | D74: =COUNTIFS('WHS Event Log'!$E$3:$E$502,D$55,'WHS Event Log'!$Q$3:$Q$502,StagingTables!$B74) -> 0 | E74: =COUNTIFS('WHS Event Log'!$E$3:$E$502,E$55,'WHS Event Log'!$Q$3:$Q$502,StagingTables!$B74) -> 0 | F74: =COUNTIFS('WHS Event Log'!$E$3:$E$502,F$55,'WHS Event Log'!$Q$3:$Q$502,StagingTables!$B74) -> 0 | G74: =COUNTIFS('WHS Event Log'!$E$3:$E$502,G$55,'WHS Event Log'!$Q$3:$Q$502,StagingTables!$B74) -> 0 | H74: =COUNTIFS('WHS Event Log'!$E$3:$E$502,H$55,'WHS Event Log'!$Q$3:$Q$502,StagingTables!$B74) -> 0 | I74: =COUNTIFS('WHS Event Log'!$E$3:$E$502,I$55,'WHS Event Log'!$Q$3:$Q$502,StagingTables!$B74) -> 0 | J74: =COUNTIFS('WHS Event Log'!$E$3:$E$502,J$55,'WHS Event Log'!$Q$3:$Q$502,StagingTables!$B74) -> 0 | K74: =COUNTIFS('WHS Event Log'!$E$3:$E$502,K$55,'WHS Event Log'!$Q$3:$Q$502,StagingTables!$B74) -> 0 | L74: =COUNTIFS('WHS Event Log'!$E$3:$E$502,L$55,'WHS Event Log'!$Q$3:$Q$502,StagingTables!$B74) -> 0 | M74: =COUNTIFS('WHS Event Log'!$E$3:$E$502,M$55,'WHS Event Log'!$Q$3:$Q$502,StagingTables!$B74) -> 0 | N74: =COUNTIFS('WHS Event Log'!$E$3:$E$502,N$55,'WHS Event Log'!$Q$3:$Q$502,StagingTables!$B74) -> 0 | O74: 0 | P74: =COUNTIFS('WHS Event Log'!$Q$3:$Q$502,$B74,'WHS Event Log'!$S$3:$S$502,Lists!$E$3) -> 0 | Q74: =COUNTIFS('WHS Event Log'!$Q$3:$Q$502,$B74,'WHS Event Log'!$S$3:$S$502,Lists!$E$3,'WHS Event Log'!$T$3:$T$502,Lists!$K$3) -> 0
B75: Sprains, Strains | C75: =COUNTIFS('WHS Event Log'!$E$3:$E$502,C$55,'WHS Event Log'!$Q$3:$Q$502,StagingTables!$B75) -> 0 | D75: =COUNTIFS('WHS Event Log'!$E$3:$E$502,D$55,'WHS Event Log'!$Q$3:$Q$502,StagingTables!$B75) -> 0 | E75: =COUNTIFS('WHS Event Log'!$E$3:$E$502,E$55,'WHS Event Log'!$Q$3:$Q$502,StagingTables!$B75) -> 0 | F75: =COUNTIFS('WHS Event Log'!$E$3:$E$502,F$55,'WHS Event Log'!$Q$3:$Q$502,StagingTables!$B75) -> 0 | G75: =COUNTIFS('WHS Event Log'!$E$3:$E$502,G$55,'WHS Event Log'!$Q$3:$Q$502,StagingTables!$B75) -> 0 | H75: =COUNTIFS('WHS Event Log'!$E$3:$E$502,H$55,'WHS Event Log'!$Q$3:$Q$502,StagingTables!$B75) -> 0 | I75: =COUNTIFS('WHS Event Log'!$E$3:$E$502,I$55,'WHS Event Log'!$Q$3:$Q$502,StagingTables!$B75) -> 0 | J75: =COUNTIFS('WHS Event Log'!$E$3:$E$502,J$55,'WHS Event Log'!$Q$3:$Q$502,StagingTables!$B75) -> 0 | K75: =COUNTIFS('WHS Event Log'!$E$3:$E$502,K$55,'WHS Event Log'!$Q$3:$Q$502,StagingTables!$B75) -> 0 | L75: =COUNTIFS('WHS Event Log'!$E$3:$E$502,L$55,'WHS Event Log'!$Q$3:$Q$502,StagingTables!$B75) -> 0 | M75: =COUNTIFS('WHS Event Log'!$E$3:$E$502,M$55,'WHS Event Log'!$Q$3:$Q$502,StagingTables!$B75) -> 0 | N75: =COUNTIFS('WHS Event Log'!$E$3:$E$502,N$55,'WHS Event Log'!$Q$3:$Q$502,StagingTables!$B75) -> 0 | O75: 0 | P75: =COUNTIFS('WHS Event Log'!$Q$3:$Q$502,$B75,'WHS Event Log'!$S$3:$S$502,Lists!$E$3) -> 0 | Q75: =COUNTIFS('WHS Event Log'!$Q$3:$Q$502,$B75,'WHS Event Log'!$S$3:$S$502,Lists!$E$3,'WHS Event Log'!$T$3:$T$502,Lists!$K$3) -> 0
B76: Superficial Injury | C76: =COUNTIFS('WHS Event Log'!$E$3:$E$502,C$55,'WHS Event Log'!$Q$3:$Q$502,StagingTables!$B76) -> 0 | D76: =COUNTIFS('WHS Event Log'!$E$3:$E$502,D$55,'WHS Event Log'!$Q$3:$Q$502,StagingTables!$B76) -> 0 | E76: =COUNTIFS('WHS Event Log'!$E$3:$E$502,E$55,'WHS Event Log'!$Q$3:$Q$502,StagingTables!$B76) -> 0 | F76: =COUNTIFS('WHS Event Log'!$E$3:$E$502,F$55,'WHS Event Log'!$Q$3:$Q$502,StagingTables!$B76) -> 0 | G76: =COUNTIFS('WHS Event Log'!$E$3:$E$502,G$55,'WHS Event Log'!$Q$3:$Q$502,StagingTables!$B76) -> 0 | H76: =COUNTIFS('WHS Event Log'!$E$3:$E$502,H$55,'WHS Event Log'!$Q$3:$Q$502,StagingTables!$B76) -> 0 | I76: =COUNTIFS('WHS Event Log'!$E$3:$E$502,I$55,'WHS Event Log'!$Q$3:$Q$502,StagingTables!$B76) -> 0 | J76: =COUNTIFS('WHS Event Log'!$E$3:$E$502,J$55,'WHS Event Log'!$Q$3:$Q$502,StagingTables!$B76) -> 0 | K76: =COUNTIFS('WHS Event Log'!$E$3:$E$502,K$55,'WHS Event Log'!$Q$3:$Q$502,StagingTables!$B76) -> 0 | L76: =COUNTIFS('WHS Event Log'!$E$3:$E$502,L$55,'WHS Event Log'!$Q$3:$Q$502,StagingTables!$B76) -> 0 | M76: =COUNTIFS('WHS Event Log'!$E$3:$E$502,M$55,'WHS Event Log'!$Q$3:$Q$502,StagingTables!$B76) -> 0 | N76: =COUNTIFS('WHS Event Log'!$E$3:$E$502,N$55,'WHS Event Log'!$Q$3:$Q$502,StagingTables!$B76) -> 0 | O76: 0 | P76: =COUNTIFS('WHS Event Log'!$Q$3:$Q$502,$B76,'WHS Event Log'!$S$3:$S$502,Lists!$E$3) -> 0 | Q76: =COUNTIFS('WHS Event Log'!$Q$3:$Q$502,$B76,'WHS Event Log'!$S$3:$S$502,Lists!$E$3,'WHS Event Log'!$T$3:$T$502,Lists!$K$3) -> 0
B77: Unspecified | C77: =COUNTIFS('WHS Event Log'!$E$3:$E$502,C$55,'WHS Event Log'!$Q$3:$Q$502,StagingTables!$B77) -> 0 | D77: =COUNTIFS('WHS Event Log'!$E$3:$E$502,D$55,'WHS Event Log'!$Q$3:$Q$502,StagingTables!$B77) -> 0 | E77: =COUNTIFS('WHS Event Log'!$E$3:$E$502,E$55,'WHS Event Log'!$Q$3:$Q$502,StagingTables!$B77) -> 0 | F77: =COUNTIFS('WHS Event Log'!$E$3:$E$502,F$55,'WHS Event Log'!$Q$3:$Q$502,StagingTables!$B77) -> 0 | G77: =COUNTIFS('WHS Event Log'!$E$3:$E$502,G$55,'WHS Event Log'!$Q$3:$Q$502,StagingTables!$B77) -> 0 | H77: =COUNTIFS('WHS Event Log'!$E$3:$E$502,H$55,'WHS Event Log'!$Q$3:$Q$502,StagingTables!$B77) -> 0 | I77: =COUNTIFS('WHS Event Log'!$E$3:$E$502,I$55,'WHS Event Log'!$Q$3:$Q$502,StagingTables!$B77) -> 0 | J77: =COUNTIFS('WHS Event Log'!$E$3:$E$502,J$55,'WHS Event Log'!$Q$3:$Q$502,StagingTables!$B77) -> 0 | K77: =COUNTIFS('WHS Event Log'!$E$3:$E$502,K$55,'WHS Event Log'!$Q$3:$Q$502,StagingTables!$B77) -> 0 | L77: =COUNTIFS('WHS Event Log'!$E$3:$E$502,L$55,'WHS Event Log'!$Q$3:$Q$502,StagingTables!$B77) -> 0 | M77: =COUNTIFS('WHS Event Log'!$E$3:$E$502,M$55,'WHS Event Log'!$Q$3:$Q$502,StagingTables!$B77) -> 0 | N77: =COUNTIFS('WHS Event Log'!$E$3:$E$502,N$55,'WHS Event Log'!$Q$3:$Q$502,StagingTables!$B77) -> 0 | O77: 0 | P77: =COUNTIFS('WHS Event Log'!$Q$3:$Q$502,$B77,'WHS Event Log'!$S$3:$S$502,Lists!$E$3) -> 0 | Q77: =COUNTIFS('WHS Event Log'!$Q$3:$Q$502,$B77,'WHS Event Log'!$S$3:$S$502,Lists!$E$3,'WHS Event Log'!$T$3:$T$502,Lists!$K$3) -> 0
B78: Other | C78: =COUNTIFS('WHS Event Log'!$E$3:$E$502,C$55,'WHS Event Log'!$Q$3:$Q$502,StagingTables!$B78) -> 0 | D78: =COUNTIFS('WHS Event Log'!$E$3:$E$502,D$55,'WHS Event Log'!$Q$3:$Q$502,StagingTables!$B78) -> 0 | E78: =COUNTIFS('WHS Event Log'!$E$3:$E$502,E$55,'WHS Event Log'!$Q$3:$Q$502,StagingTables!$B78) -> 0 | F78: =COUNTIFS('WHS Event Log'!$E$3:$E$502,F$55,'WHS Event Log'!$Q$3:$Q$502,StagingTables!$B78) -> 0 | G78: =COUNTIFS('WHS Event Log'!$E$3:$E$502,G$55,'WHS Event Log'!$Q$3:$Q$502,StagingTables!$B78) -> 0 | H78: =COUNTIFS('WHS Event Log'!$E$3:$E$502,H$55,'WHS Event Log'!$Q$3:$Q$502,StagingTables!$B78) -> 0 | I78: =COUNTIFS('WHS Event Log'!$E$3:$E$502,I$55,'WHS Event Log'!$Q$3:$Q$502,StagingTables!$B78) -> 0 | J78: =COUNTIFS('WHS Event Log'!$E$3:$E$502,J$55,'WHS Event Log'!$Q$3:$Q$502,StagingTables!$B78) -> 0 | K78: =COUNTIFS('WHS Event Log'!$E$3:$E$502,K$55,'WHS Event Log'!$Q$3:$Q$502,StagingTables!$B78) -> 0 | L78: =COUNTIFS('WHS Event Log'!$E$3:$E$502,L$55,'WHS Event Log'!$Q$3:$Q$502,StagingTables!$B78) -> 0 | M78: =COUNTIFS('WHS Event Log'!$E$3:$E$502,M$55,'WHS Event Log'!$Q$3:$Q$502,StagingTables!$B78) -> 0 | N78: =COUNTIFS('WHS Event Log'!$E$3:$E$502,N$55,'WHS Event Log'!$Q$3:$Q$502,StagingTables!$B78) -> 0 | O78: 0 | P78: =COUNTIFS('WHS Event Log'!$Q$3:$Q$502,$B78,'WHS Event Log'!$S$3:$S$502,Lists!$E$3) -> 0 | Q78: =COUNTIFS('WHS Event Log'!$Q$3:$Q$502,$B78,'WHS Event Log'!$S$3:$S$502,Lists!$E$3,'WHS Event Log'!$T$3:$T$502,Lists!$K$3) -> 0
B79: Injury Totals | C79: =SUM(C57:C78) -> 0 | D79: 0 | E79: 0 | F79: 0 | G79: 0 | H79: 0 | I79: 0 | J79: 0 | K79: 0 | L79: 0 | M79: 0 | N79: 0 | O79: 0
B80: Claim Made | C80: =COUNTIFS('WHS Event Log'!$E$3:$E$502,C$55,'WHS Event Log'!$S$3:$S$502,Lists!$E$3) -> 0 | D80: =COUNTIFS('WHS Event Log'!$E$3:$E$502,D$55,'WHS Event Log'!$S$3:$S$502,Lists!$E$3) -> 0 | E80: =COUNTIFS('WHS Event Log'!$E$3:$E$502,E$55,'WHS Event Log'!$S$3:$S$502,Lists!$E$3) -> 0 | F80: =COUNTIFS('WHS Event Log'!$E$3:$E$502,F$55,'WHS Event Log'!$S$3:$S$502,Lists!$E$3) -> 0 | G80: =COUNTIFS('WHS Event Log'!$E$3:$E$502,G$55,'WHS Event Log'!$S$3:$S$502,Lists!$E$3) -> 0 | H80: =COUNTIFS('WHS Event Log'!$E$3:$E$502,H$55,'WHS Event Log'!$S$3:$S$502,Lists!$E$3) -> 0 | I80: =COUNTIFS('WHS Event Log'!$E$3:$E$502,I$55,'WHS Event Log'!$S$3:$S$502,Lists!$E$3) -> 0 | J80: =COUNTIFS('WHS Event Log'!$E$3:$E$502,J$55,'WHS Event Log'!$S$3:$S$502,Lists!$E$3) -> 0 | K80: =COUNTIFS('WHS Event Log'!$E$3:$E$502,K$55,'WHS Event Log'!$S$3:$S$502,Lists!$E$3) -> 0 | L80: =COUNTIFS('WHS Event Log'!$E$3:$E$502,L$55,'WHS Event Log'!$S$3:$S$502,Lists!$E$3) -> 0 | M80: =COUNTIFS('WHS Event Log'!$E$3:$E$502,M$55,'WHS Event Log'!$S$3:$S$502,Lists!$E$3) -> 0 | N80: =COUNTIFS('WHS Event Log'!$E$3:$E$502,N$55,'WHS Event Log'!$S$3:$S$502,Lists!$E$3) -> 0 | P80: =SUM(C80:N80) -> 0 | Q80: =SUM(Q56:Q78) -> 0
B83: Tally of Hazard Risk Ratings | C83: January | D83: February | E83: March | F83: April | G83: May | H83: June | I83: July | J83: August | K83: September | L83: October | M83: November | N83: December | O83: Total
B84: Low | C84: =COUNTIFS('WHS Event Log'!$E$3:$E$502,C$83,'WHS Event Log'!$O$3:$O$502,StagingTables!$B$84) -> 0 | D84: =COUNTIFS('WHS Event Log'!$E$3:$E$502,D$83,'WHS Event Log'!$O$3:$O$502,StagingTables!$B$84) -> 0 | E84: =COUNTIFS('WHS Event Log'!$E$3:$E$502,E$83,'WHS Event Log'!$O$3:$O$502,StagingTables!$B$84) -> 0 | F84: =COUNTIFS('WHS Event Log'!$E$3:$E$502,F$83,'WHS Event Log'!$O$3:$O$502,StagingTables!$B$84) -> 0 | G84: =COUNTIFS('WHS Event Log'!$E$3:$E$502,G$83,'WHS Event Log'!$O$3:$O$502,StagingTables!$B$84) -> 0 | H84: =COUNTIFS('WHS Event Log'!$E$3:$E$502,H$83,'WHS Event Log'!$O$3:$O$502,StagingTables!$B$84) -> 0 | I84: =COUNTIFS('WHS Event Log'!$E$3:$E$502,I$83,'WHS Event Log'!$O$3:$O$502,StagingTables!$B$84) -> 0 | J84: =COUNTIFS('WHS Event Log'!$E$3:$E$502,J$83,'WHS Event Log'!$O$3:$O$502,StagingTables!$B$84) -> 0 | K84: =COUNTIFS('WHS Event Log'!$E$3:$E$502,K$83,'WHS Event Log'!$O$3:$O$502,StagingTables!$B$84) -> 0 | L84: =COUNTIFS('WHS Event Log'!$E$3:$E$502,L$83,'WHS Event Log'!$O$3:$O$502,StagingTables!$B$84) -> 0 | M84: =COUNTIFS('WHS Event Log'!$E$3:$E$502,M$83,'WHS Event Log'!$O$3:$O$502,StagingTables!$B$84) -> 0 | N84: =COUNTIFS('WHS Event Log'!$E$3:$E$502,N$83,'WHS Event Log'!$O$3:$O$502,StagingTables!$B$84) -> 0 | O84: =SUM(C84:N84) -> 0
B85: Residual | C85: =COUNTIFS('WHS Event Log'!$E$3:$E$502,C$83,'WHS Event Log'!$Y$3:$Y$502,StagingTables!$B$84) -> 0 | D85: =COUNTIFS('WHS Event Log'!$E$3:$E$502,D$83,'WHS Event Log'!$Y$3:$Y$502,StagingTables!$B$84) -> 0 | E85: =COUNTIFS('WHS Event Log'!$E$3:$E$502,E$83,'WHS Event Log'!$Y$3:$Y$502,StagingTables!$B$84) -> 0 | F85: =COUNTIFS('WHS Event Log'!$E$3:$E$502,F$83,'WHS Event Log'!$Y$3:$Y$502,StagingTables!$B$84) -> 0 | G85: =COUNTIFS('WHS Event Log'!$E$3:$E$502,G$83,'WHS Event Log'!$Y$3:$Y$502,StagingTables!$B$84) -> 0 | H85: =COUNTIFS('WHS Event Log'!$E$3:$E$502,H$83,'WHS Event Log'!$Y$3:$Y$502,StagingTables!$B$84) -> 0 | I85: =COUNTIFS('WHS Event Log'!$E$3:$E$502,I$83,'WHS Event Log'!$Y$3:$Y$502,StagingTables!$B$84) -> 0 | J85: =COUNTIFS('WHS Event Log'!$E$3:$E$502,J$83,'WHS Event Log'!$Y$3:$Y$502,StagingTables!$B$84) -> 0 | K85: =COUNTIFS('WHS Event Log'!$E$3:$E$502,K$83,'WHS Event Log'!$Y$3:$Y$502,StagingTables!$B$84) -> 0 | L85: =COUNTIFS('WHS Event Log'!$E$3:$E$502,L$83,'WHS Event Log'!$Y$3:$Y$502,StagingTables!$B$84) -> 0 | M85: =COUNTIFS('WHS Event Log'!$E$3:$E$502,M$83,'WHS Event Log'!$Y$3:$Y$502,StagingTables!$B$84) -> 0 | N85: =COUNTIFS('WHS Event Log'!$E$3:$E$502,N$83,'WHS Event Log'!$Y$3:$Y$502,StagingTables!$B$84) -> 0 | O85: 0
B86: Moderate | C86: =COUNTIFS('WHS Event Log'!$E$3:$E$502,C$83,'WHS Event Log'!$O$3:$O$502,StagingTables!$B$86) -> 0 | D86: =COUNTIFS('WHS Event Log'!$E$3:$E$502,D$83,'WHS Event Log'!$O$3:$O$502,StagingTables!$B$86) -> 0 | E86: =COUNTIFS('WHS Event Log'!$E$3:$E$502,E$83,'WHS Event Log'!$O$3:$O$502,StagingTables!$B$86) -> 0 | F86: =COUNTIFS('WHS Event Log'!$E$3:$E$502,F$83,'WHS Event Log'!$O$3:$O$502,StagingTables!$B$86) -> 0 | G86: =COUNTIFS('WHS Event Log'!$E$3:$E$502,G$83,'WHS Event Log'!$O$3:$O$502,StagingTables!$B$86) -> 0 | H86: =COUNTIFS('WHS Event Log'!$E$3:$E$502,H$83,'WHS Event Log'!$O$3:$O$502,StagingTables!$B$86) -> 0 | I86: =COUNTIFS('WHS Event Log'!$E$3:$E$502,I$83,'WHS Event Log'!$O$3:$O$502,StagingTables!$B$86) -> 0 | J86: =COUNTIFS('WHS Event Log'!$E$3:$E$502,J$83,'WHS Event Log'!$O$3:$O$502,StagingTables!$B$86) -> 0 | K86: =COUNTIFS('WHS Event Log'!$E$3:$E$502,K$83,'WHS Event Log'!$O$3:$O$502,StagingTables!$B$86) -> 0 | L86: =COUNTIFS('WHS Event Log'!$E$3:$E$502,L$83,'WHS Event Log'!$O$3:$O$502,StagingTables!$B$86) -> 0 | M86: =COUNTIFS('WHS Event Log'!$E$3:$E$502,M$83,'WHS Event Log'!$O$3:$O$502,StagingTables!$B$86) -> 0 | N86: =COUNTIFS('WHS Event Log'!$E$3:$E$502,N$83,'WHS Event Log'!$O$3:$O$502,StagingTables!$B$86) -> 0 | O86: 0
B87: Residual | C87: =COUNTIFS('WHS Event Log'!$E$3:$E$502,C$83,'WHS Event Log'!$Y$3:$Y$502,StagingTables!$B$86) -> 0 | D87: =COUNTIFS('WHS Event Log'!$E$3:$E$502,D$83,'WHS Event Log'!$Y$3:$Y$502,StagingTables!$B$86) -> 0 | E87: =COUNTIFS('WHS Event Log'!$E$3:$E$502,E$83,'WHS Event Log'!$Y$3:$Y$502,StagingTables!$B$86) -> 0 | F87: =COUNTIFS('WHS Event Log'!$E$3:$E$502,F$83,'WHS Event Log'!$Y$3:$Y$502,StagingTables!$B$86) -> 0 | G87: =COUNTIFS('WHS Event Log'!$E$3:$E$502,G$83,'WHS Event Log'!$Y$3:$Y$502,StagingTables!$B$86) -> 0 | H87: =COUNTIFS('WHS Event Log'!$E$3:$E$502,H$83,'WHS Event Log'!$Y$3:$Y$502,StagingTables!$B$86) -> 0 | I87: =COUNTIFS('WHS Event Log'!$E$3:$E$502,I$83,'WHS Event Log'!$Y$3:$Y$502,StagingTables!$B$86) -> 0 | J87: =COUNTIFS('WHS Event Log'!$E$3:$E$502,J$83,'WHS Event Log'!$Y$3:$Y$502,StagingTables!$B$86) -> 0 | K87: =COUNTIFS('WHS Event Log'!$E$3:$E$502,K$83,'WHS Event Log'!$Y$3:$Y$502,StagingTables!$B$86) -> 0 | L87: =COUNTIFS('WHS Event Log'!$E$3:$E$502,L$83,'WHS Event Log'!$Y$3:$Y$502,StagingTables!$B$86) -> 0 | M87: =COUNTIFS('WHS Event Log'!$E$3:$E$502,M$83,'WHS Event Log'!$Y$3:$Y$502,StagingTables!$B$86) -> 0 | N87: =COUNTIFS('WHS Event Log'!$E$3:$E$502,N$83,'WHS Event Log'!$Y$3:$Y$502,StagingTables!$B$86) -> 0 | O87: 0
B88: High | C88: =COUNTIFS('WHS Event Log'!$E$3:$E$502,C$83,'WHS Event Log'!$O$3:$O$502,StagingTables!$B$88) -> 0 | D88: =COUNTIFS('WHS Event Log'!$E$3:$E$502,D$83,'WHS Event Log'!$O$3:$O$502,StagingTables!$B$88) -> 0 | E88: =COUNTIFS('WHS Event Log'!$E$3:$E$502,E$83,'WHS Event Log'!$O$3:$O$502,StagingTables!$B$88) -> 0 | F88: =COUNTIFS('WHS Event Log'!$E$3:$E$502,F$83,'WHS Event Log'!$O$3:$O$502,StagingTables!$B$88) -> 0 | G88: =COUNTIFS('WHS Event Log'!$E$3:$E$502,G$83,'WHS Event Log'!$O$3:$O$502,StagingTables!$B$88) -> 0 | H88: =COUNTIFS('WHS Event Log'!$E$3:$E$502,H$83,'WHS Event Log'!$O$3:$O$502,StagingTables!$B$88) -> 0 | I88: =COUNTIFS('WHS Event Log'!$E$3:$E$502,I$83,'WHS Event Log'!$O$3:$O$502,StagingTables!$B$88) -> 0 | J88: =COUNTIFS('WHS Event Log'!$E$3:$E$502,J$83,'WHS Event Log'!$O$3:$O$502,StagingTables!$B$88) -> 0 | K88: =COUNTIFS('WHS Event Log'!$E$3:$E$502,K$83,'WHS Event Log'!$O$3:$O$502,StagingTables!$B$88) -> 0 | L88: =COUNTIFS('WHS Event Log'!$E$3:$E$502,L$83,'WHS Event Log'!$O$3:$O$502,StagingTables!$B$88) -> 0 | M88: =COUNTIFS('WHS Event Log'!$E$3:$E$502,M$83,'WHS Event Log'!$O$3:$O$502,StagingTables!$B$88) -> 0 | N88: =COUNTIFS('WHS Event Log'!$E$3:$E$502,N$83,'WHS Event Log'!$O$3:$O$502,StagingTables!$B$88) -> 0 | O88: 0
B89: Residual | C89: =COUNTIFS('WHS Event Log'!$E$3:$E$502,C$83,'WHS Event Log'!$Y$3:$Y$502,StagingTables!$B$88) -> 0 | D89: =COUNTIFS('WHS Event Log'!$E$3:$E$502,D$83,'WHS Event Log'!$Y$3:$Y$502,StagingTables!$B$88) -> 0 | E89: =COUNTIFS('WHS Event Log'!$E$3:$E$502,E$83,'WHS Event Log'!$Y$3:$Y$502,StagingTables!$B$88) -> 0 | F89: =COUNTIFS('WHS Event Log'!$E$3:$E$502,F$83,'WHS Event Log'!$Y$3:$Y$502,StagingTables!$B$88) -> 0 | G89: =COUNTIFS('WHS Event Log'!$E$3:$E$502,G$83,'WHS Event Log'!$Y$3:$Y$502,StagingTables!$B$88) -> 0 | H89: =COUNTIFS('WHS Event Log'!$E$3:$E$502,H$83,'WHS Event Log'!$Y$3:$Y$502,StagingTables!$B$88) -> 0 | I89: =COUNTIFS('WHS Event Log'!$E$3:$E$502,I$83,'WHS Event Log'!$Y$3:$Y$502,StagingTables!$B$88) -> 0 | J89: =COUNTIFS('WHS Event Log'!$E$3:$E$502,J$83,'WHS Event Log'!$Y$3:$Y$502,StagingTables!$B$88) -> 0 | K89: =COUNTIFS('WHS Event Log'!$E$3:$E$502,K$83,'WHS Event Log'!$Y$3:$Y$502,StagingTables!$B$88) -> 0 | L89: =COUNTIFS('WHS Event Log'!$E$3:$E$502,L$83,'WHS Event Log'!$Y$3:$Y$502,StagingTables!$B$88) -> 0 | M89: =COUNTIFS('WHS Event Log'!$E$3:$E$502,M$83,'WHS Event Log'!$Y$3:$Y$502,StagingTables!$B$88) -> 0 | N89: =COUNTIFS('WHS Event Log'!$E$3:$E$502,N$83,'WHS Event Log'!$Y$3:$Y$502,StagingTables!$B$88) -> 0 | O89: 0
B90: Extreme | C90: =COUNTIFS('WHS Event Log'!$E$3:$E$502,C$83,'WHS Event Log'!$O$3:$O$502,StagingTables!$B$90) -> 0 | D90: =COUNTIFS('WHS Event Log'!$E$3:$E$502,D$83,'WHS Event Log'!$O$3:$O$502,StagingTables!$B$90) -> 0 | E90: =COUNTIFS('WHS Event Log'!$E$3:$E$502,E$83,'WHS Event Log'!$O$3:$O$502,StagingTables!$B$90) -> 0 | F90: =COUNTIFS('WHS Event Log'!$E$3:$E$502,F$83,'WHS Event Log'!$O$3:$O$502,StagingTables!$B$90) -> 0 | G90: =COUNTIFS('WHS Event Log'!$E$3:$E$502,G$83,'WHS Event Log'!$O$3:$O$502,StagingTables!$B$90) -> 0 | H90: =COUNTIFS('WHS Event Log'!$E$3:$E$502,H$83,'WHS Event Log'!$O$3:$O$502,StagingTables!$B$90) -> 0 | I90: =COUNTIFS('WHS Event Log'!$E$3:$E$502,I$83,'WHS Event Log'!$O$3:$O$502,StagingTables!$B$90) -> 0 | J90: =COUNTIFS('WHS Event Log'!$E$3:$E$502,J$83,'WHS Event Log'!$O$3:$O$502,StagingTables!$B$90) -> 0 | K90: =COUNTIFS('WHS Event Log'!$E$3:$E$502,K$83,'WHS Event Log'!$O$3:$O$502,StagingTables!$B$90) -> 0 | L90: =COUNTIFS('WHS Event Log'!$E$3:$E$502,L$83,'WHS Event Log'!$O$3:$O$502,StagingTables!$B$90) -> 0 | M90: =COUNTIFS('WHS Event Log'!$E$3:$E$502,M$83,'WHS Event Log'!$O$3:$O$502,StagingTables!$B$90) -> 0 | N90: =COUNTIFS('WHS Event Log'!$E$3:$E$502,N$83,'WHS Event Log'!$O$3:$O$502,StagingTables!$B$90) -> 0 | O90: 0
B91: Residual | C91: =COUNTIFS('WHS Event Log'!$E$3:$E$502,C$83,'WHS Event Log'!$Y$3:$Y$502,StagingTables!$B$90) -> 0 | D91: =COUNTIFS('WHS Event Log'!$E$3:$E$502,D$83,'WHS Event Log'!$Y$3:$Y$502,StagingTables!$B$90) -> 0 | E91: =COUNTIFS('WHS Event Log'!$E$3:$E$502,E$83,'WHS Event Log'!$Y$3:$Y$502,StagingTables!$B$90) -> 0 | F91: =COUNTIFS('WHS Event Log'!$E$3:$E$502,F$83,'WHS Event Log'!$Y$3:$Y$502,StagingTables!$B$90) -> 0 | G91: =COUNTIFS('WHS Event Log'!$E$3:$E$502,G$83,'WHS Event Log'!$Y$3:$Y$502,StagingTables!$B$90) -> 0 | H91: =COUNTIFS('WHS Event Log'!$E$3:$E$502,H$83,'WHS Event Log'!$Y$3:$Y$502,StagingTables!$B$90) -> 0 | I91: =COUNTIFS('WHS Event Log'!$E$3:$E$502,I$83,'WHS Event Log'!$Y$3:$Y$502,StagingTables!$B$90) -> 0 | J91: =COUNTIFS('WHS Event Log'!$E$3:$E$502,J$83,'WHS Event Log'!$Y$3:$Y$502,StagingTables!$B$90) -> 0 | K91: =COUNTIFS('WHS Event Log'!$E$3:$E$502,K$83,'WHS Event Log'!$Y$3:$Y$502,StagingTables!$B$90) -> 0 | L91: =COUNTIFS('WHS Event Log'!$E$3:$E$502,L$83,'WHS Event Log'!$Y$3:$Y$502,StagingTables!$B$90) -> 0 | M91: =COUNTIFS('WHS Event Log'!$E$3:$E$502,M$83,'WHS Event Log'!$Y$3:$Y$502,StagingTables!$B$90) -> 0 | N91: =COUNTIFS('WHS Event Log'!$E$3:$E$502,N$83,'WHS Event Log'!$Y$3:$Y$502,StagingTables!$B$90) -> 0 | O91: 0
B94: Tally of Hazard Risk Ratings | C94: Total | D94: Residual | E94: Days | F94: Ave | G94: Closed | H94: >30
B95: Low | C95: =O84 -> 0 | D95: =O85 -> 0 | E95: =SUMIF('WHS Event Log'!$O$3:$O$502,$B$96,'WHS Event Log'!$Z$3:$Z$502) -> 0 | F95: =SUM(E95/C95) ->  | G95: =COUNTIFS('WHS Event Log'!$AA$3:$AA$502,$G$94,'WHS Event Log'!$O$3:$O$502,StagingTables!$B$95) -> 0 | H95: ='WHS Event Log'!Y508 -> 0
B96: Moderate | C96: =O86 -> 0 | D96: =O87 -> 0 | E96: =SUMIF('WHS Event Log'!$O$3:$O$502,$B$96,'WHS Event Log'!$Z$3:$Z$502) -> 0 | F96: =SUM(E96/C96) ->  | G96: =COUNTIFS('WHS Event Log'!$AA$3:$AA$502,$G$94,'WHS Event Log'!$O$3:$O$502,StagingTables!$B$96) -> 0 | H96: ='WHS Event Log'!Y509 -> 0
B97: High | C97: =O88 -> 0 | D97: =O89 -> 0 | E97: =SUMIF('WHS Event Log'!$O$3:$O$502,$B$97,'WHS Event Log'!$Z$3:$Z$502) -> 0 | F97: =SUM(E97/C97) ->  | G97: =COUNTIFS('WHS Event Log'!$AA$3:$AA$502,$G$94,'WHS Event Log'!$O$3:$O$502,StagingTables!$B$97) -> 0 | H97: ='WHS Event Log'!Y510 -> 0
B98: Extreme | C98: =O90 -> 0 | D98: =O91 -> 0 | E98: =SUMIF('WHS Event Log'!$O$3:$O$502,$B$98,'WHS Event Log'!$Z$3:$Z$502) -> 0 | F98: =SUM(E98/C98) ->  | G98: =COUNTIFS('WHS Event Log'!$AA$3:$AA$502,$G$94,'WHS Event Log'!$O$3:$O$502,StagingTables!$B$98) -> 0 | H98: ='WHS Event Log'!Y511 -> 0
B101: Injury Sustained Day/Shift | C101: Sun | D101: Mon | E101: Tues | F101: Wed | G101: Thurs | H101: Fri | I101: Sat | J101: Am Early | K101: Am Late | L101: PM Early | M101: PM Late | N101: Total | O101: Claim
B102: Abdomen | C102: =COUNTIFS('WHS Event Log'!$C$3:$C$502,C$101,'WHS Event Log'!$P$3:$P$502,StagingTables!$B102) -> 0 | D102: =COUNTIFS('WHS Event Log'!$C$3:$C$502,D$101,'WHS Event Log'!$P$3:$P$502,StagingTables!$B102) -> 0 | E102: =COUNTIFS('WHS Event Log'!$C$3:$C$502,E$101,'WHS Event Log'!$P$3:$P$502,StagingTables!$B102) -> 0 | F102: =COUNTIFS('WHS Event Log'!$C$3:$C$502,F$101,'WHS Event Log'!$P$3:$P$502,StagingTables!$B102) -> 0 | G102: =COUNTIFS('WHS Event Log'!$C$3:$C$502,G$101,'WHS Event Log'!$P$3:$P$502,StagingTables!$B102) -> 0 | H102: =COUNTIFS('WHS Event Log'!$C$3:$C$502,H$101,'WHS Event Log'!$P$3:$P$502,StagingTables!$B102) -> 0 | I102: =COUNTIFS('WHS Event Log'!$C$3:$C$502,I$101,'WHS Event Log'!$P$3:$P$502,StagingTables!$B102) -> 0 | J102: =COUNTIFS('WHS Event Log'!$F$3:$F$502,J$101,'WHS Event Log'!$P$3:$P$502,StagingTables!$B102) -> 0 | K102: =COUNTIFS('WHS Event Log'!$F$3:$F$502,K$101,'WHS Event Log'!$P$3:$P$502,StagingTables!$B102) -> 0 | L102: =COUNTIFS('WHS Event Log'!$F$3:$F$502,L$101,'WHS Event Log'!$P$3:$P$502,StagingTables!$B102) -> 0 | M102: =COUNTIFS('WHS Event Log'!$F$3:$F$502,M$101,'WHS Event Log'!$P$3:$P$502,StagingTables!$B102) -> 0 | N102: =SUM(C102:I102) -> 0 | O102: =COUNTIFS('WHS Event Log'!$P$3:$P$502,$B102,'WHS Event Log'!$S$3:$S$502,Lists!$E$3) -> 0
B103: Ankle | C103: =COUNTIFS('WHS Event Log'!$C$3:$C$502,C$101,'WHS Event Log'!$P$3:$P$502,StagingTables!$B103) -> 0 | D103: =COUNTIFS('WHS Event Log'!$C$3:$C$502,D$101,'WHS Event Log'!$P$3:$P$502,StagingTables!$B103) -> 0 | E103: =COUNTIFS('WHS Event Log'!$C$3:$C$502,E$101,'WHS Event Log'!$P$3:$P$502,StagingTables!$B103) -> 0 | F103: =COUNTIFS('WHS Event Log'!$C$3:$C$502,F$101,'WHS Event Log'!$P$3:$P$502,StagingTables!$B103) -> 0 | G103: =COUNTIFS('WHS Event Log'!$C$3:$C$502,G$101,'WHS Event Log'!$P$3:$P$502,StagingTables!$B103) -> 0 | H103: =COUNTIFS('WHS Event Log'!$C$3:$C$502,H$101,'WHS Event Log'!$P$3:$P$502,StagingTables!$B103) -> 0 | I103: =COUNTIFS('WHS Event Log'!$C$3:$C$502,I$101,'WHS Event Log'!$P$3:$P$502,StagingTables!$B103) -> 0 | J103: =COUNTIFS('WHS Event Log'!$F$3:$F$502,J$101,'WHS Event Log'!$P$3:$P$502,StagingTables!$B103) -> 0 | K103: =COUNTIFS('WHS Event Log'!$F$3:$F$502,K$101,'WHS Event Log'!$P$3:$P$502,StagingTables!$B103) -> 0 | L103: =COUNTIFS('WHS Event Log'!$F$3:$F$502,L$101,'WHS Event Log'!$P$3:$P$502,StagingTables!$B103) -> 0 | M103: =COUNTIFS('WHS Event Log'!$F$3:$F$502,M$101,'WHS Event Log'!$P$3:$P$502,StagingTables!$B103) -> 0 | N103: =SUM(C103:I103) -> 0 | O103: =COUNTIFS('WHS Event Log'!$P$3:$P$502,$B103,'WHS Event Log'!$S$3:$S$502,Lists!$E$3) -> 0
B104: Buttock | C104: =COUNTIFS('WHS Event Log'!$C$3:$C$502,C$101,'WHS Event Log'!$P$3:$P$502,StagingTables!$B104) -> 0 | D104: =COUNTIFS('WHS Event Log'!$C$3:$C$502,D$101,'WHS Event Log'!$P$3:$P$502,StagingTables!$B104) -> 0 | E104: =COUNTIFS('WHS Event Log'!$C$3:$C$502,E$101,'WHS Event Log'!$P$3:$P$502,StagingTables!$B104) -> 0 | F104: =COUNTIFS('WHS Event Log'!$C$3:$C$502,F$101,'WHS Event Log'!$P$3:$P$502,StagingTables!$B104) -> 0 | G104: =COUNTIFS('WHS Event Log'!$C$3:$C$502,G$101,'WHS Event Log'!$P$3:$P$502,StagingTables!$B104) -> 0 | H104: =COUNTIFS('WHS Event Log'!$C$3:$C$502,H$101,'WHS Event Log'!$P$3:$P$502,StagingTables!$B104) -> 0 | I104: =COUNTIFS('WHS Event Log'!$C$3:$C$502,I$101,'WHS Event Log'!$P$3:$P$502,StagingTables!$B104) -> 0 | J104: =COUNTIFS('WHS Event Log'!$F$3:$F$502,J$101,'WHS Event Log'!$P$3:$P$502,StagingTables!$B104) -> 0 | K104: =COUNTIFS('WHS Event Log'!$F$3:$F$502,K$101,'WHS Event Log'!$P$3:$P$502,StagingTables!$B104) -> 0 | L104: =COUNTIFS('WHS Event Log'!$F$3:$F$502,L$101,'WHS Event Log'!$P$3:$P$502,StagingTables!$B104) -> 0 | M104: =COUNTIFS('WHS Event Log'!$F$3:$F$502,M$101,'WHS Event Log'!$P$3:$P$502,StagingTables!$B104) -> 0 | N104: 0 | O104: =COUNTIFS('WHS Event Log'!$P$3:$P$502,$B104,'WHS Event Log'!$S$3:$S$502,Lists!$E$3) -> 0
B105: Chest | C105: =COUNTIFS('WHS Event Log'!$C$3:$C$502,C$101,'WHS Event Log'!$P$3:$P$502,StagingTables!$B105) -> 0 | D105: =COUNTIFS('WHS Event Log'!$C$3:$C$502,D$101,'WHS Event Log'!$P$3:$P$502,StagingTables!$B105) -> 0 | E105: =COUNTIFS('WHS Event Log'!$C$3:$C$502,E$101,'WHS Event Log'!$P$3:$P$502,StagingTables!$B105) -> 0 | F105: =COUNTIFS('WHS Event Log'!$C$3:$C$502,F$101,'WHS Event Log'!$P$3:$P$502,StagingTables!$B105) -> 0 | G105: =COUNTIFS('WHS Event Log'!$C$3:$C$502,G$101,'WHS Event Log'!$P$3:$P$502,StagingTables!$B105) -> 0 | H105: =COUNTIFS('WHS Event Log'!$C$3:$C$502,H$101,'WHS Event Log'!$P$3:$P$502,StagingTables!$B105) -> 0 | I105: =COUNTIFS('WHS Event Log'!$C$3:$C$502,I$101,'WHS Event Log'!$P$3:$P$502,StagingTables!$B105) -> 0 | J105: =COUNTIFS('WHS Event Log'!$F$3:$F$502,J$101,'WHS Event Log'!$P$3:$P$502,StagingTables!$B105) -> 0 | K105: =COUNTIFS('WHS Event Log'!$F$3:$F$502,K$101,'WHS Event Log'!$P$3:$P$502,StagingTables!$B105) -> 0 | L105: =COUNTIFS('WHS Event Log'!$F$3:$F$502,L$101,'WHS Event Log'!$P$3:$P$502,StagingTables!$B105) -> 0 | M105: =COUNTIFS('WHS Event Log'!$F$3:$F$502,M$101,'WHS Event Log'!$P$3:$P$502,StagingTables!$B105) -> 0 | N105: 0 | O105: =COUNTIFS('WHS Event Log'!$P$3:$P$502,$B105,'WHS Event Log'!$S$3:$S$502,Lists!$E$3) -> 0
B106: Cognitive | C106: =COUNTIFS('WHS Event Log'!$C$3:$C$502,C$101,'WHS Event Log'!$P$3:$P$502,StagingTables!$B106) -> 0 | D106: =COUNTIFS('WHS Event Log'!$C$3:$C$502,D$101,'WHS Event Log'!$P$3:$P$502,StagingTables!$B106) -> 0 | E106: =COUNTIFS('WHS Event Log'!$C$3:$C$502,E$101,'WHS Event Log'!$P$3:$P$502,StagingTables!$B106) -> 0 | F106: =COUNTIFS('WHS Event Log'!$C$3:$C$502,F$101,'WHS Event Log'!$P$3:$P$502,StagingTables!$B106) -> 0 | G106: =COUNTIFS('WHS Event Log'!$C$3:$C$502,G$101,'WHS Event Log'!$P$3:$P$502,StagingTables!$B106) -> 0 | H106: =COUNTIFS('WHS Event Log'!$C$3:$C$502,H$101,'WHS Event Log'!$P$3:$P$502,StagingTables!$B106) -> 0 | I106: =COUNTIFS('WHS Event Log'!$C$3:$C$502,I$101,'WHS Event Log'!$P$3:$P$502,StagingTables!$B106) -> 0 | J106: =COUNTIFS('WHS Event Log'!$F$3:$F$502,J$101,'WHS Event Log'!$P$3:$P$502,StagingTables!$B106) -> 0 | K106: =COUNTIFS('WHS Event Log'!$F$3:$F$502,K$101,'WHS Event Log'!$P$3:$P$502,StagingTables!$B106) -> 0 | L106: =COUNTIFS('WHS Event Log'!$F$3:$F$502,L$101,'WHS Event Log'!$P$3:$P$502,StagingTables!$B106) -> 0 | M106: =COUNTIFS('WHS Event Log'!$F$3:$F$502,M$101,'WHS Event Log'!$P$3:$P$502,StagingTables!$B106) -> 0 | N106: 0 | O106: =COUNTIFS('WHS Event Log'!$P$3:$P$502,$B106,'WHS Event Log'!$S$3:$S$502,Lists!$E$3) -> 0
B107: Ear | C107: =COUNTIFS('WHS Event Log'!$C$3:$C$502,C$101,'WHS Event Log'!$P$3:$P$502,StagingTables!$B107) -> 0 | D107: =COUNTIFS('WHS Event Log'!$C$3:$C$502,D$101,'WHS Event Log'!$P$3:$P$502,StagingTables!$B107) -> 0 | E107: =COUNTIFS('WHS Event Log'!$C$3:$C$502,E$101,'WHS Event Log'!$P$3:$P$502,StagingTables!$B107) -> 0 | F107: =COUNTIFS('WHS Event Log'!$C$3:$C$502,F$101,'WHS Event Log'!$P$3:$P$502,StagingTables!$B107) -> 0 | G107: =COUNTIFS('WHS Event Log'!$C$3:$C$502,G$101,'WHS Event Log'!$P$3:$P$502,StagingTables!$B107) -> 0 | H107: =COUNTIFS('WHS Event Log'!$C$3:$C$502,H$101,'WHS Event Log'!$P$3:$P$502,StagingTables!$B107) -> 0 | I107: =COUNTIFS('WHS Event Log'!$C$3:$C$502,I$101,'WHS Event Log'!$P$3:$P$502,StagingTables!$B107) -> 0 | J107: =COUNTIFS('WHS Event Log'!$F$3:$F$502,J$101,'WHS Event Log'!$P$3:$P$502,StagingTables!$B107) -> 0 | K107: =COUNTIFS('WHS Event Log'!$F$3:$F$502,K$101,'WHS Event Log'!$P$3:$P$502,StagingTables!$B107) -> 0 | L107: =COUNTIFS('WHS Event Log'!$F$3:$F$502,L$101,'WHS Event Log'!$P$3:$P$502,StagingTables!$B107) -> 0 | M107: =COUNTIFS('WHS Event Log'!$F$3:$F$502,M$101,'WHS Event Log'!$P$3:$P$502,StagingTables!$B107) -> 0 | N107: 0 | O107: =COUNTIFS('WHS Event Log'!$P$3:$P$502,$B107,'WHS Event Log'!$S$3:$S$502,Lists!$E$3) -> 0
B108: Elbow | C108: =COUNTIFS('WHS Event Log'!$C$3:$C$502,C$101,'WHS Event Log'!$P$3:$P$502,StagingTables!$B108) -> 0 | D108: =COUNTIFS('WHS Event Log'!$C$3:$C$502,D$101,'WHS Event Log'!$P$3:$P$502,StagingTables!$B108) -> 0 | E108: =COUNTIFS('WHS Event Log'!$C$3:$C$502,E$101,'WHS Event Log'!$P$3:$P$502,StagingTables!$B108) -> 0 | F108: =COUNTIFS('WHS Event Log'!$C$3:$C$502,F$101,'WHS Event Log'!$P$3:$P$502,StagingTables!$B108) -> 0 | G108: =COUNTIFS('WHS Event Log'!$C$3:$C$502,G$101,'WHS Event Log'!$P$3:$P$502,StagingTables!$B108) -> 0 | H108: =COUNTIFS('WHS Event Log'!$C$3:$C$502,H$101,'WHS Event Log'!$P$3:$P$502,StagingTables!$B108) -> 0 | I108: =COUNTIFS('WHS Event Log'!$C$3:$C$502,I$101,'WHS Event Log'!$P$3:$P$502,StagingTables!$B108) -> 0 | J108: =COUNTIFS('WHS Event Log'!$F$3:$F$502,J$101,'WHS Event Log'!$P$3:$P$502,StagingTables!$B108) -> 0 | K108: =COUNTIFS('WHS Event Log'!$F$3:$F$502,K$101,'WHS Event Log'!$P$3:$P$502,StagingTables!$B108) -> 0 | L108: =COUNTIFS('WHS Event Log'!$F$3:$F$502,L$101,'WHS Event Log'!$P$3:$P$502,StagingTables!$B108) -> 0 | M108: =COUNTIFS('WHS Event Log'!$F$3:$F$502,M$101,'WHS Event Log'!$P$3:$P$502,StagingTables!$B108) -> 0 | N108: 0 | O108: =COUNTIFS('WHS Event Log'!$P$3:$P$502,$B108,'WHS Event Log'!$S$3:$S$502,Lists!$E$3) -> 0
B109: Eye | C109: =COUNTIFS('WHS Event Log'!$C$3:$C$502,C$101,'WHS Event Log'!$P$3:$P$502,StagingTables!$B109) -> 0 | D109: =COUNTIFS('WHS Event Log'!$C$3:$C$502,D$101,'WHS Event Log'!$P$3:$P$502,StagingTables!$B109) -> 0 | E109: =COUNTIFS('WHS Event Log'!$C$3:$C$502,E$101,'WHS Event Log'!$P$3:$P$502,StagingTables!$B109) -> 0 | F109: =COUNTIFS('WHS Event Log'!$C$3:$C$502,F$101,'WHS Event Log'!$P$3:$P$502,StagingTables!$B109) -> 0 | G109: =COUNTIFS('WHS Event Log'!$C$3:$C$502,G$101,'WHS Event Log'!$P$3:$P$502,StagingTables!$B109) -> 0 | H109: =COUNTIFS('WHS Event Log'!$C$3:$C$502,H$101,'WHS Event Log'!$P$3:$P$502,StagingTables!$B109) -> 0 | I109: =COUNTIFS('WHS Event Log'!$C$3:$C$502,I$101,'WHS Event Log'!$P$3:$P$502,StagingTables!$B109) -> 0 | J109: =COUNTIFS('WHS Event Log'!$F$3:$F$502,J$101,'WHS Event Log'!$P$3:$P$502,StagingTables!$B109) -> 0 | K109: =COUNTIFS('WHS Event Log'!$F$3:$F$502,K$101,'WHS Event Log'!$P$3:$P$502,StagingTables!$B109) -> 0 | L109: =COUNTIFS('WHS Event Log'!$F$3:$F$502,L$101,'WHS Event Log'!$P$3:$P$502,StagingTables!$B109) -> 0 | M109: =COUNTIFS('WHS Event Log'!$F$3:$F$502,M$101,'WHS Event Log'!$P$3:$P$502,StagingTables!$B109) -> 0 | N109: 0 | O109: =COUNTIFS('WHS Event Log'!$P$3:$P$502,$B109,'WHS Event Log'!$S$3:$S$502,Lists!$E$3) -> 0
B110: Face | C110: =COUNTIFS('WHS Event Log'!$C$3:$C$502,C$101,'WHS Event Log'!$P$3:$P$502,StagingTables!$B110) -> 0 | D110: =COUNTIFS('WHS Event Log'!$C$3:$C$502,D$101,'WHS Event Log'!$P$3:$P$502,StagingTables!$B110) -> 0 | E110: =COUNTIFS('WHS Event Log'!$C$3:$C$502,E$101,'WHS Event Log'!$P$3:$P$502,StagingTables!$B110) -> 0 | F110: =COUNTIFS('WHS Event Log'!$C$3:$C$502,F$101,'WHS Event Log'!$P$3:$P$502,StagingTables!$B110) -> 0 | G110: =COUNTIFS('WHS Event Log'!$C$3:$C$502,G$101,'WHS Event Log'!$P$3:$P$502,StagingTables!$B110) -> 0 | H110: =COUNTIFS('WHS Event Log'!$C$3:$C$502,H$101,'WHS Event Log'!$P$3:$P$502,StagingTables!$B110) -> 0 | I110: =COUNTIFS('WHS Event Log'!$C$3:$C$502,I$101,'WHS Event Log'!$P$3:$P$502,StagingTables!$B110) -> 0 | J110: =COUNTIFS('WHS Event Log'!$F$3:$F$502,J$101,'WHS Event Log'!$P$3:$P$502,StagingTables!$B110) -> 0 | K110: =COUNTIFS('WHS Event Log'!$F$3:$F$502,K$101,'WHS Event Log'!$P$3:$P$502,StagingTables!$B110) -> 0 | L110: =COUNTIFS('WHS Event Log'!$F$3:$F$502,L$101,'WHS Event Log'!$P$3:$P$502,StagingTables!$B110) -> 0 | M110: =COUNTIFS('WHS Event Log'!$F$3:$F$502,M$101,'WHS Event Log'!$P$3:$P$502,StagingTables!$B110) -> 0 | N110: 0 | O110: =COUNTIFS('WHS Event Log'!$P$3:$P$502,$B110,'WHS Event Log'!$S$3:$S$502,Lists!$E$3) -> 0
B111: Finger | C111: =COUNTIFS('WHS Event Log'!$C$3:$C$502,C$101,'WHS Event Log'!$P$3:$P$502,StagingTables!$B111) -> 0 | D111: =COUNTIFS('WHS Event Log'!$C$3:$C$502,D$101,'WHS Event Log'!$P$3:$P$502,StagingTables!$B111) -> 0 | E111: =COUNTIFS('WHS Event Log'!$C$3:$C$502,E$101,'WHS Event Log'!$P$3:$P$502,StagingTables!$B111) -> 0 | F111: =COUNTIFS('WHS Event Log'!$C$3:$C$502,F$101,'WHS Event Log'!$P$3:$P$502,StagingTables!$B111) -> 0 | G111: =COUNTIFS('WHS Event Log'!$C$3:$C$502,G$101,'WHS Event Log'!$P$3:$P$502,StagingTables!$B111) -> 0 | H111: =COUNTIFS('WHS Event Log'!$C$3:$C$502,H$101,'WHS Event Log'!$P$3:$P$502,StagingTables!$B111) -> 0 | I111: =COUNTIFS('WHS Event Log'!$C$3:$C$502,I$101,'WHS Event Log'!$P$3:$P$502,StagingTables!$B111) -> 0 | J111: =COUNTIFS('WHS Event Log'!$F$3:$F$502,J$101,'WHS Event Log'!$P$3:$P$502,StagingTables!$B111) -> 0 | K111: =COUNTIFS('WHS Event Log'!$F$3:$F$502,K$101,'WHS Event Log'!$P$3:$P$502,StagingTables!$B111) -> 0 | L111: =COUNTIFS('WHS Event Log'!$F$3:$F$502,L$101,'WHS Event Log'!$P$3:$P$502,StagingTables!$B111) -> 0 | M111: =COUNTIFS('WHS Event Log'!$F$3:$F$502,M$101,'WHS Event Log'!$P$3:$P$502,StagingTables!$B111) -> 0 | N111: 0 | O111: =COUNTIFS('WHS Event Log'!$P$3:$P$502,$B111,'WHS Event Log'!$S$3:$S$502,Lists!$E$3) -> 0
B112: Foot | C112: =COUNTIFS('WHS Event Log'!$C$3:$C$502,C$101,'WHS Event Log'!$P$3:$P$502,StagingTables!$B112) -> 0 | D112: =COUNTIFS('WHS Event Log'!$C$3:$C$502,D$101,'WHS Event Log'!$P$3:$P$502,StagingTables!$B112) -> 0 | E112: =COUNTIFS('WHS Event Log'!$C$3:$C$502,E$101,'WHS Event Log'!$P$3:$P$502,StagingTables!$B112) -> 0 | F112: =COUNTIFS('WHS Event Log'!$C$3:$C$502,F$101,'WHS Event Log'!$P$3:$P$502,StagingTables!$B112) -> 0 | G112: =COUNTIFS('WHS Event Log'!$C$3:$C$502,G$101,'WHS Event Log'!$P$3:$P$502,StagingTables!$B112) -> 0 | H112: =COUNTIFS('WHS Event Log'!$C$3:$C$502,H$101,'WHS Event Log'!$P$3:$P$502,StagingTables!$B112) -> 0 | I112: =COUNTIFS('WHS Event Log'!$C$3:$C$502,I$101,'WHS Event Log'!$P$3:$P$502,StagingTables!$B112) -> 0 | J112: =COUNTIFS('WHS Event Log'!$F$3:$F$502,J$101,'WHS Event Log'!$P$3:$P$502,StagingTables!$B112) -> 0 | K112: =COUNTIFS('WHS Event Log'!$F$3:$F$502,K$101,'WHS Event Log'!$P$3:$P$502,StagingTables!$B112) -> 0 | L112: =COUNTIFS('WHS Event Log'!$F$3:$F$502,L$101,'WHS Event Log'!$P$3:$P$502,StagingTables!$B112) -> 0 | M112: =COUNTIFS('WHS Event Log'!$F$3:$F$502,M$101,'WHS Event Log'!$P$3:$P$502,StagingTables!$B112) -> 0 | N112: 0 | O112: =COUNTIFS('WHS Event Log'!$P$3:$P$502,$B112,'WHS Event Log'!$S$3:$S$502,Lists!$E$3) -> 0
B113: Groin | C113: =COUNTIFS('WHS Event Log'!$C$3:$C$502,C$101,'WHS Event Log'!$P$3:$P$502,StagingTables!$B113) -> 0 | D113: =COUNTIFS('WHS Event Log'!$C$3:$C$502,D$101,'WHS Event Log'!$P$3:$P$502,StagingTables!$B113) -> 0 | E113: =COUNTIFS('WHS Event Log'!$C$3:$C$502,E$101,'WHS Event Log'!$P$3:$P$502,StagingTables!$B113) -> 0 | F113: =COUNTIFS('WHS Event Log'!$C$3:$C$502,F$101,'WHS Event Log'!$P$3:$P$502,StagingTables!$B113) -> 0 | G113: =COUNTIFS('WHS Event Log'!$C$3:$C$502,G$101,'WHS Event Log'!$P$3:$P$502,StagingTables!$B113) -> 0 | H113: =COUNTIFS('WHS Event Log'!$C$3:$C$502,H$101,'WHS Event Log'!$P$3:$P$502,StagingTables!$B113) -> 0 | I113: =COUNTIFS('WHS Event Log'!$C$3:$C$502,I$101,'WHS Event Log'!$P$3:$P$502,StagingTables!$B113) -> 0 | J113: =COUNTIFS('WHS Event Log'!$F$3:$F$502,J$101,'WHS Event Log'!$P$3:$P$502,StagingTables!$B113) -> 0 | K113: =COUNTIFS('WHS Event Log'!$F$3:$F$502,K$101,'WHS Event Log'!$P$3:$P$502,StagingTables!$B113) -> 0 | L113: =COUNTIFS('WHS Event Log'!$F$3:$F$502,L$101,'WHS Event Log'!$P$3:$P$502,StagingTables!$B113) -> 0 | M113: =COUNTIFS('WHS Event Log'!$F$3:$F$502,M$101,'WHS Event Log'!$P$3:$P$502,StagingTables!$B113) -> 0 | N113: 0 | O113: =COUNTIFS('WHS Event Log'!$P$3:$P$502,$B113,'WHS Event Log'!$S$3:$S$502,Lists!$E$3) -> 0
B114: Hand | C114: =COUNTIFS('WHS Event Log'!$C$3:$C$502,C$101,'WHS Event Log'!$P$3:$P$502,StagingTables!$B114) -> 0 | D114: =COUNTIFS('WHS Event Log'!$C$3:$C$502,D$101,'WHS Event Log'!$P$3:$P$502,StagingTables!$B114) -> 0 | E114: =COUNTIFS('WHS Event Log'!$C$3:$C$502,E$101,'WHS Event Log'!$P$3:$P$502,StagingTables!$B114) -> 0 | F114: =COUNTIFS('WHS Event Log'!$C$3:$C$502,F$101,'WHS Event Log'!$P$3:$P$502,StagingTables!$B114) -> 0 | G114: =COUNTIFS('WHS Event Log'!$C$3:$C$502,G$101,'WHS Event Log'!$P$3:$P$502,StagingTables!$B114) -> 0 | H114: =COUNTIFS('WHS Event Log'!$C$3:$C$502,H$101,'WHS Event Log'!$P$3:$P$502,StagingTables!$B114) -> 0 | I114: =COUNTIFS('WHS Event Log'!$C$3:$C$502,I$101,'WHS Event Log'!$P$3:$P$502,StagingTables!$B114) -> 0 | J114: =COUNTIFS('WHS Event Log'!$F$3:$F$502,J$101,'WHS Event Log'!$P$3:$P$502,StagingTables!$B114) -> 0 | K114: =COUNTIFS('WHS Event Log'!$F$3:$F$502,K$101,'WHS Event Log'!$P$3:$P$502,StagingTables!$B114) -> 0 | L114: =COUNTIFS('WHS Event Log'!$F$3:$F$502,L$101,'WHS Event Log'!$P$3:$P$502,StagingTables!$B114) -> 0 | M114: =COUNTIFS('WHS Event Log'!$F$3:$F$502,M$101,'WHS Event Log'!$P$3:$P$502,StagingTables!$B114) -> 0 | N114: 0 | O114: =COUNTIFS('WHS Event Log'!$P$3:$P$502,$B114,'WHS Event Log'!$S$3:$S$502,Lists!$E$3) -> 0
B115: Head | C115: =COUNTIFS('WHS Event Log'!$C$3:$C$502,C$101,'WHS Event Log'!$P$3:$P$502,StagingTables!$B115) -> 0 | D115: =COUNTIFS('WHS Event Log'!$C$3:$C$502,D$101,'WHS Event Log'!$P$3:$P$502,StagingTables!$B115) -> 0 | E115: =COUNTIFS('WHS Event Log'!$C$3:$C$502,E$101,'WHS Event Log'!$P$3:$P$502,StagingTables!$B115) -> 0 | F115: =COUNTIFS('WHS Event Log'!$C$3:$C$502,F$101,'WHS Event Log'!$P$3:$P$502,StagingTables!$B115) -> 0 | G115: =COUNTIFS('WHS Event Log'!$C$3:$C$502,G$101,'WHS Event Log'!$P$3:$P$502,StagingTables!$B115) -> 0 | H115: =COUNTIFS('WHS Event Log'!$C$3:$C$502,H$101,'WHS Event Log'!$P$3:$P$502,StagingTables!$B115) -> 0 | I115: =COUNTIFS('WHS Event Log'!$C$3:$C$502,I$101,'WHS Event Log'!$P$3:$P$502,StagingTables!$B115) -> 0 | J115: =COUNTIFS('WHS Event Log'!$F$3:$F$502,J$101,'WHS Event Log'!$P$3:$P$502,StagingTables!$B115) -> 0 | K115: =COUNTIFS('WHS Event Log'!$F$3:$F$502,K$101,'WHS Event Log'!$P$3:$P$502,StagingTables!$B115) -> 0 | L115: =COUNTIFS('WHS Event Log'!$F$3:$F$502,L$101,'WHS Event Log'!$P$3:$P$502,StagingTables!$B115) -> 0 | M115: =COUNTIFS('WHS Event Log'!$F$3:$F$502,M$101,'WHS Event Log'!$P$3:$P$502,StagingTables!$B115) -> 0 | N115: 0 | O115: =COUNTIFS('WHS Event Log'!$P$3:$P$502,$B115,'WHS Event Log'!$S$3:$S$502,Lists!$E$3) -> 0
B116: Hip | C116: =COUNTIFS('WHS Event Log'!$C$3:$C$502,C$101,'WHS Event Log'!$P$3:$P$502,StagingTables!$B116) -> 0 | D116: =COUNTIFS('WHS Event Log'!$C$3:$C$502,D$101,'WHS Event Log'!$P$3:$P$502,StagingTables!$B116) -> 0 | E116: =COUNTIFS('WHS Event Log'!$C$3:$C$502,E$101,'WHS Event Log'!$P$3:$P$502,StagingTables!$B116) -> 0 | F116: =COUNTIFS('WHS Event Log'!$C$3:$C$502,F$101,'WHS Event Log'!$P$3:$P$502,StagingTables!$B116) -> 0 | G116: =COUNTIFS('WHS Event Log'!$C$3:$C$502,G$101,'WHS Event Log'!$P$3:$P$502,StagingTables!$B116) -> 0 | H116: =COUNTIFS('WHS Event Log'!$C$3:$C$502,H$101,'WHS Event Log'!$P$3:$P$502,StagingTables!$B116) -> 0 | I116: =COUNTIFS('WHS Event Log'!$C$3:$C$502,I$101,'WHS Event Log'!$P$3:$P$502,StagingTables!$B116) -> 0 | J116: =COUNTIFS('WHS Event Log'!$C$3:$C$502,J$101,'WHS Event Log'!$P$3:$P$502,StagingTables!$B116) -> 0 | K116: =COUNTIFS('WHS Event Log'!$C$3:$C$502,K$101,'WHS Event Log'!$P$3:$P$502,StagingTables!$B116) -> 0 | L116: =COUNTIFS('WHS Event Log'!$C$3:$C$502,L$101,'WHS Event Log'!$P$3:$P$502,StagingTables!$B116) -> 0 | M116: =COUNTIFS('WHS Event Log'!$C$3:$C$502,M$101,'WHS Event Log'!$P$3:$P$502,StagingTables!$B116) -> 0 | N116: 0 | O116: =COUNTIFS('WHS Event Log'!$P$3:$P$502,$B116,'WHS Event Log'!$S$3:$S$502,Lists!$E$3) -> 0
B117: Internal | C117: =COUNTIFS('WHS Event Log'!$C$3:$C$502,C$101,'WHS Event Log'!$P$3:$P$502,StagingTables!$B117) -> 0 | D117: =COUNTIFS('WHS Event Log'!$C$3:$C$502,D$101,'WHS Event Log'!$P$3:$P$502,StagingTables!$B117) -> 0 | E117: =COUNTIFS('WHS Event Log'!$C$3:$C$502,E$101,'WHS Event Log'!$P$3:$P$502,StagingTables!$B117) -> 0 | F117: =COUNTIFS('WHS Event Log'!$C$3:$C$502,F$101,'WHS Event Log'!$P$3:$P$502,StagingTables!$B117) -> 0 | G117: =COUNTIFS('WHS Event Log'!$C$3:$C$502,G$101,'WHS Event Log'!$P$3:$P$502,StagingTables!$B117) -> 0 | H117: =COUNTIFS('WHS Event Log'!$C$3:$C$502,H$101,'WHS Event Log'!$P$3:$P$502,StagingTables!$B117) -> 0 | I117: =COUNTIFS('WHS Event Log'!$C$3:$C$502,I$101,'WHS Event Log'!$P$3:$P$502,StagingTables!$B117) -> 0 | J117: =COUNTIFS('WHS Event Log'!$F$3:$F$502,J$101,'WHS Event Log'!$P$3:$P$502,StagingTables!$B117) -> 0 | K117: =COUNTIFS('WHS Event Log'!$F$3:$F$502,K$101,'WHS Event Log'!$P$3:$P$502,StagingTables!$B117) -> 0 | L117: =COUNTIFS('WHS Event Log'!$F$3:$F$502,L$101,'WHS Event Log'!$P$3:$P$502,StagingTables!$B117) -> 0 | M117: =COUNTIFS('WHS Event Log'!$F$3:$F$502,M$101,'WHS Event Log'!$P$3:$P$502,StagingTables!$B117) -> 0 | N117: 0 | O117: =COUNTIFS('WHS Event Log'!$P$3:$P$502,$B117,'WHS Event Log'!$S$3:$S$502,Lists!$E$3) -> 0
B118: Knee | C118: =COUNTIFS('WHS Event Log'!$C$3:$C$502,C$101,'WHS Event Log'!$P$3:$P$502,StagingTables!$B118) -> 0 | D118: =COUNTIFS('WHS Event Log'!$C$3:$C$502,D$101,'WHS Event Log'!$P$3:$P$502,StagingTables!$B118) -> 0 | E118: =COUNTIFS('WHS Event Log'!$C$3:$C$502,E$101,'WHS Event Log'!$P$3:$P$502,StagingTables!$B118) -> 0 | F118: =COUNTIFS('WHS Event Log'!$C$3:$C$502,F$101,'WHS Event Log'!$P$3:$P$502,StagingTables!$B118) -> 0 | G118: =COUNTIFS('WHS Event Log'!$C$3:$C$502,G$101,'WHS Event Log'!$P$3:$P$502,StagingTables!$B118) -> 0 | H118: =COUNTIFS('WHS Event Log'!$C$3:$C$502,H$101,'WHS Event Log'!$P$3:$P$502,StagingTables!$B118) -> 0 | I118: =COUNTIFS('WHS Event Log'!$C$3:$C$502,I$101,'WHS Event Log'!$P$3:$P$502,StagingTables!$B118) -> 0 | J118: =COUNTIFS('WHS Event Log'!$F$3:$F$502,J$101,'WHS Event Log'!$P$3:$P$502,StagingTables!$B118) -> 0 | K118: =COUNTIFS('WHS Event Log'!$F$3:$F$502,K$101,'WHS Event Log'!$P$3:$P$502,StagingTables!$B118) -> 0 | L118: =COUNTIFS('WHS Event Log'!$F$3:$F$502,L$101,'WHS Event Log'!$P$3:$P$502,StagingTables!$B118) -> 0 | M118: =COUNTIFS('WHS Event Log'!$F$3:$F$502,M$101,'WHS Event Log'!$P$3:$P$502,StagingTables!$B118) -> 0 | N118: 0 | O118: =COUNTIFS('WHS Event Log'!$P$3:$P$502,$B118,'WHS Event Log'!$S$3:$S$502,Lists!$E$3) -> 0
B119: Lower Arm | C119: =COUNTIFS('WHS Event Log'!$C$3:$C$502,C$101,'WHS Event Log'!$P$3:$P$502,StagingTables!$B119) -> 0 | D119: =COUNTIFS('WHS Event Log'!$C$3:$C$502,D$101,'WHS Event Log'!$P$3:$P$502,StagingTables!$B119) -> 0 | E119: =COUNTIFS('WHS Event Log'!$C$3:$C$502,E$101,'WHS Event Log'!$P$3:$P$502,StagingTables!$B119) -> 0 | F119: =COUNTIFS('WHS Event Log'!$C$3:$C$502,F$101,'WHS Event Log'!$P$3:$P$502,StagingTables!$B119) -> 0 | G119: =COUNTIFS('WHS Event Log'!$C$3:$C$502,G$101,'WHS Event Log'!$P$3:$P$502,StagingTables!$B119) -> 0 | H119: =COUNTIFS('WHS Event Log'!$C$3:$C$502,H$101,'WHS Event Log'!$P$3:$P$502,StagingTables!$B119) -> 0 | I119: =COUNTIFS('WHS Event Log'!$C$3:$C$502,I$101,'WHS Event Log'!$P$3:$P$502,StagingTables!$B119) -> 0 | J119: =COUNTIFS('WHS Event Log'!$F$3:$F$502,J$101,'WHS Event Log'!$P$3:$P$502,StagingTables!$B119) -> 0 | K119: =COUNTIFS('WHS Event Log'!$F$3:$F$502,K$101,'WHS Event Log'!$P$3:$P$502,StagingTables!$B119) -> 0 | L119: =COUNTIFS('WHS Event Log'!$F$3:$F$502,L$101,'WHS Event Log'!$P$3:$P$502,StagingTables!$B119) -> 0 | M119: =COUNTIFS('WHS Event Log'!$F$3:$F$502,M$101,'WHS Event Log'!$P$3:$P$502,StagingTables!$B119) -> 0 | N119: 0 | O119: =COUNTIFS('WHS Event Log'!$P$3:$P$502,$B119,'WHS Event Log'!$S$3:$S$502,Lists!$E$3) -> 0
B120: Lower Back | C120: =COUNTIFS('WHS Event Log'!$C$3:$C$502,C$101,'WHS Event Log'!$P$3:$P$502,StagingTables!$B120) -> 0 | D120: =COUNTIFS('WHS Event Log'!$C$3:$C$502,D$101,'WHS Event Log'!$P$3:$P$502,StagingTables!$B120) -> 0 | E120: =COUNTIFS('WHS Event Log'!$C$3:$C$502,E$101,'WHS Event Log'!$P$3:$P$502,StagingTables!$B120) -> 0 | F120: =COUNTIFS('WHS Event Log'!$C$3:$C$502,F$101,'WHS Event Log'!$P$3:$P$502,StagingTables!$B120) -> 0 | G120: =COUNTIFS('WHS Event Log'!$C$3:$C$502,G$101,'WHS Event Log'!$P$3:$P$502,StagingTables!$B120) -> 0 | H120: =COUNTIFS('WHS Event Log'!$C$3:$C$502,H$101,'WHS Event Log'!$P$3:$P$502,StagingTables!$B120) -> 0 | I120: =COUNTIFS('WHS Event Log'!$C$3:$C$502,I$101,'WHS Event Log'!$P$3:$P$502,StagingTables!$B120) -> 0 | J120: =COUNTIFS('WHS Event Log'!$F$3:$F$502,J$101,'WHS Event Log'!$P$3:$P$502,StagingTables!$B120) -> 0 | K120: =COUNTIFS('WHS Event Log'!$F$3:$F$502,K$101,'WHS Event Log'!$P$3:$P$502,StagingTables!$B120) -> 0 | L120: =COUNTIFS('WHS Event Log'!$F$3:$F$502,L$101,'WHS Event Log'!$P$3:$P$502,StagingTables!$B120) -> 0 | M120: =COUNTIFS('WHS Event Log'!$F$3:$F$502,M$101,'WHS Event Log'!$P$3:$P$502,StagingTables!$B120) -> 0 | N120: 0 | O120: =COUNTIFS('WHS Event Log'!$P$3:$P$502,$B120,'WHS Event Log'!$S$3:$S$502,Lists!$E$3) -> 0
B121: Lower Leg | C121: =COUNTIFS('WHS Event Log'!$C$3:$C$502,C$101,'WHS Event Log'!$P$3:$P$502,StagingTables!$B121) -> 0 | D121: =COUNTIFS('WHS Event Log'!$C$3:$C$502,D$101,'WHS Event Log'!$P$3:$P$502,StagingTables!$B121) -> 0 | E121: =COUNTIFS('WHS Event Log'!$C$3:$C$502,E$101,'WHS Event Log'!$P$3:$P$502,StagingTables!$B121) -> 0 | F121: =COUNTIFS('WHS Event Log'!$C$3:$C$502,F$101,'WHS Event Log'!$P$3:$P$502,StagingTables!$B121) -> 0 | G121: =COUNTIFS('WHS Event Log'!$C$3:$C$502,G$101,'WHS Event Log'!$P$3:$P$502,StagingTables!$B121) -> 0 | H121: =COUNTIFS('WHS Event Log'!$C$3:$C$502,H$101,'WHS Event Log'!$P$3:$P$502,StagingTables!$B121) -> 0 | I121: =COUNTIFS('WHS Event Log'!$C$3:$C$502,I$101,'WHS Event Log'!$P$3:$P$502,StagingTables!$B121) -> 0 | J121: =COUNTIFS('WHS Event Log'!$F$3:$F$502,J$101,'WHS Event Log'!$P$3:$P$502,StagingTables!$B121) -> 0 | K121: =COUNTIFS('WHS Event Log'!$F$3:$F$502,K$101,'WHS Event Log'!$P$3:$P$502,StagingTables!$B121) -> 0 | L121: =COUNTIFS('WHS Event Log'!$F$3:$F$502,L$101,'WHS Event Log'!$P$3:$P$502,StagingTables!$B121) -> 0 | M121: =COUNTIFS('WHS Event Log'!$F$3:$F$502,M$101,'WHS Event Log'!$P$3:$P$502,StagingTables!$B121) -> 0 | N121: 0 | O121: =COUNTIFS('WHS Event Log'!$P$3:$P$502,$B121,'WHS Event Log'!$S$3:$S$502,Lists!$E$3) -> 0
B122: Mouth | C122: =COUNTIFS('WHS Event Log'!$C$3:$C$502,C$101,'WHS Event Log'!$P$3:$P$502,StagingTables!$B122) -> 0 | D122: =COUNTIFS('WHS Event Log'!$C$3:$C$502,D$101,'WHS Event Log'!$P$3:$P$502,StagingTables!$B122) -> 0 | E122: =COUNTIFS('WHS Event Log'!$C$3:$C$502,E$101,'WHS Event Log'!$P$3:$P$502,StagingTables!$B122) -> 0 | F122: =COUNTIFS('WHS Event Log'!$C$3:$C$502,F$101,'WHS Event Log'!$P$3:$P$502,StagingTables!$B122) -> 0 | G122: =COUNTIFS('WHS Event Log'!$C$3:$C$502,G$101,'WHS Event Log'!$P$3:$P$502,StagingTables!$B122) -> 0 | H122: =COUNTIFS('WHS Event Log'!$C$3:$C$502,H$101,'WHS Event Log'!$P$3:$P$502,StagingTables!$B122) -> 0 | I122: =COUNTIFS('WHS Event Log'!$C$3:$C$502,I$101,'WHS Event Log'!$P$3:$P$502,StagingTables!$B122) -> 0 | J122: =COUNTIFS('WHS Event Log'!$F$3:$F$502,J$101,'WHS Event Log'!$P$3:$P$502,StagingTables!$B122) -> 0 | K122: =COUNTIFS('WHS Event Log'!$F$3:$F$502,K$101,'WHS Event Log'!$P$3:$P$502,StagingTables!$B122) -> 0 | L122: =COUNTIFS('WHS Event Log'!$F$3:$F$502,L$101,'WHS Event Log'!$P$3:$P$502,StagingTables!$B122) -> 0 | M122: =COUNTIFS('WHS Event Log'!$F$3:$F$502,M$101,'WHS Event Log'!$P$3:$P$502,StagingTables!$B122) -> 0 | N122: 0 | O122: =COUNTIFS('WHS Event Log'!$P$3:$P$502,$B122,'WHS Event Log'!$S$3:$S$502,Lists!$E$3) -> 0
B123: Neck | C123: =COUNTIFS('WHS Event Log'!$C$3:$C$502,C$101,'WHS Event Log'!$P$3:$P$502,StagingTables!$B123) -> 0 | D123: =COUNTIFS('WHS Event Log'!$C$3:$C$502,D$101,'WHS Event Log'!$P$3:$P$502,StagingTables!$B123) -> 0 | E123: =COUNTIFS('WHS Event Log'!$C$3:$C$502,E$101,'WHS Event Log'!$P$3:$P$502,StagingTables!$B123) -> 0 | F123: =COUNTIFS('WHS Event Log'!$C$3:$C$502,F$101,'WHS Event Log'!$P$3:$P$502,StagingTables!$B123) -> 0 | G123: =COUNTIFS('WHS Event Log'!$C$3:$C$502,G$101,'WHS Event Log'!$P$3:$P$502,StagingTables!$B123) -> 0 | H123: =COUNTIFS('WHS Event Log'!$C$3:$C$502,H$101,'WHS Event Log'!$P$3:$P$502,StagingTables!$B123) -> 0 | I123: =COUNTIFS('WHS Event Log'!$C$3:$C$502,I$101,'WHS Event Log'!$P$3:$P$502,StagingTables!$B123) -> 0 | J123: =COUNTIFS('WHS Event Log'!$F$3:$F$502,J$101,'WHS Event Log'!$P$3:$P$502,StagingTables!$B123) -> 0 | K123: =COUNTIFS('WHS Event Log'!$F$3:$F$502,K$101,'WHS Event Log'!$P$3:$P$502,StagingTables!$B123) -> 0 | L123: =COUNTIFS('WHS Event Log'!$F$3:$F$502,L$101,'WHS Event Log'!$P$3:$P$502,StagingTables!$B123) -> 0 | M123: =COUNTIFS('WHS Event Log'!$F$3:$F$502,M$101,'WHS Event Log'!$P$3:$P$502,StagingTables!$B123) -> 0 | N123: 0 | O123: =COUNTIFS('WHS Event Log'!$P$3:$P$502,$B123,'WHS Event Log'!$S$3:$S$502,Lists!$E$3) -> 0
B124: Nose | C124: =COUNTIFS('WHS Event Log'!$C$3:$C$502,C$101,'WHS Event Log'!$P$3:$P$502,StagingTables!$B124) -> 0 | D124: =COUNTIFS('WHS Event Log'!$C$3:$C$502,D$101,'WHS Event Log'!$P$3:$P$502,StagingTables!$B124) -> 0 | E124: =COUNTIFS('WHS Event Log'!$C$3:$C$502,E$101,'WHS Event Log'!$P$3:$P$502,StagingTables!$B124) -> 0 | F124: =COUNTIFS('WHS Event Log'!$C$3:$C$502,F$101,'WHS Event Log'!$P$3:$P$502,StagingTables!$B124) -> 0 | G124: =COUNTIFS('WHS Event Log'!$C$3:$C$502,G$101,'WHS Event Log'!$P$3:$P$502,StagingTables!$B124) -> 0 | H124: =COUNTIFS('WHS Event Log'!$C$3:$C$502,H$101,'WHS Event Log'!$P$3:$P$502,StagingTables!$B124) -> 0 | I124: =COUNTIFS('WHS Event Log'!$C$3:$C$502,I$101,'WHS Event Log'!$P$3:$P$502,StagingTables!$B124) -> 0 | J124: =COUNTIFS('WHS Event Log'!$C$3:$C$502,J$101,'WHS Event Log'!$P$3:$P$502,StagingTables!$B124) -> 0 | K124: =COUNTIFS('WHS Event Log'!$C$3:$C$502,K$101,'WHS Event Log'!$P$3:$P$502,StagingTables!$B124) -> 0 | L124: =COUNTIFS('WHS Event Log'!$C$3:$C$502,L$101,'WHS Event Log'!$P$3:$P$502,StagingTables!$B124) -> 0 | M124: =COUNTIFS('WHS Event Log'!$C$3:$C$502,M$101,'WHS Event Log'!$P$3:$P$502,StagingTables!$B124) -> 0 | N124: 0 | O124: =COUNTIFS('WHS Event Log'!$P$3:$P$502,$B124,'WHS Event Log'!$S$3:$S$502,Lists!$E$3) -> 0
B125: Scalp | C125: =COUNTIFS('WHS Event Log'!$C$3:$C$502,C$101,'WHS Event Log'!$P$3:$P$502,StagingTables!$B125) -> 0 | D125: =COUNTIFS('WHS Event Log'!$C$3:$C$502,D$101,'WHS Event Log'!$P$3:$P$502,StagingTables!$B125) -> 0 | E125: =COUNTIFS('WHS Event Log'!$C$3:$C$502,E$101,'WHS Event Log'!$P$3:$P$502,StagingTables!$B125) -> 0 | F125: =COUNTIFS('WHS Event Log'!$C$3:$C$502,F$101,'WHS Event Log'!$P$3:$P$502,StagingTables!$B125) -> 0 | G125: =COUNTIFS('WHS Event Log'!$C$3:$C$502,G$101,'WHS Event Log'!$P$3:$P$502,StagingTables!$B125) -> 0 | H125: =COUNTIFS('WHS Event Log'!$C$3:$C$502,H$101,'WHS Event Log'!$P$3:$P$502,StagingTables!$B125) -> 0 | I125: =COUNTIFS('WHS Event Log'!$C$3:$C$502,I$101,'WHS Event Log'!$P$3:$P$502,StagingTables!$B125) -> 0 | J125: =COUNTIFS('WHS Event Log'!$C$3:$C$502,J$101,'WHS Event Log'!$P$3:$P$502,StagingTables!$B125) -> 0 | K125: =COUNTIFS('WHS Event Log'!$C$3:$C$502,K$101,'WHS Event Log'!$P$3:$P$502,StagingTables!$B125) -> 0 | L125: =COUNTIFS('WHS Event Log'!$C$3:$C$502,L$101,'WHS Event Log'!$P$3:$P$502,StagingTables!$B125) -> 0 | M125: =COUNTIFS('WHS Event Log'!$C$3:$C$502,M$101,'WHS Event Log'!$P$3:$P$502,StagingTables!$B125) -> 0 | N125: 0 | O125: =COUNTIFS('WHS Event Log'!$P$3:$P$502,$B125,'WHS Event Log'!$S$3:$S$502,Lists!$E$3) -> 0
B126: Shoulder | C126: =COUNTIFS('WHS Event Log'!$C$3:$C$502,C$101,'WHS Event Log'!$P$3:$P$502,StagingTables!$B126) -> 0 | D126: =COUNTIFS('WHS Event Log'!$C$3:$C$502,D$101,'WHS Event Log'!$P$3:$P$502,StagingTables!$B126) -> 0 | E126: =COUNTIFS('WHS Event Log'!$C$3:$C$502,E$101,'WHS Event Log'!$P$3:$P$502,StagingTables!$B126) -> 0 | F126: =COUNTIFS('WHS Event Log'!$C$3:$C$502,F$101,'WHS Event Log'!$P$3:$P$502,StagingTables!$B126) -> 0 | G126: =COUNTIFS('WHS Event Log'!$C$3:$C$502,G$101,'WHS Event Log'!$P$3:$P$502,StagingTables!$B126) -> 0 | H126: =COUNTIFS('WHS Event Log'!$C$3:$C$502,H$101,'WHS Event Log'!$P$3:$P$502,StagingTables!$B126) -> 0 | I126: =COUNTIFS('WHS Event Log'!$C$3:$C$502,I$101,'WHS Event Log'!$P$3:$P$502,StagingTables!$B126) -> 0 | J126: =COUNTIFS('WHS Event Log'!$C$3:$C$502,J$101,'WHS Event Log'!$P$3:$P$502,StagingTables!$B126) -> 0 | K126: =COUNTIFS('WHS Event Log'!$C$3:$C$502,K$101,'WHS Event Log'!$P$3:$P$502,StagingTables!$B126) -> 0 | L126: =COUNTIFS('WHS Event Log'!$C$3:$C$502,L$101,'WHS Event Log'!$P$3:$P$502,StagingTables!$B126) -> 0 | M126: =COUNTIFS('WHS Event Log'!$C$3:$C$502,M$101,'WHS Event Log'!$P$3:$P$502,StagingTables!$B126) -> 0 | N126: 0 | O126: =COUNTIFS('WHS Event Log'!$P$3:$P$502,$B126,'WHS Event Log'!$S$3:$S$502,Lists!$E$3) -> 0
B127: Throat | C127: =COUNTIFS('WHS Event Log'!$C$3:$C$502,C$101,'WHS Event Log'!$P$3:$P$502,StagingTables!$B127) -> 0 | D127: =COUNTIFS('WHS Event Log'!$C$3:$C$502,D$101,'WHS Event Log'!$P$3:$P$502,StagingTables!$B127) -> 0 | E127: =COUNTIFS('WHS Event Log'!$C$3:$C$502,E$101,'WHS Event Log'!$P$3:$P$502,StagingTables!$B127) -> 0 | F127: =COUNTIFS('WHS Event Log'!$C$3:$C$502,F$101,'WHS Event Log'!$P$3:$P$502,StagingTables!$B127) -> 0 | G127: =COUNTIFS('WHS Event Log'!$C$3:$C$502,G$101,'WHS Event Log'!$P$3:$P$502,StagingTables!$B127) -> 0 | H127: =COUNTIFS('WHS Event Log'!$C$3:$C$502,H$101,'WHS Event Log'!$P$3:$P$502,StagingTables!$B127) -> 0 | I127: =COUNTIFS('WHS Event Log'!$C$3:$C$502,I$101,'WHS Event Log'!$P$3:$P$502,StagingTables!$B127) -> 0 | J127: =COUNTIFS('WHS Event Log'!$C$3:$C$502,J$101,'WHS Event Log'!$P$3:$P$502,StagingTables!$B127) -> 0 | K127: =COUNTIFS('WHS Event Log'!$C$3:$C$502,K$101,'WHS Event Log'!$P$3:$P$502,StagingTables!$B127) -> 0 | L127: =COUNTIFS('WHS Event Log'!$C$3:$C$502,L$101,'WHS Event Log'!$P$3:$P$502,StagingTables!$B127) -> 0 | M127: =COUNTIFS('WHS Event Log'!$C$3:$C$502,M$101,'WHS Event Log'!$P$3:$P$502,StagingTables!$B127) -> 0 | N127: 0 | O127: =COUNTIFS('WHS Event Log'!$P$3:$P$502,$B127,'WHS Event Log'!$S$3:$S$502,Lists!$E$3) -> 0
B128: Toe | C128: =COUNTIFS('WHS Event Log'!$C$3:$C$502,C$101,'WHS Event Log'!$P$3:$P$502,StagingTables!$B128) -> 0 | D128: =COUNTIFS('WHS Event Log'!$C$3:$C$502,D$101,'WHS Event Log'!$P$3:$P$502,StagingTables!$B128) -> 0 | E128: =COUNTIFS('WHS Event Log'!$C$3:$C$502,E$101,'WHS Event Log'!$P$3:$P$502,StagingTables!$B128) -> 0 | F128: =COUNTIFS('WHS Event Log'!$C$3:$C$502,F$101,'WHS Event Log'!$P$3:$P$502,StagingTables!$B128) -> 0 | G128: =COUNTIFS('WHS Event Log'!$C$3:$C$502,G$101,'WHS Event Log'!$P$3:$P$502,StagingTables!$B128) -> 0 | H128: =COUNTIFS('WHS Event Log'!$C$3:$C$502,H$101,'WHS Event Log'!$P$3:$P$502,StagingTables!$B128) -> 0 | I128: =COUNTIFS('WHS Event Log'!$C$3:$C$502,I$101,'WHS Event Log'!$P$3:$P$502,StagingTables!$B128) -> 0 | J128: =COUNTIFS('WHS Event Log'!$C$3:$C$502,J$101,'WHS Event Log'!$P$3:$P$502,StagingTables!$B128) -> 0 | K128: =COUNTIFS('WHS Event Log'!$C$3:$C$502,K$101,'WHS Event Log'!$P$3:$P$502,StagingTables!$B128) -> 0 | L128: =COUNTIFS('WHS Event Log'!$C$3:$C$502,L$101,'WHS Event Log'!$P$3:$P$502,StagingTables!$B128) -> 0 | M128: =COUNTIFS('WHS Event Log'!$C$3:$C$502,M$101,'WHS Event Log'!$P$3:$P$502,StagingTables!$B128) -> 0 | N128: 0 | O128: =COUNTIFS('WHS Event Log'!$P$3:$P$502,$B128,'WHS Event Log'!$S$3:$S$502,Lists!$E$3) -> 0
B129: Upper Arm | C129: =COUNTIFS('WHS Event Log'!$C$3:$C$502,C$101,'WHS Event Log'!$P$3:$P$502,StagingTables!$B129) -> 0 | D129: =COUNTIFS('WHS Event Log'!$C$3:$C$502,D$101,'WHS Event Log'!$P$3:$P$502,StagingTables!$B129) -> 0 | E129: =COUNTIFS('WHS Event Log'!$C$3:$C$502,E$101,'WHS Event Log'!$P$3:$P$502,StagingTables!$B129) -> 0 | F129: =COUNTIFS('WHS Event Log'!$C$3:$C$502,F$101,'WHS Event Log'!$P$3:$P$502,StagingTables!$B129) -> 0 | G129: =COUNTIFS('WHS Event Log'!$C$3:$C$502,G$101,'WHS Event Log'!$P$3:$P$502,StagingTables!$B129) -> 0 | H129: =COUNTIFS('WHS Event Log'!$C$3:$C$502,H$101,'WHS Event Log'!$P$3:$P$502,StagingTables!$B129) -> 0 | I129: =COUNTIFS('WHS Event Log'!$C$3:$C$502,I$101,'WHS Event Log'!$P$3:$P$502,StagingTables!$B129) -> 0 | J129: =COUNTIFS('WHS Event Log'!$C$3:$C$502,J$101,'WHS Event Log'!$P$3:$P$502,StagingTables!$B129) -> 0 | K129: =COUNTIFS('WHS Event Log'!$C$3:$C$502,K$101,'WHS Event Log'!$P$3:$P$502,StagingTables!$B129) -> 0 | L129: =COUNTIFS('WHS Event Log'!$C$3:$C$502,L$101,'WHS Event Log'!$P$3:$P$502,StagingTables!$B129) -> 0 | M129: =COUNTIFS('WHS Event Log'!$C$3:$C$502,M$101,'WHS Event Log'!$P$3:$P$502,StagingTables!$B129) -> 0 | N129: 0 | O129: =COUNTIFS('WHS Event Log'!$P$3:$P$502,$B129,'WHS Event Log'!$S$3:$S$502,Lists!$E$3) -> 0
B130: Upper Back | C130: =COUNTIFS('WHS Event Log'!$C$3:$C$502,C$101,'WHS Event Log'!$P$3:$P$502,StagingTables!$B130) -> 0 | D130: =COUNTIFS('WHS Event Log'!$C$3:$C$502,D$101,'WHS Event Log'!$P$3:$P$502,StagingTables!$B130) -> 0 | E130: =COUNTIFS('WHS Event Log'!$C$3:$C$502,E$101,'WHS Event Log'!$P$3:$P$502,StagingTables!$B130) -> 0 | F130: =COUNTIFS('WHS Event Log'!$C$3:$C$502,F$101,'WHS Event Log'!$P$3:$P$502,StagingTables!$B130) -> 0 | G130: =COUNTIFS('WHS Event Log'!$C$3:$C$502,G$101,'WHS Event Log'!$P$3:$P$502,StagingTables!$B130) -> 0 | H130: =COUNTIFS('WHS Event Log'!$C$3:$C$502,H$101,'WHS Event Log'!$P$3:$P$502,StagingTables!$B130) -> 0 | I130: =COUNTIFS('WHS Event Log'!$C$3:$C$502,I$101,'WHS Event Log'!$P$3:$P$502,StagingTables!$B130) -> 0 | J130: =COUNTIFS('WHS Event Log'!$C$3:$C$502,J$101,'WHS Event Log'!$P$3:$P$502,StagingTables!$B130) -> 0 | K130: =COUNTIFS('WHS Event Log'!$C$3:$C$502,K$101,'WHS Event Log'!$P$3:$P$502,StagingTables!$B130) -> 0 | L130: =COUNTIFS('WHS Event Log'!$C$3:$C$502,L$101,'WHS Event Log'!$P$3:$P$502,StagingTables!$B130) -> 0 | M130: =COUNTIFS('WHS Event Log'!$C$3:$C$502,M$101,'WHS Event Log'!$P$3:$P$502,StagingTables!$B130) -> 0 | N130: 0 | O130: =COUNTIFS('WHS Event Log'!$P$3:$P$502,$B130,'WHS Event Log'!$S$3:$S$502,Lists!$E$3) -> 0
B131: Upper Leg | C131: =COUNTIFS('WHS Event Log'!$C$3:$C$502,C$101,'WHS Event Log'!$P$3:$P$502,StagingTables!$B131) -> 0 | D131: =COUNTIFS('WHS Event Log'!$C$3:$C$502,D$101,'WHS Event Log'!$P$3:$P$502,StagingTables!$B131) -> 0 | E131: =COUNTIFS('WHS Event Log'!$C$3:$C$502,E$101,'WHS Event Log'!$P$3:$P$502,StagingTables!$B131) -> 0 | F131: =COUNTIFS('WHS Event Log'!$C$3:$C$502,F$101,'WHS Event Log'!$P$3:$P$502,StagingTables!$B131) -> 0 | G131: =COUNTIFS('WHS Event Log'!$C$3:$C$502,G$101,'WHS Event Log'!$P$3:$P$502,StagingTables!$B131) -> 0 | H131: =COUNTIFS('WHS Event Log'!$C$3:$C$502,H$101,'WHS Event Log'!$P$3:$P$502,StagingTables!$B131) -> 0 | I131: =COUNTIFS('WHS Event Log'!$C$3:$C$502,I$101,'WHS Event Log'!$P$3:$P$502,StagingTables!$B131) -> 0 | J131: =COUNTIFS('WHS Event Log'!$C$3:$C$502,J$101,'WHS Event Log'!$P$3:$P$502,StagingTables!$B131) -> 0 | K131: =COUNTIFS('WHS Event Log'!$C$3:$C$502,K$101,'WHS Event Log'!$P$3:$P$502,StagingTables!$B131) -> 0 | L131: =COUNTIFS('WHS Event Log'!$C$3:$C$502,L$101,'WHS Event Log'!$P$3:$P$502,StagingTables!$B131) -> 0 | M131: =COUNTIFS('WHS Event Log'!$C$3:$C$502,M$101,'WHS Event Log'!$P$3:$P$502,StagingTables!$B131) -> 0 | N131: 0 | O131: =COUNTIFS('WHS Event Log'!$P$3:$P$502,$B131,'WHS Event Log'!$S$3:$S$502,Lists!$E$3) -> 0
B132: Wrist | C132: =COUNTIFS('WHS Event Log'!$C$3:$C$502,C$101,'WHS Event Log'!$P$3:$P$502,StagingTables!$B132) -> 0 | D132: =COUNTIFS('WHS Event Log'!$C$3:$C$502,D$101,'WHS Event Log'!$P$3:$P$502,StagingTables!$B132) -> 0 | E132: =COUNTIFS('WHS Event Log'!$C$3:$C$502,E$101,'WHS Event Log'!$P$3:$P$502,StagingTables!$B132) -> 0 | F132: =COUNTIFS('WHS Event Log'!$C$3:$C$502,F$101,'WHS Event Log'!$P$3:$P$502,StagingTables!$B132) -> 0 | G132: =COUNTIFS('WHS Event Log'!$C$3:$C$502,G$101,'WHS Event Log'!$P$3:$P$502,StagingTables!$B132) -> 0 | H132: =COUNTIFS('WHS Event Log'!$C$3:$C$502,H$101,'WHS Event Log'!$P$3:$P$502,StagingTables!$B132) -> 0 | I132: =COUNTIFS('WHS Event Log'!$C$3:$C$502,I$101,'WHS Event Log'!$P$3:$P$502,StagingTables!$B132) -> 0 | J132: =COUNTIFS('WHS Event Log'!$C$3:$C$502,J$101,'WHS Event Log'!$P$3:$P$502,StagingTables!$B132) -> 0 | K132: =COUNTIFS('WHS Event Log'!$C$3:$C$502,K$101,'WHS Event Log'!$P$3:$P$502,StagingTables!$B132) -> 0 | L132: =COUNTIFS('WHS Event Log'!$C$3:$C$502,L$101,'WHS Event Log'!$P$3:$P$502,StagingTables!$B132) -> 0 | M132: =COUNTIFS('WHS Event Log'!$C$3:$C$502,M$101,'WHS Event Log'!$P$3:$P$502,StagingTables!$B132) -> 0 | N132: 0 | O132: =COUNTIFS('WHS Event Log'!$P$3:$P$502,$B132,'WHS Event Log'!$S$3:$S$502,Lists!$E$3) -> 0
B133: Unspecified | C133: =COUNTIFS('WHS Event Log'!$C$3:$C$502,C$101,'WHS Event Log'!$P$3:$P$502,StagingTables!$B133) -> 0 | D133: =COUNTIFS('WHS Event Log'!$C$3:$C$502,D$101,'WHS Event Log'!$P$3:$P$502,StagingTables!$B133) -> 0 | E133: =COUNTIFS('WHS Event Log'!$C$3:$C$502,E$101,'WHS Event Log'!$P$3:$P$502,StagingTables!$B133) -> 0 | F133: =COUNTIFS('WHS Event Log'!$C$3:$C$502,F$101,'WHS Event Log'!$P$3:$P$502,StagingTables!$B133) -> 0 | G133: =COUNTIFS('WHS Event Log'!$C$3:$C$502,G$101,'WHS Event Log'!$P$3:$P$502,StagingTables!$B133) -> 0 | H133: =COUNTIFS('WHS Event Log'!$C$3:$C$502,H$101,'WHS Event Log'!$P$3:$P$502,StagingTables!$B133) -> 0 | I133: =COUNTIFS('WHS Event Log'!$C$3:$C$502,I$101,'WHS Event Log'!$P$3:$P$502,StagingTables!$B133) -> 0 | J133: =COUNTIFS('WHS Event Log'!$C$3:$C$502,J$101,'WHS Event Log'!$P$3:$P$502,StagingTables!$B133) -> 0 | K133: =COUNTIFS('WHS Event Log'!$C$3:$C$502,K$101,'WHS Event Log'!$P$3:$P$502,StagingTables!$B133) -> 0 | L133: =COUNTIFS('WHS Event Log'!$C$3:$C$502,L$101,'WHS Event Log'!$P$3:$P$502,StagingTables!$B133) -> 0 | M133: =COUNTIFS('WHS Event Log'!$C$3:$C$502,M$101,'WHS Event Log'!$P$3:$P$502,StagingTables!$B133) -> 0 | N133: 0 | O133: =COUNTIFS('WHS Event Log'!$P$3:$P$502,$B133,'WHS Event Log'!$S$3:$S$502,Lists!$E$3) -> 0
B134: Other | C134: =COUNTIFS('WHS Event Log'!$C$3:$C$502,C$101,'WHS Event Log'!$P$3:$P$502,StagingTables!$B134) -> 0 | D134: =COUNTIFS('WHS Event Log'!$C$3:$C$502,D$101,'WHS Event Log'!$P$3:$P$502,StagingTables!$B134) -> 0 | E134: =COUNTIFS('WHS Event Log'!$C$3:$C$502,E$101,'WHS Event Log'!$P$3:$P$502,StagingTables!$B134) -> 0 | F134: =COUNTIFS('WHS Event Log'!$C$3:$C$502,F$101,'WHS Event Log'!$P$3:$P$502,StagingTables!$B134) -> 0 | G134: =COUNTIFS('WHS Event Log'!$C$3:$C$502,G$101,'WHS Event Log'!$P$3:$P$502,StagingTables!$B134) -> 0 | H134: =COUNTIFS('WHS Event Log'!$C$3:$C$502,H$101,'WHS Event Log'!$P$3:$P$502,StagingTables!$B134) -> 0 | I134: =COUNTIFS('WHS Event Log'!$C$3:$C$502,I$101,'WHS Event Log'!$P$3:$P$502,StagingTables!$B134) -> 0 | J134: =COUNTIFS('WHS Event Log'!$C$3:$C$502,J$101,'WHS Event Log'!$P$3:$P$502,StagingTables!$B134) -> 0 | K134: =COUNTIFS('WHS Event Log'!$C$3:$C$502,K$101,'WHS Event Log'!$P$3:$P$502,StagingTables!$B134) -> 0 | L134: =COUNTIFS('WHS Event Log'!$C$3:$C$502,L$101,'WHS Event Log'!$P$3:$P$502,StagingTables!$B134) -> 0 | M134: =COUNTIFS('WHS Event Log'!$C$3:$C$502,M$101,'WHS Event Log'!$P$3:$P$502,StagingTables!$B134) -> 0 | N134: 0 | O134: =COUNTIFS('WHS Event Log'!$P$3:$P$502,$B134,'WHS Event Log'!$S$3:$S$502,Lists!$E$3) -> 0
C135: =SUM(C102:C134) -> 0 | D135: 0 | E135: 0 | F135: 0 | G135: 0 | H135: 0 | I135: 0 | J135: 0 | K135: 0 | L135: 0 | M135: 0 | N135: 0 | O135: =SUM(O103:O134) -> 0
B138: Injury Sustained Month | C138: January | D138: February | E138: March | F138: April | G138: May | H138: June | I138: July | J138: August | K138: September | L138: October | M138: November | N138: December | O138: Total | P138: Claim
B139: Abdomen | C139: =COUNTIFS('WHS Event Log'!$E$3:$E$502,C$138,'WHS Event Log'!$P$3:$P$502,StagingTables!$B139) -> 0 | D139: =COUNTIFS('WHS Event Log'!$E$3:$E$502,D$138,'WHS Event Log'!$P$3:$P$502,StagingTables!$B139) -> 0 | E139: =COUNTIFS('WHS Event Log'!$E$3:$E$502,E$138,'WHS Event Log'!$P$3:$P$502,StagingTables!$B139) -> 0 | F139: =COUNTIFS('WHS Event Log'!$E$3:$E$502,F$138,'WHS Event Log'!$P$3:$P$502,StagingTables!$B139) -> 0 | G139: =COUNTIFS('WHS Event Log'!$E$3:$E$502,G$138,'WHS Event Log'!$P$3:$P$502,StagingTables!$B139) -> 0 | H139: =COUNTIFS('WHS Event Log'!$E$3:$E$502,H$138,'WHS Event Log'!$P$3:$P$502,StagingTables!$B139) -> 0 | I139: =COUNTIFS('WHS Event Log'!$E$3:$E$502,I$138,'WHS Event Log'!$P$3:$P$502,StagingTables!$B139) -> 0 | J139: =COUNTIFS('WHS Event Log'!$E$3:$E$502,J$138,'WHS Event Log'!$P$3:$P$502,StagingTables!$B139) -> 0 | K139: =COUNTIFS('WHS Event Log'!$E$3:$E$502,K$138,'WHS Event Log'!$P$3:$P$502,StagingTables!$B139) -> 0 | L139: =COUNTIFS('WHS Event Log'!$E$3:$E$502,L$138,'WHS Event Log'!$P$3:$P$502,StagingTables!$B139) -> 0 | M139: =COUNTIFS('WHS Event Log'!$E$3:$E$502,M$138,'WHS Event Log'!$P$3:$P$502,StagingTables!$B139) -> 0 | N139: =COUNTIFS('WHS Event Log'!$E$3:$E$502,N$138,'WHS Event Log'!$P$3:$P$502,StagingTables!$B139) -> 0 | O139: =SUM(C139:N139) -> 0 | P139: =COUNTIFS('WHS Event Log'!$P$3:$P$502,$B139,'WHS Event Log'!$S$3:$S$502,Lists!$E$3) -> 0
B140: Ankle | C140: =COUNTIFS('WHS Event Log'!$E$3:$E$502,C$138,'WHS Event Log'!$P$3:$P$502,StagingTables!$B140) -> 0 | D140: =COUNTIFS('WHS Event Log'!$E$3:$E$502,D$138,'WHS Event Log'!$P$3:$P$502,StagingTables!$B140) -> 0 | E140: =COUNTIFS('WHS Event Log'!$E$3:$E$502,E$138,'WHS Event Log'!$P$3:$P$502,StagingTables!$B140) -> 0 | F140: =COUNTIFS('WHS Event Log'!$E$3:$E$502,F$138,'WHS Event Log'!$P$3:$P$502,StagingTables!$B140) -> 0 | G140: =COUNTIFS('WHS Event Log'!$E$3:$E$502,G$138,'WHS Event Log'!$P$3:$P$502,StagingTables!$B140) -> 0 | H140: =COUNTIFS('WHS Event Log'!$E$3:$E$502,H$138,'WHS Event Log'!$P$3:$P$502,StagingTables!$B140) -> 0 | I140: =COUNTIFS('WHS Event Log'!$E$3:$E$502,I$138,'WHS Event Log'!$P$3:$P$502,StagingTables!$B140) -> 0 | J140: =COUNTIFS('WHS Event Log'!$E$3:$E$502,J$138,'WHS Event Log'!$P$3:$P$502,StagingTables!$B140) -> 0 | K140: =COUNTIFS('WHS Event Log'!$E$3:$E$502,K$138,'WHS Event Log'!$P$3:$P$502,StagingTables!$B140) -> 0 | L140: =COUNTIFS('WHS Event Log'!$E$3:$E$502,L$138,'WHS Event Log'!$P$3:$P$502,StagingTables!$B140) -> 0 | M140: =COUNTIFS('WHS Event Log'!$E$3:$E$502,M$138,'WHS Event Log'!$P$3:$P$502,StagingTables!$B140) -> 0 | N140: =COUNTIFS('WHS Event Log'!$E$3:$E$502,N$138,'WHS Event Log'!$P$3:$P$502,StagingTables!$B140) -> 0 | O140: =SUM(C140:N140) -> 0 | P140: =COUNTIFS('WHS Event Log'!$P$3:$P$502,$B140,'WHS Event Log'!$S$3:$S$502,Lists!$E$3) -> 0
B141: Buttock | C141: =COUNTIFS('WHS Event Log'!$E$3:$E$502,C$138,'WHS Event Log'!$P$3:$P$502,StagingTables!$B141) -> 0 | D141: =COUNTIFS('WHS Event Log'!$E$3:$E$502,D$138,'WHS Event Log'!$P$3:$P$502,StagingTables!$B141) -> 0 | E141: =COUNTIFS('WHS Event Log'!$E$3:$E$502,E$138,'WHS Event Log'!$P$3:$P$502,StagingTables!$B141) -> 0 | F141: =COUNTIFS('WHS Event Log'!$E$3:$E$502,F$138,'WHS Event Log'!$P$3:$P$502,StagingTables!$B141) -> 0 | G141: =COUNTIFS('WHS Event Log'!$E$3:$E$502,G$138,'WHS Event Log'!$P$3:$P$502,StagingTables!$B141) -> 0 | H141: =COUNTIFS('WHS Event Log'!$E$3:$E$502,H$138,'WHS Event Log'!$P$3:$P$502,StagingTables!$B141) -> 0 | I141: =COUNTIFS('WHS Event Log'!$E$3:$E$502,I$138,'WHS Event Log'!$P$3:$P$502,StagingTables!$B141) -> 0 | J141: =COUNTIFS('WHS Event Log'!$E$3:$E$502,J$138,'WHS Event Log'!$P$3:$P$502,StagingTables!$B141) -> 0 | K141: =COUNTIFS('WHS Event Log'!$E$3:$E$502,K$138,'WHS Event Log'!$P$3:$P$502,StagingTables!$B141) -> 0 | L141: =COUNTIFS('WHS Event Log'!$E$3:$E$502,L$138,'WHS Event Log'!$P$3:$P$502,StagingTables!$B141) -> 0 | M141: =COUNTIFS('WHS Event Log'!$E$3:$E$502,M$138,'WHS Event Log'!$P$3:$P$502,StagingTables!$B141) -> 0 | N141: =COUNTIFS('WHS Event Log'!$E$3:$E$502,N$138,'WHS Event Log'!$P$3:$P$502,StagingTables!$B141) -> 0 | O141: 0 | P141: =COUNTIFS('WHS Event Log'!$P$3:$P$502,$B141,'WHS Event Log'!$S$3:$S$502,Lists!$E$3) -> 0
B142: Chest | C142: =COUNTIFS('WHS Event Log'!$E$3:$E$502,C$138,'WHS Event Log'!$P$3:$P$502,StagingTables!$B142) -> 0 | D142: =COUNTIFS('WHS Event Log'!$E$3:$E$502,D$138,'WHS Event Log'!$P$3:$P$502,StagingTables!$B142) -> 0 | E142: =COUNTIFS('WHS Event Log'!$E$3:$E$502,E$138,'WHS Event Log'!$P$3:$P$502,StagingTables!$B142) -> 0 | F142: =COUNTIFS('WHS Event Log'!$E$3:$E$502,F$138,'WHS Event Log'!$P$3:$P$502,StagingTables!$B142) -> 0 | G142: =COUNTIFS('WHS Event Log'!$E$3:$E$502,G$138,'WHS Event Log'!$P$3:$P$502,StagingTables!$B142) -> 0 | H142: =COUNTIFS('WHS Event Log'!$E$3:$E$502,H$138,'WHS Event Log'!$P$3:$P$502,StagingTables!$B142) -> 0 | I142: =COUNTIFS('WHS Event Log'!$E$3:$E$502,I$138,'WHS Event Log'!$P$3:$P$502,StagingTables!$B142) -> 0 | J142: =COUNTIFS('WHS Event Log'!$E$3:$E$502,J$138,'WHS Event Log'!$P$3:$P$502,StagingTables!$B142) -> 0 | K142: =COUNTIFS('WHS Event Log'!$E$3:$E$502,K$138,'WHS Event Log'!$P$3:$P$502,StagingTables!$B142) -> 0 | L142: =COUNTIFS('WHS Event Log'!$E$3:$E$502,L$138,'WHS Event Log'!$P$3:$P$502,StagingTables!$B142) -> 0 | M142: =COUNTIFS('WHS Event Log'!$E$3:$E$502,M$138,'WHS Event Log'!$P$3:$P$502,StagingTables!$B142) -> 0 | N142: =COUNTIFS('WHS Event Log'!$E$3:$E$502,N$138,'WHS Event Log'!$P$3:$P$502,StagingTables!$B142) -> 0 | O142: 0 | P142: =COUNTIFS('WHS Event Log'!$P$3:$P$502,$B142,'WHS Event Log'!$S$3:$S$502,Lists!$E$3) -> 0
B143: Cognitive | C143: =COUNTIFS('WHS Event Log'!$E$3:$E$502,C$138,'WHS Event Log'!$P$3:$P$502,StagingTables!$B143) -> 0 | D143: =COUNTIFS('WHS Event Log'!$E$3:$E$502,D$138,'WHS Event Log'!$P$3:$P$502,StagingTables!$B143) -> 0 | E143: =COUNTIFS('WHS Event Log'!$E$3:$E$502,E$138,'WHS Event Log'!$P$3:$P$502,StagingTables!$B143) -> 0 | F143: =COUNTIFS('WHS Event Log'!$E$3:$E$502,F$138,'WHS Event Log'!$P$3:$P$502,StagingTables!$B143) -> 0 | G143: =COUNTIFS('WHS Event Log'!$E$3:$E$502,G$138,'WHS Event Log'!$P$3:$P$502,StagingTables!$B143) -> 0 | H143: =COUNTIFS('WHS Event Log'!$E$3:$E$502,H$138,'WHS Event Log'!$P$3:$P$502,StagingTables!$B143) -> 0 | I143: =COUNTIFS('WHS Event Log'!$E$3:$E$502,I$138,'WHS Event Log'!$P$3:$P$502,StagingTables!$B143) -> 0 | J143: =COUNTIFS('WHS Event Log'!$E$3:$E$502,J$138,'WHS Event Log'!$P$3:$P$502,StagingTables!$B143) -> 0 | K143: =COUNTIFS('WHS Event Log'!$E$3:$E$502,K$138,'WHS Event Log'!$P$3:$P$502,StagingTables!$B143) -> 0 | L143: =COUNTIFS('WHS Event Log'!$E$3:$E$502,L$138,'WHS Event Log'!$P$3:$P$502,StagingTables!$B143) -> 0 | M143: =COUNTIFS('WHS Event Log'!$E$3:$E$502,M$138,'WHS Event Log'!$P$3:$P$502,StagingTables!$B143) -> 0 | N143: =COUNTIFS('WHS Event Log'!$E$3:$E$502,N$138,'WHS Event Log'!$P$3:$P$502,StagingTables!$B143) -> 0 | O143: 0 | P143: =COUNTIFS('WHS Event Log'!$P$3:$P$502,$B143,'WHS Event Log'!$S$3:$S$502,Lists!$E$3) -> 0
B144: Ear | C144: =COUNTIFS('WHS Event Log'!$E$3:$E$502,C$138,'WHS Event Log'!$P$3:$P$502,StagingTables!$B144) -> 0 | D144: =COUNTIFS('WHS Event Log'!$E$3:$E$502,D$138,'WHS Event Log'!$P$3:$P$502,StagingTables!$B144) -> 0 | E144: =COUNTIFS('WHS Event Log'!$E$3:$E$502,E$138,'WHS Event Log'!$P$3:$P$502,StagingTables!$B144) -> 0 | F144: =COUNTIFS('WHS Event Log'!$E$3:$E$502,F$138,'WHS Event Log'!$P$3:$P$502,StagingTables!$B144) -> 0 | G144: =COUNTIFS('WHS Event Log'!$E$3:$E$502,G$138,'WHS Event Log'!$P$3:$P$502,StagingTables!$B144) -> 0 | H144: =COUNTIFS('WHS Event Log'!$E$3:$E$502,H$138,'WHS Event Log'!$P$3:$P$502,StagingTables!$B144) -> 0 | I144: =COUNTIFS('WHS Event Log'!$E$3:$E$502,I$138,'WHS Event Log'!$P$3:$P$502,StagingTables!$B144) -> 0 | J144: =COUNTIFS('WHS Event Log'!$E$3:$E$502,J$138,'WHS Event Log'!$P$3:$P$502,StagingTables!$B144) -> 0 | K144: =COUNTIFS('WHS Event Log'!$E$3:$E$502,K$138,'WHS Event Log'!$P$3:$P$502,StagingTables!$B144) -> 0 | L144: =COUNTIFS('WHS Event Log'!$E$3:$E$502,L$138,'WHS Event Log'!$P$3:$P$502,StagingTables!$B144) -> 0 | M144: =COUNTIFS('WHS Event Log'!$E$3:$E$502,M$138,'WHS Event Log'!$P$3:$P$502,StagingTables!$B144) -> 0 | N144: =COUNTIFS('WHS Event Log'!$E$3:$E$502,N$138,'WHS Event Log'!$P$3:$P$502,StagingTables!$B144) -> 0 | O144: 0 | P144: =COUNTIFS('WHS Event Log'!$P$3:$P$502,$B144,'WHS Event Log'!$S$3:$S$502,Lists!$E$3) -> 0
B145: Elbow | C145: =COUNTIFS('WHS Event Log'!$E$3:$E$502,C$138,'WHS Event Log'!$P$3:$P$502,StagingTables!$B145) -> 0 | D145: =COUNTIFS('WHS Event Log'!$E$3:$E$502,D$138,'WHS Event Log'!$P$3:$P$502,StagingTables!$B145) -> 0 | E145: =COUNTIFS('WHS Event Log'!$E$3:$E$502,E$138,'WHS Event Log'!$P$3:$P$502,StagingTables!$B145) -> 0 | F145: =COUNTIFS('WHS Event Log'!$E$3:$E$502,F$138,'WHS Event Log'!$P$3:$P$502,StagingTables!$B145) -> 0 | G145: =COUNTIFS('WHS Event Log'!$E$3:$E$502,G$138,'WHS Event Log'!$P$3:$P$502,StagingTables!$B145) -> 0 | H145: =COUNTIFS('WHS Event Log'!$E$3:$E$502,H$138,'WHS Event Log'!$P$3:$P$502,StagingTables!$B145) -> 0 | I145: =COUNTIFS('WHS Event Log'!$E$3:$E$502,I$138,'WHS Event Log'!$P$3:$P$502,StagingTables!$B145) -> 0 | J145: =COUNTIFS('WHS Event Log'!$E$3:$E$502,J$138,'WHS Event Log'!$P$3:$P$502,StagingTables!$B145) -> 0 | K145: =COUNTIFS('WHS Event Log'!$E$3:$E$502,K$138,'WHS Event Log'!$P$3:$P$502,StagingTables!$B145) -> 0 | L145: =COUNTIFS('WHS Event Log'!$E$3:$E$502,L$138,'WHS Event Log'!$P$3:$P$502,StagingTables!$B145) -> 0 | M145: =COUNTIFS('WHS Event Log'!$E$3:$E$502,M$138,'WHS Event Log'!$P$3:$P$502,StagingTables!$B145) -> 0 | N145: =COUNTIFS('WHS Event Log'!$E$3:$E$502,N$138,'WHS Event Log'!$P$3:$P$502,StagingTables!$B145) -> 0 | O145: 0 | P145: =COUNTIFS('WHS Event Log'!$P$3:$P$502,$B145,'WHS Event Log'!$S$3:$S$502,Lists!$E$3) -> 0
B146: Eye | C146: =COUNTIFS('WHS Event Log'!$E$3:$E$502,C$138,'WHS Event Log'!$P$3:$P$502,StagingTables!$B146) -> 0 | D146: =COUNTIFS('WHS Event Log'!$E$3:$E$502,D$138,'WHS Event Log'!$P$3:$P$502,StagingTables!$B146) -> 0 | E146: =COUNTIFS('WHS Event Log'!$E$3:$E$502,E$138,'WHS Event Log'!$P$3:$P$502,StagingTables!$B146) -> 0 | F146: =COUNTIFS('WHS Event Log'!$E$3:$E$502,F$138,'WHS Event Log'!$P$3:$P$502,StagingTables!$B146) -> 0 | G146: =COUNTIFS('WHS Event Log'!$E$3:$E$502,G$138,'WHS Event Log'!$P$3:$P$502,StagingTables!$B146) -> 0 | H146: =COUNTIFS('WHS Event Log'!$E$3:$E$502,H$138,'WHS Event Log'!$P$3:$P$502,StagingTables!$B146) -> 0 | I146: =COUNTIFS('WHS Event Log'!$E$3:$E$502,I$138,'WHS Event Log'!$P$3:$P$502,StagingTables!$B146) -> 0 | J146: =COUNTIFS('WHS Event Log'!$E$3:$E$502,J$138,'WHS Event Log'!$P$3:$P$502,StagingTables!$B146) -> 0 | K146: =COUNTIFS('WHS Event Log'!$E$3:$E$502,K$138,'WHS Event Log'!$P$3:$P$502,StagingTables!$B146) -> 0 | L146: =COUNTIFS('WHS Event Log'!$E$3:$E$502,L$138,'WHS Event Log'!$P$3:$P$502,StagingTables!$B146) -> 0 | M146: =COUNTIFS('WHS Event Log'!$E$3:$E$502,M$138,'WHS Event Log'!$P$3:$P$502,StagingTables!$B146) -> 0 | N146: =COUNTIFS('WHS Event Log'!$E$3:$E$502,N$138,'WHS Event Log'!$P$3:$P$502,StagingTables!$B146) -> 0 | O146: 0 | P146: =COUNTIFS('WHS Event Log'!$P$3:$P$502,$B146,'WHS Event Log'!$S$3:$S$502,Lists!$E$3) -> 0
B147: Face | C147: =COUNTIFS('WHS Event Log'!$E$3:$E$502,C$138,'WHS Event Log'!$P$3:$P$502,StagingTables!$B147) -> 0 | D147: =COUNTIFS('WHS Event Log'!$E$3:$E$502,D$138,'WHS Event Log'!$P$3:$P$502,StagingTables!$B147) -> 0 | E147: =COUNTIFS('WHS Event Log'!$E$3:$E$502,E$138,'WHS Event Log'!$P$3:$P$502,StagingTables!$B147) -> 0 | F147: =COUNTIFS('WHS Event Log'!$E$3:$E$502,F$138,'WHS Event Log'!$P$3:$P$502,StagingTables!$B147) -> 0 | G147: =COUNTIFS('WHS Event Log'!$E$3:$E$502,G$138,'WHS Event Log'!$P$3:$P$502,StagingTables!$B147) -> 0 | H147: =COUNTIFS('WHS Event Log'!$E$3:$E$502,H$138,'WHS Event Log'!$P$3:$P$502,StagingTables!$B147) -> 0 | I147: =COUNTIFS('WHS Event Log'!$E$3:$E$502,I$138,'WHS Event Log'!$P$3:$P$502,StagingTables!$B147) -> 0 | J147: =COUNTIFS('WHS Event Log'!$E$3:$E$502,J$138,'WHS Event Log'!$P$3:$P$502,StagingTables!$B147) -> 0 | K147: =COUNTIFS('WHS Event Log'!$E$3:$E$502,K$138,'WHS Event Log'!$P$3:$P$502,StagingTables!$B147) -> 0 | L147: =COUNTIFS('WHS Event Log'!$E$3:$E$502,L$138,'WHS Event Log'!$P$3:$P$502,StagingTables!$B147) -> 0 | M147: =COUNTIFS('WHS Event Log'!$E$3:$E$502,M$138,'WHS Event Log'!$P$3:$P$502,StagingTables!$B147) -> 0 | N147: =COUNTIFS('WHS Event Log'!$E$3:$E$502,N$138,'WHS Event Log'!$P$3:$P$502,StagingTables!$B147) -> 0 | O147: 0 | P147: =COUNTIFS('WHS Event Log'!$P$3:$P$502,$B147,'WHS Event Log'!$S$3:$S$502,Lists!$E$3) -> 0
B148: Finger | C148: =COUNTIFS('WHS Event Log'!$E$3:$E$502,C$138,'WHS Event Log'!$P$3:$P$502,StagingTables!$B148) -> 0 | D148: =COUNTIFS('WHS Event Log'!$E$3:$E$502,D$138,'WHS Event Log'!$P$3:$P$502,StagingTables!$B148) -> 0 | E148: =COUNTIFS('WHS Event Log'!$E$3:$E$502,E$138,'WHS Event Log'!$P$3:$P$502,StagingTables!$B148) -> 0 | F148: =COUNTIFS('WHS Event Log'!$E$3:$E$502,F$138,'WHS Event Log'!$P$3:$P$502,StagingTables!$B148) -> 0 | G148: =COUNTIFS('WHS Event Log'!$E$3:$E$502,G$138,'WHS Event Log'!$P$3:$P$502,StagingTables!$B148) -> 0 | H148: =COUNTIFS('WHS Event Log'!$E$3:$E$502,H$138,'WHS Event Log'!$P$3:$P$502,StagingTables!$B148) -> 0 | I148: =COUNTIFS('WHS Event Log'!$E$3:$E$502,I$138,'WHS Event Log'!$P$3:$P$502,StagingTables!$B148) -> 0 | J148: =COUNTIFS('WHS Event Log'!$E$3:$E$502,J$138,'WHS Event Log'!$P$3:$P$502,StagingTables!$B148) -> 0 | K148: =COUNTIFS('WHS Event Log'!$E$3:$E$502,K$138,'WHS Event Log'!$P$3:$P$502,StagingTables!$B148) -> 0 | L148: =COUNTIFS('WHS Event Log'!$E$3:$E$502,L$138,'WHS Event Log'!$P$3:$P$502,StagingTables!$B148) -> 0 | M148: =COUNTIFS('WHS Event Log'!$E$3:$E$502,M$138,'WHS Event Log'!$P$3:$P$502,StagingTables!$B148) -> 0 | N148: =COUNTIFS('WHS Event Log'!$E$3:$E$502,N$138,'WHS Event Log'!$P$3:$P$502,StagingTables!$B148) -> 0 | O148: 0 | P148: =COUNTIFS('WHS Event Log'!$P$3:$P$502,$B148,'WHS Event Log'!$S$3:$S$502,Lists!$E$3) -> 0
B149: Foot | C149: =COUNTIFS('WHS Event Log'!$E$3:$E$502,C$138,'WHS Event Log'!$P$3:$P$502,StagingTables!$B149) -> 0 | D149: =COUNTIFS('WHS Event Log'!$E$3:$E$502,D$138,'WHS Event Log'!$P$3:$P$502,StagingTables!$B149) -> 0 | E149: =COUNTIFS('WHS Event Log'!$E$3:$E$502,E$138,'WHS Event Log'!$P$3:$P$502,StagingTables!$B149) -> 0 | F149: =COUNTIFS('WHS Event Log'!$E$3:$E$502,F$138,'WHS Event Log'!$P$3:$P$502,StagingTables!$B149) -> 0 | G149: =COUNTIFS('WHS Event Log'!$E$3:$E$502,G$138,'WHS Event Log'!$P$3:$P$502,StagingTables!$B149) -> 0 | H149: =COUNTIFS('WHS Event Log'!$E$3:$E$502,H$138,'WHS Event Log'!$P$3:$P$502,StagingTables!$B149) -> 0 | I149: =COUNTIFS('WHS Event Log'!$E$3:$E$502,I$138,'WHS Event Log'!$P$3:$P$502,StagingTables!$B149) -> 0 | J149: =COUNTIFS('WHS Event Log'!$E$3:$E$502,J$138,'WHS Event Log'!$P$3:$P$502,StagingTables!$B149) -> 0 | K149: =COUNTIFS('WHS Event Log'!$E$3:$E$502,K$138,'WHS Event Log'!$P$3:$P$502,StagingTables!$B149) -> 0 | L149: =COUNTIFS('WHS Event Log'!$E$3:$E$502,L$138,'WHS Event Log'!$P$3:$P$502,StagingTables!$B149) -> 0 | M149: =COUNTIFS('WHS Event Log'!$E$3:$E$502,M$138,'WHS Event Log'!$P$3:$P$502,StagingTables!$B149) -> 0 | N149: =COUNTIFS('WHS Event Log'!$E$3:$E$502,N$138,'WHS Event Log'!$P$3:$P$502,StagingTables!$B149) -> 0 | O149: 0 | P149: =COUNTIFS('WHS Event Log'!$P$3:$P$502,$B149,'WHS Event Log'!$S$3:$S$502,Lists!$E$3) -> 0
B150: Groin | C150: =COUNTIFS('WHS Event Log'!$E$3:$E$502,C$138,'WHS Event Log'!$P$3:$P$502,StagingTables!$B150) -> 0 | D150: =COUNTIFS('WHS Event Log'!$E$3:$E$502,D$138,'WHS Event Log'!$P$3:$P$502,StagingTables!$B150) -> 0 | E150: =COUNTIFS('WHS Event Log'!$E$3:$E$502,E$138,'WHS Event Log'!$P$3:$P$502,StagingTables!$B150) -> 0 | F150: =COUNTIFS('WHS Event Log'!$E$3:$E$502,F$138,'WHS Event Log'!$P$3:$P$502,StagingTables!$B150) -> 0 | G150: =COUNTIFS('WHS Event Log'!$E$3:$E$502,G$138,'WHS Event Log'!$P$3:$P$502,StagingTables!$B150) -> 0 | H150: =COUNTIFS('WHS Event Log'!$E$3:$E$502,H$138,'WHS Event Log'!$P$3:$P$502,StagingTables!$B150) -> 0 | I150: =COUNTIFS('WHS Event Log'!$E$3:$E$502,I$138,'WHS Event Log'!$P$3:$P$502,StagingTables!$B150) -> 0 | J150: =COUNTIFS('WHS Event Log'!$E$3:$E$502,J$138,'WHS Event Log'!$P$3:$P$502,StagingTables!$B150) -> 0 | K150: =COUNTIFS('WHS Event Log'!$E$3:$E$502,K$138,'WHS Event Log'!$P$3:$P$502,StagingTables!$B150) -> 0 | L150: =COUNTIFS('WHS Event Log'!$E$3:$E$502,L$138,'WHS Event Log'!$P$3:$P$502,StagingTables!$B150) -> 0 | M150: =COUNTIFS('WHS Event Log'!$E$3:$E$502,M$138,'WHS Event Log'!$P$3:$P$502,StagingTables!$B150) -> 0 | N150: =COUNTIFS('WHS Event Log'!$E$3:$E$502,N$138,'WHS Event Log'!$P$3:$P$502,StagingTables!$B150) -> 0 | O150: 0 | P150: =COUNTIFS('WHS Event Log'!$P$3:$P$502,$B150,'WHS Event Log'!$S$3:$S$502,Lists!$E$3) -> 0
B151: Hand | C151: =COUNTIFS('WHS Event Log'!$E$3:$E$502,C$138,'WHS Event Log'!$P$3:$P$502,StagingTables!$B151) -> 0 | D151: =COUNTIFS('WHS Event Log'!$E$3:$E$502,D$138,'WHS Event Log'!$P$3:$P$502,StagingTables!$B151) -> 0 | E151: =COUNTIFS('WHS Event Log'!$E$3:$E$502,E$138,'WHS Event Log'!$P$3:$P$502,StagingTables!$B151) -> 0 | F151: =COUNTIFS('WHS Event Log'!$E$3:$E$502,F$138,'WHS Event Log'!$P$3:$P$502,StagingTables!$B151) -> 0 | G151: =COUNTIFS('WHS Event Log'!$E$3:$E$502,G$138,'WHS Event Log'!$P$3:$P$502,StagingTables!$B151) -> 0 | H151: =COUNTIFS('WHS Event Log'!$E$3:$E$502,H$138,'WHS Event Log'!$P$3:$P$502,StagingTables!$B151) -> 0 | I151: =COUNTIFS('WHS Event Log'!$E$3:$E$502,I$138,'WHS Event Log'!$P$3:$P$502,StagingTables!$B151) -> 0 | J151: =COUNTIFS('WHS Event Log'!$E$3:$E$502,J$138,'WHS Event Log'!$P$3:$P$502,StagingTables!$B151) -> 0 | K151: =COUNTIFS('WHS Event Log'!$E$3:$E$502,K$138,'WHS Event Log'!$P$3:$P$502,StagingTables!$B151) -> 0 | L151: =COUNTIFS('WHS Event Log'!$E$3:$E$502,L$138,'WHS Event Log'!$P$3:$P$502,StagingTables!$B151) -> 0 | M151: =COUNTIFS('WHS Event Log'!$E$3:$E$502,M$138,'WHS Event Log'!$P$3:$P$502,StagingTables!$B151) -> 0 | N151: =COUNTIFS('WHS Event Log'!$E$3:$E$502,N$138,'WHS Event Log'!$P$3:$P$502,StagingTables!$B151) -> 0 | O151: 0 | P151: =COUNTIFS('WHS Event Log'!$P$3:$P$502,$B151,'WHS Event Log'!$S$3:$S$502,Lists!$E$3) -> 0
B152: Head | C152: =COUNTIFS('WHS Event Log'!$E$3:$E$502,C$138,'WHS Event Log'!$P$3:$P$502,StagingTables!$B152) -> 0 | D152: =COUNTIFS('WHS Event Log'!$E$3:$E$502,D$138,'WHS Event Log'!$P$3:$P$502,StagingTables!$B152) -> 0 | E152: =COUNTIFS('WHS Event Log'!$E$3:$E$502,E$138,'WHS Event Log'!$P$3:$P$502,StagingTables!$B152) -> 0 | F152: =COUNTIFS('WHS Event Log'!$E$3:$E$502,F$138,'WHS Event Log'!$P$3:$P$502,StagingTables!$B152) -> 0 | G152: =COUNTIFS('WHS Event Log'!$E$3:$E$502,G$138,'WHS Event Log'!$P$3:$P$502,StagingTables!$B152) -> 0 | H152: =COUNTIFS('WHS Event Log'!$E$3:$E$502,H$138,'WHS Event Log'!$P$3:$P$502,StagingTables!$B152) -> 0 | I152: =COUNTIFS('WHS Event Log'!$E$3:$E$502,I$138,'WHS Event Log'!$P$3:$P$502,StagingTables!$B152) -> 0 | J152: =COUNTIFS('WHS Event Log'!$E$3:$E$502,J$138,'WHS Event Log'!$P$3:$P$502,StagingTables!$B152) -> 0 | K152: =COUNTIFS('WHS Event Log'!$E$3:$E$502,K$138,'WHS Event Log'!$P$3:$P$502,StagingTables!$B152) -> 0 | L152: =COUNTIFS('WHS Event Log'!$E$3:$E$502,L$138,'WHS Event Log'!$P$3:$P$502,StagingTables!$B152) -> 0 | M152: =COUNTIFS('WHS Event Log'!$E$3:$E$502,M$138,'WHS Event Log'!$P$3:$P$502,StagingTables!$B152) -> 0 | N152: =COUNTIFS('WHS Event Log'!$E$3:$E$502,N$138,'WHS Event Log'!$P$3:$P$502,StagingTables!$B152) -> 0 | O152: 0 | P152: =COUNTIFS('WHS Event Log'!$P$3:$P$502,$B152,'WHS Event Log'!$S$3:$S$502,Lists!$E$3) -> 0
B153: Hip | C153: =COUNTIFS('WHS Event Log'!$E$3:$E$502,C$138,'WHS Event Log'!$P$3:$P$502,StagingTables!$B153) -> 0 | D153: =COUNTIFS('WHS Event Log'!$E$3:$E$502,D$138,'WHS Event Log'!$P$3:$P$502,StagingTables!$B153) -> 0 | E153: =COUNTIFS('WHS Event Log'!$E$3:$E$502,E$138,'WHS Event Log'!$P$3:$P$502,StagingTables!$B153) -> 0 | F153: =COUNTIFS('WHS Event Log'!$E$3:$E$502,F$138,'WHS Event Log'!$P$3:$P$502,StagingTables!$B153) -> 0 | G153: =COUNTIFS('WHS Event Log'!$E$3:$E$502,G$138,'WHS Event Log'!$P$3:$P$502,StagingTables!$B153) -> 0 | H153: =COUNTIFS('WHS Event Log'!$E$3:$E$502,H$138,'WHS Event Log'!$P$3:$P$502,StagingTables!$B153) -> 0 | I153: =COUNTIFS('WHS Event Log'!$E$3:$E$502,I$138,'WHS Event Log'!$P$3:$P$502,StagingTables!$B153) -> 0 | J153: =COUNTIFS('WHS Event Log'!$E$3:$E$502,J$138,'WHS Event Log'!$P$3:$P$502,StagingTables!$B153) -> 0 | K153: =COUNTIFS('WHS Event Log'!$E$3:$E$502,K$138,'WHS Event Log'!$P$3:$P$502,StagingTables!$B153) -> 0 | L153: =COUNTIFS('WHS Event Log'!$E$3:$E$502,L$138,'WHS Event Log'!$P$3:$P$502,StagingTables!$B153) -> 0 | M153: =COUNTIFS('WHS Event Log'!$E$3:$E$502,M$138,'WHS Event Log'!$P$3:$P$502,StagingTables!$B153) -> 0 | N153: =COUNTIFS('WHS Event Log'!$E$3:$E$502,N$138,'WHS Event Log'!$P$3:$P$502,StagingTables!$B153) -> 0 | O153: 0 | P153: =COUNTIFS('WHS Event Log'!$P$3:$P$502,$B153,'WHS Event Log'!$S$3:$S$502,Lists!$E$3) -> 0
B154: Internal | C154: =COUNTIFS('WHS Event Log'!$E$3:$E$502,C$138,'WHS Event Log'!$P$3:$P$502,StagingTables!$B154) -> 0 | D154: =COUNTIFS('WHS Event Log'!$E$3:$E$502,D$138,'WHS Event Log'!$P$3:$P$502,StagingTables!$B154) -> 0 | E154: =COUNTIFS('WHS Event Log'!$E$3:$E$502,E$138,'WHS Event Log'!$P$3:$P$502,StagingTables!$B154) -> 0 | F154: =COUNTIFS('WHS Event Log'!$E$3:$E$502,F$138,'WHS Event Log'!$P$3:$P$502,StagingTables!$B154) -> 0 | G154: =COUNTIFS('WHS Event Log'!$E$3:$E$502,G$138,'WHS Event Log'!$P$3:$P$502,StagingTables!$B154) -> 0 | H154: =COUNTIFS('WHS Event Log'!$E$3:$E$502,H$138,'WHS Event Log'!$P$3:$P$502,StagingTables!$B154) -> 0 | I154: =COUNTIFS('WHS Event Log'!$E$3:$E$502,I$138,'WHS Event Log'!$P$3:$P$502,StagingTables!$B154) -> 0 | J154: =COUNTIFS('WHS Event Log'!$E$3:$E$502,J$138,'WHS Event Log'!$P$3:$P$502,StagingTables!$B154) -> 0 | K154: =COUNTIFS('WHS Event Log'!$E$3:$E$502,K$138,'WHS Event Log'!$P$3:$P$502,StagingTables!$B154) -> 0 | L154: =COUNTIFS('WHS Event Log'!$E$3:$E$502,L$138,'WHS Event Log'!$P$3:$P$502,StagingTables!$B154) -> 0 | M154: =COUNTIFS('WHS Event Log'!$E$3:$E$502,M$138,'WHS Event Log'!$P$3:$P$502,StagingTables!$B154) -> 0 | N154: =COUNTIFS('WHS Event Log'!$E$3:$E$502,N$138,'WHS Event Log'!$P$3:$P$502,StagingTables!$B154) -> 0 | O154: 0 | P154: =COUNTIFS('WHS Event Log'!$P$3:$P$502,$B154,'WHS Event Log'!$S$3:$S$502,Lists!$E$3) -> 0
B155: Knee | C155: =COUNTIFS('WHS Event Log'!$E$3:$E$502,C$138,'WHS Event Log'!$P$3:$P$502,StagingTables!$B155) -> 0 | D155: =COUNTIFS('WHS Event Log'!$E$3:$E$502,D$138,'WHS Event Log'!$P$3:$P$502,StagingTables!$B155) -> 0 | E155: =COUNTIFS('WHS Event Log'!$E$3:$E$502,E$138,'WHS Event Log'!$P$3:$P$502,StagingTables!$B155) -> 0 | F155: =COUNTIFS('WHS Event Log'!$E$3:$E$502,F$138,'WHS Event Log'!$P$3:$P$502,StagingTables!$B155) -> 0 | G155: =COUNTIFS('WHS Event Log'!$E$3:$E$502,G$138,'WHS Event Log'!$P$3:$P$502,StagingTables!$B155) -> 0 | H155: =COUNTIFS('WHS Event Log'!$E$3:$E$502,H$138,'WHS Event Log'!$P$3:$P$502,StagingTables!$B155) -> 0 | I155: =COUNTIFS('WHS Event Log'!$E$3:$E$502,I$138,'WHS Event Log'!$P$3:$P$502,StagingTables!$B155) -> 0 | J155: =COUNTIFS('WHS Event Log'!$E$3:$E$502,J$138,'WHS Event Log'!$P$3:$P$502,StagingTables!$B155) -> 0 | K155: =COUNTIFS('WHS Event Log'!$E$3:$E$502,K$138,'WHS Event Log'!$P$3:$P$502,StagingTables!$B155) -> 0 | L155: =COUNTIFS('WHS Event Log'!$E$3:$E$502,L$138,'WHS Event Log'!$P$3:$P$502,StagingTables!$B155) -> 0 | M155: =COUNTIFS('WHS Event Log'!$E$3:$E$502,M$138,'WHS Event Log'!$P$3:$P$502,StagingTables!$B155) -> 0 | N155: =COUNTIFS('WHS Event Log'!$E$3:$E$502,N$138,'WHS Event Log'!$P$3:$P$502,StagingTables!$B155) -> 0 | O155: 0 | P155: =COUNTIFS('WHS Event Log'!$P$3:$P$502,$B155,'WHS Event Log'!$S$3:$S$502,Lists!$E$3) -> 0
B156: Lower Arm | C156: =COUNTIFS('WHS Event Log'!$E$3:$E$502,C$138,'WHS Event Log'!$P$3:$P$502,StagingTables!$B156) -> 0 | D156: =COUNTIFS('WHS Event Log'!$E$3:$E$502,D$138,'WHS Event Log'!$P$3:$P$502,StagingTables!$B156) -> 0 | E156: =COUNTIFS('WHS Event Log'!$E$3:$E$502,E$138,'WHS Event Log'!$P$3:$P$502,StagingTables!$B156) -> 0 | F156: =COUNTIFS('WHS Event Log'!$E$3:$E$502,F$138,'WHS Event Log'!$P$3:$P$502,StagingTables!$B156) -> 0 | G156: =COUNTIFS('WHS Event Log'!$E$3:$E$502,G$138,'WHS Event Log'!$P$3:$P$502,StagingTables!$B156) -> 0 | H156: =COUNTIFS('WHS Event Log'!$E$3:$E$502,H$138,'WHS Event Log'!$P$3:$P$502,StagingTables!$B156) -> 0 | I156: =COUNTIFS('WHS Event Log'!$E$3:$E$502,I$138,'WHS Event Log'!$P$3:$P$502,StagingTables!$B156) -> 0 | J156: =COUNTIFS('WHS Event Log'!$E$3:$E$502,J$138,'WHS Event Log'!$P$3:$P$502,StagingTables!$B156) -> 0 | K156: =COUNTIFS('WHS Event Log'!$E$3:$E$502,K$138,'WHS Event Log'!$P$3:$P$502,StagingTables!$B156) -> 0 | L156: =COUNTIFS('WHS Event Log'!$E$3:$E$502,L$138,'WHS Event Log'!$P$3:$P$502,StagingTables!$B156) -> 0 | M156: =COUNTIFS('WHS Event Log'!$E$3:$E$502,M$138,'WHS Event Log'!$P$3:$P$502,StagingTables!$B156) -> 0 | N156: =COUNTIFS('WHS Event Log'!$E$3:$E$502,N$138,'WHS Event Log'!$P$3:$P$502,StagingTables!$B156) -> 0 | O156: 0 | P156: =COUNTIFS('WHS Event Log'!$P$3:$P$502,$B156,'WHS Event Log'!$S$3:$S$502,Lists!$E$3) -> 0
B157: Lower Back | C157: =COUNTIFS('WHS Event Log'!$E$3:$E$502,C$138,'WHS Event Log'!$P$3:$P$502,StagingTables!$B157) -> 0 | D157: =COUNTIFS('WHS Event Log'!$E$3:$E$502,D$138,'WHS Event Log'!$P$3:$P$502,StagingTables!$B157) -> 0 | E157: =COUNTIFS('WHS Event Log'!$E$3:$E$502,E$138,'WHS Event Log'!$P$3:$P$502,StagingTables!$B157) -> 0 | F157: =COUNTIFS('WHS Event Log'!$E$3:$E$502,F$138,'WHS Event Log'!$P$3:$P$502,StagingTables!$B157) -> 0 | G157: =COUNTIFS('WHS Event Log'!$E$3:$E$502,G$138,'WHS Event Log'!$P$3:$P$502,StagingTables!$B157) -> 0 | H157: =COUNTIFS('WHS Event Log'!$E$3:$E$502,H$138,'WHS Event Log'!$P$3:$P$502,StagingTables!$B157) -> 0 | I157: =COUNTIFS('WHS Event Log'!$E$3:$E$502,I$138,'WHS Event Log'!$P$3:$P$502,StagingTables!$B157) -> 0 | J157: =COUNTIFS('WHS Event Log'!$E$3:$E$502,J$138,'WHS Event Log'!$P$3:$P$502,StagingTables!$B157) -> 0 | K157: =COUNTIFS('WHS Event Log'!$E$3:$E$502,K$138,'WHS Event Log'!$P$3:$P$502,StagingTables!$B157) -> 0 | L157: =COUNTIFS('WHS Event Log'!$E$3:$E$502,L$138,'WHS Event Log'!$P$3:$P$502,StagingTables!$B157) -> 0 | M157: =COUNTIFS('WHS Event Log'!$E$3:$E$502,M$138,'WHS Event Log'!$P$3:$P$502,StagingTables!$B157) -> 0 | N157: =COUNTIFS('WHS Event Log'!$E$3:$E$502,N$138,'WHS Event Log'!$P$3:$P$502,StagingTables!$B157) -> 0 | O157: 0 | P157: =COUNTIFS('WHS Event Log'!$P$3:$P$502,$B157,'WHS Event Log'!$S$3:$S$502,Lists!$E$3) -> 0
B158: Lower Leg | C158: =COUNTIFS('WHS Event Log'!$E$3:$E$502,C$138,'WHS Event Log'!$P$3:$P$502,StagingTables!$B158) -> 0 | D158: =COUNTIFS('WHS Event Log'!$E$3:$E$502,D$138,'WHS Event Log'!$P$3:$P$502,StagingTables!$B158) -> 0 | E158: =COUNTIFS('WHS Event Log'!$E$3:$E$502,E$138,'WHS Event Log'!$P$3:$P$502,StagingTables!$B158) -> 0 | F158: =COUNTIFS('WHS Event Log'!$E$3:$E$502,F$138,'WHS Event Log'!$P$3:$P$502,StagingTables!$B158) -> 0 | G158: =COUNTIFS('WHS Event Log'!$E$3:$E$502,G$138,'WHS Event Log'!$P$3:$P$502,StagingTables!$B158) -> 0 | H158: =COUNTIFS('WHS Event Log'!$E$3:$E$502,H$138,'WHS Event Log'!$P$3:$P$502,StagingTables!$B158) -> 0 | I158: =COUNTIFS('WHS Event Log'!$E$3:$E$502,I$138,'WHS Event Log'!$P$3:$P$502,StagingTables!$B158) -> 0 | J158: =COUNTIFS('WHS Event Log'!$E$3:$E$502,J$138,'WHS Event Log'!$P$3:$P$502,StagingTables!$B158) -> 0 | K158: =COUNTIFS('WHS Event Log'!$E$3:$E$502,K$138,'WHS Event Log'!$P$3:$P$502,StagingTables!$B158) -> 0 | L158: =COUNTIFS('WHS Event Log'!$E$3:$E$502,L$138,'WHS Event Log'!$P$3:$P$502,StagingTables!$B158) -> 0 | M158: =COUNTIFS('WHS Event Log'!$E$3:$E$502,M$138,'WHS Event Log'!$P$3:$P$502,StagingTables!$B158) -> 0 | N158: =COUNTIFS('WHS Event Log'!$E$3:$E$502,N$138,'WHS Event Log'!$P$3:$P$502,StagingTables!$B158) -> 0 | O158: 0 | P158: =COUNTIFS('WHS Event Log'!$P$3:$P$502,$B158,'WHS Event Log'!$S$3:$S$502,Lists!$E$3) -> 0
B159: Mouth | C159: =COUNTIFS('WHS Event Log'!$E$3:$E$502,C$138,'WHS Event Log'!$P$3:$P$502,StagingTables!$B159) -> 0 | D159: =COUNTIFS('WHS Event Log'!$E$3:$E$502,D$138,'WHS Event Log'!$P$3:$P$502,StagingTables!$B159) -> 0 | E159: =COUNTIFS('WHS Event Log'!$E$3:$E$502,E$138,'WHS Event Log'!$P$3:$P$502,StagingTables!$B159) -> 0 | F159: =COUNTIFS('WHS Event Log'!$E$3:$E$502,F$138,'WHS Event Log'!$P$3:$P$502,StagingTables!$B159) -> 0 | G159: =COUNTIFS('WHS Event Log'!$E$3:$E$502,G$138,'WHS Event Log'!$P$3:$P$502,StagingTables!$B159) -> 0 | H159: =COUNTIFS('WHS Event Log'!$E$3:$E$502,H$138,'WHS Event Log'!$P$3:$P$502,StagingTables!$B159) -> 0 | I159: =COUNTIFS('WHS Event Log'!$E$3:$E$502,I$138,'WHS Event Log'!$P$3:$P$502,StagingTables!$B159) -> 0 | J159: =COUNTIFS('WHS Event Log'!$E$3:$E$502,J$138,'WHS Event Log'!$P$3:$P$502,StagingTables!$B159) -> 0 | K159: =COUNTIFS('WHS Event Log'!$E$3:$E$502,K$138,'WHS Event Log'!$P$3:$P$502,StagingTables!$B159) -> 0 | L159: =COUNTIFS('WHS Event Log'!$E$3:$E$502,L$138,'WHS Event Log'!$P$3:$P$502,StagingTables!$B159) -> 0 | M159: =COUNTIFS('WHS Event Log'!$E$3:$E$502,M$138,'WHS Event Log'!$P$3:$P$502,StagingTables!$B159) -> 0 | N159: =COUNTIFS('WHS Event Log'!$E$3:$E$502,N$138,'WHS Event Log'!$P$3:$P$502,StagingTables!$B159) -> 0 | O159: 0 | P159: =COUNTIFS('WHS Event Log'!$P$3:$P$502,$B159,'WHS Event Log'!$S$3:$S$502,Lists!$E$3) -> 0
B160: Neck | C160: =COUNTIFS('WHS Event Log'!$E$3:$E$502,C$138,'WHS Event Log'!$P$3:$P$502,StagingTables!$B160) -> 0 | D160: =COUNTIFS('WHS Event Log'!$E$3:$E$502,D$138,'WHS Event Log'!$P$3:$P$502,StagingTables!$B160) -> 0 | E160: =COUNTIFS('WHS Event Log'!$E$3:$E$502,E$138,'WHS Event Log'!$P$3:$P$502,StagingTables!$B160) -> 0 | F160: =COUNTIFS('WHS Event Log'!$E$3:$E$502,F$138,'WHS Event Log'!$P$3:$P$502,StagingTables!$B160) -> 0 | G160: =COUNTIFS('WHS Event Log'!$E$3:$E$502,G$138,'WHS Event Log'!$P$3:$P$502,StagingTables!$B160) -> 0 | H160: =COUNTIFS('WHS Event Log'!$E$3:$E$502,H$138,'WHS Event Log'!$P$3:$P$502,StagingTables!$B160) -> 0 | I160: =COUNTIFS('WHS Event Log'!$E$3:$E$502,I$138,'WHS Event Log'!$P$3:$P$502,StagingTables!$B160) -> 0 | J160: =COUNTIFS('WHS Event Log'!$E$3:$E$502,J$138,'WHS Event Log'!$P$3:$P$502,StagingTables!$B160) -> 0 | K160: =COUNTIFS('WHS Event Log'!$E$3:$E$502,K$138,'WHS Event Log'!$P$3:$P$502,StagingTables!$B160) -> 0 | L160: =COUNTIFS('WHS Event Log'!$E$3:$E$502,L$138,'WHS Event Log'!$P$3:$P$502,StagingTables!$B160) -> 0 | M160: =COUNTIFS('WHS Event Log'!$E$3:$E$502,M$138,'WHS Event Log'!$P$3:$P$502,StagingTables!$B160) -> 0 | N160: =COUNTIFS('WHS Event Log'!$E$3:$E$502,N$138,'WHS Event Log'!$P$3:$P$502,StagingTables!$B160) -> 0 | O160: 0 | P160: =COUNTIFS('WHS Event Log'!$P$3:$P$502,$B160,'WHS Event Log'!$S$3:$S$502,Lists!$E$3) -> 0
B161: Nose | C161: =COUNTIFS('WHS Event Log'!$E$3:$E$502,C$138,'WHS Event Log'!$P$3:$P$502,StagingTables!$B161) -> 0 | D161: =COUNTIFS('WHS Event Log'!$E$3:$E$502,D$138,'WHS Event Log'!$P$3:$P$502,StagingTables!$B161) -> 0 | E161: =COUNTIFS('WHS Event Log'!$E$3:$E$502,E$138,'WHS Event Log'!$P$3:$P$502,StagingTables!$B161) -> 0 | F161: =COUNTIFS('WHS Event Log'!$E$3:$E$502,F$138,'WHS Event Log'!$P$3:$P$502,StagingTables!$B161) -> 0 | G161: =COUNTIFS('WHS Event Log'!$E$3:$E$502,G$138,'WHS Event Log'!$P$3:$P$502,StagingTables!$B161) -> 0 | H161: =COUNTIFS('WHS Event Log'!$E$3:$E$502,H$138,'WHS Event Log'!$P$3:$P$502,StagingTables!$B161) -> 0 | I161: =COUNTIFS('WHS Event Log'!$E$3:$E$502,I$138,'WHS Event Log'!$P$3:$P$502,StagingTables!$B161) -> 0 | J161: =COUNTIFS('WHS Event Log'!$E$3:$E$502,J$138,'WHS Event Log'!$P$3:$P$502,StagingTables!$B161) -> 0 | K161: =COUNTIFS('WHS Event Log'!$E$3:$E$502,K$138,'WHS Event Log'!$P$3:$P$502,StagingTables!$B161) -> 0 | L161: =COUNTIFS('WHS Event Log'!$E$3:$E$502,L$138,'WHS Event Log'!$P$3:$P$502,StagingTables!$B161) -> 0 | M161: =COUNTIFS('WHS Event Log'!$E$3:$E$502,M$138,'WHS Event Log'!$P$3:$P$502,StagingTables!$B161) -> 0 | N161: =COUNTIFS('WHS Event Log'!$E$3:$E$502,N$138,'WHS Event Log'!$P$3:$P$502,StagingTables!$B161) -> 0 | O161: 0 | P161: =COUNTIFS('WHS Event Log'!$P$3:$P$502,$B161,'WHS Event Log'!$S$3:$S$502,Lists!$E$3) -> 0
B162: Scalp | C162: =COUNTIFS('WHS Event Log'!$E$3:$E$502,C$138,'WHS Event Log'!$P$3:$P$502,StagingTables!$B162) -> 0 | D162: =COUNTIFS('WHS Event Log'!$E$3:$E$502,D$138,'WHS Event Log'!$P$3:$P$502,StagingTables!$B162) -> 0 | E162: =COUNTIFS('WHS Event Log'!$E$3:$E$502,E$138,'WHS Event Log'!$P$3:$P$502,StagingTables!$B162) -> 0 | F162: =COUNTIFS('WHS Event Log'!$E$3:$E$502,F$138,'WHS Event Log'!$P$3:$P$502,StagingTables!$B162) -> 0 | G162: =COUNTIFS('WHS Event Log'!$E$3:$E$502,G$138,'WHS Event Log'!$P$3:$P$502,StagingTables!$B162) -> 0 | H162: =COUNTIFS('WHS Event Log'!$E$3:$E$502,H$138,'WHS Event Log'!$P$3:$P$502,StagingTables!$B162) -> 0 | I162: =COUNTIFS('WHS Event Log'!$E$3:$E$502,I$138,'WHS Event Log'!$P$3:$P$502,StagingTables!$B162) -> 0 | J162: =COUNTIFS('WHS Event Log'!$E$3:$E$502,J$138,'WHS Event Log'!$P$3:$P$502,StagingTables!$B162) -> 0 | K162: =COUNTIFS('WHS Event Log'!$E$3:$E$502,K$138,'WHS Event Log'!$P$3:$P$502,StagingTables!$B162) -> 0 | L162: =COUNTIFS('WHS Event Log'!$E$3:$E$502,L$138,'WHS Event Log'!$P$3:$P$502,StagingTables!$B162) -> 0 | M162: =COUNTIFS('WHS Event Log'!$E$3:$E$502,M$138,'WHS Event Log'!$P$3:$P$502,StagingTables!$B162) -> 0 | N162: =COUNTIFS('WHS Event Log'!$E$3:$E$502,N$138,'WHS Event Log'!$P$3:$P$502,StagingTables!$B162) -> 0 | O162: 0 | P162: =COUNTIFS('WHS Event Log'!$P$3:$P$502,$B162,'WHS Event Log'!$S$3:$S$502,Lists!$E$3) -> 0
B163: Shoulder | C163: =COUNTIFS('WHS Event Log'!$E$3:$E$502,C$138,'WHS Event Log'!$P$3:$P$502,StagingTables!$B163) -> 0 | D163: =COUNTIFS('WHS Event Log'!$E$3:$E$502,D$138,'WHS Event Log'!$P$3:$P$502,StagingTables!$B163) -> 0 | E163: =COUNTIFS('WHS Event Log'!$E$3:$E$502,E$138,'WHS Event Log'!$P$3:$P$502,StagingTables!$B163) -> 0 | F163: =COUNTIFS('WHS Event Log'!$E$3:$E$502,F$138,'WHS Event Log'!$P$3:$P$502,StagingTables!$B163) -> 0 | G163: =COUNTIFS('WHS Event Log'!$E$3:$E$502,G$138,'WHS Event Log'!$P$3:$P$502,StagingTables!$B163) -> 0 | H163: =COUNTIFS('WHS Event Log'!$E$3:$E$502,H$138,'WHS Event Log'!$P$3:$P$502,StagingTables!$B163) -> 0 | I163: =COUNTIFS('WHS Event Log'!$E$3:$E$502,I$138,'WHS Event Log'!$P$3:$P$502,StagingTables!$B163) -> 0 | J163: =COUNTIFS('WHS Event Log'!$E$3:$E$502,J$138,'WHS Event Log'!$P$3:$P$502,StagingTables!$B163) -> 0 | K163: =COUNTIFS('WHS Event Log'!$E$3:$E$502,K$138,'WHS Event Log'!$P$3:$P$502,StagingTables!$B163) -> 0 | L163: =COUNTIFS('WHS Event Log'!$E$3:$E$502,L$138,'WHS Event Log'!$P$3:$P$502,StagingTables!$B163) -> 0 | M163: =COUNTIFS('WHS Event Log'!$E$3:$E$502,M$138,'WHS Event Log'!$P$3:$P$502,StagingTables!$B163) -> 0 | N163: =COUNTIFS('WHS Event Log'!$E$3:$E$502,N$138,'WHS Event Log'!$P$3:$P$502,StagingTables!$B163) -> 0 | O163: 0 | P163: =COUNTIFS('WHS Event Log'!$P$3:$P$502,$B163,'WHS Event Log'!$S$3:$S$502,Lists!$E$3) -> 0
B164: Throat | C164: =COUNTIFS('WHS Event Log'!$E$3:$E$502,C$138,'WHS Event Log'!$P$3:$P$502,StagingTables!$B164) -> 0 | D164: =COUNTIFS('WHS Event Log'!$E$3:$E$502,D$138,'WHS Event Log'!$P$3:$P$502,StagingTables!$B164) -> 0 | E164: =COUNTIFS('WHS Event Log'!$E$3:$E$502,E$138,'WHS Event Log'!$P$3:$P$502,StagingTables!$B164) -> 0 | F164: =COUNTIFS('WHS Event Log'!$E$3:$E$502,F$138,'WHS Event Log'!$P$3:$P$502,StagingTables!$B164) -> 0 | G164: =COUNTIFS('WHS Event Log'!$E$3:$E$502,G$138,'WHS Event Log'!$P$3:$P$502,StagingTables!$B164) -> 0 | H164: =COUNTIFS('WHS Event Log'!$E$3:$E$502,H$138,'WHS Event Log'!$P$3:$P$502,StagingTables!$B164) -> 0 | I164: =COUNTIFS('WHS Event Log'!$E$3:$E$502,I$138,'WHS Event Log'!$P$3:$P$502,StagingTables!$B164) -> 0 | J164: =COUNTIFS('WHS Event Log'!$E$3:$E$502,J$138,'WHS Event Log'!$P$3:$P$502,StagingTables!$B164) -> 0 | K164: =COUNTIFS('WHS Event Log'!$E$3:$E$502,K$138,'WHS Event Log'!$P$3:$P$502,StagingTables!$B164) -> 0 | L164: =COUNTIFS('WHS Event Log'!$E$3:$E$502,L$138,'WHS Event Log'!$P$3:$P$502,StagingTables!$B164) -> 0 | M164: =COUNTIFS('WHS Event Log'!$E$3:$E$502,M$138,'WHS Event Log'!$P$3:$P$502,StagingTables!$B164) -> 0 | N164: =COUNTIFS('WHS Event Log'!$E$3:$E$502,N$138,'WHS Event Log'!$P$3:$P$502,StagingTables!$B164) -> 0 | O164: 0 | P164: =COUNTIFS('WHS Event Log'!$P$3:$P$502,$B164,'WHS Event Log'!$S$3:$S$502,Lists!$E$3) -> 0
B165: Toe | C165: =COUNTIFS('WHS Event Log'!$E$3:$E$502,C$138,'WHS Event Log'!$P$3:$P$502,StagingTables!$B165) -> 0 | D165: =COUNTIFS('WHS Event Log'!$E$3:$E$502,D$138,'WHS Event Log'!$P$3:$P$502,StagingTables!$B165) -> 0 | E165: =COUNTIFS('WHS Event Log'!$E$3:$E$502,E$138,'WHS Event Log'!$P$3:$P$502,StagingTables!$B165) -> 0 | F165: =COUNTIFS('WHS Event Log'!$E$3:$E$502,F$138,'WHS Event Log'!$P$3:$P$502,StagingTables!$B165) -> 0 | G165: =COUNTIFS('WHS Event Log'!$E$3:$E$502,G$138,'WHS Event Log'!$P$3:$P$502,StagingTables!$B165) -> 0 | H165: =COUNTIFS('WHS Event Log'!$E$3:$E$502,H$138,'WHS Event Log'!$P$3:$P$502,StagingTables!$B165) -> 0 | I165: =COUNTIFS('WHS Event Log'!$E$3:$E$502,I$138,'WHS Event Log'!$P$3:$P$502,StagingTables!$B165) -> 0 | J165: =COUNTIFS('WHS Event Log'!$E$3:$E$502,J$138,'WHS Event Log'!$P$3:$P$502,StagingTables!$B165) -> 0 | K165: =COUNTIFS('WHS Event Log'!$E$3:$E$502,K$138,'WHS Event Log'!$P$3:$P$502,StagingTables!$B165) -> 0 | L165: =COUNTIFS('WHS Event Log'!$E$3:$E$502,L$138,'WHS Event Log'!$P$3:$P$502,StagingTables!$B165) -> 0 | M165: =COUNTIFS('WHS Event Log'!$E$3:$E$502,M$138,'WHS Event Log'!$P$3:$P$502,StagingTables!$B165) -> 0 | N165: =COUNTIFS('WHS Event Log'!$E$3:$E$502,N$138,'WHS Event Log'!$P$3:$P$502,StagingTables!$B165) -> 0 | O165: 0 | P165: =COUNTIFS('WHS Event Log'!$P$3:$P$502,$B165,'WHS Event Log'!$S$3:$S$502,Lists!$E$3) -> 0
B166: Upper Arm | C166: =COUNTIFS('WHS Event Log'!$E$3:$E$502,C$138,'WHS Event Log'!$P$3:$P$502,StagingTables!$B166) -> 0 | D166: =COUNTIFS('WHS Event Log'!$E$3:$E$502,D$138,'WHS Event Log'!$P$3:$P$502,StagingTables!$B166) -> 0 | E166: =COUNTIFS('WHS Event Log'!$E$3:$E$502,E$138,'WHS Event Log'!$P$3:$P$502,StagingTables!$B166) -> 0 | F166: =COUNTIFS('WHS Event Log'!$E$3:$E$502,F$138,'WHS Event Log'!$P$3:$P$502,StagingTables!$B166) -> 0 | G166: =COUNTIFS('WHS Event Log'!$E$3:$E$502,G$138,'WHS Event Log'!$P$3:$P$502,StagingTables!$B166) -> 0 | H166: =COUNTIFS('WHS Event Log'!$E$3:$E$502,H$138,'WHS Event Log'!$P$3:$P$502,StagingTables!$B166) -> 0 | I166: =COUNTIFS('WHS Event Log'!$E$3:$E$502,I$138,'WHS Event Log'!$P$3:$P$502,StagingTables!$B166) -> 0 | J166: =COUNTIFS('WHS Event Log'!$E$3:$E$502,J$138,'WHS Event Log'!$P$3:$P$502,StagingTables!$B166) -> 0 | K166: =COUNTIFS('WHS Event Log'!$E$3:$E$502,K$138,'WHS Event Log'!$P$3:$P$502,StagingTables!$B166) -> 0 | L166: =COUNTIFS('WHS Event Log'!$E$3:$E$502,L$138,'WHS Event Log'!$P$3:$P$502,StagingTables!$B166) -> 0 | M166: =COUNTIFS('WHS Event Log'!$E$3:$E$502,M$138,'WHS Event Log'!$P$3:$P$502,StagingTables!$B166) -> 0 | N166: =COUNTIFS('WHS Event Log'!$E$3:$E$502,N$138,'WHS Event Log'!$P$3:$P$502,StagingTables!$B166) -> 0 | O166: 0 | P166: =COUNTIFS('WHS Event Log'!$P$3:$P$502,$B166,'WHS Event Log'!$S$3:$S$502,Lists!$E$3) -> 0
B167: Upper Back | C167: =COUNTIFS('WHS Event Log'!$E$3:$E$502,C$138,'WHS Event Log'!$P$3:$P$502,StagingTables!$B167) -> 0 | D167: =COUNTIFS('WHS Event Log'!$E$3:$E$502,D$138,'WHS Event Log'!$P$3:$P$502,StagingTables!$B167) -> 0 | E167: =COUNTIFS('WHS Event Log'!$E$3:$E$502,E$138,'WHS Event Log'!$P$3:$P$502,StagingTables!$B167) -> 0 | F167: =COUNTIFS('WHS Event Log'!$E$3:$E$502,F$138,'WHS Event Log'!$P$3:$P$502,StagingTables!$B167) -> 0 | G167: =COUNTIFS('WHS Event Log'!$E$3:$E$502,G$138,'WHS Event Log'!$P$3:$P$502,StagingTables!$B167) -> 0 | H167: =COUNTIFS('WHS Event Log'!$E$3:$E$502,H$138,'WHS Event Log'!$P$3:$P$502,StagingTables!$B167) -> 0 | I167: =COUNTIFS('WHS Event Log'!$E$3:$E$502,I$138,'WHS Event Log'!$P$3:$P$502,StagingTables!$B167) -> 0 | J167: =COUNTIFS('WHS Event Log'!$E$3:$E$502,J$138,'WHS Event Log'!$P$3:$P$502,StagingTables!$B167) -> 0 | K167: =COUNTIFS('WHS Event Log'!$E$3:$E$502,K$138,'WHS Event Log'!$P$3:$P$502,StagingTables!$B167) -> 0 | L167: =COUNTIFS('WHS Event Log'!$E$3:$E$502,L$138,'WHS Event Log'!$P$3:$P$502,StagingTables!$B167) -> 0 | M167: =COUNTIFS('WHS Event Log'!$E$3:$E$502,M$138,'WHS Event Log'!$P$3:$P$502,StagingTables!$B167) -> 0 | N167: =COUNTIFS('WHS Event Log'!$E$3:$E$502,N$138,'WHS Event Log'!$P$3:$P$502,StagingTables!$B167) -> 0 | O167: 0 | P167: =COUNTIFS('WHS Event Log'!$P$3:$P$502,$B167,'WHS Event Log'!$S$3:$S$502,Lists!$E$3) -> 0
B168: Upper Leg | C168: =COUNTIFS('WHS Event Log'!$E$3:$E$502,C$138,'WHS Event Log'!$P$3:$P$502,StagingTables!$B168) -> 0 | D168: =COUNTIFS('WHS Event Log'!$E$3:$E$502,D$138,'WHS Event Log'!$P$3:$P$502,StagingTables!$B168) -> 0 | E168: =COUNTIFS('WHS Event Log'!$E$3:$E$502,E$138,'WHS Event Log'!$P$3:$P$502,StagingTables!$B168) -> 0 | F168: =COUNTIFS('WHS Event Log'!$E$3:$E$502,F$138,'WHS Event Log'!$P$3:$P$502,StagingTables!$B168) -> 0 | G168: =COUNTIFS('WHS Event Log'!$E$3:$E$502,G$138,'WHS Event Log'!$P$3:$P$502,StagingTables!$B168) -> 0 | H168: =COUNTIFS('WHS Event Log'!$E$3:$E$502,H$138,'WHS Event Log'!$P$3:$P$502,StagingTables!$B168) -> 0 | I168: =COUNTIFS('WHS Event Log'!$E$3:$E$502,I$138,'WHS Event Log'!$P$3:$P$502,StagingTables!$B168) -> 0 | J168: =COUNTIFS('WHS Event Log'!$E$3:$E$502,J$138,'WHS Event Log'!$P$3:$P$502,StagingTables!$B168) -> 0 | K168: =COUNTIFS('WHS Event Log'!$E$3:$E$502,K$138,'WHS Event Log'!$P$3:$P$502,StagingTables!$B168) -> 0 | L168: =COUNTIFS('WHS Event Log'!$E$3:$E$502,L$138,'WHS Event Log'!$P$3:$P$502,StagingTables!$B168) -> 0 | M168: =COUNTIFS('WHS Event Log'!$E$3:$E$502,M$138,'WHS Event Log'!$P$3:$P$502,StagingTables!$B168) -> 0 | N168: =COUNTIFS('WHS Event Log'!$E$3:$E$502,N$138,'WHS Event Log'!$P$3:$P$502,StagingTables!$B168) -> 0 | O168: 0 | P168: =COUNTIFS('WHS Event Log'!$P$3:$P$502,$B168,'WHS Event Log'!$S$3:$S$502,Lists!$E$3) -> 0
B169: Wrist | C169: =COUNTIFS('WHS Event Log'!$E$3:$E$502,C$138,'WHS Event Log'!$P$3:$P$502,StagingTables!$B169) -> 0 | D169: =COUNTIFS('WHS Event Log'!$E$3:$E$502,D$138,'WHS Event Log'!$P$3:$P$502,StagingTables!$B169) -> 0 | E169: =COUNTIFS('WHS Event Log'!$E$3:$E$502,E$138,'WHS Event Log'!$P$3:$P$502,StagingTables!$B169) -> 0 | F169: =COUNTIFS('WHS Event Log'!$E$3:$E$502,F$138,'WHS Event Log'!$P$3:$P$502,StagingTables!$B169) -> 0 | G169: =COUNTIFS('WHS Event Log'!$E$3:$E$502,G$138,'WHS Event Log'!$P$3:$P$502,StagingTables!$B169) -> 0 | H169: =COUNTIFS('WHS Event Log'!$E$3:$E$502,H$138,'WHS Event Log'!$P$3:$P$502,StagingTables!$B169) -> 0 | I169: =COUNTIFS('WHS Event Log'!$E$3:$E$502,I$138,'WHS Event Log'!$P$3:$P$502,StagingTables!$B169) -> 0 | J169: =COUNTIFS('WHS Event Log'!$E$3:$E$502,J$138,'WHS Event Log'!$P$3:$P$502,StagingTables!$B169) -> 0 | K169: =COUNTIFS('WHS Event Log'!$E$3:$E$502,K$138,'WHS Event Log'!$P$3:$P$502,StagingTables!$B169) -> 0 | L169: =COUNTIFS('WHS Event Log'!$E$3:$E$502,L$138,'WHS Event Log'!$P$3:$P$502,StagingTables!$B169) -> 0 | M169: =COUNTIFS('WHS Event Log'!$E$3:$E$502,M$138,'WHS Event Log'!$P$3:$P$502,StagingTables!$B169) -> 0 | N169: =COUNTIFS('WHS Event Log'!$E$3:$E$502,N$138,'WHS Event Log'!$P$3:$P$502,StagingTables!$B169) -> 0 | O169: 0 | P169: =COUNTIFS('WHS Event Log'!$P$3:$P$502,$B169,'WHS Event Log'!$S$3:$S$502,Lists!$E$3) -> 0
B170: Unspecified | C170: =COUNTIFS('WHS Event Log'!$E$3:$E$502,C$138,'WHS Event Log'!$P$3:$P$502,StagingTables!$B170) -> 0 | D170: =COUNTIFS('WHS Event Log'!$E$3:$E$502,D$138,'WHS Event Log'!$P$3:$P$502,StagingTables!$B170) -> 0 | E170: =COUNTIFS('WHS Event Log'!$E$3:$E$502,E$138,'WHS Event Log'!$P$3:$P$502,StagingTables!$B170) -> 0 | F170: =COUNTIFS('WHS Event Log'!$E$3:$E$502,F$138,'WHS Event Log'!$P$3:$P$502,StagingTables!$B170) -> 0 | G170: =COUNTIFS('WHS Event Log'!$E$3:$E$502,G$138,'WHS Event Log'!$P$3:$P$502,StagingTables!$B170) -> 0 | H170: =COUNTIFS('WHS Event Log'!$E$3:$E$502,H$138,'WHS Event Log'!$P$3:$P$502,StagingTables!$B170) -> 0 | I170: =COUNTIFS('WHS Event Log'!$E$3:$E$502,I$138,'WHS Event Log'!$P$3:$P$502,StagingTables!$B170) -> 0 | J170: =COUNTIFS('WHS Event Log'!$E$3:$E$502,J$138,'WHS Event Log'!$P$3:$P$502,StagingTables!$B170) -> 0 | K170: =COUNTIFS('WHS Event Log'!$E$3:$E$502,K$138,'WHS Event Log'!$P$3:$P$502,StagingTables!$B170) -> 0 | L170: =COUNTIFS('WHS Event Log'!$E$3:$E$502,L$138,'WHS Event Log'!$P$3:$P$502,StagingTables!$B170) -> 0 | M170: =COUNTIFS('WHS Event Log'!$E$3:$E$502,M$138,'WHS Event Log'!$P$3:$P$502,StagingTables!$B170) -> 0 | N170: =COUNTIFS('WHS Event Log'!$E$3:$E$502,N$138,'WHS Event Log'!$P$3:$P$502,StagingTables!$B170) -> 0 | O170: 0 | P170: =COUNTIFS('WHS Event Log'!$P$3:$P$502,$B170,'WHS Event Log'!$S$3:$S$502,Lists!$E$3) -> 0
